Workbook

Sheet Summary
A1: 20-30 AS Smooth 10 cm | H1: 20-30 AS Rough 10 cm
B2: Early slope | C2: Late slope | D2: Average early | E2: Average late | H2: Run | I2: Early slope | J2: Late slope | K2: Average early | L2: Average late
A3: 0 | B3: 2.7 | C3: 0.32 | D3: =AVERAGE(B3:B7) -> 2.492 | E3: =AVERAGE(C3:C7) -> 0.238 | H3: 0 | I3: 2.27 | J3: 0.31 | K3: =AVERAGE(I3:I7) -> 2.68 | L3: =AVERAGE(J3:J7) -> 0.412
B4: 2.34 | C4: 0.23 | I4: 2.37 | J4: 0.29
B5: 2.63 | C5: 0.18 | I5: 2.49 | J5: 0.33
B6: 2.7 | C6: 0.31 | I6: 3.07 | J6: 0.48
B7: 2.09 | C7: 0.15 | I7: 3.2 | J7: 0.65
A8: 0.01 | B8: 1.8 | C8: 0.52 | D8: =AVERAGE(B8:B12) -> 2.41 | E8: =AVERAGE(C8:C12) -> 0.512 | H8: 0.01 | I8: 1.93 | J8: 0.52 | K8: =AVERAGE(I8:I12) -> 2.73 | L8: =AVERAGE(J8:J12) -> 0.438
B9: 2.89 | C9: 0.45 | I9: 3.58 | J9: 0.41
B10: 1.55 | C10: 0.5 | I10: 2.9 | J10: 0.36
B11: 2.73 | C11: 0.56 | I11: 2.46 | J11: 0.52
B12: 3.08 | C12: 0.53 | I12: 2.78 | J12: 0.38
A13: 0.015 | B13: 1.71 | C13: 0.34 | D13: =AVERAGE(B13:B17) -> 1.65 | E13: =AVERAGE(C13:C17) -> 0.304
B14: 1.99 | C14: 0.21
B15: 1.76 | C15: 0.35
B16: 1.58 | C16: 0.36
B17: 1.21 | C17: 0.26
A18: 0.02 | B18: 2.42 | C18: 0.16 | D18: =AVERAGE(B18:B22) -> 2.228 | E18: =AVERAGE(C18:C22) -> 0.222
B19: 1.95 | C19: 0.11
B20: 2 | C20: 0.36
B21: 1.82 | C21: 0.14
B22: 2.95 | C22: 0.34

Sheet Ethanol 0% MC 10cm
A1: Run | B1: Early slope | C1: Late slope | D1: Rough/smooth
A2: 1 | B2: 1.28 | C2: 0.3 | D2: Smooth
A3: 1 | B3: 1.26 | C3: 0.21 | D3: Rough
A4: 2 | B4: 1.11 | C4: 0.24
A5: 3 | B5: 1.29 | C5: 0.23
A7: Smooth
A8: Time | B8: Mass | C8: Time (corr) | D8: SQRT time | E8: Mass | H8: Time | I8: Mass | J8: Time (corr) | K8: SQRT time | L8: Mass | O8: Time | P8: Mass | Q8: Time (corr) | R8: SQRT time | S8: Mass | V8: Time | W8: Mass | X8: Time (corr) | Y8: SQRT time | Z8: Mass
A9: 2457128.92 | B9: 0 | H9: 2457144.799 | I9: 0 | J9: =0 -> 0 | K9: =SQRT(J9) -> 0 | L9: =I9 -> 0 | O9: 2457144.802 | P9: 0 | Q9: =0 -> 0 | R9: =SQRT(Q9) -> 0 | S9: =P9 -> 0 | V9: 2457144.804 | W9: 0 | X9: =0 -> 0 | Y9: =SQRT(X9) -> 0 | Z9: =W9 -> 0
A10: 2457128.92 | B10: 0 | C10: =0 -> 0 | D10: =SQRT(C10) -> 0 | E10: =B10 -> 0 | H10: 2457144.799 | I10: 0.31 | J10: =(H10-$H$9)*24*60*60 -> 0.5184039474 | K10: =SQRT(J10) -> 0.7200027412 | L10: =I10 -> 0.31 | O10: 2457144.802 | P10: 0.49 | Q10: =(O10-$O$9)*24*60*60 -> 0.6047844887 | R10: =SQRT(Q10) -> 0.777678911 | S10: =P10 -> 0.49 | V10: 2457144.804 | W10: 0.47 | X10: =(V10-$V$9)*24*60*60 -> 0.5183637142 | Y10: =SQRT(X10) -> 0.7199748011 | Z10: =W10 -> 0.47
A11: 2457128.92 | B11: -0.14 | C11: =(A11-$A$10)*24*60*60 -> 0.5184039474 | D11: =SQRT(C11) -> 0.7200027412 | E11: =B11 -> -0.14 | H11: 2457144.799 | I11: 0.81 | J11: =(H11-$H$9)*24*60*60 -> 1.123188436 | K11: =SQRT(J11) -> 1.059805848 | L11: =I11 -> 0.81 | O11: 2457144.802 | P11: 1.16 | Q11: =(O11-$O$9)*24*60*60 -> 1.209568977 | R11: =SQRT(Q11) -> 1.099804063 | S11: =P11 -> 1.16 | V11: 2457144.804 | W11: 1.01 | X11: =(V11-$V$9)*24*60*60 -> 1.123188436 | Y11: =SQRT(X11) -> 1.059805848 | Z11: =W11 -> 1.01
A12: 2457128.92 | B12: 0.33 | C12: =(A12-$A$10)*24*60*60 -> 1.123228669 | D12: =SQRT(C12) -> 1.059824829 | E12: =B12 -> 0.33 | H12: 2457144.799 | I12: 1.16 | J12: 1.728013158 | K12: 1.314539143 | L12: 1.16 | O12: 2457144.802 | P12: 1.48 | Q12: 1.727972925 | R12: 1.31452384 | S12: 1.48 | V12: 2457144.804 | W12: 1.45 | X12: 1.641592383 | Y12: 1.281246418 | Z12: 1.45
A13: 2457128.92 | B13: 0.66 | C13: 1.641632617 | D13: 1.281262119 | E13: 0.66 | H13: 2457144.799 | I13: 1.46 | J13: 2.246417105 | K13: 1.498805226 | L13: 1.46 | O13: 2457144.802 | P13: 1.7 | Q13: 2.332797647 | R13: 1.527349877 | S13: 1.7 | V13: 2457144.804 | W13: 1.6 | X13: 2.246376872 | Y13: 1.498791804 | Z13: 1.6
A14: 2457128.92 | B14: 0.84 | C14: 2.246417105 | D14: 1.498805226 | E14: 0.84 | H14: 2457144.799 | I14: 1.63 | J14: 2.851201594 | K14: 1.688550146 | L14: 1.63 | O14: 2457144.802 | P14: 1.88 | Q14: 2.851201594 | R14: 1.688550146 | S14: 1.88 | V14: 2457144.804 | W14: 1.82 | X14: 2.764780819 | Y14: 1.662763008 | Z14: 1.82
A15: 2457128.92 | B15: 0.98 | C15: 2.851201594 | D15: 1.688550146 | E15: 0.98 | H15: 2457144.799 | I15: 1.79 | J15: 3.369605541 | K15: 1.835648534 | L15: 1.79 | O15: 2457144.802 | P15: 2.01 | Q15: 3.455986083 | R15: 1.859028263 | S15: 2.01 | V15: 2457144.804 | W15: 1.89 | X15: 3.369565308 | Y15: 1.835637575 | Z15: 1.89
A16: 2457128.92 | B16: 1.05 | C16: 3.369605541 | D16: 1.835648534 | E16: 1.05 | H16: 2457144.799 | I16: 1.89 | J16: 3.97439003 | K16: 1.993587227 | L16: 1.89 | O16: 2457144.802 | P16: 2.14 | Q16: 4.060770571 | R16: 2.015135373 | S16: 2.14 | V16: 2457144.804 | W16: 2.07 | X16: 3.97439003 | Y16: 1.993587227 | Z16: 2.07
A17: 2457128.92 | B17: 1.21 | C17: 3.974430263 | D17: 1.993597317 | E17: 1.21 | H17: 2457144.799 | I17: 2.03 | J17: 4.492793977 | K17: 2.119621187 | L17: 2.03 | O17: 2457144.802 | P17: 2.23 | Q17: 4.579174519 | R17: 2.139900586 | S17: 2.23 | V17: 2457144.804 | W17: 2.12 | X17: 4.492793977 | Y17: 2.119621187 | Z17: 2.12
A18: 2457128.92 | B18: 1.26 | C18: 4.49283421 | D18: 2.119630678 | E18: 1.26 | H18: 2457144.799 | I18: 2.1 | J18: 5.097618699 | K18: 2.257790668 | L18: 2.1 | O18: 2457144.802 | P18: 2.32 | Q18: 5.18399924 | R18: 2.276839749 | S18: 2.32 | V18: 2457144.804 | W18: 2.22 | X18: 5.097578466 | Y18: 2.257781758 | Z18: 2.22
A19: 2457128.92 | B19: 1.33 | C19: 5.097618699 | D19: 2.257790668 | E19: 1.33 | H19: 2457144.799 | I19: 2.19 | J19: 5.616022646 | K19: 2.369814897 | L19: 2.19 | O19: 2457144.802 | P19: 2.4 | Q19: 5.702403188 | R19: 2.387970517 | S19: 2.4 | V19: 2457144.804 | W19: 2.29 | X19: 5.615982413 | Y19: 2.369806408 | Z19: 2.29
A20: 2457128.92 | B20: 1.41 | C20: 5.616022646 | D20: 2.369814897 | E20: 1.41 | H20: 2457144.799 | I20: 2.28 | J20: 6.220807135 | K20: 2.494154593 | L20: 2.28 | O20: 2457144.802 | P20: 2.46 | Q20: 6.307187676 | R20: 2.511411491 | S20: 2.46 | V20: 2457144.804 | W20: 2.36 | X20: 6.220766902 | Y20: 2.494146528 | Z20: 2.36
A21: 2457128.92 | B21: 1.47 | C21: 6.220807135 | D21: 2.494154593 | E21: 1.47 | H21: 2457144.799 | I21: 2.32 | J21: 6.825591624 | K21: 2.612583324 | L21: 2.32 | O21: 2457144.802 | P21: 2.55 | Q21: 6.825591624 | R21: 2.612583324 | S21: 2.55 | V21: 2457144.804 | W21: 2.41 | X21: 6.825591624 | Y21: 2.612583324 | Z21: 2.41
A22: 2457128.92 | B22: 1.52 | C22: 6.825631857 | D22: 2.612591024 | E22: 1.52 | H22: 2457144.799 | I22: 2.36 | J22: 7.343995571 | K22: 2.709980733 | L22: 2.36 | O22: 2457144.802 | P22: 2.59 | Q22: 7.430376112 | R22: 2.725871624 | S22: 2.59 | V22: 2457144.804 | W22: 2.5 | X22: 7.343995571 | Y22: 2.709980733 | Z22: 2.5
A23: 2457128.92 | B23: 1.61 | C23: 7.344035804 | D23: 2.709988156 | E23: 1.61 | H23: 2457144.799 | I23: 2.46 | J23: 7.948820293 | K23: 2.819365229 | L23: 2.46 | O23: 2457144.802 | P23: 2.63 | Q23: 7.94878006 | R23: 2.819358094 | S23: 2.63 | V23: 2457144.804 | W23: 2.53 | X23: 7.94878006 | Y23: 2.819358094 | Z23: 2.53
A24: 2457128.92 | B24: 1.64 | C24: 7.948820293 | D24: 2.819365229 | E24: 1.64 | H24: 2457144.799 | I24: 2.49 | J24: 8.46722424 | K24: 2.909849522 | L24: 2.49 | O24: 2457144.802 | P24: 2.68 | Q24: 8.553604782 | R24: 2.924654643 | S24: 2.68 | V24: 2457144.804 | W24: 2.57 | X24: 8.467184007 | Y24: 2.909842609 | Z24: 2.57
A25: 2457128.92 | B25: 1.68 | C25: 8.46722424 | D25: 2.909849522 | E25: 1.68 | H25: 2457144.799 | I25: 2.54 | J25: 9.072008729 | K25: 3.011977545 | L25: 2.54 | O25: 2457144.802 | P25: 2.74 | Q25: 9.15838927 | R25: 3.026283078 | S25: 2.74 | V25: 2457144.804 | W25: 2.64 | X25: 9.071968496 | Y25: 3.011970866 | Z25: 2.64
A26: 2457128.92 | B26: 1.74 | C26: 9.072008729 | D26: 3.011977545 | E26: 1.74 | H26: 2457144.799 | I26: 2.6 | J26: 9.676793218 | K26: 3.110754445 | L26: 2.6 | O26: 2457144.802 | P26: 2.79 | Q26: 9.676793218 | R26: 3.110754445 | S26: 2.79 | V26: 2457144.804 | W26: 2.69 | X26: 9.590372443 | Y26: 3.096832647 | Z26: 2.69
A27: 2457128.92 | B27: 1.78 | C27: 9.590412676 | D27: 3.096839143 | E27: 1.78 | H27: 2457144.799 | I27: 2.65 | J27: 10.19519717 | K27: 3.192991883 | L27: 2.65 | O27: 2457144.802 | P27: 2.82 | Q27: 10.28157771 | R27: 3.206489935 | S27: 2.82 | V27: 2457144.804 | W27: 2.72 | X27: 10.19519717 | Y27: 3.192991883 | Z27: 2.72
A28: 2457128.92 | B28: 1.81 | C28: 10.1952374 | D28: 3.192998183 | E28: 1.81 | H28: 2457144.799 | I28: 2.68 | J28: 10.80002189 | K28: 3.286338675 | L28: 2.68 | O28: 2457144.802 | P28: 2.89 | Q28: 10.79998165 | R28: 3.286332554 | S28: 2.89 | V28: 2457144.804 | W28: 2.75 | X28: 10.79998165 | Y28: 3.286332554 | Z28: 2.75
A29: 2457128.92 | B29: 1.84 | C29: 10.80002189 | D29: 3.286338675 | E29: 1.84 | H29: 2457144.799 | I29: 2.71 | J29: 11.31842583 | K29: 3.364286824 | L29: 2.71 | O29: 2457144.802 | P29: 2.91 | Q29: 11.40476614 | R29: 3.377094334 | S29: 2.91 | V29: 2457144.804 | W29: 2.82 | X29: 11.3183856 | Y29: 3.364280845 | Z29: 2.82
A30: 2457128.92 | B30: 1.91 | C30: 11.31842583 | D30: 3.364286824 | E30: 1.91 | H30: 2457144.799 | I30: 2.78 | J30: 11.83678955 | K30: 3.440463566 | L30: 2.78 | O30: 2457144.802 | P30: 2.94 | Q30: 12.00959086 | R30: 3.465485661 | S30: 2.94 | V30: 2457144.804 | W30: 2.85 | X30: 11.92317009 | Y30: 3.452994366 | Z30: 2.85
A31: 2457128.92 | B31: 1.93 | C31: 11.92321032 | D31: 3.453000192 | E31: 1.93 | H31: 2457144.799 | I31: 2.8 | J31: 12.44161427 | K31: 3.527267252 | L31: 2.8 | O31: 2457144.802 | P31: 2.96 | Q31: 12.52799481 | R31: 3.539490756 | S31: 2.96 | V31: 2457144.804 | W31: 2.87 | X31: 12.44157404 | Y31: 3.527261549 | Z31: 2.87
A32: 2457128.92 | B32: 1.96 | C32: 12.44161427 | D32: 3.527267252 | E32: 1.96 | H32: 2457144.799 | I32: 2.82 | J32: 12.96001822 | K32: 3.60000253 | L32: 2.82 | O32: 2457144.802 | P32: 2.99 | Q32: 13.1327793 | R32: 3.623917673 | S32: 2.99 | V32: 2457144.804 | W32: 2.92 | X32: 13.04639876 | Y32: 3.611979895 | Z32: 2.92
A33: 2457128.92 | B33: 1.98 | C33: 13.04639876 | D33: 3.611979895 | E33: 1.98 | H33: 2457144.799 | I33: 2.86 | J33: 13.56480271 | K33: 3.683042588 | L33: 2.86 | O33: 2457144.802 | P33: 3.02 | Q33: 13.65118325 | R33: 3.694750769 | S33: 3.02 | V33: 2457144.804 | W33: 2.95 | X33: 13.56476247 | Y33: 3.683037126 | Z33: 2.95
A34: 2457128.92 | B34: 2.01 | C34: 13.65122348 | D34: 3.694756214 | E34: 2.01 | H34: 2457144.799 | I34: 2.89 | J34: 14.16958719 | K34: 3.764251213 | L34: 2.89 | O34: 2457144.802 | P34: 3.06 | Q34: 14.25596774 | R34: 3.775707581 | S34: 3.06 | V34: 2457144.804 | W34: 2.97 | X34: 14.16958719 | Y34: 3.764251213 | Z34: 2.97
A35: 2457128.92 | B35: 2.04 | C35: 14.16962743 | D35: 3.764256557 | E35: 2.04 | H35: 2457144.799 | I35: 2.93 | J35: 14.68799114 | K35: 3.832491506 | L35: 2.93 | O35: 2457144.802 | P35: 3.07 | Q35: 14.77437168 | R35: 3.843744487 | S35: 3.07 | V35: 2457144.805 | W35: 3.01 | X35: 14.77437168 | Y35: 3.843744487 | Z35: 3.01
A36: 2457128.92 | B36: 2.07 | C36: 14.77441192 | D36: 3.843749721 | E36: 2.07 | H36: 2457144.799 | I36: 2.95 | J36: 15.29281586 | K36: 3.910603005 | L36: 2.95 | O36: 2457144.802 | P36: 3.1 | Q36: 15.37919641 | R36: 3.921631855 | S36: 3.1 | V36: 2457144.805 | W36: 3.03 | X36: 15.29277563 | Y36: 3.910597861 | Z36: 3.03
A37: 2457128.92 | B37: 2.09 | C37: 15.29281586 | D37: 3.910603005 | E37: 2.09 | H37: 2457144.799 | I37: 2.97 | J37: 15.81121981 | K37: 3.976332457 | L37: 2.97 | O37: 2457144.802 | P37: 3.11 | Q37: 15.98398089 | R37: 3.99799711 | S37: 3.11 | V37: 2457144.805 | W37: 3.05 | X37: 15.89760035 | Y37: 3.987179498 | Z37: 3.05
A38: 2457128.92 | B38: 2.11 | C38: 15.89760035 | D38: 3.987179498 | E38: 2.11 | H38: 2457144.799 | I38: 2.98 | J38: 16.4160043 | K38: 4.051666855 | L38: 2.98 | O38: 2457144.802 | P38: 3.16 | Q38: 16.50238484 | R38: 4.062312745 | S38: 3.16 | V38: 2457144.805 | W38: 3.1 | X38: 16.41596407 | Y38: 4.05166189 | Z38: 3.1
A39: 2457128.92 | B39: 2.16 | C39: 16.4160043 | D39: 4.051666855 | E39: 2.16 | H39: 2457144.799 | I39: 3.03 | J39: 16.93440825 | K39: 4.11514377 | L39: 3.03 | O39: 2457144.802 | P39: 3.19 | Q39: 17.10716933 | R39: 4.136081398 | S39: 3.19 | V39: 2457144.805 | W39: 3.11 | X39: 17.02078879 | Y39: 4.125625866 | Z39: 3.11
A40: 2457128.92 | B40: 2.18 | C40: 17.02082902 | D40: 4.125630742 | E40: 2.18 | H40: 2457144.799 | I40: 3.05 | J40: 17.53919274 | K40: 4.187981941 | L40: 3.05 | O40: 2457144.802 | P40: 3.21 | Q40: 17.62557328 | R40: 4.198282182 | S40: 3.21 | V40: 2457144.805 | W40: 3.13 | X40: 17.53919274 | Y40: 4.187981941 | Z40: 3.13
A41: 2457128.92 | B41: 2.19 | C41: 17.62561351 | D41: 4.198286973 | E41: 2.19 | H41: 2457144.799 | I41: 3.07 | J41: 18.14401746 | K41: 4.259579493 | L41: 3.07 | O41: 2457144.802 | P41: 3.24 | Q41: 18.230398 | R41: 4.269707016 | S41: 3.24 | V41: 2457144.805 | W41: 3.15 | X41: 18.14397722 | Y41: 4.25957477 | Z41: 3.15
A42: 2457128.92 | B42: 2.21 | C42: 18.14401746 | D42: 4.259579493 | E42: 2.21 | H42: 2457144.799 | I42: 3.09 | J42: 18.66242141 | K42: 4.320002477 | L42: 3.09 | O42: 2457144.802 | P42: 3.27 | Q42: 18.74880195 | R42: 4.329988677 | S42: 3.27 | V42: 2457144.805 | W42: 3.18 | X42: 18.74876171 | Y42: 4.329984032 | Z42: 3.18
A43: 2457128.92 | B43: 2.22 | C43: 18.74880195 | D43: 4.329988677 | E43: 2.22 | H43: 2457144.799 | I43: 3.11 | J43: 19.26720589 | K43: 4.389442549 | L43: 3.11 | O43: 2457144.802 | P43: 3.32 | Q43: 19.35358644 | R43: 4.399271125 | S43: 3.32 | V43: 2457144.805 | W43: 3.2 | X43: 19.26716566 | Y43: 4.389437966 | Z43: 3.2
A44: 2457128.92 | B44: 2.27 | C44: 19.26720589 | D44: 4.389442549 | E44: 2.27 | H44: 2457144.799 | I44: 3.14 | J44: 19.78560984 | K44: 4.448101825 | L44: 3.14 | O44: 2457144.802 | P44: 3.34 | Q44: 19.95837092 | R44: 4.467479258 | S44: 3.34 | V44: 2457144.805 | W44: 3.23 | X44: 19.87199038 | Y44: 4.45780107 | Z44: 3.23
A45: 2457128.92 | B45: 2.28 | C45: 19.87203062 | D45: 4.457805583 | E45: 2.28 | H45: 2457144.799 | I45: 3.16 | J45: 20.39039433 | K45: 4.515572426 | L45: 3.16 | O45: 2457144.802 | P45: 3.35 | Q45: 20.47677487 | R45: 4.525127056 | S45: 3.35 | V45: 2457144.805 | W45: 3.26 | X45: 20.39039433 | Y45: 4.515572426 | Z45: 3.26
A46: 2457128.92 | B46: 2.31 | C46: 20.39043456 | D46: 4.51557688 | E46: 2.31 | H46: 2457144.799 | I46: 3.18 | J46: 20.90879828 | K46: 4.572613944 | L46: 3.18 | O46: 2457144.802 | P46: 3.37 | Q46: 21.08159959 | R46: 4.591470308 | S46: 3.37 | V46: 2457144.805 | W46: 3.27 | X46: 20.99517882 | Y46: 4.582049631 | Z46: 3.27
A47: 2457128.92 | B47: 2.32 | C47: 20.99521905 | D47: 4.582054021 | E47: 2.32 | H47: 2457144.799 | I47: 3.19 | J47: 21.513623 | K47: 4.638278021 | L47: 3.19 | O47: 2457144.802 | P47: 3.39 | Q47: 21.60000354 | R47: 4.647580396 | S47: 3.39 | V47: 2457144.805 | W47: 3.28 | X47: 21.51358277 | Y47: 4.638273684 | Z47: 3.28
A48: 2457128.92 | B48: 2.34 | C48: 21.60000354 | D48: 4.647580396 | E48: 2.34 | H48: 2457144.799 | I48: 3.23 | J48: 22.11840749 | K48: 4.703021102 | L48: 3.23 | O48: 2457144.802 | P48: 3.41 | Q48: 22.20478803 | R48: 4.71219567 | S48: 3.41 | V48: 2457144.805 | W48: 3.29 | X48: 22.11836725 | Y48: 4.703016825 | Z48: 3.29
A49: 2457128.92 | B49: 2.38 | C49: 22.20482826 | D49: 4.712199939 | E49: 2.38 | H49: 2457144.799 | I49: 3.24 | J49: 22.63681144 | K49: 4.757815826 | L49: 3.24 | O49: 2457144.802 | P49: 3.42 | Q49: 22.72319198 | R49: 4.766884934 | S49: 3.42 | V49: 2457144.805 | W49: 3.3 | X49: 22.72319198 | Y49: 4.766884934 | Z49: 3.3
A50: 2457128.92 | B50: 2.39 | C50: 22.72323221 | D50: 4.766889154 | E50: 2.39 | H50: 2457144.799 | I50: 3.25 | J50: 23.24159592 | K50: 4.82095384 | L50: 3.25 | O50: 2457144.802 | P50: 3.43 | Q50: 23.32797647 | R50: 4.829904395 | S50: 3.43 | V50: 2457144.805 | W50: 3.31 | X50: 23.24159592 | Y50: 4.82095384 | Z50: 3.31
A51: 2457128.92 | B51: 2.41 | C51: 23.3280167 | D51: 4.82990856 | E51: 2.41 | H51: 2457144.799 | I51: 3.26 | J51: 23.75999987 | K51: 4.87442303 | L51: 3.26 | O51: 2457144.802 | P51: 3.45 | Q51: 23.93280119 | R51: 4.892116228 | S51: 3.45 | V51: 2457144.805 | W51: 3.32 | X51: 23.84638041 | Y51: 4.883275582 | Z51: 3.32
A52: 2457128.92 | B52: 2.42 | C52: 23.84642065 | D52: 4.883279702 | E52: 2.42 | H52: 2457144.799 | I52: 3.28 | J52: 24.36482459 | K52: 4.936073803 | L52: 3.28 | O52: 2457144.802 | P52: 3.46 | Q52: 24.4511649 | R52: 4.944811918 | S52: 3.46 | V52: 2457144.805 | W52: 3.34 | X52: 24.36478436 | Y52: 4.936069728 | Z52: 3.34
A53: 2457128.92 | B53: 2.43 | C53: 24.45120513 | D53: 4.944815986 | E53: 2.43 | H53: 2457144.799 | I53: 3.31 | J53: 24.96960908 | K53: 4.996959984 | L53: 3.31 | O53: 2457144.802 | P53: 3.47 | Q53: 25.05598962 | R53: 5.005595831 | S53: 3.47 | V53: 2457144.805 | W53: 3.36 | X53: 24.96956885 | Y53: 4.996955958 | Z53: 3.36
A54: 2457128.92 | B54: 2.45 | C54: 25.05602986 | D54: 5.00559985 | E54: 2.45 | H54: 2457144.799 | I54: 3.31 | J54: 25.48801303 | K54: 5.048565443 | L54: 3.31 | O54: 2457144.802 | P54: 3.49 | Q54: 25.57439357 | R54: 5.057113166 | S54: 3.49 | V54: 2457144.805 | W54: 3.37 | X54: 25.4879728 | Y54: 5.048561458 | Z54: 3.37
A55: 2457128.92 | B55: 2.48 | C55: 25.5744338 | D55: 5.057117144 | E55: 2.48 | H55: 2457144.799 | I55: 3.33 | J55: 26.00641698 | K55: 5.099648711 | L55: 3.33 | O55: 2457144.802 | P55: 3.5 | Q55: 26.17917806 | R55: 5.116559201 | S55: 3.5 | V55: 2457144.805 | W55: 3.38 | X55: 26.09279752 | Y55: 5.108110954 | Z55: 3.38
A56: 2457128.92 | B56: 2.5 | C56: 26.17921829 | D56: 5.116563133 | E56: 2.5 | H56: 2457144.799 | I56: 3.35 | J56: 26.61120147 | K56: 5.158604604 | L56: 3.35 | O56: 2457144.802 | P56: 3.54 | Q56: 26.69758201 | R56: 5.166970293 | S56: 3.54 | V56: 2457144.805 | W56: 3.38 | X56: 26.69758201 | Y56: 5.166970293 | Z56: 3.38
A57: 2457128.92 | B57: 2.51 | C57: 26.69762224 | D57: 5.166974186 | E57: 2.51 | H57: 2457144.799 | I57: 3.35 | J57: 27.12960541 | K57: 5.208608779 | L57: 3.35 | O57: 2457144.802 | P57: 3.55 | Q57: 27.3023665 | R57: 5.225166648 | S57: 3.55 | V57: 2457144.805 | W57: 3.39 | X57: 27.21598595 | Y57: 5.216894282 | Z57: 3.39
A58: 2457128.92 | B58: 2.52 | C58: 27.30240673 | D58: 5.225170498 | E58: 2.52 | H58: 2457144.799 | I58: 3.36 | J58: 27.7343899 | K58: 5.266345023 | L58: 3.36 | O58: 2457144.802 | P58: 3.56 | Q58: 27.90719122 | R58: 5.282725737 | S58: 3.56 | V58: 2457144.805 | W58: 3.4 | X58: 27.82077044 | Y58: 5.274539832 | Z58: 3.4
A59: 2457128.92 | B59: 2.53 | C59: 27.82081068 | D59: 5.274543646 | E59: 2.53 | H59: 2457144.799 | I59: 3.38 | J59: 28.25279385 | K59: 5.315335723 | L59: 3.38 | O59: 2457144.802 | P59: 3.57 | Q59: 28.42559516 | R59: 5.33156592 | S59: 3.57 | V59: 2457144.805 | W59: 3.42 | X59: 28.33917439 | Y59: 5.323455118 | Z59: 3.42
A60: 2457128.92 | B60: 2.54 | C60: 28.4256354 | D60: 5.331569694 | E60: 2.54 | H60: 2457144.799 | I60: 3.41 | J60: 28.85761857 | K60: 5.371928757 | L60: 3.41 | O60: 2457144.802 | P60: 3.58 | Q60: 29.03037965 | R60: 5.387984749 | S60: 3.58 | V60: 2457144.805 | W60: 3.45 | X60: 28.94399911 | Y60: 5.379962743 | Z60: 3.45
A61: 2457128.921 | B61: 2.56 | C61: 28.94399911 | D61: 5.379962743 | E61: 2.56 | H61: 2457144.799 | I61: 3.43 | J61: 29.46240306 | K61: 5.427928063 | L61: 3.43 | O61: 2457144.802 | P61: 3.59 | Q61: 29.5487836 | R61: 5.435879285 | S61: 3.59 | V61: 2457144.805 | W61: 3.45 | X61: 29.46236283 | Y61: 5.427924357 | Z61: 3.45
A62: 2457128.921 | B62: 2.59 | C62: 29.54882383 | D62: 5.435882986 | E62: 2.59 | H62: 2457144.799 | I62: 3.44 | J62: 29.98080701 | K62: 5.475473222 | L62: 3.44 | O62: 2457144.802 | P62: 3.6 | Q62: 30.15356809 | R62: 5.491226465 | S62: 3.6 | V62: 2457144.805 | W62: 3.46 | X62: 30.06718755 | Y62: 5.483355501 | Z62: 3.46
A63: 2457128.921 | B63: 2.61 | C63: 30.15360832 | D63: 5.491230128 | E63: 2.61 | H63: 2457144.799 | I63: 3.45 | J63: 30.5855915 | K63: 5.53042417 | L63: 3.45 | O63: 2457144.802 | P63: 3.62 | Q63: 30.67197204 | R63: 5.53822824 | S63: 3.62 | V63: 2457144.805 | W63: 3.47 | X63: 30.67197204 | Y63: 5.53822824 | Z63: 3.47
A64: 2457128.921 | B64: 2.62 | C64: 30.67201227 | D64: 5.538231872 | E64: 2.62 | H64: 2457144.799 | I64: 3.46 | J64: 31.10399544 | K64: 5.57709561 | L64: 3.46 | O64: 2457144.802 | P64: 3.63 | Q64: 31.27679676 | R64: 5.592566205 | S64: 3.63 | V64: 2457144.805 | W64: 3.49 | X64: 31.19037598 | Y64: 5.584834463 | Z64: 3.49
A65: 2457128.921 | B65: 2.63 | C65: 31.27683699 | D65: 5.592569802 | E65: 2.63 | H65: 2457144.799 | I65: 3.47 | J65: 31.70882016 | K65: 5.63105853 | L65: 3.47 | O65: 2457144.802 | P65: 3.65 | Q65: 31.88158125 | R65: 5.64637771 | S65: 3.65 | V65: 2457144.805 | W65: 3.5 | X65: 31.79520071 | Y65: 5.638723322 | Z65: 3.5
A66: 2457128.921 | B66: 2.64 | C66: 31.79520071 | D66: 5.638723322 | E66: 2.64 | H66: 2457144.799 | I66: 3.49 | J66: 32.22722411 | K66: 5.676902686 | L66: 3.49 | O66: 2457144.802 | P66: 3.65 | Q66: 32.39998519 | R66: 5.692098488 | S66: 3.65 | V66: 2457144.805 | W66: 3.52 | X66: 32.31356442 | Y66: 5.684502126 | Z66: 3.52
A67: 2457128.921 | B67: 2.65 | C67: 32.40002543 | D67: 5.692102022 | E67: 2.65 | H67: 2457144.799 | I67: 3.51 | J67: 32.8320086 | K67: 5.729922216 | L67: 3.51 | O67: 2457144.802 | P67: 3.66 | Q67: 33.00476968 | R67: 5.744977779 | S67: 3.66 | V67: 2457144.805 | W67: 3.52 | X67: 32.91838914 | Y67: 5.737454936 | Z67: 3.52
A68: 2457128.921 | B68: 2.66 | C68: 33.00480992 | D68: 5.744981281 | E68: 2.66 | H68: 2457144.799 | I68: 3.53 | J68: 33.43679309 | K68: 5.782455628 | L68: 3.53 | O68: 2457144.802 | P68: 3.67 | Q68: 33.52317363 | R68: 5.789920002 | S68: 3.67 | V68: 2457144.805 | W68: 3.55 | X68: 33.43679309 | Y68: 5.782455628 | Z68: 3.55
A69: 2457128.921 | B69: 2.68 | C69: 33.52321386 | D69: 5.789923476 | E69: 2.68 | H69: 2457144.799 | I69: 3.54 | J69: 33.95519704 | K69: 5.827108806 | L69: 3.54 | O69: 2457144.802 | P69: 3.68 | Q69: 34.12799835 | R69: 5.841917352 | S69: 3.68 | V69: 2457144.805 | W69: 3.55 | X69: 34.04157758 | Y69: 5.834516053 | Z69: 3.55
A70: 2457128.921 | B70: 2.68 | C70: 34.12799835 | D70: 5.841917352 | E70: 2.68 | H70: 2457144.799 | I70: 3.55 | J70: 34.47360098 | K70: 5.871422399 | L70: 3.55 | O70: 2457144.802 | P70: 3.69 | Q70: 34.6464023 | R70: 5.88611946 | S70: 3.69 | V70: 2457144.805 | W70: 3.56 | X70: 34.64636207 | Y70: 5.886116043 | Z70: 3.56
A71: 2457128.921 | B71: 2.7 | C71: 34.6464023 | D71: 5.88611946 | E71: 2.7 | H71: 2457144.799 | I71: 3.56 | J71: 35.07842571 | K71: 5.922704256 | L71: 3.56 | O71: 2457144.802 | P71: 3.71 | Q71: 35.25118679 | R71: 5.937270988 | S71: 3.71 | V71: 2457144.805 | W71: 3.57 | X71: 35.16476601 | Y71: 5.929988703 | Z71: 3.57
A72: 2457128.921 | B72: 2.71 | C72: 35.25122702 | D72: 5.937274376 | E72: 2.71 | H72: 2457144.799 | I72: 3.57 | J72: 35.59678942 | K72: 5.966304503 | L72: 3.57 | O72: 2457144.802 | P72: 3.73 | Q72: 35.85597128 | R72: 5.987985578 | S72: 3.73 | V72: 2457144.805 | W72: 3.58 | X72: 35.76959074 | Y72: 5.980768407 | Z72: 3.58
A73: 2457128.921 | B73: 2.72 | C73: 35.76963097 | D73: 5.98077177 | E73: 2.72 | H73: 2457144.799 | I73: 3.57 | J73: 36.20161414 | K73: 6.016777721 | L73: 3.57 | O73: 2457144.802 | P73: 3.74 | Q73: 36.37437522 | R73: 6.031117245 | S73: 3.74 | V73: 2457144.805 | W73: 3.6 | X73: 36.28799468 | Y73: 6.02395175 | Z73: 3.6
A74: 2457128.921 | B74: 2.72 | C74: 36.37441546 | D74: 6.031120581 | E74: 2.72 | H74: 2457144.799 | I74: 3.6 | J74: 36.80639863 | K74: 6.066827724 | L74: 3.6 | O74: 2457144.802 | P74: 3.74 | Q74: 36.97919995 | R74: 6.081052536 | S74: 3.74 | V74: 2457144.805 | W74: 3.63 | X74: 36.89277917 | Y74: 6.073942638 | Z74: 3.63
A75: 2457128.921 | B75: 2.73 | C75: 36.97919995 | D75: 6.081052536 | E75: 2.73 | H75: 2457144.799 | I75: 3.63 | J75: =(H75-$H$9)*24*60*60 -> 37.32480258 | K75: =SQRT(J75) -> 6.1094028 | L75: =I75 -> 3.63 | O75: 2457144.802 | P75: 3.75 | Q75: =(O75-$O$9)*24*60*60 -> 37.49760389 | R75: =SQRT(Q75) -> 6.123528713 | S75: =P75 -> 3.75 | V75: 2457144.805 | W75: 3.63 | X75: =(V75-$V$9)*24*60*60 -> 37.41118312 | Y75: =SQRT(X75) -> 6.11646819 | Z75: =W75 -> 3.63
A76: 2457128.921 | B76: 2.74 | C76: =(A76-$A$10)*24*60*60 -> 37.49760389 | D76: =SQRT(C76) -> 6.123528713 | E76: =B76 -> 2.74 | H76: 2457144.799 | I76: 3.63 | J76: 37.92958707 | K76: 6.158700112 | L76: 3.63 | O76: 2457144.802 | P76: 3.75 | Q76: 38.10238838 | R76: 6.172713211 | S76: 3.75 | V76: 2457144.805 | W76: 3.64 | X76: 38.01596761 | Y76: 6.165709011 | Z76: 3.64
A77: 2457128.921 | B77: 2.76 | C77: 38.10242862 | D77: 6.17271647 | E77: 2.76 | H77: 2457144.799 | I77: 3.65 | J77: 38.44799101 | K77: 6.200644403 | L77: 3.65 | O77: 2457144.802 | P77: 3.76 | Q77: 38.62079233 | R77: 6.214562923 | S77: 3.76 | V77: 2457144.805 | W77: 3.64 | X77: 38.62079233 | Y77: 6.214562923 | Z77: 3.64
A78: 2457128.921 | B78: 2.77 | C78: 38.62083256 | D78: 6.21456616 | E78: 2.77 | H78: 2457144.799 | I78: 3.65 | J78: 39.05281574 | K78: 6.249225211 | L78: 3.65 | O78: 2457144.802 | P78: 3.77 | Q78: 39.22557682 | R78: 6.263032558 | S78: 3.77 | V78: 2457144.805 | W78: 3.65 | X78: 39.13919628 | Y78: 6.256132693 | Z78: 3.65
A79: 2457128.921 | B79: 2.79 | C79: 39.22561705 | D79: 6.26303577 | E79: 2.79 | H79: 2457144.799 | I79: 3.66 | J79: 39.57121968 | K79: 6.290565927 | L79: 3.66 | O79: 2457144.802 | P79: 3.78 | Q79: 39.83040154 | R79: 6.311133142 | S79: 3.78 | V79: 2457144.805 | W79: 3.66 | X79: 39.74398077 | Y79: 6.304282732 | Z79: 3.66
A80: 2457128.921 | B80: 2.79 | C80: 39.744021 | D80: 6.304285923 | E80: 2.79 | H80: 2457144.799 | I80: 3.68 | J80: 40.17600417 | K80: 6.338454399 | L80: 3.68 | O80: 2457144.802 | P80: 3.8 | Q80: 40.34876525 | R80: 6.352067794 | S80: 3.8 | V80: 2457144.805 | W80: 3.67 | X80: 40.26238471 | Y80: 6.345264747 | Z80: 3.67
A81: 2457128.921 | B81: 2.8 | C81: 40.34880549 | D81: 6.35207096 | E81: 2.8 | H81: 2457144.799 | I81: 3.7 | J81: 40.69440812 | K81: 6.379216889 | L81: 3.7 | O81: 2457144.802 | P81: 3.81 | Q81: 40.95358998 | R81: 6.399499197 | S81: 3.81 | V81: 2457144.805 | W81: 3.68 | X81: 40.8671692 | Y81: 6.39274348 | Z81: 3.68
A82: 2457128.921 | B82: 2.81 | C82: 40.95363021 | D82: 6.399502341 | E82: 2.81 | H82: 2457144.799 | I82: 3.7 | J82: 41.29919261 | K82: 6.426444788 | L82: 3.7 | O82: 2457144.802 | P82: 3.82 | Q82: 41.47199392 | R82: 6.439875303 | S82: 3.82 | V82: 2457144.805 | W82: 3.68 | X82: 41.38557315 | Y82: 6.433161987 | Z82: 3.68
A83: 2457128.921 | B83: 2.82 | C83: 41.47203416 | D83: 6.439878427 | E83: 2.82 | H83: 2457144.799 | I83: 3.71 | J83: 41.81759655 | K83: 6.466652655 | L83: 3.71 | O83: 2457144.802 | P83: 3.82 | Q83: 42.07677841 | R83: 6.486661577 | S83: 3.82 | V83: 2457144.805 | W83: 3.69 | X83: 41.99039787 | Y83: 6.479999836 | Z83: 3.69
A84: 2457128.921 | B84: 2.82 | C84: 42.07681865 | D84: 6.486664678 | E84: 2.82 | H84: 2457144.799 | I84: 3.72 | J84: 42.42242128 | K84: 6.513249671 | L84: 3.72 | O84: 2457144.802 | P84: 3.83 | Q84: 42.68160313 | R84: 6.533115882 | S84: 3.83 | V84: 2457144.805 | W84: 3.7 | X84: 42.59518236 | Y84: 6.526498476 | Z84: 3.7
A85: 2457128.921 | B85: 2.84 | C85: 42.59522259 | D85: 6.526501558 | E85: 2.84 | H85: 2457144.799 | I85: 3.73 | J85: 42.94082522 | K85: 6.552924937 | L85: 3.73 | O85: 2457144.802 | P85: 3.83 | Q85: 43.19996685 | R85: 6.572668168 | S85: 3.83 | V85: 2457144.805 | W85: 3.72 | X85: 43.11358631 | Y85: 6.566093687 | Z85: 3.72
A86: 2457128.921 | B86: 2.85 | C86: 43.20000708 | D86: 6.572671229 | E86: 2.85 | H86: 2457144.799 | I86: 3.73 | J86: 43.54560971 | K86: 6.598909737 | L86: 3.73 | O86: 2457144.802 | P86: 3.83 | Q86: 43.80479157 | R86: 6.618518835 | S86: 3.83 | V86: 2457144.805 | W86: 3.72 | X86: 43.7183708 | Y86: 6.611986902 | Z86: 3.72
A87: 2457128.921 | B87: 2.86 | C87: 43.71841103 | D87: 6.611989945 | E87: 2.86 | H87: 2457144.799 | I87: 3.74 | J87: 44.06401366 | K87: 6.638073038 | L87: 3.74 | O87: 2457144.802 | P87: 3.84 | Q87: 44.32319552 | R87: 6.657566787 | S87: 3.84 | V87: 2457144.805 | W87: 3.73 | X87: 44.23677474 | Y87: 6.651073202 | Z87: 3.73
A88: 2457128.921 | B88: 2.86 | C88: 44.32323575 | D88: 6.657569808 | E88: 2.86 | H88: 2457144.799 | I88: 3.75 | J88: 44.66879815 | K88: 6.683472013 | L88: 3.75 | O88: 2457144.802 | P88: 3.84 | Q88: 44.92798001 | R88: 6.70283373 | S88: 3.84 | V88: 2457144.805 | W88: 3.74 | X88: 44.84159946 | Y88: 6.696387046 | Z88: 3.74
A89: 2457128.921 | B89: 2.88 | C89: 44.92802024 | D89: 6.702836731 | E89: 2.88 | H89: 2457144.799 | I89: 3.75 | J89: 45.27362287 | K89: 6.728567669 | L89: 3.75 | O89: 2457144.802 | P89: 3.86 | Q89: 45.44638395 | R89: 6.741393324 | S89: 3.86 | V89: 2457144.805 | W89: 3.75 | X89: 45.44638395 | Y89: 6.741393324 | Z89: 3.75
A90: 2457128.921 | B90: 2.89 | C90: 45.53280473 | D90: 6.747799992 | E90: 2.89 | H90: 2457144.799 | I90: 3.76 | J90: 45.79198658 | K90: 6.766977655 | L90: 3.76 | O90: 2457144.802 | P90: 3.87 | Q90: 46.05116844 | R90: 6.786101122 | S90: 3.87 | V90: 2457144.805 | W90: 3.75 | X90: 45.9647879 | Y90: 6.779733616 | Z90: 3.75
A91: 2457128.921 | B91: 2.89 | C91: 46.05120867 | D91: 6.786104087 | E91: 2.89 | H91: 2457144.799 | I91: 3.77 | J91: 46.39681131 | K91: 6.811520484 | L91: 3.77 | O91: 2457144.802 | P91: 3.88 | Q91: 46.65599316 | R91: 6.830519246 | S91: 3.88 | V91: 2457144.805 | W91: 3.77 | X91: 46.56957239 | Y91: 6.824190237 | Z91: 3.77
A92: 2457128.921 | B92: 2.9 | C92: 46.6560334 | D92: 6.830522191 | E92: 2.9 | H92: 2457144.799 | I92: 3.79 | J92: 46.91521525 | K92: 6.849468246 | L92: 3.79 | O92: 2457144.802 | P92: 3.9 | Q92: 47.17439711 | R92: 6.86836204 | S92: 3.9 | V92: 2457144.805 | W92: 3.8 | X92: 47.08797634 | Y92: 6.862067934 | Z92: 3.8
A93: 2457128.921 | B93: 2.91 | C93: 47.17443734 | D93: 6.868364969 | E93: 2.91 | H93: 2457144.799 | I93: 3.81 | J93: 47.51999974 | K93: 6.893475157 | L93: 3.81 | O93: 2457144.802 | P93: 3.9 | Q93: 47.7791816 | R93: 6.912248664 | S93: 3.9 | V93: 2457144.805 | W93: 3.81 | X93: 47.69280106 | Y93: 6.90599747 | Z93: 3.81
A94: 2457128.921 | B94: 2.92 | C94: 47.77922183 | D94: 6.912251575 | E94: 2.92 | H94: 2457144.799 | I94: 3.81 | J94: 48.12482446 | K94: 6.937205811 | L94: 3.81 | O94: 2457144.802 | P94: 3.91 | Q94: 48.29758555 | R94: 6.949646433 | S94: 3.91 | V94: 2457144.805 | W94: 3.81 | X94: 48.21116477 | Y94: 6.943426011 | Z94: 3.81
A95: 2457128.921 | B95: 2.93 | C95: 48.38400632 | D95: 6.955861293 | E95: 2.93 | H95: 2457144.799 | I95: 3.81 | J95: 48.64318818 | K95: 6.974466874 | L95: 3.81 | O95: 2457144.802 | P95: 3.92 | Q95: 48.90237004 | R95: 6.993022954 | S95: 3.92 | V95: 2457144.805 | W95: 3.81 | X95: 48.81598949 | Y95: 6.98684403 | Z95: 3.81
A96: 2457128.921 | B96: 2.94 | C96: 48.90241027 | D96: 6.993025831 | E96: 2.94 | H96: 2457144.799 | I96: 3.82 | J96: 49.2480129 | K96: 7.017692847 | L96: 3.82 | O96: 2457144.802 | P96: 3.92 | Q96: 49.42077398 | R96: 7.029991037 | S96: 3.92 | V96: 2457144.805 | W96: 3.82 | X96: 49.42077398 | Y96: 7.029991037 | Z96: 3.82
A97: 2457128.921 | B97: 2.96 | C97: 49.50723499 | D97: 7.036137789 | E97: 2.96 | H97: 2457144.799 | I97: 3.82 | J97: 49.76641685 | K97: 7.054531653 | L97: 3.82 | O97: 2457144.802 | P97: 3.93 | Q97: 50.0255987 | R97: 7.072877682 | S97: 3.93 | V97: 2457144.805 | W97: 3.82 | X97: 49.93917793 | Y97: 7.066765733 | Z97: 3.82
A98: 2457128.921 | B98: 2.97 | C98: 50.0255987 | D98: 7.072877682 | E98: 2.97 | H98: 2457144.799 | I98: 3.82 | J98: 50.37120134 | K98: 7.097267174 | L98: 3.82 | O98: 2457144.802 | P98: 3.93 | Q98: 50.63038319 | R98: 7.115503018 | S98: 3.93 | V98: 2457144.805 | W98: 3.82 | X98: 50.54396242 | Y98: 7.109427714 | Z98: 3.82
A99: 2457128.921 | B99: 2.97 | C99: 50.63042343 | D99: 7.115505845 | E99: 2.97 | H99: 2457144.799 | I99: 3.82 | J99: 50.88960528 | K99: 7.133695065 | L99: 3.82 | O99: 2457144.803 | P99: 3.93 | Q99: 51.14878714 | R99: 7.151838025 | S99: 3.93 | V99: 2457144.805 | W99: 3.83 | X99: 51.06236637 | Y99: 7.145793613 | Z99: 3.83
A100: 2457128.921 | B100: 2.97 | C100: 51.14882737 | D100: 7.151840838 | E100: 2.97 | H100: 2457144.799 | I100: 3.83 | J100: 51.49438977 | K100: 7.175959153 | L100: 3.83 | O100: 2457144.803 | P100: 3.93 | Q100: 51.75357163 | R100: 7.193995526 | S100: 3.93 | V100: 2457144.805 | W100: 3.85 | X100: 51.66719109 | Y100: 7.187989363 | Z100: 3.85
A101: 2457128.921 | B101: 2.98 | C101: 51.75361186 | D101: 7.193998322 | E101: 2.98 | H101: 2457144.799 | I101: 3.84 | J101: 52.09921449 | K101: 7.21797856 | L101: 3.84 | O101: 2457144.803 | P101: 3.93 | Q101: 52.27197558 | R101: 7.22993607 | S101: 3.93 | V101: 2457144.805 | W101: 3.85 | X101: 52.18559504 | Y101: 7.223959789 | Z101: 3.85
A102: 2457128.921 | B102: 2.98 | C102: 52.35843658 | D102: 7.235912975 | E102: 2.98 | H102: 2457144.799 | I102: 3.86 | J102: 52.61761844 | K102: 7.253800276 | L102: 3.86 | O102: 2457144.803 | P102: 3.93 | Q102: 52.8768003 | R102: 7.271643576 | S102: 3.93 | V102: 2457144.805 | W102: 3.86 | X102: 52.79037952 | Y102: 7.265698832 | Z102: 3.86
A103: 2457128.921 | B103: 2.99 | C103: 52.8768003 | D103: 7.271643576 | E103: 2.99 | H103: 2457144.799 | I103: 3.87 | J103: 53.22240293 | K103: 7.295368595 | L103: 3.87 | O103: 2457144.803 | P103: 3.99 | Q103: 53.39520425 | R103: 7.307202217 | S103: 3.99 | V103: 2457144.805 | W103: 3.86 | X103: 53.39516401 | Y103: 7.307199464 | Z103: 3.86
A104: 2457128.921 | B104: 3 | C104: 53.48162502 | D104: 7.313113224 | E104: 3 | H104: 2457144.799 | I104: 3.88 | J104: 53.74080688 | K104: 7.330812157 | L104: 3.88 | O104: 2457144.803 | P104: 4 | Q104: 53.99998873 | R104: 7.348468462 | S104: 4 | V104: 2457144.805 | W104: 3.87 | X104: 53.91356796 | Y104: 7.342585918 | Z104: 3.87
A105: 2457128.921 | B105: 3.01 | C105: 54.00002897 | D105: 7.348471199 | E105: 3.01 | H105: 2457144.799 | I105: 3.89 | J105: 54.34559137 | K105: 7.37194624 | L105: 3.89 | O105: 2457144.803 | P105: 4 | Q105: 54.60477322 | R105: 7.389504261 | S105: 4 | V105: 2457144.805 | W105: 3.87 | X105: 54.51839268 | Y105: 7.383657135 | Z105: 3.87
A106: 2457128.921 | B106: 3.02 | C106: 54.60481346 | D106: 7.389506983 | E106: 3.02 | H106: 2457144.799 | I106: 3.89 | J106: 54.86399531 | K106: 7.407023377 | L106: 3.89 | O106: 2457144.803 | P106: 4 | Q106: 55.12317717 | R106: 7.424498446 | S106: 4 | V106: 2457144.805 | W106: 3.87 | X106: 55.03679663 | Y106: 7.418678901 | Z106: 3.87
A107: 2457128.921 | B107: 3.02 | C107: 55.1232174 | D107: 7.424501155 | E107: 3.02 | H107: 2457144.799 | I107: 3.9 | J107: 55.46882004 | K107: 7.447739257 | L107: 3.9 | O107: 2457144.803 | P107: 4 | Q107: 55.72800189 | R107: 7.465119014 | S107: 4 | V107: 2457144.805 | W107: 3.88 | X107: 55.64158112 | Y107: 7.459328463 | Z107: 3.88
A108: 2457128.921 | B108: 3.03 | C108: 55.72800189 | D108: 7.465119014 | E108: 3.03 | H108: 2457144.799 | I108: 3.9 | J108: 56.07360452 | K108: 7.488231068 | L108: 3.9 | O108: 2457144.803 | P108: 4 | Q108: 56.24636561 | R108: 7.499757703 | S108: 4 | V108: 2457144.805 | W108: 3.88 | X108: 56.15998507 | Y108: 7.493996602 | Z108: 3.88
A109: 2457128.921 | B109: 3.04 | C109: 56.33282661 | D109: 7.505519743 | E109: 3.04 | H109: 2457144.799 | I109: 3.9 | J109: 56.59200847 | K109: 7.522766012 | L109: 3.9 | O109: 2457144.803 | P109: 4 | Q109: 56.85119033 | R109: 7.539972833 | S109: 4 | V109: 2457144.805 | W109: 3.88 | X109: 56.76476955 | Y109: 7.534239813 | Z109: 3.88
A110: 2457128.921 | B110: 3.04 | C110: 56.85123056 | D110: 7.539975501 | E110: 3.04 | H110: 2457144.799 | I110: 3.91 | J110: 57.19679296 | K110: 7.562856138 | L110: 3.91 | O110: 2457144.803 | P110: 4.03 | Q110: 57.36959428 | R110: 7.574271864 | S110: 4.03 | V110: 2457144.805 | W110: 3.89 | X110: 57.36959428 | Y110: 7.574271864 | Z110: 3.89
A111: 2457128.921 | B111: 3.04 | C111: 57.45601505 | D111: 7.579974608 | E111: 3.04 | H111: 2457144.799 | I111: 3.91 | J111: 57.71519691 | K111: 7.597051856 | L111: 3.91 | O111: 2457144.803 | P111: 4.04 | Q111: 57.97437876 | R111: 7.614090804 | S111: 4.04 | V111: 2457144.805 | W111: 3.89 | X111: 57.88799822 | Y111: 7.608416276 | Z111: 3.89
A112: 2457128.921 | B112: 3.05 | C112: 57.974419 | D112: 7.614093446 | E112: 3.05 | H112: 2457144.799 | I112: 3.92 | J112: 58.32002163 | K112: 7.636754653 | L112: 3.92 | O112: 2457144.803 | P112: 4.04 | Q112: 58.57920349 | R112: 7.653705213 | S112: 4.04 | V112: 2457144.805 | W112: 3.91 | X112: 58.49278271 | Y112: 7.648057447 | Z112: 3.91
A113: 2457128.921 | B113: 3.05 | C113: 58.57920349 | D113: 7.653705213 | E113: 3.05 | H113: 2457144.799 | I113: 3.92 | J113: 58.83842558 | K113: 7.670620938 | L113: 3.92 | O113: 2457144.803 | P113: 4.06 | Q113: 59.0975672 | R113: 7.687494208 | S113: 4.06 | V113: 2457144.805 | W113: 3.92 | X113: 59.01118666 | Y113: 7.681873903 | Z113: 3.92
A114: 2457128.921 | B114: 3.06 | C114: 59.09760743 | D114: 7.687496825 | E114: 3.06 | H114: 2457144.799 | I114: 3.92 | J114: 59.44321007 | K114: 7.709942287 | L114: 3.92 | O114: 2457144.803 | P114: 4.07 | Q114: 59.70239192 | R114: 7.726732293 | S114: 4.07 | V114: 2457144.805 | W114: 3.93 | X114: 59.61597115 | Y114: 7.721137944 | Z114: 3.93
A115: 2457128.921 | B115: 3.06 | C115: 59.70243216 | D115: 7.726734896 | E115: 3.06 | H115: 2457144.799 | I115: 3.92 | J115: 60.04799455 | K115: 7.749064108 | L115: 3.92 | O115: 2457144.803 | P115: 4.08 | Q115: 60.22079587 | R115: 7.760205917 | S115: 4.08 | V115: 2457144.805 | W115: 3.94 | X115: 60.1343751 | Y115: 7.754635716 | Z115: 3.94
A116: 2457128.921 | B116: 3.07 | C116: 60.30721664 | D116: 7.765772122 | E116: 3.07 | H116: 2457144.799 | I116: 3.92 | J116: 60.5663985 | K116: 7.78244168 | L116: 3.92 | O116: 2457144.803 | P116: 4.08 | Q116: 60.82558036 | R116: 7.799075609 | S116: 4.08 | V116: 2457144.805 | W116: 3.94 | X116: 60.73919982 | Y116: 7.793535771 | Z116: 3.94
A117: 2457128.921 | B117: 3.08 | C117: 60.82562059 | D117: 7.799078189 | E117: 3.08 | H117: 2457144.799 | I117: 3.93 | J117: 61.17122322 | K117: 7.821203438 | L117: 3.93 | O117: 2457144.803 | P117: 4.08 | Q117: 61.34398431 | R117: 7.832240057 | S117: 4.08 | V117: 2457144.805 | W117: 3.95 | X117: 61.34398431 | Y117: 7.832240057 | Z117: 3.95
A118: 2457128.921 | B118: 3.08 | C118: 61.43040508 | D118: 7.837755105 | E118: 3.08 | H118: 2457144.799 | I118: 3.94 | J118: 61.68958694 | K118: 7.854271891 | L118: 3.94 | O118: 2457144.803 | P118: 4.09 | Q118: 61.94876879 | R118: 7.870754017 | S118: 4.09 | V118: 2457144.805 | W118: 3.97 | X118: 61.86238825 | Y118: 7.865264665 | Z118: 3.97
A119: 2457128.921 | B119: 3.09 | C119: 61.94880903 | D119: 7.870756573 | E119: 3.09 | H119: 2457144.799 | I119: 3.95 | J119: 62.29441166 | K119: 7.892680892 | L119: 3.95 | O119: 2457144.803 | P119: 4.09 | Q119: 62.55359352 | R119: 7.909082976 | S119: 4.09 | V119: 2457144.805 | W119: 3.98 | X119: 62.46717274 | Y119: 7.9036177 | Z119: 3.98
A120: 2457128.921 | B120: 3.09 | C120: 62.55363375 | D120: 7.909085519 | E120: 3.09 | H120: 2457144.799 | I120: 3.95 | J120: 62.81281561 | K120: 7.925453653 | L120: 3.95 | O120: 2457144.803 | P120: 4.1 | Q120: 63.07199746 | R120: 7.941788052 | S120: 4.1 | V120: 2457144.805 | W120: 3.98 | X120: 62.98557669 | Y120: 7.936345298 | Z120: 3.98
A121: 2457128.921 | B121: 3.1 | C121: 63.0720377 | D121: 7.941790585 | E121: 3.1 | H121: 2457144.799 | I121: 3.96 | J121: 63.4176001 | K121: 7.963516817 | L121: 3.96 | O121: 2457144.803 | P121: 4.11 | Q121: 63.67678195 | R121: 7.979773302 | S121: 4.11 | V121: 2457144.805 | W121: 3.99 | X121: 63.59036118 | Y121: 7.974356474 | Z121: 3.99
A122: 2457128.921 | B122: 3.11 | C122: 63.67682219 | D122: 7.979775823 | E122: 3.11 | H122: 2457144.799 | I122: 3.96 | J122: 64.02242482 | K122: 8.001401428 | L122: 3.96 | O122: 2457144.803 | P122: 4.12 | Q122: 64.1951859 | R122: 8.012189832 | S122: 4.12 | V122: 2457144.805 | W122: 3.99 | X122: 64.10876513 | Y122: 8.006794935 | Z122: 3.99
A123: 2457128.921 | B123: 3.13 | C123: 64.28160667 | D123: 8.017581099 | E123: 3.13 | H123: 2457144.799 | I123: 3.97 | J123: 64.54078853 | K123: 8.033728184 | L123: 3.97 | O123: 2457144.803 | P123: 4.12 | Q123: 64.79997039 | R123: 8.04984288 | S123: 4.12 | V123: 2457144.805 | W123: 3.99 | X123: 64.71358985 | Y123: 8.044475735 | Z123: 3.99
A124: 2457128.921 | B124: 3.13 | C124: 64.80001062 | D124: 8.049845379 | E124: 3.13 | H124: 2457144.799 | I124: 3.97 | J124: 65.14561325 | K124: 8.071283247 | L124: 3.97 | O124: 2457144.803 | P124: 4.12 | Q124: 65.31837434 | R124: 8.081978368 | S124: 4.12 | V124: 2457144.805 | W124: 3.99 | X124: 65.31837434 | Y124: 8.081978368 | Z124: 3.99
A125: 2457128.921 | B125: 3.13 | C125: 65.40483534 | D125: 8.087325599 | E125: 3.13 | H125: 2457144.799 | I125: 3.98 | J125: 65.6640172 | K125: 8.103333709 | L125: 3.98 | O125: 2457144.803 | P125: 4.12 | Q125: 65.92319906 | R125: 8.119310258 | S125: 4.12 | V125: 2457144.805 | W125: 4 | X125: 65.83677828 | Y125: 8.113986584 | Z125: 4
A126: 2457128.921 | B126: 3.14 | C126: 65.92319906 | D126: 8.119310258 | E126: 3.14 | H126: 2457144.799 | I126: 3.98 | J126: 66.26880169 | K126: 8.140565195 | L126: 3.98 | O126: 2457144.803 | P126: 4.14 | Q126: 66.52798355 | R126: 8.156468816 | S126: 4.14 | V126: 2457144.805 | W126: 4.01 | X126: 66.44156277 | Y126: 8.151169411 | Z126: 4.01
A127: 2457128.921 | B127: 3.14 | C127: 66.52802378 | D127: 8.156471282 | E127: 3.14 | H127: 2457144.799 | I127: 3.98 | J127: 66.78720564 | K127: 8.17234395 | L127: 3.98 | O127: 2457144.803 | P127: 4.14 | Q127: 67.04638749 | R127: 8.188185849 | S127: 4.14 | V127: 2457144.805 | W127: 4.02 | X127: 66.95996672 | Y127: 8.182906985 | Z127: 4.02
A128: 2457128.921 | B128: 3.15 | C128: 67.04642773 | D128: 8.188188306 | E128: 3.15 | H128: 2457144.799 | I128: 3.98 | J128: 67.39199013 | K128: 8.209262459 | L128: 3.98 | O128: 2457144.803 | P128: 4.14 | Q128: 67.65117198 | R128: 8.225033251 | S128: 4.14 | V128: 2457144.805 | W128: 4.03 | X128: 67.56479144 | Y128: 8.219780498 | Z128: 4.03
A129: 2457128.921 | B129: 3.15 | C129: 67.65121222 | D129: 8.225035697 | E129: 3.15 | H129: 2457144.799 | I129: 3.99 | J129: 67.99681485 | K129: 8.246018121 | L129: 3.99 | O129: 2457144.803 | P129: 4.15 | Q129: 68.16957593 | R129: 8.2564869 | S129: 4.15 | V129: 2457144.805 | W129: 4.03 | X129: 68.08319539 | Y129: 8.251254171 | Z129: 4.03
A130: 2457128.921 | B130: 3.15 | C130: 68.25603694 | D130: 8.261721185 | E130: 3.15 | H130: 2457144.799 | I130: 4 | J130: 68.51521879 | K130: 8.277392029 | L130: 4 | O130: 2457144.803 | P130: 4.15 | Q130: 68.77440065 | R130: 8.29303326 | S130: 4.15 | V130: 2457144.805 | W130: 4.03 | X130: 68.68797988 | Y130: 8.287821178 | Z130: 4.03
A131: 2457128.921 | B131: 3.15 | C131: 68.77440065 | D131: 8.29303326 | E131: 3.15 | H131: 2457144.799 | I131: 4.01 | J131: 69.12000328 | K131: 8.313844074 | L131: 4.01 | O131: 2457144.803 | P131: 4.15 | Q131: 69.2928046 | R131: 8.32422997 | S131: 4.15 | V131: 2457144.805 | W131: 4.04 | X131: 69.29276437 | Y131: 8.324227554 | Z131: 4.04
A132: 2457128.921 | B132: 3.15 | C132: 69.37922537 | D132: 8.32941927 | E132: 3.15 | H132: 2457144.799 | I132: 4.01 | J132: 69.63840723 | K132: 8.344962986 | L132: 4.01 | O132: 2457144.803 | P132: 4.16 | Q132: 69.89758909 | R132: 8.360477803 | S132: 4.16 | V132: 2457144.805 | W132: 4.04 | X132: 69.81116831 | Y132: 8.355307793 | Z132: 4.04
A133: 2457128.921 | B133: 2.93 | C133: 69.89762932 | D133: 8.360480209 | E133: 2.93 | H133: 2457144.799 | I133: 4.02 | J133: 70.24319172 | K133: 8.381121149 | L133: 4.02 | O133: 2457144.803 | P133: 4.16 | Q133: 70.50237358 | R133: 8.396569155 | S133: 4.16 | V133: 2457144.805 | W133: 4.05 | X133: 70.41599303 | Y133: 8.391423779 | Z133: 4.05
A134: 2457128.921 | B134: 3.04 | C134: 70.50241381 | D134: 8.396571551 | E134: 3.04 | H134: 2457144.799 | I134: 4.02 | J134: 70.76159567 | K134: 8.411991183 | L134: 4.02 | O134: 2457144.803 | P134: 4.16 | Q134: 71.02077752 | R134: 8.427382602 | S134: 4.16 | V134: 2457144.805 | W134: 4.06 | X134: 70.93439698 | Y134: 8.422256051 | Z134: 4.06
A135: 2457128.921 | B135: 3.03 | C135: 71.02081776 | D135: 8.427384989 | E135: 3.03 | H135: 2457144.799 | I135: 4.03 | J135: 71.36642039 | K135: 8.447864842 | L135: 4.03 | O135: 2457144.803 | P135: 4.17 | Q135: 71.62560225 | R135: 8.46319102 | S135: 4.17 | V135: 2457144.805 | W135: 4.07 | X135: 71.53918147 | Y135: 8.458083794 | Z135: 4.07
A136: 2457128.921 | B136: 3.05 | C136: 71.62560225 | D136: 8.46319102 | E136: 3.05 | H136: 2457144.799 | I136: 4.03 | J136: 71.97120488 | K136: 8.483584436 | L136: 4.03 | O136: 2457144.803 | P136: 4.17 | Q136: 72.14396596 | R136: 8.493760413 | S136: 4.17 | V136: 2457144.805 | W136: 4.07 | X136: 72.05758542 | Y136: 8.488673949 | Z136: 4.07
A137: 2457128.921 | B137: 3.17 | C137: 72.23042697 | D137: 8.498848567 | E137: 3.17 | H137: 2457144.799 | I137: 4.03 | J137: 72.48960882 | K137: 8.51408297 | L137: 4.03 | O137: 2457144.803 | P137: 4.17 | Q137: 72.74879068 | R137: 8.529290163 | S137: 4.17 | V137: 2457144.805 | W137: 4.07 | X137: 72.66236991 | Y137: 8.52422254 | Z137: 4.07
A138: 2457128.921 | B138: 3.11 | C138: 72.74883091 | D138: 8.529292521 | E138: 3.11 | H138: 2457144.799 | I138: 4.03 | J138: 73.09439331 | K138: 8.549525912 | L138: 4.03 | O138: 2457144.803 | P138: 4.18 | Q138: 73.26719463 | R138: 8.559625846 | S138: 4.18 | V138: 2457144.805 | W138: 4.08 | X138: 73.26719463 | Y138: 8.559625846 | Z138: 4.08
A139: 2457128.921 | B139: 3.15 | C139: 73.3536154 | D139: 8.564672522 | E139: 3.15 | H139: 2457144.799 | I139: 4.04 | J139: =(H139-$H$9)*24*60*60 -> 73.61279726 | K139: =SQRT(J139) -> 8.579790048 | L139: =I139 -> 4.04 | O139: 2457144.803 | P139: 4.18 | Q139: =(O139-$O$9)*24*60*60 -> 73.87197912 | R139: =SQRT(Q139) -> 8.594880983 | S139: =P139 -> 4.18 | V139: 2457144.805 | W139: 4.08 | X139: =(V139-$V$9)*24*60*60 -> 73.78559858 | Y139: =SQRT(X139) -> 8.589854398 | Z139: =W139 -> 4.08
A140: 2457128.921 | B140: 3.16 | C140: =(A140-$A$10)*24*60*60 -> 73.87201935 | D140: =SQRT(C140) -> 8.594883324 | E140: =B140 -> 3.16 | H140: 2457144.799 | I140: 4.04 | J140: 74.21762198 | K140: 8.614965002 | L140: 4.04 | O140: 2457144.803 | P140: 4.19 | Q140: 74.47680384 | R140: 8.629994429 | S140: 4.19 | V140: 2457144.805 | W140: 4.08 | X140: 74.39038306 | Y140: 8.624985975 | Z140: 4.08
A141: 2457128.921 | B141: 3.17 | C141: 74.47680384 | D141: 8.629994429 | E141: 3.17 | H141: 2457144.8 | I141: 4.04 | J141: 74.73602593 | K141: 8.645000054 | L141: 4.04 | O141: 2457144.803 | P141: 4.19 | Q141: 74.99516755 | R141: 8.659975032 | S141: 4.19 | V141: 2457144.805 | W141: 4.08 | X141: 74.90878701 | Y141: 8.654986251 | Z141: 4.08
A142: 2457128.921 | B142: 3.18 | C142: 74.99520779 | D142: 8.659977355 | E142: 3.18 | H142: 2457144.8 | I142: 4.05 | J142: 75.34081042 | K142: 8.679908434 | L142: 4.05 | O142: 2457144.803 | P142: 4.2 | Q142: 75.59999228 | R142: 8.694825603 | S142: 4.2
A143: 2457128.921 | B143: 3.21 | C143: 75.60003251 | D143: 8.694827917 | E143: 3.21 | H143: 2457144.8 | I143: 4.05 | J143: 75.94559491 | K143: 8.714676982 | L143: 4.05 | O143: 2457144.803 | P143: 4.2 | Q143: 76.11839622 | R143: 8.724585734 | S143: 4.2
A144: 2457128.921 | B144: 3.22 | C144: 76.204817 | D144: 8.729537044 | E144: 3.22 | H144: 2457144.8 | I144: 4.06 | J144: 76.46399885 | K144: 8.744369552 | L144: 4.06 | O144: 2457144.803 | P144: 4.2 | Q144: 76.72318071 | R144: 8.759176943 | S144: 4.2
A145: 2457128.921 | B145: 3.1 | C145: 76.72322094 | D145: 8.759179239 | E145: 3.1 | H145: 2457144.8 | I145: 4.07 | J145: 77.06882358 | K145: 8.778885099 | L145: 4.07 | O145: 2457144.803 | P145: 4.2 | Q145: 77.3279652 | R145: 8.793632082 | S145: 4.2
A146: 2457128.921 | B146: 3.21 | C146: 77.32800543 | D146: 8.79363437 | E146: 3.21 | H146: 2457144.8 | I146: 4.07 | J146: 77.58718729 | K146: 8.808358944 | L146: 4.07 | O146: 2457144.803 | P146: 4.2 | Q146: 77.84636915 | R146: 8.823058945 | S146: 4.2
A147: 2457128.921 | B147: 3.28 | C147: 77.84640938 | D147: 8.823061225 | E147: 3.28 | H147: 2457144.8 | I147: 4.07 | J147: 78.19201201 | K147: 8.842624724 | L147: 4.07 | O147: 2457144.803 | P147: 4.2 | Q147: 78.45119387 | R147: 8.857267856 | S147: 4.2
A148: 2457128.921 | B148: 3.28 | C148: 78.4512341 | D148: 8.857270127 | E148: 3.28 | H148: 2457144.8 | I148: 4.07 | J148: 78.71041596 | K148: 8.871889086 | L148: 4.07
A149: 2457128.921 | B149: 3.28 | C149: 79.05601859 | D149: 8.891345151 | E149: 3.28 | H149: 2457144.8 | I149: 4.07 | J149: 79.31520045 | K149: 8.905908176 | L149: 4.07
A150: 2457128.921 | B150: 3.28 | C150: 79.66080308 | D150: 8.925290084 | E150: 3.28 | H150: 2457144.8 | I150: 4.09 | J150: 79.92002517 | K150: 8.939800063 | L150: 4.09
A151: 2457128.921 | B151: 3.28 | C151: 80.17920703 | D151: 8.954284283 | E151: 3.28 | H151: 2457144.8 | I151: 4.09 | J151: 80.43838888 | K151: 8.968745112 | L151: 4.09
A152: 2457128.921 | B152: 3.28 | C152: 80.78403175 | D152: 8.987993755 | E152: 3.28 | H152: 2457144.8 | I152: 4.09 | J152: 81.04321361 | K152: 9.002400436 | L152: 4.09
A153: 2457128.921 | B153: 3.28 | C153: 81.3024357 | D153: 9.016786329 | E153: 3.28 | H153: 2457144.8 | I153: 4.1 | J153: 81.56161755 | K153: 9.031147078 | L153: 4.1
A154: 2457128.921 | B154: 3.28 | C154: 81.90722018 | D154: 9.05026078 | E154: 3.28 | H154: 2457144.8 | I154: 4.1 | J154: 82.16640204 | K154: 9.064568497 | L154: 4.1
A155: 2457128.921 | B155: 3.28 | C155: 82.42562413 | D155: 9.078855882 | E155: 3.28 | H155: 2457144.8 | I155: 4.12 | J155: 82.77118653 | K155: 9.097867142 | L155: 4.12
A156: 2457128.921 | B156: 3.28 | C156: 83.03040862 | D156: 9.112102316 | E156: 3.28 | H156: 2457144.8 | I156: 4.12 | J156: 83.28959048 | K156: 9.126313082 | L156: 4.12
A157: 2457128.921 | B157: 3.28 | C157: 83.63523334 | D157: 9.145230087 | E157: 3.28 | H157: 2457144.8 | I157: 4.12 | J157: 83.8944152 | K157: 9.159389456 | L157: 4.12
A158: 2457128.921 | B158: 3.28 | C158: 84.15363729 | D158: 9.173529162 | E158: 3.28 | H158: 2457144.8 | I158: 4.12 | J158: 84.41281915 | K158: 9.187644918 | L158: 4.12
A159: 2457128.921 | B159: 3.28 | C159: 84.75842178 | D159: 9.206433717 | E159: 3.28 | H159: 2457144.8 | I159: 4.12 | J159: 85.01760364 | K159: 9.220499099 | L159: 4.12
A160: 2457128.921 | B160: 3.28 | C160: 85.36320627 | D160: 9.239221086 | E160: 3.28 | H160: 2457144.8 | I160: 4.12 | J160: 85.53600758 | K160: 9.248567867 | L160: 4.12
A161: 2457128.921 | B161: 3.28 | C161: 85.88161021 | D161: 9.267233148 | E161: 3.28 | H161: 2457144.8 | I161: 4.12 | J161: 86.14079207 | K161: 9.281206391 | L161: 4.12
A162: 2457128.921 | B162: 3.28 | C162: 86.48643494 | D162: 9.299808328 | E162: 3.28 | H162: 2457144.8 | I162: 4.12 | J162: 86.65919602 | K162: 9.309092116 | L162: 4.12
A163: 2457128.921 | B163: 3.28 | C163: 87.09121943 | D163: 9.332267646 | E163: 3.28 | H163: 2457144.8 | I163: 4.12 | J163: 87.26402074 | K163: 9.341521329 | L163: 4.12
A164: 2457128.921 | B164: 3.3 | C164: 87.60962337 | D164: 9.360001249 | E164: 3.3 | H164: 2457144.8 | I164: 4.12 | J164: 87.86880523 | K164: 9.373836207 | L164: 4.12
A165: 2457128.921 | B165: 3.31 | C165: 88.21440786 | D165: 9.392252545 | E165: 3.31 | H165: 2457144.8 | I165: 4.12 | J165: 88.38720918 | K165: 9.401447185 | L165: 4.12
A166: 2457128.921 | B166: 3.31 | C166: 88.73281181 | D166: 9.419809542 | E166: 3.31 | H166: 2457144.8 | I166: 4.12 | J166: 88.99199367 | K166: 9.433556788 | L166: 4.12
A167: 2457128.921 | B167: 3.31 | C167: 89.33763653 | D167: 9.451858893 | E167: 3.31 | H167: 2457144.8 | I167: 4.12 | J167: 89.51039761 | K167: 9.460993479 | L167: 4.12
A168: 2457128.921 | B168: 3.31 | C168: 89.94242102 | D168: 9.483797816 | E168: 3.31 | H168: 2457144.8 | I168: 4.14 | J168: 90.11522233 | K168: 9.492903788 | L168: 4.14
A169: 2457128.921 | B169: 3.32 | C169: 90.46082497 | D169: 9.511089578 | E169: 3.32 | H169: 2457144.8 | I169: 4.14 | J169: 90.72000682 | K169: 9.524705078 | L169: 4.14
A170: 2457128.921 | B170: 3.32 | C170: 91.06560946 | D170: 9.542830264 | E170: 3.32 | H170: 2457144.8 | I170: 4.15 | J170: 91.23841077 | K170: 9.55187996 | L170: 4.15
A171: 2457128.921 | B171: 3.32 | C171: 91.5840134 | D171: 9.569953678 | E171: 3.32 | H171: 2457144.8 | I171: 4.15 | J171: 91.84319526 | K171: 9.583485549 | L171: 4.15
A172: 2457128.921 | B172: 3.32 | C172: 92.18879789 | D172: 9.601499773 | E172: 3.32 | H172: 2457144.8 | I172: 4.16 | J172: 92.36159921 | K172: 9.610494223 | L172: 4.16
A173: 2457128.921 | B173: 3.32 | C173: 92.70720184 | D173: 9.628457916 | E173: 3.32 | H173: 2457144.8 | I173: 4.16 | J173: 92.96642393 | K173: 9.641909766 | L173: 4.16
A174: 2457128.921 | B174: 3.34 | C174: 93.31202656 | D174: 9.659815038 | E174: 3.34 | H174: 2457144.8 | I174: 4.16 | J174: 93.48478764 | K174: 9.668753159 | L174: 4.16
A175: 2457128.921 | B175: 3.35 | C175: 93.83043051 | D175: 9.686610889 | E175: 3.35 | H175: 2457144.8 | I175: 4.16 | J175: 94.08961236 | K175: 9.699980019 | L175: 4.16
A176: 2457128.921 | B176: 3.36 | C176: 94.435215 | D176: 9.717778295 | E176: 3.36 | H176: 2457144.8 | I176: 4.16 | J176: 94.69439685 | K176: 9.731104606 | L176: 4.16
A177: 2457128.921 | B177: 3.36 | C177: 95.03999949 | D177: 9.748846059 | E177: 3.36 | H177: 2457144.8 | I177: 4.16 | J177: 95.2128008 | K177: 9.757704689 | L177: 4.16
A178: 2457128.921 | B178: 3.36 | C178: 95.55840343 | D178: 9.775397866 | E178: 3.36 | H178: 2457144.8 | I178: 4.16 | J178: 95.81762552 | K178: 9.788647788 | L178: 4.16
A179: 2457128.921 | B179: 3.37 | C179: 96.16322815 | D179: 9.806285135 | E179: 3.37 | H179: 2457144.8 | I179: 4.16 | J179: 96.33598924 | K179: 9.815089874 | L179: 4.16
A180: 2457128.921 | B180: 3.37 | C180: 96.6816321 | D180: 9.832681837 | E180: 3.37 | H180: 2457144.8 | I180: 4.17 | J180: 96.94081396 | K180: 9.845852627 | L180: 4.17
A181: 2457128.921 | B181: 3.37 | C181: 97.28641659 | D181: 9.863387683 | E181: 3.37 | H181: 2457144.8 | I181: 4.17 | J181: 97.45921791 | K181: 9.872143531 | L181: 4.17
A182: 2457128.921 | B182: 3.37 | C182: 97.80482054 | D182: 9.889631972 | E182: 3.37 | H182: 2457144.8 | I182: 4.18 | J182: 98.06400239 | K182: 9.902727018 | L182: 4.18
A183: 2457128.921 | B183: 3.37 | C183: 98.40960503 | D183: 9.920161542 | E183: 3.37 | H183: 2457144.8 | I183: 4.19 | J183: 98.66878688 | K183: 9.933216341 | L183: 4.19
A184: 2457128.921 | B184: 3.37 | C184: 99.01442975 | D184: 9.950599467 | E184: 3.37 | H184: 2457144.8 | I184: 4.19 | J184: 99.18719083 | K184: 9.959276622 | L184: 4.19
A185: 2457128.921 | B185: 3.37 | C185: 99.5328337 | D185: 9.97661434 | E185: 3.37 | H185: 2457144.8 | I185: 4.19 | J185: 99.79201555 | K185: 9.989595365 | L185: 4.19
A186: 2457128.921 | B186: 3.37 | C186: 100.1376182 | D186: 10.00687854 | E186: 3.37 | H186: 2457144.8 | I186: 4.2 | J186: 100.3104195 | K186: 10.01550895 | L186: 4.2
A187: 2457128.921 | B187: 3.37 | C187: 100.6560221 | D187: 10.03274749 | E187: 3.37 | H187: 2457144.8 | I187: 4.2 | J187: 100.915204 | K187: 10.04565598 | L187: 4.2
A188: 2457128.921 | B188: 3.37 | C188: 101.2608066 | D188: 10.06284287 | E188: 3.37 | H188: 2457144.8 | I188: 4.2 | J188: 101.4336079 | K188: 10.07142532 | L188: 4.2
A189: 2457128.921 | B189: 3.38 | C189: 101.8656313 | D189: 10.09285051 | E189: 3.38 | H189: 2457144.8 | I189: 4.2 | J189: 102.0383924 | K189: 10.10140547 | L189: 4.2
A190: 2457128.921 | B190: 3.39 | C190: 102.3840353 | D190: 10.11849966 | E190: 3.39 | H190: 2457144.8 | I190: 4.2 | J190: 102.6432171 | K190: 10.13129889 | L190: 4.2
A191: 2457128.921 | B191: 3.39 | C191: 102.9888198 | D191: 10.14834074 | E191: 3.39 | H191: 2457144.8 | I191: 4.2 | J191: 103.1616211 | K191: 10.15685094 | L191: 4.2
A192: 2457128.921 | B192: 3.39 | C192: 103.5072237 | D192: 10.17385 | E192: 3.39 | H192: 2457144.8 | I192: 4.2 | J192: 103.7664056 | K192: 10.18657968 | L192: 4.2
A193: 2457128.921 | B193: 3.39 | C193: 104.1120082 | D193: 10.2035292 | E193: 3.39 | H193: 2457144.8 | I193: 4.2 | J193: 104.2848095 | K193: 10.21199342 | L193: 4.2
A194: 2457128.921 | B194: 3.4 | C194: 104.6304122 | D194: 10.22890083 | E194: 3.4 | H194: 2457144.8 | I194: 4.2 | J194: 104.889594 | K194: 10.24156209 | L194: 4.2
A195: 2457128.921 | B195: 3.4 | C195: 105.2352369 | D195: 10.25842273 | E195: 3.4 | H195: 2457144.8 | I195: 4.21 | J195: 105.407998 | K195: 10.26683973 | L195: 4.21
A196: 2457128.921 | B196: 3.41 | C196: 105.7536006 | D196: 10.28365697 | E196: 3.41 | H196: 2457144.8 | I196: 4.21 | J196: 106.0128227 | K196: 10.29625285 | L196: 4.21
A197: 2457128.921 | B197: 3.42 | C197: 106.3584253 | D197: 10.31302212 | E197: 3.42 | H197: 2457144.8 | I197: 4.21 | J197: 106.6176072 | K197: 10.32558023 | L197: 4.21
A198: 2457128.921 | B198: 3.42 | C198: 106.9632098 | D198: 10.34230196 | E198: 3.42 | H198: 2457144.8 | I198: 4.21 | J198: 107.1360111 | K198: 10.35065269 | L198: 4.21
A199: 2457128.921 | B199: 3.42 | C199: 107.4816138 | D199: 10.36733398 | E199: 3.42 | H199: 2457144.8 | I199: 4.22 | J199: 107.7407956 | K199: 10.37982638 | L199: 4.22
A200: 2457128.921 | B200: 3.43 | C200: 108.0863982 | D200: 10.39646085 | E200: 3.43 | H200: 2457144.8 | I200: 4.23 | J200: 108.2591996 | K200: 10.40476812 | L200: 4.23
A201: 2457128.921 | B201: 3.43 | C201: 108.6048022 | D201: 10.42136278 | E201: 3.43 | H201: 2457144.8 | I201: 4.23 | J201: 108.8640243 | K201: 10.43379242 | L201: 4.23
... 74 more rows

Sheet 0% 20-30 5 cm
A5: time | B5: mass | C5: time (cor) | D5: SQRT time | E5: mass | F5: 1/SQRT time | G5: i
A6: 2457029.886 | B6: 0
A7: 2457029.886 | B7: 0
A8: 2457029.886 | B8: 1.13 | C8: =0 -> 0 | D8: =SQRT(C8) -> 0 | E8: =B8 -> 1.13
A9: 2457029.886 | B9: 2.91 | C9: =(A9-$A$8)*24*60*60 -> 0.7775858045 | D9: =SQRT(C9) -> 0.8818082583 | E9: =B9 -> 2.91 | F9: =1/D9 -> 1.13403338 | G9: =E9/C9 -> 3.742352269
A10: 2457029.886 | B10: 3.51 | C10: =(A10-$A$8)*24*60*60 -> 1.555211842 | D10: =SQRT(C10) -> 1.247081329 | E10: =B10 -> 3.51 | F10: =1/D10 -> 0.801872321 | G10: =E10/C10 -> 2.256927259
A11: 2457029.886 | B11: 4.31 | C11: 2.332797647 | D11: 1.527349877 | E11: 4.31 | F11: 0.6547288314 | G11: 1.847567022
A12: 2457029.886 | B12: 4.73 | C12: 3.110383451 | D12: 1.763627923 | E12: 4.73 | F12: 0.5670130229 | G12: 1.520712824
A13: 2457029.886 | B13: 5.01 | C13: 3.97439003 | D13: 1.993587227 | E13: 5.01 | F13: 0.5016083504 | G13: 1.260570795
A14: 2457029.886 | B14: 5.33 | C14: 4.751975834 | D14: 2.179902712 | E14: 5.33 | F14: 0.4587360686 | G14: 1.121638701
A15: 2457029.886 | B15: 5.49 | C15: 5.529601872 | D15: 2.351510551 | E15: 5.49 | F15: 0.4252585639 | G15: 0.9928382056
A16: 2457029.886 | B16: 5.64 | C16: 6.307187676 | D16: 2.511411491 | E16: 5.64 | F16: 0.3981824578 | G16: 0.8942178811
A17: 2457029.886 | B17: 5.74 | C17: 7.084813714 | D17: 2.661731338 | E17: 5.74 | F17: 0.3756953175 | G17: 0.8101836169
A18: 2457029.886 | B18: 5.91 | C18: 7.862399518 | D18: 2.803997061 | E18: 5.91 | F18: 0.3566337547 | G18: 0.7516789227
A19: 2457029.886 | B19: 6 | C19: 8.639985323 | D19: 2.939385195 | E19: 6 | F19: 0.3402071977 | G19: 0.6944456241
A20: 2457029.886 | B20: 6.12 | C20: 9.417611361 | D20: 3.068812696 | E20: 6.12 | F20: 0.325858923 | G20: 0.6498463109
A21: 2457029.886 | B21: 6.18 | C21: 10.19519717 | D21: 3.192991883 | E21: 6.18 | F21: 0.3131858885 | G21: 0.6061677768
A22: 2457029.886 | B22: 6.3 | C22: 11.05920374 | D22: 3.325538113 | E22: 6.3 | F22: 0.3007032143 | G22: 0.5696612655
A23: 2457029.886 | B23: 6.4 | C23: 11.83678955 | D23: 3.440463566 | E23: 6.4 | F23: 0.290658506 | G23: 0.5406871495
A24: 2457029.886 | B24: 6.49 | C24: 12.61437535 | D24: 3.551672191 | E24: 6.49 | F24: 0.2815575161 | G24: 0.5144923802
A25: 2457029.886 | B25: 6.55 | C25: 13.39200139 | D25: 3.659508354 | E25: 6.55 | F25: 0.2732607507 | G25: 0.4890979182
A26: 2457029.886 | B26: 6.69 | C26: 14.16958719 | D26: 3.764251213 | E26: 6.69 | F26: 0.2656570838 | G26: 0.4721379605
A27: 2457029.886 | B27: 6.75 | C27: 14.94721323 | D27: 3.866162598 | E27: 6.75 | F27: 0.2586544085 | G27: 0.4515891956
A28: 2457029.886 | B28: 6.83 | C28: 15.72479904 | D28: 3.965450673 | E28: 6.83 | F28: 0.2521781463 | G28: 0.4343457734
A29: 2457029.886 | B29: 6.9 | C29: 16.50238484 | D29: 4.062312745 | E29: 6.9 | F29: 0.2461651928 | G29: 0.4181213847
A30: 2457029.886 | B30: 6.94 | C30: 17.28001088 | D30: 4.156923247 | E30: 6.94 | F30: 0.2405625364 | G30: 0.4016201175
A31: 2457029.886 | B31: 7.03 | C31: 18.05759668 | D31: 4.2494231 | E31: 7.03 | F31: 0.2353260611 | G31: 0.3893098358
A32: 2457029.886 | B32: 7.06 | C32: 18.92160326 | D32: 4.349896925 | E32: 7.06 | F32: 0.2298905048 | G32: 0.373118488
A33: 2457029.886 | B33: 7.1 | C33: 19.69918907 | D33: 4.43837685 | E33: 7.1 | F33: 0.2253075919 | G33: 0.3604209278
A34: 2457029.886 | B34: 7.14 | C34: 20.4768151 | D34: 4.525131501 | E34: 7.14 | F34: 0.220988053 | G34: 0.3486870377
A35: 2457029.886 | B35: 7.19 | C35: 21.25440091 | D35: 4.61024955 | E35: 7.19 | F35: 0.216907998 | G35: 0.3382828823
A36: 2457029.886 | B36: 7.21 | C36: 22.03198671 | D36: 4.693824316 | E36: 7.21 | F36: 0.2130458945 | G36: 0.3272514682
A37: 2457029.886 | B37: 7.25 | C37: 22.80961275 | D37: 4.775941033 | E37: 7.25 | F37: 0.2093828197 | G37: 0.3178484475
A38: 2457029.886 | B38: 7.27 | C38: 23.58719856 | D38: 4.856665374 | E38: 7.27 | F38: 0.2059025943 | G38: 0.3082180354
A39: 2457029.886 | B39: 7.29 | C39: 24.36478436 | D39: 4.936069728 | E39: 7.29 | F39: 0.202590331 | G39: 0.2992023197
A40: 2457029.886 | B40: 7.31 | C40: 25.1424104 | D40: 5.014220817 | E40: 7.31 | F40: 0.1994327806 | G40: 0.2907438024
A41: 2457029.886 | B41: 7.33 | C41: 26.00637674 | D41: 5.099644766 | E41: 7.33 | F41: 0.1960920899 | G41: 0.2818539496
A42: 2457029.886 | B42: 7.35 | C42: 26.78400278 | D42: 5.175326345 | E42: 7.35 | F42: 0.1932245299 | G42: 0.2744175342
A43: 2457029.886 | B43: 7.38 | C43: 27.56158859 | D43: 5.249913198 | E43: 7.38 | F43: 0.1904793398 | G43: 0.2677639562
A44: 2457029.886 | B44: 7.39 | C44: 28.33921462 | D44: 5.323458897 | E44: 7.39 | F44: 0.1878477921 | G44: 0.2607694002
A45: 2457029.886 | B45: 7.41 | C45: 29.11680043 | D45: 5.395998557 | E45: 7.41 | F45: 0.1853225106 | G45: 0.2544922482
A46: 2457029.886 | B46: 7.42 | C46: 29.89438623 | D46: 5.467575901 | E46: 7.42 | F46: 0.1828964093 | G46: 0.2482071364
A47: 2457029.886 | B47: 7.45 | C47: 30.67201227 | D47: 5.538231872 | E47: 7.45 | F47: 0.1805630431 | G47: 0.2428924433
A48: 2457029.886 | B48: 7.46 | C48: 31.44959807 | D48: 5.607994122 | E48: 7.46 | F48: 0.1783168773 | G48: 0.2372049392
A49: 2457029.886 | B49: 7.48 | C49: 32.22718388 | D49: 5.676899143 | E49: 7.48 | F49: 0.1761525042 | G49: 0.2321021914
A50: 2457029.886 | B50: 7.48 | C50: 33.09119046 | D50: 5.752494281 | E50: 7.48 | F50: 0.1738376348 | G50: 0.226042034
A51: 2457029.886 | B51: 7.48 | C51: 33.86877626 | D51: 5.819688674 | E51: 7.48 | F51: 0.1718304975 | G51: 0.2208523846
A52: 2457029.886 | B52: 7.53 | C52: 34.6464023 | D52: 5.88611946 | E52: 7.53 | F52: 0.1698912173 | G52: 0.2173385835
A53: 2457029.886 | B53: 7.54 | C53: 35.4239881 | D53: 5.951805449 | E53: 7.54 | F53: 0.1680162446 | G53: 0.2128501166
A54: 2457029.886 | B54: 7.55 | C54: 36.20161414 | D54: 6.016777721 | E54: 7.55 | F54: 0.1662019184 | G54: 0.2085542366
A55: 2457029.886 | B55: 7.56 | C55: 36.97919995 | D55: 6.081052536 | E55: 7.56 | F55: 0.1644452164 | G55: 0.2044392526
A56: 2457029.886 | B56: 7.57 | C56: 37.75678575 | D56: 6.144655055 | E56: 7.57 | F56: 0.1627430655 | G56: 0.2004937616
A57: 2457029.886 | B57: 7.58 | C57: 38.53441179 | D57: 6.207609185 | E57: 7.58 | F57: 0.1610926156 | G57: 0.1967072974
A58: 2457029.886 | B58: 7.6 | C58: 39.31199759 | D58: 6.269928037 | E58: 7.6 | F58: 0.1594914637 | G58: 0.1933252052
A59: 2457029.886 | B59: 7.63 | C59: 40.17600417 | D59: 6.338454399 | E59: 7.63 | F59: 0.157767168 | G59: 0.189914357
A60: 2457029.886 | B60: 7.65 | C60: 40.95358998 | D60: 6.399499197 | E60: 7.65 | F60: 0.1562622276 | G60: 0.1867968108
A61: 2457029.886 | B61: 7.66 | C61: 41.73117578 | D61: 6.459967166 | E61: 7.66 | F61: 0.1547995484 | G61: 0.1835558154
A62: 2457029.886 | B62: 7.66 | C62: 42.50880182 | D62: 6.519877439 | E62: 7.66 | F62: 0.1533771163 | G62: 0.1801979748
A63: 2457029.886 | B63: 7.67 | C63: 43.28638762 | D63: 6.579239137 | E63: 7.67 | F63: 0.1519932593 | G63: 0.1771919631
A64: 2457029.886 | B64: 7.69 | C64: 44.06401366 | D64: 6.638073038 | E64: 7.69 | F64: 0.1506461279 | G64: 0.1745188275
A65: 2457029.886 | B65: 7.71 | C65: 44.84159946 | D65: 6.696387046 | E65: 7.71 | F65: 0.1493342594 | G65: 0.1719385591
A66: 2457029.886 | B66: 7.73 | C66: 45.61918527 | D66: 6.754197604 | E66: 7.73 | F66: 0.1480560769 | G66: 0.1694462528
A67: 2457029.886 | B67: 7.74 | C67: 46.39681131 | D67: 6.811520484 | E67: 7.74 | F67: 0.1468100995 | G67: 0.1668218091
A68: 2457029.886 | B68: 7.74 | C68: 47.17439711 | D68: 6.86836204 | E68: 7.74 | F68: 0.1455951207 | G68: 0.1640720491
A69: 2457029.886 | B69: 7.75 | C69: 48.03840369 | D69: 6.930974224 | E69: 7.75 | F69: 0.1442798613 | G69: 0.1613292575
A70: 2457029.886 | B70: 7.75 | C70: 48.81598949 | D70: 6.98684403 | E70: 7.75 | F70: 0.1431261376 | G70: 0.1587594573
A71: 2457029.886 | B71: 7.76 | C71: 49.5935753 | D71: 7.042270607 | E71: 7.76 | F71: 0.1419996555 | G71: 0.1564718807
A72: 2457029.886 | B72: 7.78 | C72: 50.37120134 | D72: 7.097267174 | E72: 7.78 | F72: 0.1408993033 | G72: 0.1544533343
A73: 2457029.886 | B73: 7.84 | C73: 51.14878714 | D73: 7.151838025 | E73: 7.84 | F73: 0.1398241957 | G73: 0.1532783168
A74: 2457029.886 | B74: 7.86 | C74: =(A74-$A$8)*24*60*60 -> 51.92641318 | D74: =SQRT(C74) -> 7.205998416 | E74: =B74 -> 7.86 | F74: =1/D74 -> 0.138773275 | G74: =E74/C74 -> 0.1513680518
A75: 2457029.886 | B75: 7.87 | C75: 52.70399898 | D75: 7.259751992 | E75: 7.87 | F75: 0.1377457524 | G75: 0.1493245323
A76: 2457029.886 | B76: 7.87 | C76: 53.48158479 | D76: 7.313110473 | E76: 7.87 | F76: 0.1367407212 | G76: 0.1471534554
A77: 2457029.886 | B77: 7.87 | C77: 54.25921082 | D77: 7.366085176 | E77: 7.87 | F77: 0.1357573224 | G77: 0.1450444981
A78: 2457029.886 | B78: 7.87 | C78: 55.12317717 | D78: 7.424498446 | E78: 7.87 | F78: 0.1346892329 | G78: 0.142771161
A79: 2457029.886 | B79: 7.89 | C79: 55.90080321 | D79: 7.476683971 | E79: 7.89 | F79: 0.1337491331 | G79: 0.1411428736
A80: 2457029.886 | B80: 7.9 | C80: 56.67838901 | D80: 7.528505098 | E80: 7.9 | F80: 0.1328284948 | G80: 0.1393829313
A81: 2457029.886 | B81: 7.9 | C81: 57.45601505 | D81: 7.579974608 | E81: 7.9 | F81: 0.1319265633 | G81: 0.1374964831
A82: 2457029.886 | B82: 7.95 | C82: 58.23360085 | D82: 7.631094342 | E82: 7.95 | F82: 0.131042804 | G82: 0.136519121
A83: 2457029.886 | B83: 7.96 | C83: 59.01118666 | D83: 7.681873903 | E83: 7.96 | F83: 0.1301765705 | G83: 0.1348896786
A84: 2457029.886 | B84: 7.97 | C84: 59.7888127 | D84: 7.732322594 | E84: 7.97 | F84: 0.1293272478 | G84: 0.13330253
A85: 2457029.886 | B85: 7.97 | C85: 60.5663985 | D85: 7.78244168 | E85: 7.97 | F85: 0.1284943776 | G85: 0.1315911165
A86: 2457029.886 | B86: 7.97 | C86: 61.34398431 | D86: 7.832240057 | E86: 7.97 | F86: 0.127677394 | G86: 0.1299230901
A87: 2457029.886 | B87: 7.97 | C87: 62.20799088 | D87: 7.88720425 | E87: 7.97 | F87: 0.1267876383 | G87: 0.1281185887
A88: 2457029.886 | B88: 7.97 | C88: 62.98557669 | D88: 7.936345298 | E88: 7.97 | F88: 0.1260025821 | G88: 0.126536906
A89: 2457029.886 | B89: 7.97 | C89: 63.76320273 | D89: 7.985186455 | E89: 7.97 | F89: 0.125231891 | G89: 0.1249937214
A90: 2457029.886 | B90: 7.98 | C90: 64.54078853 | D90: 8.033728184 | E90: 7.98 | F90: 0.1244752097 | G90: 0.123642741
A91: 2457029.886 | B91: 8.03 | C91: 65.31841457 | D91: 8.081980857 | E91: 8.03 | F91: 0.1237320426 | G91: 0.1229362356
A92: 2457029.886 | B92: 8.04 | C92: 66.09600037 | D92: 8.129944672 | E92: 8.04 | F92: 0.1230020671 | G92: 0.1216412484
A93: 2457029.886 | B93: 8.04 | C93: 66.87358618 | D93: 8.177627173 | E93: 8.04 | F93: 0.1222848607 | G93: 0.1202268408
A94: 2457029.886 | B94: 8.04 | C94: 67.65121222 | D94: 8.225035697 | E94: 8.04 | F94: 0.1215800194 | G94: 0.1188448771
A95: 2457029.886 | B95: 8.04 | C95: 68.42879802 | D95: 8.272170091 | E95: 8.04 | F95: 0.1208872628 | G95: 0.1174943917
A96: 2457029.886 | B96: 8.05 | C96: 69.20638382 | D96: 8.319037434 | E96: 8.05 | F96: 0.1202062147 | G96: 0.1163187492
A97: 2457029.886 | B97: 8.07 | C97: 70.0703904 | D97: 8.37080584 | E97: 8.07 | F97: 0.1194628115 | G97: 0.1151699021
A98: 2457029.886 | B98: 8.08 | C98: 70.84797621 | D98: 8.417123987 | E98: 8.08 | F98: 0.1188054259 | G98: 0.1140470121
A99: 2457029.886 | B99: 8.08 | C99: 71.62560225 | D99: 8.46319102 | E99: 8.08 | F99: 0.1181587415 | G99: 0.1128088246
A100: 2457029.886 | B100: 8.09 | C100: 72.40318805 | D100: 8.50900629 | E100: 8.09 | F100: 0.1175225362 | G100: 0.1117354114
A101: 2457029.886 | B101: 8.1 | C101: 73.18081409 | D101: 8.554578545 | E101: 8.1 | F101: 0.116896466 | G101: 0.1106847485
A102: 2457029.887 | B102: 8.1 | C102: 73.95839989 | D102: 8.59990697 | E102: 8.1 | F102: 0.1162803276 | G102: 0.1095210282
A103: 2457029.887 | B103: 8.12 | C103: 74.7359857 | D103: 8.644997727 | E103: 8.12 | F103: 0.1156738303 | G103: 0.1086491323
A104: 2457029.887 | B104: 8.12 | C104: 75.51361173 | D104: 8.68985683 | E104: 8.12 | F104: 0.1150766945 | G104: 0.1075302825
A105: 2457029.887 | B105: 8.12 | C105: 76.37757808 | D105: 8.739426645 | E105: 8.12 | F105: 0.1144239823 | G105: 0.1063139236
A106: 2457029.887 | B106: 8.14 | C106: 77.06878334 | D106: 8.778882807 | E106: 8.14 | F106: 0.1139097106 | G106: 0.1056199365
A107: 2457029.887 | B107: 8.14 | C107: 77.93278992 | D107: 8.827955025 | E107: 8.14 | F107: 0.1132765173 | G107: 0.1044489747
A108: 2457029.887 | B108: 8.15 | C108: 78.71037573 | D108: 8.871886819 | E108: 8.15 | F108: 0.1127155948 | G108: 0.1035441633
A109: 2457029.887 | B109: 8.15 | C109: 79.48800176 | D109: 8.915604397 | E109: 8.15 | F109: 0.112162895 | G109: 0.1025311974
A110: 2457029.887 | B110: 8.15 | C110: 80.26558757 | D110: 8.959106405 | E110: 8.15 | F110: 0.1116182747 | G110: 0.1015379099
A111: 2457029.887 | B111: 8.16 | C111: 81.04321361 | D111: 9.002400436 | E111: 8.16 | F111: 0.111081484 | G111: 0.1006870241
A112: 2457029.887 | B112: 8.19 | C112: 81.82079941 | D112: 9.045485029 | E112: 8.19 | F112: 0.1105523913 | G112: 0.1000967976
A113: 2457029.887 | B113: 8.19 | C113: 82.59838521 | D113: 9.088365376 | E113: 8.19 | F113: 0.1100307876 | G113: 0.09915448079
A114: 2457029.887 | B114: 8.19 | C114: 83.37601125 | D114: 9.131046558 | E114: 8.19 | F114: 0.1095164715 | G114: 0.09822969313
A115: 2457029.887 | B115: 8.19 | C115: 84.15359706 | D115: 9.173526969 | E115: 8.19 | F115: 0.1090093269 | G115: 0.0973220431
A116: 2457029.887 | B116: 8.2 | C116: 84.93118286 | D116: 9.215811568 | E116: 8.2 | F116: 0.108509163 | G116: 0.0965487554
A117: 2457029.887 | B117: 8.22 | C117: 85.79518944 | D117: 9.262569268 | E117: 8.22 | F117: 0.1079614059 | G117: 0.09580956757
A118: 2457029.887 | B118: 8.22 | C118: 86.57277524 | D118: 9.304449218 | E118: 8.22 | F118: 0.1074754643 | G118: 0.09494901806
A119: 2457029.887 | B119: 8.22 | C119: 87.35040128 | D119: 9.346143658 | E119: 8.22 | F119: 0.1069960014 | G119: 0.09410374628
A120: 2457029.887 | B120: 8.22 | C120: 88.12798709 | D120: 9.387650776 | E120: 8.22 | F120: 0.1065229229 | G120: 0.09327343415
A121: 2457029.887 | B121: 8.22 | C121: 88.90561312 | D121: 9.428977311 | E121: 8.22 | F121: 0.1060560405 | G121: 0.09245760432
A122: 2457029.887 | B122: 8.22 | C122: 89.68319893 | D122: 9.470121379 | E122: 8.22 | F122: 0.1055952675 | G122: 0.09165596342
A123: 2457029.887 | B123: 8.23 | C123: 90.46078473 | D123: 9.511087463 | E123: 8.23 | F123: 0.1051404483 | G123: 0.09097864919
A124: 2457029.887 | B124: 8.28 | C124: 91.23841077 | D124: 9.55187996 | E124: 8.28 | F124: 0.1046914329 | G124: 0.09075125191
A125: 2457029.887 | B125: 8.28 | C125: 92.01599658 | D125: 9.59249689 | E125: 8.28 | F125: 0.1042481443 | G125: 0.0899843539
A126: 2457029.887 | B126: 8.28 | C126: 92.79358238 | D126: 9.632942561 | E126: 8.28 | F126: 0.1038104394 | G126: 0.08923030869
A127: 2457029.887 | B127: 8.29 | C127: 93.65758896 | D127: 9.677685103 | E127: 8.29 | F127: 0.1033304958 | G127: 0.08851391641
A128: 2457029.887 | B128: 8.29 | C128: 94.435215 | D128: 9.717778295 | E128: 8.29 | F128: 0.1029041793 | G128: 0.08778504926
A129: 2457029.887 | B129: 8.3 | C129: 95.2128008 | D129: 9.757704689 | E129: 8.3 | F129: 0.1024831179 | G129: 0.08717315246
A130: 2457029.887 | B130: 8.31 | C130: 95.99038661 | D130: 9.797468377 | E130: 8.31 | F130: 0.1020671832 | G130: 0.0865711692
A131: 2457029.887 | B131: 8.32 | C131: 96.76801264 | D131: 9.837073378 | E131: 8.32 | F131: 0.101656251 | G131: 0.08597882475
A132: 2457029.887 | B132: 8.33 | C132: 97.54559845 | D132: 9.876517526 | E132: 8.33 | F132: 0.1012502633 | G132: 0.08539595976
A133: 2457029.887 | B133: 8.33 | C133: 98.32318425 | D133: 9.915804771 | E133: 8.33 | F133: 0.1008491013 | G133: 0.08472060851
A134: 2457029.887 | B134: 8.34 | C134: 99.10081029 | D134: 9.95493899 | E134: 8.34 | F134: 0.1004526498 | G134: 0.08415672864
A135: 2457029.887 | B135: 8.35 | C135: 99.87839609 | D135: 9.993917955 | E135: 8.35 | F135: 0.1000608575 | G135: 0.08360166289
A136: 2457029.887 | B136: 8.37 | C136: 100.7424027 | D136: 10.03705149 | E136: 8.37 | F136: 0.09963085282 | G136: 0.08308318819
A137: 2457029.887 | B137: 8.36 | C137: 101.5199885 | D137: 10.0757128 | E137: 8.36 | F137: 0.09924856133 | G137: 0.0823483151
A138: 2457029.887 | B138: 8.34 | C138: =(A138-$A$8)*24*60*60 -> 102.2976145 | D138: =SQRT(C138) -> 10.11422832 | E138: =B138 -> 8.34 | F138: =1/D138 -> 0.09887061754 | G138: =E138/C138 -> 0.08152682777
A139: 2457029.887 | B139: 8.34 | C139: 103.0752003 | D139: 10.15259574 | E139: 8.34 | F139: 0.09849697805 | G139: 0.08091180007
A140: 2457029.887 | B140: 8.36 | C140: 103.8527861 | D140: 10.19081872 | E140: 8.36 | F140: 0.09812754282 | G140: 0.08049856255
A141: 2457029.887 | B141: 8.37 | C141: 104.6304122 | D141: 10.22890083 | E141: 8.37 | F141: 0.0977622148 | G141: 0.07999586188
A142: 2457029.887 | B142: 8.37 | C142: 105.407998 | D142: 10.26683973 | E142: 8.37 | F142: 0.09740095557 | G142: 0.07940573924
A143: 2457029.887 | B143: 8.37 | C143: 106.1855838 | D143: 10.30463894 | E143: 8.37 | F143: 0.09704367183 | G143: 0.0788242594
A144: 2457029.887 | B144: 8.37 | C144: 106.9632098 | D144: 10.34230196 | E144: 8.37 | F144: 0.09669027301 | G144: 0.07825120446
A145: 2457029.887 | B145: 8.37 | C145: 107.7407956 | D145: 10.37982638 | E145: 8.37 | F145: 0.09634072514 | G145: 0.07768645064
A146: 2457029.887 | B146: 8.37 | C146: 108.6048022 | D146: 10.42136278 | E146: 8.37 | F146: 0.09595674012 | G146: 0.07706841531
A147: 2457029.887 | B147: 8.37 | C147: 109.382388 | D147: 10.45860354 | E147: 8.37 | F147: 0.09561505953 | G147: 0.07652054552
A148: 2457029.887 | B148: 8.38 | C148: 110.160014 | D148: 10.49571408 | E148: 8.38 | F148: 0.09527698568 | G148: 0.07607115952
A149: 2457029.887 | B149: 8.39 | C149: 110.9375998 | D149: 10.53269196 | E149: 8.39 | F149: 0.09494248993 | G149: 0.07562810095
A150: 2457029.887 | B150: 8.39 | C150: 111.7151856 | D150: 10.56954047 | E150: 8.39 | F150: 0.09461149265 | G150: 0.0751016968
A151: 2457029.887 | B151: 8.4 | C151: 112.4928117 | D151: 10.60626285 | E151: 8.4 | F151: 0.0942839164 | G151: 0.07467143789
A152: 2457029.887 | B152: 8.41 | C152: 113.2703975 | D152: 10.64285664 | E152: 8.41 | F152: 0.09395973597 | G152: 0.07424711299
A153: 2457029.887 | B153: 8.41 | C153: 114.0479833 | D153: 10.67932504 | E153: 8.41 | F153: 0.09363887665 | G153: 0.07374089184
A154: 2457029.887 | B154: 8.41 | C154: 114.8256093 | D154: 10.7156712 | E154: 8.41 | F154: 0.09332126575 | G154: 0.07324150117
A155: 2457029.887 | B155: 8.41 | C155: 115.6031951 | D155: 10.75189263 | E155: 8.41 | F155: 0.09300688115 | G155: 0.07274885431
A156: 2457029.887 | B156: 8.41 | C156: 116.4672017 | D156: 10.79199711 | E156: 8.41 | F156: 0.09266125532 | G156: 0.07220917028
A157: 2457029.887 | B157: 8.41 | C157: 117.2447875 | D157: 10.82796322 | E157: 8.41 | F157: 0.09235347217 | G157: 0.07173026774
A158: 2457029.887 | B158: 8.41 | C158: 118.0224136 | D158: 10.86381211 | E158: 8.41 | F158: 0.09204872009 | G158: 0.07125765138
A159: 2457029.887 | B159: 8.41 | C159: 118.7999994 | D159: 10.89954125 | E159: 8.41 | F159: 0.09174698068 | G159: 0.07079124617
A160: 2457029.887 | B160: 8.41 | C160: 119.5775852 | D160: 10.93515364 | E160: 8.41 | F160: 0.09144818928 | G160: 0.07033090682
A161: 2457029.887 | B161: 8.42 | C161: 120.3552112 | D161: 10.97065227 | E161: 8.42 | F161: 0.09115228297 | G161: 0.06995957978
A162: 2457029.887 | B162: 8.42 | C162: 121.132797 | D162: 11.00603457 | E162: 8.42 | F162: 0.09085924576 | G162: 0.06951048938
A163: 2457029.887 | B163: 8.42 | C163: 121.9103828 | D163: 11.04130349 | E163: 8.42 | F163: 0.09056901667 | G163: 0.06906712789
A164: 2457029.887 | B164: 8.42 | C164: 122.6880088 | D164: 11.07646193 | E164: 8.42 | F164: 0.09028153633 | G164: 0.06862936386
A165: 2457029.887 | B165: 8.43 | C165: 123.5520154 | D165: 11.11539542 | E165: 8.43 | F165: 0.08996531044 | G165: 0.06823037221
A166: 2457029.887 | B166: 8.43 | C166: 124.3296012 | D166: 11.15031844 | E166: 8.43 | F166: 0.08968353736 | G166: 0.06780364384
A167: 2457029.887 | B167: 8.43 | C167: 125.107187 | D167: 11.18513241 | E167: 8.43 | F167: 0.08940439535 | G167: 0.06738222
A168: 2457029.887 | B168: 8.43 | C168: 125.8848131 | D168: 11.21984015 | E168: 8.43 | F168: 0.08912782948 | G168: 0.066965981
A169: 2457029.887 | B169: 8.43 | C169: 126.6623989 | D169: 11.25443907 | E169: 8.43 | F169: 0.08885382856 | G169: 0.06655487402
A170: 2457029.887 | B170: 8.43 | C170: 127.4399847 | D170: 11.28893195 | E170: 8.43 | F170: 0.08858233923 | G170: 0.06614878385
A171: 2457029.887 | B171: 8.43 | C171: 128.2176107 | D171: 11.32332154 | E171: 8.43 | F171: 0.08831330952 | G171: 0.06574759858
A172: 2457029.887 | B172: 8.43 | C172: 128.9951965 | D172: 11.35760523 | E172: 8.43 | F172: 0.08804672991 | G172: 0.06535127065
A173: 2457029.887 | B173: 8.43 | C173: 129.7727823 | D173: 11.39178574 | E173: 8.43 | F173: 0.08778254989 | G173: 0.06495969223
A174: 2457029.887 | B174: 8.43 | C174: 130.5504084 | D174: 11.42586576 | E174: 8.43 | F174: 0.08752072018 | G174: 0.06457275857
A175: 2457029.887 | B175: 8.43 | C175: 131.4144149 | D175: 11.46361265 | E175: 8.43 | F175: 0.08723253574 | G175: 0.06414821391
A176: 2457029.887 | B176: 8.44 | C176: 132.1920007 | D176: 11.49747802 | E176: 8.44 | F176: 0.08697559574 | G176: 0.0638465259
A177: 2457029.887 | B177: 8.45 | C177: 132.9695866 | D177: 11.53124393 | E177: 8.45 | F177: 0.08672091287 | G177: 0.06354836635
A178: 2457029.887 | B178: 8.45 | C178: 133.7472126 | D178: 11.564913 | E178: 8.45 | F178: 0.08646844126 | G178: 0.06317888677
A179: 2457029.887 | B179: 8.45 | C179: 134.5247984 | D179: 11.59848259 | E179: 8.45 | F179: 0.08621817485 | G179: 0.06281369756
A180: 2457029.887 | B180: 8.45 | C180: 135.3023842 | D180: 11.6319553 | E180: 8.45 | F180: 0.08597006899 | G180: 0.06245270584
A181: 2457029.887 | B181: 8.45 | C181: 136.0800102 | D181: 11.6653337 | E181: 8.45 | F181: 0.08572408009 | G181: 0.06209582131
A182: 2457029.887 | B182: 8.45 | C182: 136.857596 | D182: 11.69861513 | E182: 8.45 | F182: 0.08548020331 | G182: 0.06174301058
A183: 2457029.887 | B183: 8.45 | C183: 137.6351818 | D183: 11.73180216 | E183: 8.45 | F183: 0.08523839617 | G183: 0.06139418633
A184: 2457029.887 | B184: 8.45 | C184: 138.4128079 | D184: 11.76489727 | E184: 8.45 | F184: 0.08499861721 | G184: 0.06104926364
A185: 2457029.887 | B185: 8.46 | C185: 139.2768145 | D185: 11.80155983 | E185: 8.46 | F185: 0.08473456172 | G185: 0.06074234274
A186: 2457029.887 | B186: 8.46 | C186: 140.0544003 | D186: 11.83445817 | E186: 8.46 | F186: 0.08449901004 | G186: 0.06040509962

Sheet 20-30 0% MC 10 cm ROUGH
A1: Run | B1: Early slope | C1: Late slope
A2: 1 | B2: 2.27 | C2: 0.31
A3: 2 | B3: 2.37 | C3: 0.29
A4: 3 | B4: 2.49 | C4: 0.33
A5: 4 | B5: 3.07 | C5: 0.48
A6: 5 | B6: 3.2 | C6: 0.65
A8: Roughened sand
A9: 10 cm
A10: 0% MC | H10: 10 cm
H11: 20-30 AS
A12: Run 1 | H12: roughened
A13: time | B13: mass | C13: time (cor) | D13: SQRT time | E13: mass | H13: 0% MC
A14: 2457029.89 | B14: 0 | C14: =0 -> 0 | D14: =SQRT(C14) -> 0 | E14: =B14 -> 0
A15: 2457029.89 | B15: 1.96 | C15: =(A15-$A$14)*24*60*60 -> 0.8639663458 | D15: =SQRT(C15) -> 0.9294978998 | E15: =B15 -> 1.96 | H15: Run 1 | O15: Run 3 | U15: Run 4 | AB15: Run 5
A16: 2457029.89 | B16: 3.1 | C16: =(A16-$A$14)*24*60*60 -> 1.641592383 | D16: =SQRT(C16) -> 1.281246418 | E16: =B16 -> 3.1 | H16: Time | I16: Mass | J16: Time (corr) | K16: SQRT time | L16: Mass | O16: Time | P16: Mass | Q16: Time (corr) | R16: SQRT time | S16: Mass | U16: Time | V16: Mass | W16: Time (corr) | X16: SQRT time | Y16: Mass | AB16: Time | AC16: Mass | AD16: Time (corr) | AE16: SQRT time | AF16: Mass
A17: 2457029.89 | B17: 3.65 | C17: 2.419178188 | D17: 1.555370756 | E17: 3.65 | H17: 2457061.181 | I17: -0.01 | O17: 2457118.801 | P17: 0 | U17: 2457118.809 | V17: 0 | AB17: 2457118.815 | AC17: -0.01
A18: 2457029.89 | B18: 4.11 | C18: 3.196804225 | D18: 1.787960913 | E18: 4.11 | H18: 2457061.182 | I18: -0.02 | O18: 2457118.801 | P18: 0 | U18: 2457118.809 | V18: 0 | AB18: 2457118.815 | AC18: -0.01
A19: 2457029.89 | B19: 4.55 | C19: 3.97439003 | D19: 1.993587227 | E19: 4.55 | H19: 2457061.182 | I19: -0.03 | O19: 2457118.801 | P19: 0 | U19: 2457118.809 | V19: 0 | AB19: 2457118.815 | AC19: -0.01
A20: 2457029.89 | B20: 4.84 | C20: 4.751975834 | D20: 2.179902712 | E20: 4.84 | H20: 2457061.182 | I20: -0.03 | O20: 2457118.801 | P20: 0 | U20: 2457118.809 | V20: 0 | AB20: 2457118.815 | AC20: -0.01
A21: 2457029.89 | B21: 5.14 | C21: 5.529601872 | D21: 2.351510551 | E21: 5.14 | H21: 2457061.182 | I21: -0.03 | O21: 2457118.801 | P21: 0 | U21: 2457118.809 | V21: 0 | AB21: 2457118.815 | AC21: -0.01
A22: 2457029.89 | B22: 5.36 | C22: 6.307187676 | D22: 2.511411491 | E22: 5.36 | H22: 2457061.182 | I22: -0.03 | O22: 2457118.801 | P22: 0 | U22: 2457118.809 | V22: 0 | AB22: 2457118.815 | AC22: -0.01
A23: 2457029.89 | B23: 5.47 | C23: 7.084773481 | D23: 2.66172378 | E23: 5.47 | H23: 2457061.182 | I23: -0.04 | O23: 2457118.801 | P23: 0 | U23: 2457118.809 | V23: 0 | AB23: 2457118.815 | AC23: -0.02
A24: 2457029.89 | B24: 5.65 | C24: 7.862399518 | D24: 2.803997061 | E24: 5.65 | H24: 2457061.182 | I24: 0 | O24: 2457118.801 | P24: 0 | U24: 2457118.809 | V24: 0 | AB24: 2457118.815 | AC24: 0
A25: 2457029.89 | B25: 5.74 | C25: 8.726365864 | D25: 2.954042292 | E25: 5.74 | H25: 2457061.182 | I25: 0 | O25: 2457118.801 | P25: 0 | U25: 2457118.809 | V25: 0 | W25: =0 -> 0 | X25: =SQRT(W25) -> 0 | Y25: =V25 -> 0 | AB25: 2457118.815 | AC25: 0
A26: 2457029.89 | B26: 5.87 | C26: 9.503991902 | D26: 3.082854505 | E26: 5.87 | H26: 2457061.182 | I26: 0 | O26: 2457118.801 | P26: 0 | U26: 2457118.809 | V26: 1.63 | W26: =(U26-$U$25)*24*60*60 -> 0.5184039474 | X26: =SQRT(W26) -> 0.7200027412 | Y26: =V26 -> 1.63 | AB26: 2457118.815 | AC26: 0 | AD26: =0 -> 0 | AE26: =SQRT(AD26) -> 0 | AF26: =AC26 -> 0
A27: 2457029.89 | B27: 5.91 | C27: 10.28157771 | D27: 3.206489935 | E27: 5.91 | H27: 2457061.182 | I27: 0 | J27: =0 -> 0 | K27: =SQRT(J27) -> 0 | L27: =I27 -> 0 | O27: 2457118.801 | P27: 0.95 | Q27: =0 -> 0 | R27: =SQRT(Q27) -> 0 | S27: =P27 -> 0.95 | U27: 2457118.809 | V27: 2.77 | W27: =(U27-$U$25)*24*60*60 -> 1.123188436 | X27: =SQRT(W27) -> 1.059805848 | Y27: =V27 -> 2.77 | AB27: 2457118.815 | AC27: 1.67 | AD27: =(AB27-$AB$26)*24*60*60 -> 0.6047844887 | AE27: =SQRT(AD27) -> 0.777678911 | AF27: =AC27 -> 1.67
A28: 2457029.89 | B28: 6.01 | C28: 11.05920374 | D28: 3.325538113 | E28: 6.01 | H28: 2457061.182 | I28: 1.9 | J28: =(H28-$H$27)*24*60*60 -> 0.7776260376 | K28: 0.8818310709 | L28: 1.9 | O28: 2457118.801 | P28: 1.88 | Q28: =(O28-$O$27)*24*60*60 -> 0.5184039474 | R28: =SQRT(Q28) -> 0.7200027412 | S28: =P28 -> 1.88 | U28: 2457118.809 | V28: 3.45 | W28: 1.641592383 | X28: 1.281246418 | Y28: 3.45 | AB28: 2457118.815 | AC28: 2.87 | AD28: =(AB28-$AB$26)*24*60*60 -> 1.123188436 | AE28: =SQRT(AD28) -> 1.059805848 | AF28: =AC28 -> 2.87
A29: 2457029.89 | B29: 6.08 | C29: 11.83678955 | D29: 3.440463566 | E29: 6.08 | H29: 2457061.182 | I29: 2.89 | J29: 1.555211842 | K29: 1.247081329 | L29: 2.89 | O29: 2457118.801 | P29: 2.64 | Q29: =(O29-$O$27)*24*60*60 -> 1.123228669 | R29: =SQRT(Q29) -> 1.059824829 | S29: =P29 -> 2.64 | U29: 2457118.809 | V29: 4.1 | W29: 2.246376872 | X29: 1.498791804 | Y29: 4.1 | AB29: 2457118.815 | AC29: 3.69 | AD29: 1.728013158 | AE29: 1.314539143 | AF29: 3.69
A30: 2457029.89 | B30: 6.12 | C30: 12.61437535 | D30: 3.551672191 | E30: 6.12 | H30: 2457061.182 | I30: 3.64 | J30: 2.332797647 | K30: 1.527349877 | L30: 3.64 | O30: 2457118.801 | P30: 3.29 | Q30: 1.641592383 | R30: 1.281246418 | S30: 3.29 | U30: 2457118.809 | V30: 4.52 | W30: 2.764780819 | X30: 1.662763008 | Y30: 4.52 | AB30: 2457118.815 | AC30: 4.29 | AD30: 2.332797647 | AE30: 1.527349877 | AF30: 4.29
A31: 2457029.89 | B31: 6.2 | C31: 13.39200139 | D31: 3.659508354 | E31: 6.2 | H31: 2457061.182 | I31: 4.23 | J31: 3.110423684 | K31: 1.763639329 | L31: 4.23 | O31: 2457118.801 | P31: 3.77 | Q31: 2.246417105 | R31: 1.498805226 | S31: 3.77 | U31: 2457118.809 | V31: 4.88 | W31: 3.369605541 | X31: 1.835648534 | Y31: 4.88 | AB31: 2457118.815 | AC31: 4.76 | AD31: 2.851201594 | AE31: 1.688550146 | AF31: 4.76
A32: 2457029.89 | B32: 6.22 | C32: 14.16958719 | D32: 3.764251213 | E32: 6.22 | H32: 2457061.182 | I32: 4.56 | J32: 3.888009489 | K32: 1.971803613 | L32: 4.56 | O32: 2457118.801 | P32: 4.29 | Q32: 2.851201594 | R32: 1.688550146 | S32: 4.29 | U32: 2457118.809 | V32: 5.22 | W32: 3.97439003 | X32: 1.993587227 | Y32: 5.22 | AB32: 2457118.815 | AC32: 5.18 | AD32: 3.455986083 | AE32: 1.859028263 | AF32: 5.18
A33: 2457029.89 | B33: 6.26 | C33: 14.947173 | D33: 3.866157395 | E33: 6.26 | H33: 2457061.182 | I33: 4.94 | J33: 4.665595293 | K33: 2.15999891 | L33: 4.94 | O33: 2457118.801 | P33: 4.51 | Q33: 3.369605541 | R33: 1.835648534 | S33: 4.51 | U33: 2457118.809 | V33: 5.41 | W33: 4.492793977 | X33: 2.119621187 | Y33: 5.41 | AB33: 2457118.815 | AC33: 5.51 | AD33: 3.97439003 | AE33: 1.993587227 | AF33: 5.51
A34: 2457029.89 | B34: 6.3 | C34: 15.72479904 | D34: 3.965450673 | E34: 6.3 | H34: 2457061.182 | I34: 5.08 | J34: 5.529601872 | K34: 2.351510551 | L34: 5.08 | O34: 2457118.801 | P34: 4.82 | Q34: 3.97439003 | R34: 1.993587227 | S34: 4.82 | U34: 2457118.809 | V34: 5.71 | W34: 5.097578466 | X34: 2.257781758 | Y34: 5.71 | AB34: 2457118.815 | AC34: 5.76 | AD34: 4.579214752 | AE34: 2.139909987 | AF34: 5.76
A35: 2457029.89 | B35: 6.35 | C35: 16.58880562 | D35: 4.072935749 | E35: 6.35 | H35: 2457061.182 | I35: 5.27 | J35: 6.307187676 | K35: 2.511411491 | L35: 5.27 | O35: 2457118.801 | P35: 5.07 | Q35: 4.492793977 | R35: 2.119621187 | S35: 5.07 | U35: 2457118.809 | V35: 5.91 | W35: 5.615982413 | X35: 2.369806408 | Y35: 5.91 | AB35: 2457118.815 | AC35: 5.93 | AD35: 5.097618699 | AE35: 2.257790668 | AF35: 5.93
A36: 2457029.89 | B36: 6.37 | C36: 17.36639142 | D36: 4.167300256 | E36: 6.37 | H36: 2457061.182 | I36: 5.43 | J36: 7.084813714 | K36: 2.661731338 | L36: 5.43 | O36: 2457118.801 | P36: 5.2 | Q36: 5.097618699 | R36: 2.257790668 | S36: 5.2 | U36: 2457118.809 | V36: 6.03 | W36: 6.220807135 | X36: 2.494154593 | Y36: 6.03 | AB36: 2457118.815 | AC36: 6.14 | AD36: 5.702403188 | AE36: 2.387970517 | AF36: 6.14
A37: 2457029.89 | B37: 6.46 | C37: 18.14397722 | D37: 4.25957477 | E37: 6.46 | H37: 2457061.182 | I37: 5.52 | J37: 7.862399518 | K37: 2.803997061 | L37: 5.52 | O37: 2457118.801 | P37: 5.38 | Q37: 5.616022646 | R37: 2.369814897 | S37: 5.38 | U37: 2457118.809 | V37: 6.24 | W37: 6.825591624 | X37: 2.612583324 | Y37: 6.24 | AB37: 2457118.815 | AC37: 6.27 | AD37: 6.220807135 | AE37: 2.494154593 | AF37: 6.27
A38: 2457029.89 | B38: 6.48 | C38: 18.92160326 | D38: 4.349896925 | E38: 6.48 | H38: 2457061.182 | I38: 5.65 | J38: 8.640025556 | K38: 2.939392039 | L38: 5.65 | O38: 2457118.801 | P38: 5.53 | Q38: 6.220807135 | R38: 2.494154593 | S38: 5.53 | U38: 2457118.809 | V38: 6.34 | W38: 7.343995571 | X38: 2.709980733 | Y38: 6.34 | AB38: 2457118.815 | AC38: 6.46 | AD38: 6.825591624 | AE38: 2.612583324 | AF38: 6.46
A39: 2457029.89 | B39: 6.49 | C39: 19.69918907 | D39: 4.43837685 | E39: 6.49 | H39: 2457061.182 | I39: 5.76 | J39: 9.417611361 | K39: 3.068812696 | L39: 5.76 | O39: 2457118.801 | P39: 5.71 | Q39: 6.825591624 | R39: 2.612583324 | S39: 5.71 | U39: 2457118.809 | V39: 6.5 | W39: 7.94878006 | X39: 2.819358094 | Y39: 6.5 | AB39: 2457118.815 | AC39: 6.55 | AD39: 7.430416346 | AE39: 2.725879004 | AF39: 6.55
A40: 2457029.89 | B40: 6.55 | C40: 20.47677487 | D40: 4.525127056 | E40: 6.55 | H40: 2457061.182 | I40: 5.86 | J40: 10.19519717 | K40: 3.192991883 | L40: 5.86 | O40: 2457118.801 | P40: 5.8 | Q40: 7.343995571 | R40: 2.709980733 | S40: 5.8 | U40: 2457118.809 | V40: 6.6 | W40: 8.467184007 | X40: 2.909842609 | Y40: 6.6 | AB40: 2457118.815 | AC40: 6.7 | AD40: 7.948820293 | AE40: 2.819365229 | AF40: 6.7
A41: 2457029.89 | B41: 6.57 | C41: 21.25440091 | D41: 4.61024955 | E41: 6.57 | H41: 2457061.182 | I41: 5.94 | J41: 10.9728232 | K41: 3.3125252 | L41: 5.94 | O41: 2457118.801 | P41: 5.94 | Q41: 7.948820293 | R41: 2.819365229 | S41: 5.94 | U41: 2457118.809 | V41: 6.74 | W41: 9.072008729 | X41: 3.011977545 | Y41: 6.74 | AB41: 2457118.815 | AC41: 6.77 | AD41: 8.553604782 | AE41: 2.924654643 | AF41: 6.77
A42: 2457029.89 | B42: 6.59 | C42: 22.03198671 | D42: 4.693824316 | E42: 6.59 | H42: 2457061.182 | I42: 6.01 | J42: 11.75040901 | K42: 3.427886959 | L42: 6.01 | O42: 2457118.801 | P42: 6.05 | Q42: 8.46722424 | R42: 2.909849522 | S42: 6.05 | U42: 2457118.809 | V42: 6.85 | W42: 9.590372443 | X42: 3.096832647 | Y42: 6.85 | AB42: 2457118.815 | AC42: 6.89 | AD42: 9.072008729 | AE42: 3.011977545 | AF42: 6.89
A43: 2457029.89 | B43: 6.61 | C43: 22.80957252 | D43: 4.775936821 | E43: 6.61 | H43: 2457061.182 | I43: 6.06 | J43: 12.52799481 | K43: 3.539490756 | L43: 6.06 | O43: 2457118.801 | P43: 6.12 | Q43: 9.072008729 | R43: 3.011977545 | S43: 6.12 | U43: 2457118.809 | V43: 6.99 | W43: 10.19519717 | X43: 3.192991883 | Y43: 6.99 | AB43: 2457118.815 | AC43: 6.97 | AD43: 9.676793218 | AE43: 3.110754445 | AF43: 6.97
A44: 2457029.89 | B44: 6.64 | C44: 23.6735791 | D44: 4.865550236 | E44: 6.64 | H44: 2457061.182 | I44: 6.1 | J44: 13.39200139 | K44: 3.659508354 | L44: 6.1 | O44: 2457118.801 | P44: 6.23 | Q44: 9.590412676 | R44: 3.096839143 | S44: 6.23 | U44: 2457118.809 | V44: 7.05 | W44: 10.79998165 | X44: 3.286332554 | Y44: 7.05 | AB44: 2457118.815 | AC44: 7.02 | AD44: 10.28161794 | AE44: 3.206496209 | AF44: 7.02
A45: 2457029.89 | B45: 6.67 | C45: 24.45120513 | D45: 4.944815986 | E45: 6.67 | H45: 2457061.182 | I45: 6.14 | J45: 14.16962743 | K45: 3.764256557 | L45: 6.14 | O45: 2457118.801 | P45: 6.33 | Q45: 10.19519717 | R45: 3.192991883 | S45: 6.33 | U45: 2457118.809 | V45: 7.16 | W45: 11.3183856 | X45: 3.364280845 | Y45: 7.16 | AB45: 2457118.815 | AC45: 7.05 | AD45: 10.79998165 | AE45: 3.286332554 | AF45: 7.05
A46: 2457029.89 | B46: 6.69 | C46: 25.22879094 | D46: 5.022826987 | E46: 6.69 | H46: 2457061.182 | I46: 6.23 | J46: 14.94721323 | K46: 3.866162598 | L46: 6.23 | O46: 2457118.801 | P46: 6.39 | Q46: 10.80002189 | R46: 3.286338675 | S46: 6.39 | U46: 2457118.809 | V46: 7.22 | W46: 11.92321032 | X46: 3.453000192 | Y46: 7.22 | AB46: 2457118.815 | AC46: 7.18 | AD46: 11.40480638 | AE46: 3.377100291 | AF46: 7.18
A47: 2457029.89 | B47: 6.72 | C47: 26.00637674 | D47: 5.099644766 | E47: 6.72 | H47: 2457061.182 | I47: 6.25 | J47: 15.72479904 | K47: 3.965450673 | L47: 6.25 | O47: 2457118.801 | P47: 6.46 | Q47: 11.31842583 | R47: 3.364286824 | S47: 6.46 | U47: 2457118.809 | V47: 7.3 | W47: 12.44157404 | X47: 3.527261549 | Y47: 7.3 | AB47: 2457118.815 | AC47: 7.17 | AD47: 11.92321032 | AE47: 3.453000192 | AF47: 7.17
A48: 2457029.89 | B48: 6.77 | C48: 26.78400278 | D48: 5.175326345 | E48: 6.77 | H48: 2457061.182 | I48: 6.3 | J48: 16.50242507 | K48: 4.062317697 | L48: 6.3 | O48: 2457118.801 | P48: 6.54 | Q48: 11.92321032 | R48: 3.453000192 | S48: 6.54 | U48: 2457118.809 | V48: 7.4 | W48: 13.04639876 | X48: 3.611979895 | Y48: 7.4 | AB48: 2457118.815 | AC48: 7.19 | AD48: 12.52799481 | AE48: 3.539490756 | AF48: 7.19
A49: 2457029.89 | B49: 6.78 | C49: 27.56158859 | D49: 5.249913198 | E49: 6.78 | H49: 2457061.182 | I49: 6.34 | J49: 17.28001088 | K49: 4.156923247 | L49: 6.34 | O49: 2457118.801 | P49: 6.61 | Q49: 12.44161427 | R49: 3.527267252 | S49: 6.61 | U49: 2457118.809 | V49: 7.44 | W49: 13.56480271 | X49: 3.683042588 | Y49: 7.44 | AB49: 2457118.815 | AC49: 7.41 | AD49: 13.04639876 | AE49: 3.611979895 | AF49: 7.41
A50: 2457029.89 | B50: 6.82 | C50: 28.33917439 | D50: 5.323455118 | E50: 6.82 | H50: 2457061.182 | I50: 6.38 | J50: 18.05759668 | K50: 4.2494231 | L50: 6.38 | O50: 2457118.801 | P50: 6.65 | Q50: 13.04639876 | R50: 3.611979895 | S50: 6.65 | U50: 2457118.809 | V50: 7.53 | W50: 14.16958719 | X50: 3.764251213 | Y50: 7.53 | AB50: 2457118.815 | AC50: 7.45 | AD50: 13.65118325 | AE50: 3.694750769 | AF50: 7.45
A51: 2457029.89 | B51: 6.85 | C51: 29.11680043 | D51: 5.395998557 | E51: 6.85 | H51: 2457061.182 | I51: 6.4 | J51: 18.83522272 | K51: 4.339956534 | L51: 6.4 | O51: 2457118.801 | P51: 6.74 | Q51: 13.65122348 | R51: 3.694756214 | S51: 6.74 | U51: 2457118.809 | V51: 7.58 | W51: 14.77441192 | X51: 3.843749721 | Y51: 7.58 | AB51: 2457118.815 | AC51: 7.5 | AD51: 14.25600797 | AE51: 3.775712909 | AF51: 7.5
A52: 2457029.89 | B52: 6.87 | C52: 29.89438623 | D52: 5.467575901 | E52: 6.87 | H52: 2457061.182 | I52: 6.46 | J52: 19.61280853 | K52: 4.428635063 | L52: 6.46 | O52: 2457118.801 | P52: 6.78 | Q52: 14.16962743 | R52: 3.764256557 | S52: 6.78 | U52: 2457118.809 | V52: 7.62 | W52: 15.29277563 | X52: 3.910597861 | Y52: 7.62 | AB52: 2457118.815 | AC52: 7.56 | AD52: 14.77441192 | AE52: 3.843749721 | AF52: 7.56
A53: 2457029.89 | B53: 6.89 | C53: 30.67197204 | D53: 5.53822824 | E53: 6.89 | H53: 2457061.182 | I53: 6.49 | J53: 20.4768151 | K53: 4.525131501 | L53: 6.49 | O53: 2457118.801 | P53: 6.83 | Q53: 14.77441192 | R53: 3.843749721 | S53: 6.83 | U53: 2457118.809 | V53: 7.66 | W53: 15.89760035 | X53: 3.987179498 | Y53: 7.66 | AB53: 2457118.815 | AC53: 7.61 | AD53: 15.37919641 | AE53: 3.921631855 | AF53: 7.61
A54: 2457029.89 | B54: 6.9 | C54: 31.53597862 | D54: 5.615690395 | E54: 6.9 | H54: 2457061.182 | I54: 6.52 | J54: 21.25440091 | K54: 4.61024955 | L54: 6.52 | O54: 2457118.801 | P54: 6.89 | Q54: 15.29281586 | R54: 3.910603005 | S54: 6.89 | U54: 2457118.809 | V54: 7.72 | W54: 16.4160043 | X54: 4.051666855 | Y54: 7.72 | AB54: 2457118.815 | AC54: 7.64 | AD54: 15.89760035 | AE54: 3.987179498 | AF54: 7.64
A55: 2457029.89 | B55: 6.92 | C55: 32.31360465 | D55: 5.684505665 | E55: 6.92 | H55: 2457061.182 | I55: 6.54 | J55: 22.03202695 | K55: 4.693828602 | L55: 6.54 | O55: 2457118.801 | P55: 6.95 | Q55: 15.89760035 | R55: 3.987179498 | S55: 6.95 | U55: 2457118.809 | V55: 7.77 | W55: 17.02078879 | X55: 4.125625866 | Y55: 7.77 | AB55: 2457118.815 | AC55: 7.69 | AD55: 16.50238484 | AE55: 4.062312745 | AF55: 7.69
A56: 2457029.89 | B56: 6.94 | C56: 33.09119046 | D56: 5.752494281 | E56: 6.94 | H56: 2457061.182 | I56: 6.54 | J56: 22.80961275 | K56: 4.775941033 | L56: 6.54 | O56: 2457118.801 | P56: 6.98 | Q56: 16.4160043 | R56: 4.051666855 | S56: 6.98 | U56: 2457118.809 | V56: 7.81 | W56: 17.53919274 | X56: 4.187981941 | Y56: 7.81 | AB56: 2457118.815 | AC56: 7.77 | AD56: 17.02078879 | AE56: 4.125625866 | AF56: 7.77
A57: 2457029.89 | B57: 6.99 | C57: 33.86877626 | D57: 5.819688674 | E57: 6.99 | H57: 2457061.182 | I57: 6.54 | J57: 23.58719856 | K57: 4.856665374 | L57: 6.54 | O57: 2457118.801 | P57: 7.02 | Q57: 17.02082902 | R57: 4.125630742 | S57: 7.02 | U57: 2457118.809 | V57: 7.89 | W57: 18.14397722 | X57: 4.25957477 | Y57: 7.89 | AB57: 2457118.815 | AC57: 7.8 | AD57: 17.62561351 | AE57: 4.198286973 | AF57: 7.8
A58: 2457029.89 | B58: 7 | C58: 34.6464023 | D58: 5.88611946 | E58: 7 | H58: 2457061.182 | I58: 6.64 | J58: 24.36482459 | K58: 4.936073803 | L58: 6.64 | O58: 2457118.801 | P58: 7.09 | Q58: 17.62561351 | R58: 4.198286973 | S58: 7.09 | U58: 2457118.809 | V58: 7.92 | W58: 18.74880195 | X58: 4.329988677 | Y58: 7.92 | AB58: 2457118.815 | AC58: 7.84 | AD58: 18.230398 | AE58: 4.269707016 | AF58: 7.84
A59: 2457029.89 | B59: 7.01 | C59: 35.4239881 | D59: 5.951805449 | E59: 7.01 | H59: 2457061.182 | I59: 6.65 | J59: 25.1424104 | K59: =SQRT(J59) -> 5.014220817 | L59: =I59 -> 6.65 | O59: 2457118.801 | P59: 7.11 | Q59: 18.14401746 | R59: 4.259579493 | S59: 7.11 | U59: 2457118.809 | V59: 7.95 | W59: 19.26720589 | X59: 4.389442549 | Y59: 7.95 | AB59: 2457118.815 | AC59: 7.89 | AD59: 18.74880195 | AE59: 4.329988677 | AF59: 7.89
A60: 2457029.89 | B60: 7.01 | C60: 36.20157391 | D60: 6.016774377 | E60: 7.01 | H60: 2457061.182 | I60: 6.67 | J60: =(H60-$H$27)*24*60*60 -> 25.9199962 | K60: 5.091168452 | L60: 6.67 | O60: 2457118.801 | P60: 7.14 | Q60: 18.74880195 | R60: 4.329988677 | S60: 7.14 | U60: 2457118.809 | V60: 8 | W60: 19.87199038 | X60: 4.45780107 | Y60: 8 | AB60: 2457118.815 | AC60: 7.93 | AD60: 19.35358644 | AE60: 4.399271125 | AF60: 7.93
A61: 2457029.89 | B61: 7.01 | C61: 36.97919995 | D61: 6.081052536 | E61: 7.01 | H61: 2457061.182 | I61: 6.72 | J61: 26.69762224 | K61: 5.166974186 | L61: 6.72 | O61: 2457118.801 | P61: 7.17 | Q61: 19.26720589 | R61: 4.389442549 | S61: 7.17 | U61: 2457118.809 | V61: 8.04 | W61: 20.39039433 | X61: 4.515572426 | Y61: 8.04 | AB61: 2457118.815 | AC61: 7.95 | AD61: 19.87199038 | AE61: 4.45780107 | AF61: 7.95
A62: 2457029.89 | B62: 7.05 | C62: 37.75678575 | D62: 6.144655055 | E62: 7.05 | H62: 2457061.182 | I62: 6.74 | J62: 27.47520804 | K62: 5.241679888 | L62: 6.74 | O62: 2457118.801 | P62: 7.2 | Q62: 19.87199038 | R62: 4.45780107 | S62: 7.2 | U62: 2457118.809 | V62: 8.09 | W62: 20.99517882 | X62: 4.582049631 | Y62: 8.09 | AB62: 2457118.815 | AC62: 7.97 | AD62: 20.4768151 | AE62: 4.525131501 | AF62: 7.97
A63: 2457029.89 | B63: 7.05 | C63: 38.53437155 | D63: 6.207605944 | E63: 7.05 | H63: 2457061.182 | I63: 6.77 | J63: 28.33921462 | K63: 5.323458897 | L63: 6.77 | O63: 2457118.801 | P63: 7.24 | Q63: 20.39039433 | R63: 4.515572426 | S63: 7.24 | U63: 2457118.809 | V63: 8.12 | W63: 21.51358277 | X63: 4.638273684 | Y63: 8.12 | AB63: 2457118.815 | AC63: 8.04 | AD63: 20.99521905 | AE63: 4.582054021 | AF63: 8.04
A64: 2457029.89 | B64: 7.08 | C64: 39.39837813 | D64: 6.276812737 | E64: 7.08 | H64: 2457061.182 | I64: 6.8 | J64: 29.11680043 | K64: 5.395998557 | L64: 6.8 | O64: 2457118.801 | P64: 7.26 | Q64: 20.99521905 | R64: 4.582054021 | S64: 7.26 | U64: 2457118.809 | V64: 8.14 | W64: 22.11840749 | X64: 4.703021102 | Y64: 8.14 | AB64: 2457118.815 | AC64: 8.07 | AD64: 21.60000354 | AE64: 4.647580396 | AF64: 8.07
A65: 2457029.891 | B65: 7.11 | C65: 40.17600417 | D65: 6.338454399 | E65: 7.11 | H65: 2457061.182 | I65: 6.75 | J65: 29.89442647 | K65: 5.46757958 | L65: 6.75 | O65: 2457118.801 | P65: 7.28 | Q65: 21.60000354 | R65: 4.647580396 | S65: 7.28 | U65: 2457118.809 | V65: 8.22 | W65: 22.72319198 | X65: 4.766884934 | Y65: 8.22 | AB65: 2457118.815 | AC65: 8.09 | AD65: 22.20478803 | AE65: 4.71219567 | AF65: 8.09
A66: 2457029.891 | B66: 7.14 | C66: 40.95358998 | D66: 6.399499197 | E66: 7.14 | H66: 2457061.182 | I66: 6.73 | J66: 30.67201227 | K66: 5.538231872 | L66: 6.73 | O66: 2457118.801 | P66: 7.3 | Q66: 22.11840749 | R66: 4.703021102 | S66: 7.3 | U66: 2457118.809 | V66: 8.24 | W66: 23.24159592 | X66: 4.82095384 | Y66: 8.24 | AB66: 2457118.815 | AC66: 8.11 | AD66: 22.72319198 | AE66: 4.766884934 | AF66: 8.11
A67: 2457029.891 | B67: 7.17 | C67: 41.73117578 | D67: 6.459967166 | E67: 7.17 | H67: 2457061.182 | I67: 6.72 | J67: 31.44959807 | K67: 5.607994122 | L67: 6.72 | O67: 2457118.801 | P67: 7.35 | Q67: 22.72319198 | R67: 4.766884934 | S67: 7.35 | U67: 2457118.809 | V67: 8.26 | W67: 23.84638041 | X67: 4.883275582 | Y67: 8.26 | AB67: 2457118.815 | AC67: 8.15 | AD67: 23.3280167 | AE67: 4.82990856 | AF67: 8.15
A68: 2457029.891 | B68: 7.17 | C68: 42.50880182 | D68: 6.519877439 | E68: 7.17 | H68: 2457061.182 | I68: 6.8 | J68: 32.22722411 | K68: 5.676902686 | L68: 6.8 | O68: 2457118.801 | P68: 7.36 | Q68: 23.24159592 | R68: 4.82095384 | S68: 7.36 | U68: 2457118.809 | V68: 8.33 | W68: 24.36478436 | X68: 4.936069728 | Y68: 8.33 | AB68: 2457118.815 | AC68: 8.18 | AD68: 23.84638041 | AE68: 4.883275582 | AF68: 8.18
A69: 2457029.891 | B69: 7.17 | C69: 43.28638762 | D69: 6.579239137 | E69: 7.17 | H69: 2457061.182 | I69: 6.88 | J69: 33.00480992 | K69: 5.744981281 | L69: 6.88 | O69: 2457118.801 | P69: 7.37 | Q69: 23.84642065 | R69: 4.883279702 | S69: 7.37 | U69: 2457118.809 | V69: 8.37 | W69: 24.96960908 | X69: 4.996959984 | Y69: 8.37 | AB69: 2457118.815 | AC69: 8.22 | AD69: 24.45120513 | AE69: 4.944815986 | AF69: 8.22
A70: 2457029.891 | B70: 7.18 | C70: 44.06397343 | D70: 6.638070008 | E70: 7.18 | H70: 2457061.182 | I70: 6.93 | J70: 33.78239572 | K70: 5.81226253 | L70: 6.93 | O70: 2457118.801 | P70: 7.38 | Q70: 24.36482459 | R70: 4.936073803 | S70: 7.38 | U70: 2457118.809 | V70: 8.39 | W70: 25.4879728 | X70: 5.048561458 | Y70: 8.39 | AB70: 2457118.815 | AC70: 8.23 | AD70: 24.96960908 | AE70: 4.996959984 | AF70: 8.23
A71: 2457029.891 | B71: 7.2 | C71: 44.84159946 | D71: 6.696387046 | E71: 7.2 | H71: 2457061.182 | I71: 6.98 | J71: 34.56002176 | K71: 5.878777233 | L71: 6.98 | O71: 2457118.801 | P71: 7.4 | Q71: 24.96960908 | R71: 4.996959984 | S71: 7.4 | U71: 2457118.809 | V71: 8.41 | W71: 26.09279752 | X71: 5.108110954 | Y71: 8.41 | AB71: 2457118.815 | AC71: 8.25 | AD71: 25.57439357 | AE71: 5.057113166 | AF71: 8.25
A72: 2457029.891 | B72: 7.21 | C72: 45.61918527 | D72: 6.754197604 | E72: 7.21 | H72: 2457061.182 | I72: 7 | J72: 35.33760756 | K72: 5.944544353 | L72: 7 | O72: 2457118.801 | P72: 7.41 | Q72: 25.57439357 | R72: 5.057113166 | S72: 7.41 | U72: 2457118.809 | V72: 8.46 | W72: 26.69758201 | X72: 5.166970293 | Y72: 8.46 | AB72: 2457118.815 | AC72: 8.27 | AD72: 26.17921829 | AE72: 5.116563133 | AF72: 8.27
A73: 2457029.891 | B73: 7.22 | C73: 46.39677107 | D73: 6.811517531 | E73: 7.22 | H73: 2457061.182 | I73: 7.02 | J73: 36.20161414 | K73: 6.016777721 | L73: 7.02 | O73: 2457118.801 | P73: 7.44 | Q73: 26.09279752 | R73: 5.108110954 | S73: 7.44 | U73: 2457118.809 | V73: 8.51 | W73: 27.21598595 | X73: 5.216894282 | Y73: 8.51 | AB73: 2457118.815 | AC73: 8.32 | AD73: 26.69758201 | AE73: 5.166970293 | AF73: 8.32
A74: 2457029.891 | B74: 7.24 | C74: 47.26077765 | D74: 6.874647457 | E74: 7.24 | H74: 2457061.182 | I74: 7.04 | J74: 36.97919995 | K74: 6.081052536 | L74: 7.04 | O74: 2457118.801 | P74: 7.46 | Q74: 26.69762224 | R74: 5.166974186 | S74: 7.46 | U74: 2457118.809 | V74: 8.53 | W74: 27.82081068 | X74: 5.274543646 | Y74: 8.53 | AB74: 2457118.815 | AC74: 8.33 | AD74: 27.30240673 | AE74: 5.225170498 | AF74: 8.33
A75: 2457029.891 | B75: 7.25 | C75: 48.03840369 | D75: 6.930974224 | E75: 7.25 | H75: 2457061.182 | I75: 7.03 | J75: 37.75682598 | K75: 6.144658329 | L75: 7.03 | O75: 2457118.801 | P75: 7.47 | Q75: 27.21602619 | R75: 5.216898138 | S75: 7.47 | U75: 2457118.809 | V75: 8.54 | W75: 28.33917439 | X75: 5.323455118 | Y75: 8.54 | AB75: 2457118.815 | AC75: 8.35 | AD75: 27.82081068 | AE75: 5.274543646 | AF75: 8.35
A76: 2457029.891 | B76: 7.26 | C76: 48.81598949 | D76: 6.98684403 | E76: 7.26 | H76: 2457061.182 | I76: 7.02 | J76: 38.53441179 | K76: 6.207609185 | L76: 7.02 | O76: 2457118.801 | P76: 7.48 | Q76: 27.82081068 | R76: 5.274543646 | S76: 7.48 | U76: 2457118.809 | V76: 8.57 | W76: 28.94399911 | X76: 5.379962743 | Y76: 8.57 | AB76: 2457118.815 | AC76: 8.36 | AD76: 28.42559516 | AE76: 5.33156592 | AF76: 8.36
A77: 2457029.891 | B77: 7.27 | C77: 49.5935753 | D77: 7.042270607 | E77: 7.27 | H77: 2457061.182 | I77: 7.01 | J77: 39.31199759 | K77: 6.269928037 | L77: 7.01 | O77: 2457118.801 | P77: 7.49 | Q77: 28.33921462 | R77: 5.323458897 | S77: 7.49 | U77: 2457118.809 | V77: 8.6 | W77: 29.46240306 | X77: 5.427928063 | Y77: 8.6 | AB77: 2457118.815 | AC77: 8.39 | AD77: 28.94399911 | AE77: 5.379962743 | AF77: 8.39
A78: 2457029.891 | B78: 7.28 | C78: 50.37120134 | D78: 7.097267174 | E78: 7.28 | H78: 2457061.182 | I78: 7.02 | J78: 40.08962363 | K78: 6.331636726 | L78: 7.02 | O78: 2457118.801 | P78: 7.49 | Q78: 28.94399911 | R78: 5.379962743 | S78: 7.49 | U78: 2457118.809 | V78: 8.64 | W78: 30.06718755 | X78: 5.483355501 | Y78: 8.64 | AB78: 2457118.815 | AC78: 8.42 | AD78: 29.5487836 | AE78: 5.435879285 | AF78: 8.42
A79: 2457029.891 | B79: 7.3 | C79: 51.14878714 | D79: 7.151838025 | E79: 7.3 | H79: 2457061.182 | I79: 7.06 | J79: 40.86720943 | K79: 6.392746627 | L79: 7.06 | O79: 2457118.801 | P79: 7.5 | Q79: 29.54882383 | R79: 5.435882986 | S79: 7.5 | U79: 2457118.809 | V79: 8.66 | W79: 30.67197204 | X79: 5.53822824 | Y79: 8.66 | AB79: 2457118.815 | AC79: 8.43 | AD79: 30.15360832 | AE79: 5.491230128 | AF79: 8.43
A80: 2457029.891 | B80: 7.31 | C80: =(A80-$A$14)*24*60*60 -> 51.92637295 | D80: =SQRT(C80) -> 7.205995625 | E80: =B80 -> 7.31 | H80: 2457061.182 | I80: 7.06 | J80: 41.64479524 | K80: 6.453277868 | L80: 7.06 | O80: 2457118.801 | P80: 7.55 | Q80: 30.06722778 | R80: 5.483359169 | S80: 7.55 | U80: 2457118.809 | V80: 8.68 | W80: 31.19037598 | X80: 5.584834463 | Y80: 8.68 | AB80: 2457118.815 | AC80: 8.45 | AD80: 30.67201227 | AE80: 5.538231872 | AF80: 8.45
A81: 2457029.891 | B81: 7.33 | C81: 52.70399898 | D81: 7.259751992 | E81: 7.33 | H81: 2457061.182 | I81: 7.09 | J81: 42.42242128 | K81: 6.513249671 | L81: 7.09 | O81: 2457118.801 | P81: 7.57 | Q81: 30.67201227 | R81: 5.538231872 | S81: 7.57 | U81: 2457118.809 | V81: 8.69 | W81: 31.79520071 | X81: 5.638723322 | Y81: 8.69 | AB81: 2457118.815 | AC81: 8.47 | AD81: 31.27679676 | AE81: 5.592566205 | AF81: 8.47
A82: 2457029.891 | B82: 7.33 | C82: 53.48158479 | D82: 7.313110473 | E82: 7.33 | H82: 2457061.182 | I82: 7.12 | J82: 43.20000708 | K82: 6.572671229 | L82: 7.12 | O82: 2457118.801 | P82: 7.58 | Q82: 31.19041622 | R82: 5.584838065 | S82: 7.58 | U82: 2457118.809 | V82: 8.74 | W82: 32.31360465 | X82: 5.684505665 | Y82: 8.74 | AB82: 2457118.815 | AC82: 8.48 | AD82: 31.79520071 | AE82: 5.638723322 | AF82: 8.48
A83: 2457029.891 | B83: 7.36 | C83: 54.25917059 | D83: 7.366082445 | E83: 7.36 | H83: 2457061.182 | I83: 7.13 | J83: 44.06401366 | K83: 6.638073038 | L83: 7.13 | O83: 2457118.801 | P83: 7.58 | Q83: 31.79520071 | R83: 5.638723322 | S83: 7.58 | U83: 2457118.809 | V83: 8.78 | W83: 32.91838914 | X83: 5.737454936 | Y83: 8.78 | AB83: 2457118.815 | AC83: 8.5 | AD83: 32.39998519 | AE83: 5.692098488 | AF83: 8.5
A84: 2457029.891 | B84: 7.39 | C84: 55.12317717 | D84: 7.424498446 | E84: 7.39 | H84: 2457061.182 | I84: 7.14 | J84: 44.84159946 | K84: 6.696387046 | L84: 7.14 | O84: 2457118.801 | P84: 7.58 | Q84: 32.31360465 | R84: 5.684505665 | S84: 7.58 | U84: 2457118.809 | V84: 8.79 | W84: 33.43679309 | X84: 5.782455628 | Y84: 8.79 | AB84: 2457118.815 | AC84: 8.54 | AD84: 32.91838914 | AE84: 5.737454936 | AF84: 8.54
A85: 2457029.891 | B85: 7.41 | C85: 55.90080321 | D85: 7.476683971 | E85: 7.41 | H85: 2457061.182 | I85: 7.14 | J85: 45.6192255 | K85: 6.754200582 | L85: 7.14 | O85: 2457118.801 | P85: 7.58 | Q85: 32.91842937 | R85: 5.737458442 | S85: 7.58 | U85: 2457118.809 | V85: 8.8 | W85: 34.04157758 | X85: 5.834516053 | Y85: 8.8 | AB85: 2457118.815 | AC85: 8.56 | AD85: 33.52321386 | AE85: 5.789923476 | AF85: 8.56
A86: 2457029.891 | B86: 7.4 | C86: 56.67838901 | D86: 7.528505098 | E86: 7.4 | H86: 2457061.182 | I86: 7.14 | J86: 46.39681131 | K86: 6.811520484 | L86: 7.14 | O86: 2457118.801 | P86: 7.58 | Q86: 33.52321386 | R86: 5.789923476 | S86: 7.58 | U86: 2457118.809 | V86: 8.82 | W86: 34.6464023 | X86: 5.88611946 | Y86: 8.82 | AB86: 2457118.815 | AC86: 8.58 | AD86: 34.12799835 | AE86: 5.841917352 | AF86: 8.58
A87: 2457029.891 | B87: 7.4 | C87: 57.45597482 | D87: 7.579971954 | E87: 7.4 | H87: 2457061.182 | I87: 7.14 | J87: 47.17439711 | K87: 6.86836204 | L87: 7.14 | O87: 2457118.801 | P87: 7.64 | Q87: 34.04161781 | R87: 5.834519501 | S87: 7.64 | U87: 2457118.809 | V87: 8.85 | W87: 35.16480625 | X87: 5.929992095 | Y87: 8.85 | AB87: 2457118.815 | AC87: 8.59 | AD87: 34.6464023 | AE87: 5.88611946 | AF87: 8.59
A88: 2457029.891 | B88: 7.44 | C88: 58.23360085 | D88: 7.631094342 | E88: 7.44 | H88: 2457061.182 | I88: 7.15 | J88: 47.95202315 | K88: 6.924739934 | L88: 7.15 | O88: 2457118.801 | P88: 7.65 | Q88: 34.6464023 | R88: 5.88611946 | S88: 7.65 | U88: 2457118.809 | V88: 8.87 | W88: 35.76959074 | X88: 5.980768407 | Y88: 8.87 | AB88: 2457118.815 | AC88: 8.6 | AD88: 35.25118679 | AE88: 5.937270988 | AF88: 8.6
A89: 2457029.891 | B89: 7.46 | C89: 59.01118666 | D89: 7.681873903 | E89: 7.46 | H89: 2457061.182 | I89: 7.16 | J89: 48.72960895 | K89: 6.980659636 | L89: 7.16 | O89: 2457118.801 | P89: 7.66 | Q89: 35.16480625 | R89: 5.929992095 | S89: 7.66 | U89: 2457118.809 | V89: 8.9 | W89: 36.28799468 | X89: 6.02395175 | Y89: 8.9 | AB89: 2457118.815 | AC89: 8.6 | AD89: 35.76959074 | AE89: 5.980768407 | AF89: 8.6
A90: 2457029.891 | B90: 7.46 | C90: 59.78877246 | D90: 7.732319992 | E90: 7.46 | H90: 2457061.182 | I90: 7.2 | J90: 49.50719476 | K90: 7.03613493 | L90: 7.2 | O90: 2457118.801 | P90: 7.66 | Q90: 35.76959074 | R90: 5.980768407 | S90: 7.66 | U90: 2457118.809 | V90: 8.92 | W90: 36.89277917 | X90: 6.073942638 | Y90: 8.92 | AB90: 2457118.815 | AC90: 8.62 | AD90: 36.37441546 | AE90: 6.031120581 | AF90: 8.62
A91: 2457029.891 | B91: 7.46 | C91: 60.5663985 | D91: 7.78244168 | E91: 7.46 | H91: 2457061.182 | I91: 7.23 | J91: 50.2848208 | K91: =SQRT(J91) -> 7.091179084 | L91: =I91 -> 7.23 | O91: 2457118.801 | P91: 7.67 | Q91: 36.28799468 | R91: 6.02395175 | S91: 7.67 | U91: 2457118.809 | V91: 8.93 | W91: =(U91-$U$25)*24*60*60 -> 37.49760389 | X91: =SQRT(W91) -> 6.123528713 | Y91: =V91 -> 8.93 | AB91: 2457118.815 | AC91: 8.64 | AD91: 36.8928194 | AE91: 6.07394595 | AF91: 8.64
A92: 2457029.891 | B92: 7.46 | C92: 61.34398431 | D92: 7.832240057 | E92: 7.46 | H92: 2457061.182 | I92: 7.24 | J92: =(H92-$H$27)*24*60*60 -> 51.14882737 | K92: 7.151840838 | L92: 7.24 | O92: 2457118.801 | P92: 7.67 | Q92: 36.8928194 | R92: 6.07394595 | S92: 7.67 | U92: 2457118.809 | V92: 8.99 | W92: 38.01600784 | X92: 6.165712274 | Y92: 8.99 | AB92: 2457118.815 | AC92: 8.66 | AD92: =(AB92-$AB$26)*24*60*60 -> 37.49760389 | AE92: =SQRT(AD92) -> 6.123528713 | AF92: =AC92 -> 8.66
A93: 2457029.891 | B93: 7.47 | C93: 62.20799088 | D93: 7.88720425 | E93: 7.47 | H93: 2457061.182 | I93: 7.24 | J93: 51.92641318 | K93: 7.205998416 | L93: 7.24 | O93: 2457118.801 | P93: 7.68 | Q93: =(O93-$O$27)*24*60*60 -> 37.49760389 | R93: =SQRT(Q93) -> 6.123528713 | S93: =P93 -> 7.68 | U93: 2457118.809 | V93: 9.01 | W93: 38.62079233 | X93: 6.214562923 | Y93: 9.01 | AB93: 2457118.815 | AC93: 8.68 | AD93: 38.10238838 | AE93: 6.172713211 | AF93: 8.68
A94: 2457029.891 | B94: 7.49 | C94: 62.98557669 | D94: 7.936345298 | E94: 7.49 | H94: 2457061.182 | I94: 7.24 | J94: 52.70399898 | K94: 7.259751992 | L94: 7.24 | O94: 2457118.801 | P94: 7.69 | Q94: 38.01600784 | R94: 6.165712274 | S94: 7.69 | U94: 2457118.809 | V94: 9.03 | W94: 39.13919628 | X94: 6.256132693 | Y94: 9.03 | AB94: 2457118.815 | AC94: 8.69 | AD94: 38.62079233 | AE94: 6.214562923 | AF94: 8.69
A95: 2457029.891 | B95: 7.52 | C95: 63.76320273 | D95: 7.985186455 | E95: 7.52 | H95: 2457061.182 | I95: 7.24 | J95: 53.48162502 | K95: 7.313113224 | L95: 7.24 | O95: 2457118.801 | P95: 7.7 | Q95: 38.62079233 | R95: 6.214562923 | S95: 7.7 | U95: 2457118.809 | V95: 9.04 | W95: 39.74398077 | X95: 6.304282732 | Y95: 9.04 | AB95: 2457118.815 | AC95: 8.7 | AD95: 39.22561705 | AE95: 6.26303577 | AF95: 8.7
A96: 2457029.891 | B96: 7.54 | C96: 64.54078853 | D96: 8.033728184 | E96: 7.54 | H96: 2457061.182 | I96: 7.3 | J96: 54.25921082 | K96: 7.366085176 | L96: 7.3 | O96: 2457118.801 | P96: 7.71 | Q96: 39.13919628 | R96: 6.256132693 | S96: 7.71 | U96: 2457118.809 | V96: 9.07 | W96: 40.26238471 | X96: 6.345264747 | Y96: 9.07 | AB96: 2457118.815 | AC96: 8.71 | AD96: 39.74398077 | AE96: 6.304282732 | AF96: 8.71
A97: 2457029.891 | B97: 7.55 | C97: 65.31837434 | D97: 8.081978368 | E97: 7.55 | H97: 2457061.182 | I97: 7.31 | J97: 55.03679663 | K97: 7.418678901 | L97: 7.31 | O97: 2457118.801 | P97: 7.71 | Q97: 39.744021 | R97: 6.304285923 | S97: 7.71 | U97: 2457118.809 | V97: 9.08 | W97: 40.86720943 | X97: 6.392746627 | Y97: 9.08 | AB97: 2457118.815 | AC97: 8.75 | AD97: 40.34880549 | AE97: 6.35207096 | AF97: 8.75
A98: 2457029.891 | B98: 7.56 | C98: 66.09600037 | D98: 8.129944672 | E98: 7.56 | H98: 2457061.182 | I98: 7.32 | J98: 55.81442267 | K98: 7.470905077 | L98: 7.32 | O98: 2457118.801 | P98: 7.73 | Q98: 40.26242495 | R98: 6.345267918 | S98: 7.73 | U98: 2457118.809 | V98: 9.1 | W98: 41.47199392 | X98: 6.439875303 | Y98: 9.1 | AB98: 2457118.815 | AC98: 8.76 | AD98: 40.95358998 | AE98: 6.399499197 | AF98: 8.76
A99: 2457029.891 | B99: 7.56 | C99: 66.87358618 | D99: 8.177627173 | E99: 7.56 | H99: 2457061.182 | I99: 7.32 | J99: 56.59200847 | K99: 7.522766012 | L99: 7.32 | O99: 2457118.801 | P99: 7.74 | Q99: 40.86720943 | R99: 6.392746627 | S99: 7.74 | U99: 2457118.809 | V99: 9.11 | W99: 41.99039787 | X99: 6.479999836 | Y99: 9.11 | AB99: 2457118.815 | AC99: 8.77 | AD99: 41.47199392 | AE99: 6.439875303 | AF99: 8.77
A100: 2457029.891 | B100: 7.57 | C100: 67.65117198 | D100: 8.225033251 | E100: 7.57 | H100: 2457061.182 | I100: 7.32 | J100: 57.36959428 | K100: 7.574271864 | L100: 7.32 | O100: 2457118.801 | P100: 7.74 | Q100: 41.47199392 | R100: 6.439875303 | S100: 7.74 | U100: 2457118.809 | V100: 9.13 | W100: 42.59518236 | X100: 6.526498476 | Y100: 9.13 | AB100: 2457118.815 | AC100: 8.78 | AD100: 42.07681865 | AE100: 6.486664678 | AF100: 8.78
A101: 2457029.891 | B101: 7.61 | C101: 68.42879802 | D101: 8.272170091 | E101: 7.61 | H101: 2457061.182 | I101: 7.32 | J101: 58.14722031 | K101: 7.625432467 | L101: 7.32 | O101: 2457118.801 | P101: 7.75 | Q101: 41.99039787 | R101: 6.479999836 | S101: 7.75 | U101: 2457118.809 | V101: 9.15 | W101: 43.11358631 | X101: 6.566093687 | Y101: 9.15 | AB101: 2457118.815 | AC101: 8.79 | AD101: 42.59518236 | AE101: 6.526498476 | AF101: 8.79
A102: 2457029.891 | B102: 7.62 | C102: 69.20638382 | D102: 8.319037434 | E102: 7.62 | H102: 2457061.182 | I102: 7.34 | J102: 59.01122689 | K102: 7.681876522 | L102: 7.34 | O102: 2457118.801 | P102: 7.76 | Q102: 42.59522259 | R102: 6.526501558 | S102: 7.76 | U102: 2457118.809 | V102: 9.16 | W102: 43.71841103 | X102: 6.611989945 | Y102: 9.16 | AB102: 2457118.815 | AC102: 8.8 | AD102: 43.20000708 | AE102: 6.572671229 | AF102: 8.8
A103: 2457029.891 | B103: 7.62 | C103: 70.0703904 | D103: 8.37080584 | E103: 7.62 | H103: 2457061.182 | I103: 7.35 | J103: 59.7888127 | K103: 7.732322594 | L103: 7.35 | O103: 2457118.801 | P103: 7.76 | Q103: 43.11362654 | R103: 6.566096751 | S103: 7.76 | U103: 2457118.809 | V103: 9.18 | W103: 44.23677474 | X103: 6.651073202 | Y103: 9.18 | AB103: 2457118.815 | AC103: 8.83 | AD103: 43.71841103 | AE103: 6.611989945 | AF103: 8.83
A104: 2457029.891 | B104: 7.62 | C104: 70.84797621 | D104: 8.417123987 | E104: 7.62 | H104: 2457061.182 | I104: 7.37 | J104: 60.5663985 | K104: 7.78244168 | L104: 7.37 | O104: 2457118.801 | P104: 7.77 | Q104: 43.71841103 | R104: 6.611989945 | S104: 7.77 | U104: 2457118.809 | V104: 9.22 | W104: 44.84159946 | X104: 6.696387046 | Y104: 9.22 | AB104: 2457118.815 | AC104: 8.84 | AD104: 44.32319552 | AE104: 6.657566787 | AF104: 8.84
A105: 2457029.891 | B105: 7.63 | C105: 71.62560225 | D105: 8.46319102 | E105: 7.63 | H105: 2457061.182 | I105: 7.38 | J105: 61.34402454 | K105: 7.832242625 | L105: 7.38 | O105: 2457118.801 | P105: 7.78 | Q105: 44.23681498 | R105: 6.651076227 | S105: 7.78 | U105: 2457118.809 | V105: 9.23 | W105: 45.44638395 | X105: 6.741393324 | Y105: 9.23 | AB105: 2457118.815 | AC105: 8.85 | AD105: 44.92802024 | AE105: 6.702836731 | AF105: 8.85
A106: 2457029.891 | B106: 7.63 | C106: 72.40318805 | D106: 8.50900629 | E106: 7.63 | H106: 2457061.182 | I106: 7.39 | J106: 62.12161034 | K106: 7.881726356 | L106: 7.39 | O106: 2457118.801 | P106: 7.8 | Q106: 44.84159946 | R106: 6.696387046 | S106: 7.8 | U106: 2457118.809 | V106: 9.25 | W106: 45.9647879 | X106: 6.779733616 | Y106: 9.25 | AB106: 2457118.815 | AC106: 8.86 | AD106: 45.44638395 | AE106: 6.741393324 | AF106: 8.86
A107: 2457029.891 | B107: 7.66 | C107: 73.18077385 | D107: 8.554576194 | E107: 7.66 | H107: 2457061.182 | I107: 7.39 | J107: 62.89919615 | K107: 7.930901345 | L107: 7.39 | O107: 2457118.801 | P107: 7.8 | Q107: 45.44642419 | R107: 6.741396308 | S107: 7.8 | U107: 2457118.809 | V107: 9.27 | W107: 46.56957239 | X107: 6.824190237 | Y107: 9.27 | AB107: 2457118.815 | AC107: 8.87 | AD107: 46.05120867 | AE107: 6.786104087 | AF107: 8.87
A108: 2457029.891 | B108: 7.66 | C108: 73.95839989 | D108: 8.59990697 | E108: 7.66 | H108: 2457061.182 | I108: 7.39 | J108: 63.67682219 | K108: 7.979775823 | L108: 7.39 | O108: 2457118.801 | P108: 7.82 | Q108: 45.96482813 | R108: 6.779736583 | S108: 7.82 | U108: 2457118.809 | V108: 9.29 | W108: 47.08797634 | X108: 6.862067934 | Y108: 9.29 | AB108: 2457118.815 | AC108: 8.88 | AD108: 46.56961262 | AE108: 6.824193185 | AF108: 8.88
A109: 2457029.891 | B109: 7.67 | C109: 74.7359857 | D109: 8.644997727 | E109: 7.67 | H109: 2457061.182 | I109: 7.4 | J109: 64.45440799 | K109: 8.028350266 | L109: 7.4 | O109: 2457118.801 | P109: 7.82 | Q109: 46.56961262 | R109: 6.824193185 | S109: 7.82 | U109: 2457118.809 | V109: 9.32 | W109: 47.69280106 | X109: 6.90599747 | Y109: 9.32 | AB109: 2457118.815 | AC109: 8.89 | AD109: 47.17439711 | AE109: 6.86836204 | AF109: 8.89
A110: 2457029.891 | B110: 7.67 | C110: 75.5135715 | D110: 8.689854516 | E110: 7.67 | H110: 2457061.182 | I110: 7.42 | J110: 65.23199379 | K110: 8.076632578 | L110: 7.42 | O110: 2457118.802 | P110: 7.83 | Q110: 47.08801657 | R110: 6.862070866 | S110: 7.83 | U110: 2457118.809 | V110: 9.34 | W110: 48.21120501 | X110: 6.943428908 | Y110: 9.34 | AB110: 2457118.815 | AC110: 8.91 | AD110: 47.69280106 | AE110: 6.90599747 | AF110: 8.91
A111: 2457029.891 | B111: 7.69 | C111: 76.29119754 | D111: 8.734483244 | E111: 7.69 | H111: 2457061.182 | I111: 7.42 | J111: 66.00961983 | K111: 8.124630443 | L111: 7.42 | O111: 2457118.802 | P111: 7.84 | Q111: 47.69280106 | R111: 6.90599747 | S111: 7.84 | U111: 2457118.809 | V111: 9.35 | W111: 48.81598949 | X111: 6.98684403 | Y111: 9.35 | AB111: 2457118.815 | AC111: 8.92 | AD111: 48.29758555 | AE111: 6.949646433 | AF111: 8.92
A112: 2457029.891 | B112: 7.71 | C112: 77.06878334 | D112: 8.778882807 | E112: 7.71 | H112: 2457061.182 | I112: 7.43 | J112: 66.87362641 | K112: 8.177629633 | L112: 7.43 | O112: 2457118.802 | P112: 7.84 | Q112: 48.29762578 | R112: 6.949649328 | S112: 7.84 | U112: 2457118.809 | V112: 9.35 | W112: 49.42077398 | X112: 7.029991037 | Y112: 9.35 | AB112: 2457118.815 | AC112: 8.96 | AD112: 48.90241027 | AE112: 6.993025831 | AF112: 8.96
A113: 2457029.891 | B113: 7.72 | C113: 77.93278992 | D113: 8.827955025 | E113: 7.72 | H113: 2457061.182 | I113: 7.45 | J113: 67.65121222 | K113: 8.225035697 | L113: 7.45 | O113: 2457118.802 | P113: 7.85 | Q113: 48.81602973 | R113: 6.986846909 | S113: 7.85 | U113: 2457118.809 | V113: 9.36 | W113: 49.93917793 | X113: 7.066765733 | Y113: 9.36 | AB113: 2457118.815 | AC113: 8.97 | AD113: 49.42081422 | AE113: 7.029993899 | AF113: 8.97
A114: 2457029.891 | B114: 7.72 | C114: 78.71037573 | D114: 8.871886819 | E114: 7.72 | H114: 2457061.182 | I114: 7.47 | J114: 68.42879802 | K114: 8.272170091 | L114: 7.47 | O114: 2457118.802 | P114: 7.85 | Q114: 49.42081422 | R114: 7.029993899 | S114: 7.85 | U114: 2457118.809 | V114: 9.37 | W114: 50.54400265 | X114: 7.109430543 | Y114: 9.37 | AB114: 2457118.815 | AC114: 8.98 | AD114: 50.0255987 | AE114: 7.072877682 | AF114: 8.98
A115: 2457029.891 | B115: 7.72 | C115: 79.48800176 | D115: 8.915604397 | E115: 7.72 | H115: 2457061.182 | I115: 7.47 | J115: 69.20642406 | K115: 8.319039852 | L115: 7.47 | O115: 2457118.802 | P115: 7.88 | Q115: 49.93921816 | R115: 7.06676858 | S115: 7.88 | U115: 2457118.809 | V115: 9.39 | W115: 51.0624066 | X115: 7.145796429 | Y115: 9.39 | AB115: 2457118.815 | AC115: 8.99 | AD115: 50.54400265 | AE115: 7.109430543 | AF115: 8.99
A116: 2457029.891 | B116: 7.72 | C116: 80.26558757 | D116: 8.959106405 | E116: 7.72 | H116: 2457061.182 | I116: 7.47 | J116: 69.98400986 | K116: 8.365644617 | L116: 7.47 | O116: 2457118.802 | P116: 7.89 | Q116: 50.54400265 | R116: 7.109430543 | S116: 7.89 | U116: 2457118.809 | V116: 9.44 | W116: 51.66719109 | X116: 7.187989363 | Y116: 9.44 | AB116: 2457118.815 | AC116: 9 | AD116: 51.14878714 | AE116: 7.151838025 | AF116: 9
A117: 2457029.891 | B117: 7.73 | C117: 81.04317337 | D117: 9.002398201 | E117: 7.73 | H117: 2457061.182 | I117: 7.47 | J117: 70.76159567 | K117: 8.411991183 | L117: 7.47 | O117: 2457118.802 | P117: 7.9 | Q117: 51.0624066 | R117: 7.145796429 | S117: 7.9 | U117: 2457118.809 | V117: 9.46 | W117: 52.18559504 | X117: 7.223959789 | Y117: 9.46 | AB117: 2457118.815 | AC117: 9.01 | AD117: 51.66719109 | AE117: 7.187989363 | AF117: 9.01
A118: 2457029.891 | B118: 7.73 | C118: 81.82079941 | D118: 9.045485029 | E118: 7.73 | H118: 2457061.182 | I118: 7.48 | J118: 71.5392217 | K118: 8.458086173 | L118: 7.48 | O118: 2457118.802 | P118: 7.91 | Q118: 51.66719109 | R118: 7.187989363 | S118: 7.91 | U118: 2457118.809 | V118: 9.47 | W118: 52.79037952 | X118: 7.265698832 | Y118: 9.47 | AB118: 2457118.815 | AC118: 9.02 | AD118: 52.27201581 | AE118: 7.229938852 | AF118: 9.02
A119: 2457029.891 | B119: 7.73 | C119: 82.59838521 | D119: 9.088365376 | E119: 7.73 | H119: 2457061.182 | I119: 7.48 | J119: 72.31680751 | K119: 8.503928945 | L119: 7.48 | O119: 2457118.802 | P119: 7.91 | Q119: 52.27201581 | R119: 7.229938852 | S119: 7.91 | U119: 2457118.809 | V119: 9.48 | W119: 53.39520425 | X119: 7.307202217 | Y119: 9.48 | AB119: 2457118.815 | AC119: 9.03 | AD119: 52.8768003 | AE119: 7.271643576 | AF119: 9.03
A120: 2457029.891 | B120: 7.74 | C120: 83.37597102 | D120: 9.131044355 | E120: 7.74 | H120: 2457061.182 | I120: 7.49 | J120: 73.09439331 | K120: 8.549525912 | L120: 7.49 | O120: 2457118.802 | P120: 7.92 | Q120: 52.79041976 | R120: 7.265701601 | S120: 7.92 | U120: 2457118.809 | V120: 9.49 | W120: 53.91360819 | X120: 7.342588658 | Y120: 9.49 | AB120: 2457118.815 | AC120: 9.05 | AD120: 53.39520425 | AE120: 7.307202217 | AF120: 9.05
A121: 2457029.891 | B121: 7.79 | C121: 84.15359706 | D121: 9.173526969 | E121: 7.79 | H121: 2457061.182 | I121: 7.51 | J121: 73.87201935 | K121: 8.594883324 | L121: 7.51 | O121: 2457118.802 | P121: 7.93 | Q121: 53.39520425 | R121: 7.307202217 | S121: 7.93 | U121: 2457118.809 | V121: 9.51 | W121: 54.51839268 | X121: 7.383657135 | Y121: 9.51 | AB121: 2457118.815 | AC121: 9.05 | AD121: 53.99998873 | AE121: 7.348468462 | AF121: 9.05
A122: 2457029.891 | B122: 7.81 | C122: 84.93118286 | D122: 9.215811568 | E122: 7.81 | H122: 2457061.182 | I122: 7.51 | J122: 74.73602593 | K122: 8.645000054 | L122: 7.51 | O122: 2457118.802 | P122: 7.93 | Q122: 53.91360819 | R122: 7.342588658 | S122: 7.93 | U122: 2457118.809 | V122: 9.53 | W122: 55.03679663 | X122: 7.418678901 | Y122: 9.53 | AB122: 2457118.815 | AC122: 9.07 | AD122: 54.51839268 | AE122: 7.383657135 | AF122: 9.07
A123: 2457029.891 | B123: 7.83 | C123: 85.79518944 | D123: 9.262569268 | E123: 7.83 | H123: 2457061.182 | I123: 7.5 | J123: 75.51361173 | K123: =SQRT(J123) -> 8.68985683 | L123: =I123 -> 7.5 | O123: 2457118.802 | P123: 7.93 | Q123: 54.51839268 | R123: 7.383657135 | S123: 7.93 | U123: 2457118.809 | V123: 9.55 | W123: 55.64158112 | X123: 7.459328463 | Y123: 9.55 | AB123: 2457118.815 | AC123: 9.08 | AD123: 55.1232174 | AE123: 7.424501155 | AF123: 9.08
A124: 2457029.891 | B124: 7.84 | C124: 86.57277524 | D124: 9.304449218 | E124: 7.84 | H124: 2457061.182 | I124: 7.5 | J124: =(H124-$H$27)*24*60*60 -> 76.29119754 | K124: 8.734483244 | L124: 7.5 | O124: 2457118.802 | P124: 7.94 | Q124: 55.03679663 | R124: 7.418678901 | S124: 7.94 | U124: 2457118.809 | V124: 9.56 | W124: 56.15998507 | X124: 7.493996602 | Y124: 9.56 | AB124: 2457118.815 | AC124: 9.09 | AD124: 55.64158112 | AE124: 7.459328463 | AF124: 9.09
A125: 2457029.891 | B125: 7.87 | C125: 87.35040128 | D125: 9.346143658 | E125: 7.87 | H125: 2457061.182 | I125: 7.5 | J125: 77.06882358 | K125: 8.778885099 | L125: 7.5 | O125: 2457118.802 | P125: 7.94 | Q125: 55.64162135 | R125: 7.45933116 | S125: 7.94 | U125: 2457118.809 | V125: 9.58 | W125: 56.76480979 | X125: 7.534242483 | Y125: 9.58 | AB125: 2457118.815 | AC125: 9.1 | AD125: 56.24640584 | AE125: 7.499760386 | AF125: 9.1
A126: 2457029.891 | B126: 7.88 | C126: 88.12798709 | D126: 9.387650776 | E126: 7.88 | H126: 2457061.182 | I126: 7.53 | J126: 77.84640938 | K126: 8.823061225 | L126: 7.53 | O126: 2457118.802 | P126: 7.94 | Q126: 56.24640584 | R126: 7.499760386 | S126: 7.94 | U126: 2457118.809 | V126: 9.59 | W126: 57.36959428 | X126: 7.574271864 | Y126: 9.59 | AB126: 2457118.815 | AC126: 9.11 | AD126: 56.85119033 | AE126: 7.539972833 | AF126: 9.11
A127: 2457029.891 | B127: 7.89 | C127: 88.90557289 | D127: 9.428975177 | E127: 7.89 | H127: 2457061.182 | I127: 7.55 | J127: 78.62399518 | K127: 8.867017265 | L127: 7.55 | O127: 2457118.802 | P127: 7.95 | Q127: 56.76480979 | R127: 7.534242483 | S127: 7.95 | U127: 2457118.809 | V127: 9.61 | W127: 57.88799822 | X127: 7.608416276 | Y127: 9.61 | AB127: 2457118.815 | AC127: 9.12 | AD127: 57.36959428 | AE127: 7.574271864 | AF127: 9.12
A128: 2457029.891 | B128: 7.9 | C128: 89.68319893 | D128: 9.470121379 | E128: 7.9 | H128: 2457061.183 | I128: 7.64 | J128: 79.40162122 | K128: 8.910758734 | L128: 7.64 | O128: 2457118.802 | P128: 7.96 | Q128: 57.36959428 | R128: 7.574271864 | S128: 7.96 | U128: 2457118.809 | V128: 9.65 | W128: 58.49278271 | X128: 7.648057447 | Y128: 9.65 | AB128: 2457118.815 | AC128: 9.15 | AD128: 57.974419 | AE128: 7.614093446 | AF128: 9.15
A129: 2457029.891 | B129: 7.9 | C129: 90.46078473 | D129: 9.511087463 | E129: 7.9 | H129: 2457061.183 | I129: 7.63 | J129: 80.17920703 | K129: 8.954284283 | L129: 7.63 | O129: 2457118.802 | P129: 7.96 | Q129: 57.88799822 | R129: 7.608416276 | S129: 7.96 | U129: 2457118.809 | V129: 9.67 | W129: 59.01118666 | X129: 7.681873903 | Y129: 9.67 | AB129: 2457118.815 | AC129: 9.16 | AD129: 58.49278271 | AE129: 7.648057447 | AF129: 9.16
A130: 2457029.891 | B130: 7.9 | C130: 91.23837054 | D130: 9.551877854 | E130: 7.9 | H130: 2457061.183 | I130: 7.61 | J130: 80.95679283 | K130: 8.997599282 | L130: 7.61 | O130: 2457118.802 | P130: 7.97 | Q130: 58.49282295 | R130: 7.648060077 | S130: 7.97 | U130: 2457118.809 | V130: 9.68 | W130: 59.61601138 | X130: 7.721140549 | Y130: 9.68 | AB130: 2457118.815 | AC130: 9.16 | AD130: 59.09760743 | AE130: 7.687496825 | AF130: 9.16
A131: 2457029.891 | B131: 7.9 | C131: 92.01599658 | D131: 9.59249689 | E131: 7.9 | H131: 2457061.183 | I131: 7.61 | J131: 81.73441887 | K131: 9.04070898 | L131: 7.61 | O131: 2457118.802 | P131: 7.97 | Q131: 59.01122689 | R131: 7.681876522 | S131: 7.97 | U131: 2457118.809 | V131: 9.69 | W131: 60.1343751 | X131: 7.754635716 | Y131: 9.69 | AB131: 2457118.815 | AC131: 9.17 | AD131: 59.61601138 | AE131: 7.721140549 | AF131: 9.17
A132: 2457029.891 | B132: 7.91 | C132: 92.88000315 | D132: 9.637427206 | E132: 7.91 | H132: 2457061.183 | I132: 7.61 | J132: 82.59842545 | K132: 9.08836759 | L132: 7.61 | O132: 2457118.802 | P132: 7.98 | Q132: 59.61601138 | R132: 7.721140549 | S132: 7.98 | U132: 2457118.809 | V132: 9.69 | W132: 60.73919982 | X132: 7.793535771 | Y132: 9.69 | AB132: 2457118.815 | AC132: 9.18 | AD132: 60.22079587 | AE132: 7.760205917 | AF132: 9.18
A133: 2457029.891 | B133: 7.91 | C133: 93.65758896 | D133: 9.677685103 | E133: 7.91 | H133: 2457061.183 | I133: 7.61 | J133: 83.37601125 | K133: 9.131046558 | L133: 7.61 | O133: 2457118.802 | P133: 7.98 | Q133: 60.22079587 | R133: 7.760205917 | S133: 7.98 | U133: 2457118.809 | V133: 9.71 | W133: 61.34398431 | X133: 7.832240057 | Y133: 9.71 | AB133: 2457118.815 | AC133: 9.19 | AD133: 60.82558036 | AE133: 7.799075609 | AF133: 9.19
A134: 2457029.891 | B134: 7.92 | C134: 94.43517476 | D134: 9.717776225 | E134: 7.92 | H134: 2457061.183 | I134: 7.61 | J134: 84.15359706 | K134: 9.173526969 | L134: 7.61 | O134: 2457118.802 | P134: 7.99 | Q134: 60.73919982 | R134: 7.793535771 | S134: 7.99 | U134: 2457118.809 | V134: 9.72 | W134: 61.86238825 | X134: 7.865264665 | Y134: 9.72 | AB134: 2457118.815 | AC134: 9.2 | AD134: 61.34398431 | AE134: 7.832240057 | AF134: 9.2
A135: 2457029.891 | B135: 7.93 | C135: 95.2128008 | D135: 9.757704689 | E135: 7.93 | H135: 2457061.183 | I135: 7.61 | J135: 84.93122309 | K135: 9.215813751 | L135: 7.61 | O135: 2457118.802 | P135: 7.99 | Q135: 61.34402454 | R135: 7.832242625 | S135: 7.99 | U135: 2457118.809 | V135: 9.73 | W135: 62.46717274 | X135: 7.9036177 | Y135: 9.73 | AB135: 2457118.815 | AC135: 9.21 | AD135: 61.94880903 | AE135: 7.870756573 | AF135: 9.21
A136: 2457029.891 | B136: 7.93 | C136: 95.99038661 | D136: 9.797468377 | E136: 7.93 | H136: 2457061.183 | I136: 7.64 | J136: 85.7088089 | K136: 9.257905211 | L136: 7.64 | O136: 2457118.802 | P136: 7.99 | Q136: 61.86242849 | R136: 7.865267223 | S136: 7.99 | U136: 2457118.809 | V136: 9.74 | W136: 62.98557669 | X136: 7.936345298 | Y136: 9.74 | AB136: 2457118.815 | AC136: 9.23 | AD136: 62.46721298 | AE136: 7.903620245 | AF136: 9.23
A137: 2457029.891 | B137: 7.93 | C137: 96.76797241 | D137: 9.837071333 | E137: 7.93 | H137: 2457061.183 | I137: 7.65 | J137: 86.4863947 | K137: 9.299806165 | L137: 7.65 | O137: 2457118.802 | P137: 8 | Q137: 62.46721298 | R137: 7.903620245 | S137: 8 | U137: 2457118.809 | V137: 9.75 | W137: 63.59040141 | X137: 7.974358997 | Y137: 9.75 | AB137: 2457118.815 | AC137: 9.25 | AD137: 63.07199746 | AE137: 7.941788052 | AF137: 9.25
A138: 2457029.891 | B138: 7.93 | C138: 97.54559845 | D138: 9.876517526 | E138: 7.93 | H138: 2457061.183 | I138: 7.66 | J138: 87.26402074 | K138: 9.341521329 | L138: 7.66 | O138: 2457118.802 | P138: 8.01 | Q138: 62.98561692 | R138: 7.936347833 | S138: 8.01 | U138: 2457118.809 | V138: 9.76 | W138: 64.1951859 | X138: 8.012189832 | Y138: 9.76 | AB138: 2457118.815 | AC138: 9.26 | AD138: 63.59040141 | AE138: 7.974358997 | AF138: 9.26
A139: 2457029.891 | B139: 7.94 | C139: 98.32318425 | D139: 9.915804771 | E139: 7.94 | H139: 2457061.183 | I139: 7.66 | J139: 88.04160655 | K139: 9.383048894 | L139: 7.66 | O139: 2457118.802 | P139: 8.02 | Q139: 63.59040141 | R139: 7.974358997 | S139: 8.02 | U139: 2457118.81 | V139: 9.77 | W139: 64.80001062 | X139: 8.049845379 | Y139: 9.77 | AB139: 2457118.815 | AC139: 9.26 | AD139: 64.1951859 | AE139: 8.012189832 | AF139: 9.26
A140: 2457029.891 | B140: 7.96 | C140: 99.10077006 | D140: 9.954936969 | E140: 7.96 | H140: 2457061.183 | I140: 7.67 | J140: 88.81919235 | K140: 9.424393474 | L140: 7.67 | O140: 2457118.802 | P140: 8.03 | Q140: 64.19522613 | R140: 8.012192342 | S140: 8.03 | U140: 2457118.81 | V140: 9.78 | W140: 65.31837434 | X140: 8.081978368 | Y140: 9.78 | AB140: 2457118.815 | AC140: 9.26 | AD140: 64.80001062 | AE140: 8.049845379 | AF140: 9.26
A141: 2457029.891 | B141: 7.96 | C141: 99.87839609 | D141: 9.993917955 | E141: 7.96 | H141: 2457061.183 | I141: 7.67 | J141: 89.68319893 | K141: 9.470121379 | L141: 7.67 | O141: 2457118.802 | P141: 8.04 | Q141: 64.71363008 | R141: 8.044478235 | S141: 8.04 | U141: 2457118.81 | V141: 9.79 | W141: 65.92319906 | X141: 8.119310258 | Y141: 9.79 | AB141: 2457118.815 | AC141: 9.27 | AD141: 65.31841457 | AE141: 8.081980857 | AF141: 9.27
A142: 2457029.891 | B142: 7.96 | C142: 100.7424027 | D142: 10.03705149 | E142: 7.96 | H142: 2457061.183 | I142: 7.67 | J142: 90.46082497 | K142: 9.511089578 | L142: 7.67 | O142: 2457118.802 | P142: 8.04 | Q142: 65.31841457 | R142: 8.081980857 | S142: 8.04 | U142: 2457118.81 | V142: 9.79 | W142: 66.441603 | X142: 8.151171879 | Y142: 9.79 | AB142: 2457118.815 | AC142: 9.27 | AD142: 65.92319906 | AE142: 8.119310258 | AF142: 9.27
A143: 2457029.891 | B143: 7.99 | C143: 101.5199885 | D143: 10.0757128 | E143: 7.99 | H143: 2457061.183 | I143: 7.67 | J143: 91.23841077 | K143: 9.55187996 | L143: 7.67 | O143: 2457118.802 | P143: 8.05 | Q143: 65.83681852 | R143: 8.113989063 | S143: 8.05 | U143: 2457118.81 | V143: 9.8 | W143: 67.04638749 | X143: 8.188185849 | Y143: 9.8 | AB143: 2457118.815 | AC143: 9.29 | AD143: 66.441603 | AE143: 8.151171879 | AF143: 9.29
A144: 2457029.891 | B144: 7.99 | C144: =(A144-$A$14)*24*60*60 -> 102.2975743 | D144: =SQRT(C144) -> 10.11422633 | E144: =B144 -> 7.99 | H144: 2457061.183 | I144: 7.66 | J144: 92.01599658 | K144: 9.59249689 | L144: 7.66 | O144: 2457118.802 | P144: 8.05 | Q144: 66.441603 | R144: 8.151171879 | S144: 8.05 | U144: 2457118.81 | V144: 9.84 | W144: 67.56479144 | X144: 8.219780498 | Y144: 9.84 | AB144: 2457118.815 | AC144: 9.3 | AD144: 67.04638749 | AE144: 8.188185849 | AF144: 9.3
A145: 2457029.891 | B145: 7.99 | C145: 103.0752003 | D145: 10.15259574 | E145: 7.99 | H145: 2457061.183 | I145: 7.7 | J145: 92.79362261 | K145: 9.632944649 | L145: 7.7 | O145: 2457118.802 | P145: 8.06 | Q145: 66.96000695 | R145: 8.182909443 | S145: 8.06 | U145: 2457118.81 | V145: 9.85 | W145: 68.16957593 | X145: 8.2564869 | Y145: 9.85 | AB145: 2457118.815 | AC145: 9.33 | AD145: 67.56479144 | AE145: 8.219780498 | AF145: 9.33
A146: 2457029.891 | B146: 8.01 | C146: 103.8527861 | D146: 10.19081872 | E146: 8.01 | H146: 2457061.183 | I146: 7.72 | J146: 93.57120842 | K146: 9.673221202 | L146: 7.72 | O146: 2457118.802 | P146: 8.06 | Q146: 67.56479144 | R146: 8.219780498 | S146: 8.06 | U146: 2457118.81 | V146: 9.85 | W146: 68.77440065 | X146: 8.29303326 | Y146: 9.85 | AB146: 2457118.815 | AC146: 9.34 | AD146: 68.16961616 | AE146: 8.256489336 | AF146: 9.34
A147: 2457029.891 | B147: 8.03 | C147: 104.6303719 | D147: 10.22889886 | E147: 8.03 | H147: 2457061.183 | I147: 7.72 | J147: 94.34879422 | K147: 9.713330748 | L147: 7.72 | O147: 2457118.802 | P147: 8.06 | Q147: 68.16961616 | R147: 8.256489336 | S147: 8.06 | U147: 2457118.81 | V147: 9.85 | W147: 69.2928046 | X147: 8.32422997 | Y147: 9.85 | AB147: 2457118.815 | AC147: 9.34 | AD147: 68.77440065 | AE147: 8.29303326 | AF147: 9.34
A148: 2457029.891 | B148: 8.03 | C148: 105.407998 | D148: 10.26683973 | E148: 8.03 | H148: 2457061.183 | I148: 7.71 | J148: 95.12642026 | K148: 9.753277411 | L148: 7.71 | O148: 2457118.802 | P148: 8.07 | Q148: 68.68802011 | R148: 8.287823605 | S148: 8.07 | U148: 2457118.81 | V148: 9.86 | W148: 69.89758909 | X148: 8.360477803 | Y148: 9.86 | AB148: 2457118.815 | AC148: 9.35 | AD148: 69.2928046 | AE148: 8.32422997 | AF148: 9.35
A149: 2457029.891 | B149: 8.03 | C149: 106.1855838 | D149: 10.30463894 | E149: 8.03 | H149: 2457061.183 | I149: 7.71 | J149: 95.90400606 | K149: 9.793059076 | L149: 7.71 | O149: 2457118.802 | P149: 8.08 | Q149: 69.2928046 | R149: 8.32422997 | S149: 8.08 | U149: 2457118.81 | V149: 9.86 | W149: 70.41599303 | X149: 8.391423779 | Y149: 9.86 | AB149: 2457118.815 | AC149: 9.33 | AD149: 69.89758909 | AE149: 8.360477803 | AF149: 9.33
A150: 2457029.891 | B150: 8.03 | C150: 106.9631696 | D150: 10.34230001 | E150: 8.03 | H150: 2457061.183 | I150: 7.71 | J150: 96.68159187 | K150: 9.832679791 | L150: 7.71 | O150: 2457118.802 | P150: 8.08 | Q150: 69.81120855 | R150: 8.3553102 | S150: 8.08 | U150: 2457118.81 | V150: 9.87 | W150: 71.02077752 | X150: 8.427382602 | Y150: 9.87 | AB150: 2457118.815 | AC150: 9.33 | AD150: 70.41599303 | AE150: 8.391423779 | AF150: 9.33
A151: 2457029.891 | B151: 8.04 | C151: 107.8271762 | D151: 10.38398653 | E151: 8.04 | H151: 2457061.183 | I151: 7.71 | J151: 97.54559845 | K151: 9.876517526 | L151: 7.71 | O151: 2457118.802 | P151: 8.09 | Q151: 70.41599303 | R151: 8.391423779 | S151: 8.09 | U151: 2457118.81 | V151: 9.88 | W151: 71.53918147 | X151: 8.458083794 | Y151: 9.88 | AB151: 2457118.815 | AC151: 9.33 | AD151: 71.02081776 | AE151: 8.427384989 | AF151: 9.33
A152: 2457029.891 | B152: 8.04 | C152: 108.6048022 | D152: 10.42136278 | E152: 8.04 | H152: 2457061.183 | I152: 7.71 | J152: 98.32322448 | K152: 9.915806799 | L152: 7.71 | O152: 2457118.802 | P152: 8.09 | Q152: 70.93439698 | R152: 8.422256051 | S152: 8.09 | U152: 2457118.81 | V152: 9.9 | W152: 72.14400619 | X152: 8.493762782 | Y152: 9.9 | AB152: 2457118.815 | AC152: 9.3 | AD152: 71.53918147 | AE152: 8.458083794 | AF152: 9.3
A153: 2457029.891 | B153: 8.04 | C153: 109.382388 | D153: 10.45860354 | E153: 8.04 | H153: 2457061.183 | I153: 7.76 | J153: 99.10081029 | K153: 9.95493899 | L153: 7.76 | O153: 2457118.802 | P153: 8.09 | Q153: 71.5392217 | R153: 8.458086173 | S153: 8.09 | U153: 2457118.81 | V153: 9.9 | W153: 72.74879068 | X153: 8.529290163 | Y153: 9.9 | AB153: 2457118.815 | AC153: 9.3 | AD153: 72.14400619 | AE153: 8.493762782 | AF153: 9.3
A154: 2457029.891 | B154: 8.04 | C154: 110.1599738 | D154: 10.49571216 | E154: 8.04 | H154: 2457061.183 | I154: 7.79 | J154: 99.87839609 | K154: 9.993917955 | L154: 7.79 | O154: 2457118.802 | P154: 8.1 | Q154: 72.14400619 | R154: 8.493762782 | S154: 8.1 | U154: 2457118.81 | V154: 9.92 | W154: 73.26719463 | X154: 8.559625846 | Y154: 9.92 | AB154: 2457118.815 | AC154: 9.3 | AD154: 72.74879068 | AE154: 8.529290163 | AF154: 9.3
A155: 2457029.891 | B155: 8.04 | C155: 110.9375998 | D155: 10.53269196 | E155: 8.04 | H155: 2457061.183 | I155: 7.79 | J155: 100.6560221 | K155: =SQRT(J155) -> 10.03274749 | L155: =I155 -> 7.79 | O155: 2457118.802 | P155: 8.1 | Q155: 72.66241014 | R155: 8.5242249 | S155: 8.1 | U155: 2457118.81 | V155: 9.93 | W155: =(U155-$U$25)*24*60*60 -> 73.87197912 | X155: =SQRT(W155) -> 8.594880983 | Y155: =V155 -> 9.93 | AB155: 2457118.815 | AC155: 9.37 | AD155: 73.26719463 | AE155: 8.559625846 | AF155: 9.37
A156: 2457029.891 | B156: 8.08 | C156: 111.7151856 | D156: 10.56954047 | E156: 8.08 | H156: 2457061.183 | I156: 7.79 | J156: =(H156-$H$27)*24*60*60 -> 101.4336079 | K156: 10.07142532 | L156: 7.79 | O156: 2457118.802 | P156: 8.11 | Q156: 73.26719463 | R156: 8.559625846 | S156: 8.11 | U156: 2457118.81 | V156: 9.94 | W156: 74.39038306 | X156: 8.624985975 | Y156: 9.94 | AB156: 2457118.815 | AC156: 9.39 | AD156: =(AB156-$AB$26)*24*60*60 -> 73.87201935 | AE156: =SQRT(AD156) -> 8.594883324 | AF156: =AC156 -> 9.39
A157: 2457029.891 | B157: 8.09 | C157: 112.4927714 | D157: 10.60626096 | E157: 8.09 | H157: 2457061.183 | I157: 7.8 | J157: 102.2111937 | K157: 10.10995518 | L157: 7.8 | O157: 2457118.802 | P157: 8.11 | Q157: =(O157-$O$27)*24*60*60 -> 73.78559858 | R157: =SQRT(Q157) -> 8.589854398 | S157: =P157 -> 8.11 | U157: 2457118.81 | V157: 9.94 | W157: 74.99520779 | X157: 8.659977355 | Y157: 9.94 | AB157: 2457118.816 | AC157: 9.4 | AD157: 74.39038306 | AE157: 8.624985975 | AF157: 9.4
A158: 2457029.891 | B158: 8.1 | C158: 113.2703975 | D158: 10.64285664 | E158: 8.1 | H158: 2457061.183 | I158: 7.8 | J158: 102.9888198 | K158: 10.14834074 | L158: 7.8 | O158: 2457118.802 | P158: 8.11 | Q158: 74.3904233 | R158: 8.624988307 | S158: 8.11 | U158: 2457118.81 | V158: 9.95 | W158: 75.51361173 | X158: 8.68985683 | Y158: 9.95 | AB158: 2457118.816 | AC158: 9.41 | AD158: 74.99520779 | AE158: 8.659977355 | AF158: 9.41
A159: 2457029.891 | B159: 8.08 | C159: 114.0479833 | D159: 10.67932504 | E159: 8.08 | H159: 2457061.183 | I159: 7.74 | J159: 103.7664056 | K159: 10.18657968 | L159: 7.74 | O159: 2457118.802 | P159: 8.11 | Q159: 74.90882725 | R159: 8.654988576 | S159: 8.11 | U159: 2457118.81 | V159: 9.96 | W159: 76.11839622 | X159: 8.724585734 | Y159: 9.96 | AB159: 2457118.816 | AC159: 9.41 | AD159: 75.51361173 | AE159: 8.68985683 | AF159: 9.41
A160: 2457029.891 | B160: 8.08 | C160: 114.9119899 | D160: 10.71970102 | E160: 8.08 | H160: 2457061.183 | I160: 7.76 | J160: 104.5439914 | K160: 10.22467561 | L160: 7.76 | O160: 2457118.802 | P160: 8.11 | Q160: 75.51361173 | R160: 8.68985683 | S160: 8.11 | U160: 2457118.81 | V160: 9.97 | W160: 76.72318071 | X160: 8.759176943 | Y160: 9.97 | AB160: 2457118.816 | AC160: 9.42 | AD160: 76.11839622 | AE160: 8.724585734 | AF160: 9.42
A161: 2457029.891 | B161: 8.1 | C161: 115.6895757 | D161: 10.75590887 | E161: 8.1 | H161: 2457061.183 | I161: 7.83 | J161: 105.407998 | K161: 10.26683973 | L161: 7.83 | O161: 2457118.802 | P161: 8.12 | Q161: 76.11839622 | R161: 8.724585734 | S161: 8.12 | U161: 2457118.81 | V161: 9.98 | W161: 77.24158466 | X161: 8.788719171 | Y161: 9.98 | AB161: 2457118.816 | AC161: 9.43 | AD161: 76.72318071 | AE161: 8.759176943 | AF161: 9.43
A162: 2457029.891 | B162: 8.15 | C162: 116.4672017 | D162: 10.79199711 | E162: 8.15 | H162: 2457061.183 | I162: 7.84 | J162: 106.185624 | K162: 10.3046409 | L162: 7.84 | O162: 2457118.802 | P162: 8.13 | Q162: 76.63680017 | R162: 8.754244694 | S162: 8.13 | U162: 2457118.81 | V162: 10.01 | W162: 77.84640938 | X162: 8.823061225 | Y162: 10.01 | AB162: 2457118.816 | AC162: 9.44 | AD162: 77.24158466 | AE162: 8.788719171 | AF162: 9.44
A163: 2457029.891 | B163: 8.16 | C163: 117.2447875 | D163: 10.82796322 | E163: 8.16 | H163: 2457061.183 | I163: 7.83 | J163: 106.9632098 | K163: 10.34230196 | L163: 7.83 | O163: 2457118.802 | P163: 8.13 | Q163: 77.24162489 | R163: 8.788721459 | S163: 8.13 | U163: 2457118.81 | V163: 10.02 | W163: 78.36477309 | X163: 8.852387988 | Y163: 10.02 | AB163: 2457118.816 | AC163: 9.44 | AD163: 77.84640938 | AE163: 8.823061225 | AF163: 9.44
A164: 2457029.891 | B164: 8.16 | C164: 118.0223733 | D164: 10.86381026 | E164: 8.16 | H164: 2457061.183 | I164: 7.82 | J164: 107.7407956 | K164: 10.37982638 | L164: 7.82 | O164: 2457118.802 | P164: 8.13 | Q164: 77.76002884 | R164: 8.818164709 | S164: 8.13 | U164: 2457118.81 | V164: 10.03 | W164: 78.96959782 | X164: 8.886483996 | Y164: 10.03 | AB164: 2457118.816 | AC164: 9.45 | AD164: 78.36481333 | AE164: 8.852390261 | AF164: 9.45
A165: 2457029.891 | B165: 8.16 | C165: 118.7999994 | D165: 10.89954125 | E165: 8.16 | H165: 2457061.183 | I165: 7.79 | J165: 108.5184216 | K165: 10.41721756 | L165: 7.79 | O165: 2457118.802 | P165: 8.13 | Q165: 78.36481333 | R165: 8.852390261 | S165: 8.13 | U165: 2457118.81 | V165: 10.03 | W165: 79.48800176 | X165: 8.915604397 | Y165: 10.03 | AB165: 2457118.816 | AC165: 9.45 | AD165: 78.96959782 | AE165: 8.886483996 | AF165: 9.45
A166: 2457029.891 | B166: 8.16 | C166: 119.5775852 | D166: 10.93515364 | E166: 8.16 | H166: 2457061.183 | I166: 7.79 | J166: 109.2960075 | K166: 10.45447308 | L166: 7.79 | O166: 2457118.802 | P166: 8.15 | Q166: 78.96959782 | R166: 8.886483996 | S166: 8.15 | U166: 2457118.81 | V166: 10.04 | W166: 80.09278625 | X166: 8.949457316 | Y166: 10.04 | AB166: 2457118.816 | AC166: 9.46 | AD166: 79.57438231 | AE166: 8.920447427 | AF166: 9.46
A167: 2457029.891 | B167: 8.16 | C167: 120.355171 | D167: 10.97065043 | E167: 8.16 | H167: 2457061.183 | I167: 7.79 | J167: 110.0735933 | K167: 10.49159632 | L167: 7.79 | O167: 2457118.802 | P167: 8.15 | Q167: 79.48800176 | R167: 8.915604397 | S167: 8.15 | U167: 2457118.81 | V167: 10.05 | W167: 80.69761097 | X167: 8.983184901 | Y167: 10.05 | AB167: 2457118.816 | AC167: 9.47 | AD167: 80.09278625 | AE167: 8.949457316 | AF167: 9.47
A168: 2457029.891 | B168: 8.17 | C168: 121.132797 | D168: 11.00603457 | E168: 8.17 | H168: 2457061.183 | I168: 7.8 | J168: 110.8512193 | K168: 10.52859057 | L168: 7.8 | O168: 2457118.802 | P168: 8.15 | Q168: 80.09282649 | R168: 8.949459564 | S168: 8.15 | U168: 2457118.81 | V168: 10.06 | W168: 81.21597469 | X168: 9.011990606 | Y168: 10.06 | AB168: 2457118.816 | AC168: 9.48 | AD168: 80.69761097 | AE168: 8.983184901 | AF168: 9.48
A169: 2457029.891 | B169: 8.17 | C169: 121.9968036 | D169: 11.04521632 | E169: 8.17 | H169: 2457061.183 | I169: 7.84 | J169: 111.6288051 | K169: 10.56545338 | L169: 7.84 | O169: 2457118.802 | P169: 8.16 | Q169: 80.6111902 | R169: 8.978373472 | S169: 8.16 | U169: 2457118.81 | V169: 10.07 | W169: 81.82079941 | X169: 9.045485029 | Y169: 10.07 | AB169: 2457118.816 | AC169: 9.49 | AD169: 81.21601492 | AE169: 9.011992839 | AF169: 9.49
A170: 2457029.891 | B170: 8.17 | C170: 122.7743894 | D170: 11.08036053 | E170: 8.17 | H170: 2457061.183 | I170: 7.83 | J170: 112.4063909 | K170: 10.60218802 | L170: 7.83 | O170: 2457118.802 | P170: 8.16 | Q170: 81.21601492 | R170: 9.011992839 | S170: 8.16 | U170: 2457118.81 | V170: 10.07 | W170: 82.33920336 | X170: 9.074095181 | Y170: 10.07 | AB170: 2457118.816 | AC170: 9.49 | AD170: 81.82079941 | AE170: 9.045485029 | AF170: 9.49
A171: 2457029.891 | B171: 8.19 | C171: 123.5519752 | D171: 11.11539361 | E171: 8.19 | H171: 2457061.183 | I171: 7.83 | J171: 113.2703975 | K171: 10.64285664 | L171: 7.83 | O171: 2457118.802 | P171: 8.16 | Q171: 81.73441887 | R171: 9.04070898 | S171: 8.16 | U171: 2457118.81 | V171: 10.08 | W171: 82.94398785 | X171: 9.107358994 | Y171: 10.08 | AB171: 2457118.816 | AC171: 9.51 | AD171: 82.33920336 | AE171: 9.074095181 | AF171: 9.51
A172: 2457029.891 | B172: 8.19 | C172: 124.3296012 | D172: 11.15031844 | E172: 8.19 | H172: 2457061.183 | I172: 7.83 | J172: 114.0480235 | K172: 10.67932692 | L172: 7.83 | O172: 2457118.802 | P172: 8.16 | Q172: 82.33920336 | R172: 9.074095181 | S172: 8.16 | U172: 2457118.81 | V172: 10.08 | W172: 83.46239179 | X172: 9.13577538 | Y172: 10.08 | AB172: 2457118.816 | AC172: 9.52 | AD172: 82.94398785 | AE172: 9.107358994 | AF172: 9.52
A173: 2457029.891 | B173: 8.19 | C173: 125.107187 | D173: 11.18513241 | E173: 8.19 | H173: 2457061.183 | I173: 7.83 | J173: 114.8256093 | K173: 10.7156712 | L173: 7.83 | O173: 2457118.802 | P173: 8.17 | Q173: 82.94402808 | R173: 9.107361203 | S173: 8.17 | U173: 2457118.81 | V173: 10.09 | W173: 84.06717628 | X173: 9.168815424 | Y173: 10.09 | AB173: 2457118.816 | AC173: 9.52 | AD173: 83.54881257 | AE173: 9.140503956 | AF173: 9.52
A174: 2457029.891 | B174: 8.2 | C174: 125.8847728 | D174: 11.21983836 | E174: 8.2 | H174: 2457061.183 | I174: 7.83 | J174: 115.6031951 | K174: 10.75189263 | L174: 7.83 | O174: 2457118.802 | P174: 8.17 | Q174: 83.46239179 | R174: 9.13577538 | S174: 8.17 | U174: 2457118.81 | V174: 10.1 | W174: 84.672001 | X174: 9.201739021 | Y174: 10.1 | AB174: 2457118.816 | AC174: 9.52 | AD174: 84.06721652 | AE174: 9.168817618 | AF174: 9.52
A175: 2457029.892 | B175: 8.21 | C175: 126.6623989 | D175: 11.25443907 | E175: 8.21 | H175: 2457061.183 | I175: 7.83 | J175: 116.3808212 | K175: 10.78799431 | L175: 7.83 | O175: 2457118.802 | P175: 8.18 | Q175: 84.06721652 | R175: 9.168817618 | S175: 8.18 | U175: 2457118.81 | V175: 10.11 | W175: 85.19040495 | X175: 9.229864839 | Y175: 10.11 | AB175: 2457118.816 | AC175: 9.52 | AD175: 84.672001 | AE175: 9.201739021 | AF175: 9.52
A176: 2457029.892 | B176: 8.21 | C176: 127.4399847 | D176: 11.28893195 | E176: 8.21 | H176: 2457061.183 | I176: 7.83 | J176: 117.158407 | K176: 10.82397371 | L176: 7.83 | O176: 2457118.802 | P176: 8.18 | Q176: 84.58562046 | R176: 9.197044116 | S176: 8.18 | U176: 2457118.81 | V176: 10.11 | W176: 85.79518944 | X176: 9.262569268 | Y176: 10.11 | AB176: 2457118.816 | AC176: 9.53 | AD176: 85.19040495 | AE176: 9.229864839 | AF176: 9.53
A177: 2457029.892 | B177: 8.21 | C177: 128.2175705 | D177: 11.32331976 | E177: 8.21 | H177: 2457061.183 | I177: 7.86 | J177: 117.9359928 | K177: 10.85983392 | L177: 7.86 | O177: 2457118.802 | P177: 8.19 | Q177: 85.19040495 | R177: 9.229864839 | S177: 8.19 | U177: 2457118.81 | V177: 10.12 | W177: 86.31359339 | X177: 9.290510933 | Y177: 10.12 | AB177: 2457118.816 | AC177: 9.53 | AD177: 85.79518944 | AE177: 9.262569268 | AF177: 9.53
A178: 2457029.892 | B178: 8.21 | C178: 129.0815771 | D178: 11.36140735 | E178: 8.21 | H178: 2457061.183 | I178: 7.86 | J178: 118.7136188 | K178: 10.89557795 | L178: 7.86 | O178: 2457118.802 | P178: 8.2 | Q178: 85.7088089 | R178: 9.257905211 | S178: 8.2 | U178: 2457118.81 | V178: 10.13 | W178: 86.91837788 | X178: 9.323002621 | Y178: 10.13 | AB178: 2457118.816 | AC178: 9.54 | AD178: 86.31359339 | AE178: 9.290510933 | AF178: 9.54
A179: 2457029.892 | B179: 8.23 | C179: 129.8592031 | D179: 11.39557823 | E179: 8.23 | H179: 2457061.183 | I179: 7.86 | J179: 119.4912046 | K179: 10.93120326 | L179: 7.86 | O179: 2457118.802 | P179: 8.21 | Q179: 86.31359339 | R179: 9.290510933 | S179: 8.21 | U179: 2457118.81 | V179: 10.13 | W179: 87.5232026 | X179: 9.355383616 | Y179: 10.13 | AB179: 2457118.816 | AC179: 9.54 | AD179: 86.91841811 | AE179: 9.323004779 | AF179: 9.54
A180: 2457029.892 | B180: 8.24 | C180: 130.6367889 | D180: 11.42964518 | E180: 8.24 | H180: 2457061.183 | I180: 7.86 | J180: 120.2687904 | K180: 10.96671284 | L180: 7.86 | O180: 2457118.802 | P180: 8.21 | Q180: 86.91841811 | R180: 9.323004779 | S180: 8.21 | U180: 2457118.81 | V180: 10.15 | W180: 88.04160655 | X180: 9.383048894 | Y180: 10.15 | AB180: 2457118.816 | AC180: 9.55 | AD180: 87.5232026 | AE180: 9.355383616 | AF180: 9.55
A181: 2457029.892 | B181: 8.24 | C181: 131.4143747 | D181: 11.46361089 | E181: 8.24 | H181: 2457061.183 | I181: 7.87 | J181: 121.132797 | K181: 11.00603457 | L181: 7.87 | O181: 2457118.802 | P181: 8.21 | Q181: 87.43682206 | R181: 9.350765854 | S181: 8.21 | U181: 2457118.81 | V181: 10.16 | W181: 88.64639103 | X181: 9.415221242 | Y181: 10.16 | AB181: 2457118.816 | AC181: 9.56 | AD181: 88.04160655 | AE181: 9.383048894 | AF181: 9.56
A182: 2457029.892 | B182: 8.22 | C182: 132.1920007 | D182: 11.49747802 | E182: 8.22 | H182: 2457061.183 | I182: 7.87 | J182: 121.910423 | K182: 11.04130531 | L182: 7.87 | O182: 2457118.802 | P182: 8.21 | Q182: 88.04160655 | R182: 9.383048894 | S182: 8.21 | U182: 2457118.81 | V182: 10.17 | W182: 89.16479498 | X182: 9.442711209 | Y182: 10.17 | AB182: 2457118.816 | AC182: 9.56 | AD182: 88.64639103 | AE182: 9.415221242 | AF182: 9.56
A183: 2457029.892 | B183: 8.23 | C183: 132.9695866 | D183: 11.53124393 | E183: 8.23 | H183: 2457061.183 | I183: 7.87 | J183: 122.6880088 | K183: 11.07646193 | L183: 7.87 | O183: 2457118.802 | P183: 8.22 | Q183: 88.56001049 | R183: 9.410632842 | S183: 8.22 | U183: 2457118.81 | V183: 10.19 | W183: 89.76957947 | X183: 9.474680969 | Y183: 10.19 | AB183: 2457118.816 | AC183: 9.58 | AD183: 89.16479498 | AE183: 9.442711209 | AF183: 9.58
A184: 2457029.892 | B184: 8.24 | C184: 133.7471724 | D184: 11.56491126 | E184: 8.24 | H184: 2457061.183 | I184: 7.87 | J184: 123.4655946 | K184: 11.11150731 | L184: 7.87 | O184: 2457118.802 | P184: 8.22 | Q184: 89.16479498 | R184: 9.442711209 | S184: 8.22 | U184: 2457118.81 | V184: 10.19 | W184: 90.28798342 | X184: 9.501998917 | Y184: 10.19 | AB184: 2457118.816 | AC184: 9.58 | AD184: 89.7696197 | AE184: 9.474683092 | AF184: 9.58
A185: 2457029.892 | B185: 8.24 | C185: 134.5247984 | D185: 11.59848259 | E185: 8.24 | H185: 2457061.183 | I185: 7.87 | J185: 124.2432207 | K185: 11.14644431 | L185: 7.87 | O185: 2457118.802 | P185: 8.24 | Q185: 89.68319893 | R185: 9.470121379 | S185: 8.24 | U185: 2457118.81 | V185: 10.2 | W185: 90.89280814 | X185: 9.533771979 | Y185: 10.2 | AB185: 2457118.816 | AC185: 9.6 | AD185: 90.28798342 | AE185: 9.501998917 | AF185: 9.6
A186: 2457029.892 | B186: 8.26 | C186: 135.3023842 | D186: 11.6319553 | E186: 8.26 | H186: 2457061.183 | I186: 7.87 | J186: 125.0208065 | K186: 11.18127034 | L186: 7.87 | O186: 2457118.802 | P186: 8.24 | Q186: 90.28802365 | R186: 9.502001034 | S186: 8.24 | U186: 2457118.81 | V186: 10.2 | W186: 91.49759263 | X186: 9.565437399 | Y186: 10.2 | AB186: 2457118.816 | AC186: 9.6 | AD186: 90.89280814 | AE186: 9.533771979 | AF186: 9.6
A187: 2457029.892 | B187: 8.26 | C187: 136.1663908 | D187: 11.66903555 | E187: 8.26 | H187: 2457061.183 | I187: 7.88 | J187: 125.7983923 | K187: =SQRT(J187) -> 11.21598824 | L187: =I187 -> 7.88 | O187: 2457118.802 | P187: 8.24 | Q187: 90.89280814 | R187: 9.533771979 | S187: 8.24 | U187: 2457118.81 | V187: 10.21 | W187: 92.01599658 | X187: 9.59249689 | Y187: 10.21 | AB187: 2457118.816 | AC187: 9.61 | AD187: 91.49759263 | AE187: 9.565437399 | AF187: 9.61
A188: 2457029.892 | B188: 8.26 | C188: 136.9439766 | D188: 11.70230646 | E188: 8.26 | H188: 2457061.183 | I188: 7.9 | J188: =(H188-$H$27)*24*60*60 -> 126.5760183 | K188: 11.2506008 | L188: 7.9 | O188: 2457118.802 | P188: 8.25 | Q188: 91.41121209 | R188: 9.56092109 | S188: 8.25 | U188: 2457118.81 | V188: 10.21 | W188: 92.62078106 | X188: 9.623969091 | Y188: 10.21 | AB188: 2457118.816 | AC188: 9.61 | AD188: 92.01599658 | AE188: 9.59249689 | AF188: 9.61
A189: 2457029.892 | B189: 8.27 | C189: 137.7216026 | D189: 11.73548476 | E189: 8.27 | H189: 2457061.183 | I189: 7.91 | J189: 127.3536041 | K189: 11.28510541 | L189: 7.91 | O189: 2457118.802 | P189: 8.25 | Q189: 92.01599658 | R189: 9.59249689 | S189: 8.25 | U189: 2457118.81 | V189: 10.22 | W189: 93.13918501 | X189: 9.65086447 | Y189: 10.22 | AB189: 2457118.816 | AC189: 9.61 | AD189: 92.62078106 | AE189: 9.623969091 | AF189: 9.61
A190: 2457029.892 | B190: 8.28 | C190: 138.4991884 | D190: 11.76856782 | E190: 8.28 | H190: 2457061.183 | I190: 7.92 | J190: 128.2176107 | K190: 11.32332154 | L190: 7.92 | O190: 2457118.802 | P190: 8.25 | Q190: 92.53440052 | R190: 9.619480263 | S190: 8.25 | U190: 2457118.81 | V190: 10.25 | W190: 93.74400973 | X190: 9.682149025 | Y190: 10.25 | AB190: 2457118.816 | AC190: 9.61 | AD190: 93.13918501 | AE190: 9.65086447 | AF190: 9.61
A191: 2457029.892 | B191: 8.28 | C191: 139.2767742 | D191: 11.80155813 | E191: 8.28 | H191: 2457061.183 | I191: 7.92 | J191: 128.9951965 | K191: 11.35760523 | L191: 7.92 | O191: 2457118.802 | P191: 8.25 | Q191: 93.13922524 | R191: 9.650866554 | S191: 8.25 | U191: 2457118.81 | V191: 10.25 | W191: 94.26237345 | X191: 9.708881164 | Y191: 10.25 | AB191: 2457118.816 | AC191: 9.61 | AD191: 93.74400973 | AE191: 9.682149025 | AF191: 9.61
A192: 2457029.892 | B192: 8.29 | C192: 140.0544003 | D192: 11.83445817 | E192: 8.29 | H192: 2457061.183 | I192: 7.92 | J192: 129.7728226 | K192: 11.3917875 | L192: 7.92 | O192: 2457118.802 | P192: 8.25 | Q192: 93.65762919 | R192: 9.677687182 | S192: 8.25 | U192: 2457118.81 | V192: 10.25 | W192: 94.86719817 | X192: 9.739979372 | Y192: 10.25 | AB192: 2457118.816 | AC192: 9.62 | AD192: 94.26241368 | AE192: 9.708883235 | AF192: 9.62
A193: 2457029.892 | B193: 8.3 | C193: 140.8319861 | D193: 11.86726532 | E193: 8.3 | H193: 2457061.183 | I193: 7.91 | J193: 130.5504084 | K193: 11.42586576 | L193: 7.91 | O193: 2457118.802 | P193: 8.26 | Q193: 94.26241368 | R193: 9.708883235 | S193: 8.26 | U193: 2457118.81 | V193: 10.25 | W193: 95.47198266 | X193: 9.770976546 | Y193: 10.25 | AB193: 2457118.816 | AC193: 9.62 | AD193: 94.86719817 | AE193: 9.739979372 | AF193: 9.62
A194: 2457029.892 | B194: 8.31 | C194: 141.6095719 | D194: 11.89998201 | E194: 8.31 | H194: 2457061.183 | I194: 7.9 | J194: 131.3279942 | K194: 11.45984268 | L194: 7.9 | O194: 2457118.802 | P194: 8.26 | Q194: 94.86719817 | R194: 9.739979372 | S194: 8.26 | U194: 2457118.81 | V194: 10.26 | W194: 95.99038661 | X194: 9.797468377 | Y194: 10.26 | AB194: 2457118.816 | AC194: 9.63 | AD194: 95.47198266 | AE194: 9.770976546 | AF194: 9.63
A195: 2457029.892 | B195: 8.32 | C195: 142.3871979 | D195: 11.93261069 | E195: 8.32 | H195: 2457061.183 | I195: 7.9 | J195: 132.1056202 | K195: 11.4937209 | L195: 7.9 | O195: 2457118.802 | P195: 8.27 | Q195: 95.38560212 | R195: 9.766555284 | S195: 8.27 | U195: 2457118.81 | V195: 10.26 | W195: 96.59521133 | X195: 9.828286286 | Y195: 10.26 | AB195: 2457118.816 | AC195: 9.64 | AD195: 95.99038661 | AE195: 9.797468377 | AF195: 9.64
A196: 2457029.892 | B196: 8.33 | C196: 143.2512045 | D196: 11.96875952 | E196: 8.33 | H196: 2457061.183 | I196: 7.9 | J196: 132.883206 | K196: 11.52749782 | L196: 7.9 | O196: 2457118.802 | P196: 8.27 | Q196: 95.99042684 | R196: 9.797470431 | S196: 8.27 | U196: 2457118.81 | V196: 10.26 | W196: 97.11357504 | X196: 9.854622014 | Y196: 10.26 | AB196: 2457118.816 | AC196: 9.65 | AD196: 96.50879055 | AE196: 9.823888769 | AF196: 9.65
A197: 2457029.892 | B197: 8.33 | C197: 144.0287903 | D197: 12.00119954 | E197: 8.33 | H197: 2457061.183 | I197: 7.9 | J197: 133.6607918 | K197: 11.56117606 | L197: 7.9 | O197: 2457118.802 | P197: 8.28 | Q197: 96.50879055 | R197: 9.823888769 | S197: 8.28 | U197: 2457118.81 | V197: 10.26 | W197: 97.71839976 | X197: 9.885261745 | Y197: 10.26 | AB197: 2457118.816 | AC197: 9.65 | AD197: 97.11361527 | AE197: 9.854624055 | AF197: 9.65
A198: 2457029.892 | B198: 8.33 | C198: 144.8063761 | D198: 12.0335521 | E198: 8.33 | H198: 2457061.183 | I198: 7.91 | J198: 134.4384179 | K198: 11.59475821 | L198: 7.91 | O198: 2457118.802 | P198: 8.29 | Q198: 97.11361527 | R198: 9.854624055 | S198: 8.29 | U198: 2457118.81 | V198: 10.27 | W198: 98.23680371 | X198: 9.911448114 | Y198: 10.27 | AB198: 2457118.816 | AC198: 9.65 | AD198: 97.63201922 | AE198: 9.880891621 | AF198: 9.65
A199: 2457029.892 | B199: 8.34 | C199: 145.5840021 | D199: 12.06581958 | E199: 8.34 | H199: 2457061.183 | I199: 7.94 | J199: 135.2160037 | K199: 11.62824164 | L199: 7.94 | O199: 2457118.802 | P199: 8.3 | Q199: 97.63201922 | R199: 9.880891621 | S199: 8.3 | U199: 2457118.81 | V199: 10.28 | W199: 98.8415882 | X199: 9.941910692 | Y199: 10.28 | AB199: 2457118.816 | AC199: 9.66 | AD199: 98.23680371 | AE199: 9.911448114 | AF199: 9.66
A200: 2457029.892 | B200: 8.36 | C200: 146.3615879 | D200: 12.09799934 | E200: 8.36 | H200: 2457061.183 | I200: 7.94 | J200: 135.9935895 | K200: 11.66162894 | L200: 7.94 | O200: 2457118.802 | P200: 8.3 | Q200: 98.23680371 | R200: 9.911448114 | S200: 8.3 | U200: 2457118.81 | V200: 10.29 | W200: 99.44637269 | X200: 9.972280215 | Y200: 10.29 | AB200: 2457118.816 | AC200: 9.67 | AD200: 98.8415882 | AE200: 9.941910692 | AF200: 9.67
A201: 2457029.892 | B201: 8.37 | C201: 147.1391737 | D201: 12.13009372 | E201: 8.37 | H201: 2457061.183 | I201: 7.94 | J201: 136.857596 | K201: 11.69861513 | L201: 7.94 | O201: 2457118.802 | P201: 8.3 | Q201: 98.84162843 | R201: 9.941912715 | S201: 8.3 | U201: 2457118.81 | V201: 10.29 | W201: 99.96477664 | X201: 9.998238677 | Y201: 10.29 | AB201: 2457118.816 | AC201: 9.67 | AD201: 99.35999215 | AE201: 9.967948242 | AF201: 9.67
... 409 more rows

Sheet 20-30 0% 10 cm
A1: Run | B1: Early time | C1: Late time
A2: 1 | B2: 2.7 | C2: 0.32
A3: 2 | B3: 2.34 | C3: 0.23
A4: 3 | B4: 2.63 | C4: 0.18
A5: 4 | B5: 2.7 | C5: 0.31
A6: 5 | B6: 2.09 | C6: 0.15
A7: Run 1 | H7: Run 2 | O7: Run 3 | U7: Run 4 | AA7: Run 5
A8: Time | B8: Mass | C8: Time (corr) | D8: SQRT time | E8: Mass | H8: Time | I8: Mass | J8: Time (corr) | K8: SQRT time | L8: Mass | O8: Time | P8: Mass | Q8: Time (corr) | R8: SQRT time | S8: Mass | AA8: Time | AB8: Mass | AC8: Time (corr) | AD8: SQRT time | AE8: Mass
A9: 2456936.895 | B9: 0 | H9: 2456936.903 | I9: 0 | O9: 2456936.912 | P9: 0 | U9: Time | V9: Mass | W9: Time (corr) | X9: SQRT time | Y9: Mass | AA9: 2456936.931 | AB9: -0.06
A10: 2456936.895 | B10: 0 | H10: 2456936.903 | I10: 0 | O10: 2456936.912 | P10: 0 | U10: 2456936.923 | V10: 137.19 | AA10: 2456936.931 | AB10: -0.07
A11: 2456936.895 | B11: 0 | H11: 2456936.903 | I11: 0 | O11: 2456936.912 | P11: -0.01 | U11: 2456936.923 | V11: 137.19 | W11: =0 -> 0 | X11: =SQRT(W11) -> 0 | Y11: =V11 -> 137.19 | AA11: 2456936.931 | AB11: -0.14
A12: 2456936.895 | B12: 0 | H12: 2456936.903 | I12: 0 | O12: 2456936.912 | P12: -0.04 | U12: 2456936.923 | V12: 137.19 | W12: =(U12-$U$11)*24*60*60 -> 0.5184039474 | X12: =SQRT(W12) -> 0.7200027412 | Y12: =V12 -> 137.19 | AA12: 2456936.931 | AB12: -0.11
A13: 2456936.895 | B13: -0.05 | H13: 2456936.903 | I13: 0 | O13: 2456936.912 | P13: -0.06 | U13: 2456936.923 | V13: 137.1 | W13: =(U13-$U$11)*24*60*60 -> 1.036807895 | X13: =SQRT(W13) -> 1.018237642 | Y13: =V13 -> 137.1 | AA13: 2456936.931 | AB13: -0.12
A14: 2456936.895 | B14: -0.28 | H14: 2456936.903 | I14: -0.04 | O14: 2456936.912 | P14: -0.1 | U14: 2456936.923 | V14: 137 | W14: 1.555211842 | X14: 1.247081329 | Y14: 137 | AA14: 2456936.931 | AB14: -0.13
A15: 2456936.895 | B15: -0.26 | H15: 2456936.903 | I15: -0.3 | O15: 2456936.912 | P15: -0.62 | U15: 2456936.923 | V15: 136.3 | W15: 0 | X15: 0 | Y15: 136.3 | Z15: =Y15-136.3 -> 0 | AA15: 2456936.931 | AB15: -0.12
A16: 2456936.895 | B16: -0.28 | C16: =0 -> 0 | D16: =SQRT(C16) -> 0 | E16: =B16 -> -0.28 | H16: 2456936.903 | I16: -0.09 | J16: =0 -> 0 | K16: =SQRT(J16) -> 0 | L16: =I16 -> -0.09 | O16: 2456936.912 | P16: -0.62 | Q16: =0 -> 0 | U16: 2456936.923 | V16: 136.85 | W16: =(U16-$U$15)*24*60*60 -> 0.5184039474 | X16: 0.7200027412 | Y16: 136.85 | Z16: =Y16-136.3 -> 0.55 | AA16: 2456936.931 | AB16: -0.4
A17: 2456936.895 | B17: -0.18 | C17: =(A17-$A$16)*24*60*60 -> 0.6047844887 | D17: =SQRT(C17) -> 0.777678911 | E17: =B17 -> -0.18 | H17: 2456936.903 | I17: 0.76 | J17: =(H17-$H$16)*24*60*60 -> 0.6047844887 | K17: =SQRT(J17) -> 0.777678911 | L17: =I17 -> 0.76 | O17: 2456936.912 | P17: -0.27 | Q17: =(O17-$O$16)*24*60*60 -> 0.5184039474 | U17: 2456936.923 | V17: 137.18 | W17: =(U17-$U$15)*24*60*60 -> 1.036807895 | X17: 1.018237642 | Y17: 137.18 | Z17: 0.88 | AA17: 2456936.931 | AB17: -0.34
A18: 2456936.895 | B18: 0.24 | C18: =(A18-$A$16)*24*60*60 -> 1.123188436 | D18: =SQRT(C18) -> 1.059805848 | E18: =B18 -> 0.24 | H18: 2456936.903 | I18: 2.04 | J18: =(H18-$H$16)*24*60*60 -> 1.20960921 | K18: =SQRT(J18) -> 1.099822354 | L18: =I18 -> 2.04 | O18: 2456936.912 | P18: 0 | Q18: =(O18-$O$16)*24*60*60 -> 1.036807895 | U18: 2456936.923 | V18: 137.67 | W18: 1.555211842 | X18: 1.247081329 | Y18: 137.67 | Z18: 1.37 | AA18: 2456936.931 | AB18: -0.25
A19: 2456936.895 | B19: 0.46 | C19: 1.727972925 | D19: 1.31452384 | E19: 0.46 | H19: 2456936.903 | I19: 2.9 | J19: 1.728013158 | K19: 1.314539143 | L19: 2.9 | O19: 2456936.912 | P19: -0.11 | Q19: 1.555211842 | U19: 2456936.923 | V19: 139.79 | W19: 2.073615789 | X19: 1.440005482 | Y19: 139.79 | Z19: 3.49 | AA19: 2456936.931 | AB19: -0.19
A20: 2456936.895 | B20: 2.24 | C20: 2.246376872 | D20: 1.498791804 | E20: 2.24 | H20: 2456936.903 | I20: 3.27 | J20: 2.332797647 | K20: 1.527349877 | L20: 3.27 | O20: 2456936.912 | P20: -0.11 | Q20: 2.159996331 | U20: 2456936.923 | V20: 140.17 | W20: 2.592019737 | X20: 1.609975073 | Y20: 140.17 | Z20: 3.87 | AA20: 2456936.931 | AB20: -0.09
A21: 2456936.895 | B21: 2.73 | C21: 2.851201594 | D21: 1.688550146 | E21: 2.73 | H21: 2456936.903 | I21: 3.75 | J21: 2.851201594 | K21: 1.688550146 | L21: 3.75 | O21: 2456936.912 | P21: -0.09 | Q21: 2.678400278 | U21: 2456936.923 | V21: 140.86 | W21: 3.196804225 | X21: 1.787960913 | Y21: 140.86 | Z21: 4.56 | AA21: 2456936.931 | AB21: -0.05 | AC21: =0 -> 0 | AD21: =SQRT(AC21) -> 0 | AE21: =AB21 -> -0.05
A22: 2456936.895 | B22: 3.42 | C22: =(A22-$A$16)*24*60*60 -> 3.369565308 | D22: 1.835637575 | E22: 3.42 | H22: 2456936.903 | I22: 3.99 | J22: 3.455986083 | K22: 1.859028263 | L22: 3.99 | O22: 2456936.912 | P22: -0.05 | Q22: 3.283225 | U22: 2456936.923 | V22: 141.08 | W22: 3.715208173 | X22: 1.927487529 | Y22: 141.08 | Z22: 4.78 | AA22: 2456936.931 | AB22: 1.94 | AC22: =(AA22-$AA$21)*24*60*60 -> 0.5184039474 | AD22: =SQRT(AC22) -> 0.7200027412 | AE22: =AB22 -> 1.94
A23: 2456936.895 | B23: 3.82 | C23: 3.97439003 | D23: 1.993587227 | E23: 3.82 | H23: 2456936.903 | I23: 4.27 | J23: 3.97439003 | K23: 1.993587227 | L23: 4.27 | O23: 2456936.912 | P23: -0.04 | Q23: 3.801628947 | U23: 2456936.923 | V23: 141.37 | W23: 4.23361212 | X23: 2.057574329 | Y23: 141.37 | Z23: 5.07 | AA23: 2456936.931 | AB23: 2.73 | AC23: =(AA23-$AA$21)*24*60*60 -> 1.036767662 | AD23: =SQRT(AC23) -> 1.018217885 | AE23: =AB23 -> 2.73
A24: 2456936.895 | B24: 4.26 | C24: 4.579174519 | D24: 2.139900586 | E24: 4.26 | H24: 2456936.903 | I24: 4.62 | J24: 4.579214752 | K24: 2.139909987 | L24: 4.62 | O24: 2456936.912 | P24: -0.04 | Q24: 4.319992661 | U24: 2456936.923 | V24: 141.85 | W24: 4.752016068 | X24: 2.17991194 | Y24: 141.85 | Z24: 5.55 | AA24: 2456936.931 | AB24: 2.28 | AC24: 1.555171609 | AD24: 1.247065198 | AE24: 2.28
A25: 2456936.895 | B25: 4.41 | C25: 5.097578466 | D25: =SQRT(C25) -> 2.257781758 | E25: =B25 -> 4.41 | H25: 2456936.903 | I25: 4.7 | J25: 5.18399924 | K25: 2.276839749 | L25: 4.7 | O25: 2456936.912 | P25: -0.02 | Q25: 4.838396609 | U25: 2456936.923 | V25: 142 | W25: 5.270420015 | X25: 2.295739536 | Y25: 142 | Z25: 5.7 | AA25: 2456936.931 | AB25: 3.27 | AC25: 2.073575556 | AD25: 1.439991513 | AE25: 3.27
A26: 2456936.895 | B26: 4.71 | C26: 5.702362955 | D26: =SQRT(C26) -> 2.387962092 | E26: =B26 -> 4.71 | H26: 2456936.903 | I26: 4.8 | J26: 5.702403188 | K26: 2.387970517 | L26: 4.8 | O26: 2456936.912 | P26: 0 | Q26: 5.356800556 | U26: 2456936.923 | V26: 142.46 | W26: 5.788783729 | X26: 2.405989137 | Y26: 142.46 | Z26: 6.16 | AA26: 2456936.931 | AB26: 3.58 | AC26: 2.591979504 | AD26: 1.609962578 | AE26: 3.58
A27: 2456936.895 | B27: 4.88 | C27: 6.220766902 | D27: 2.494146528 | E27: 4.88 | H27: 2456936.903 | I27: 4.98 | J27: 6.307187676 | K27: 2.511411491 | L27: 4.98 | O27: 2456936.912 | P27: 0 | Q27: 5.961625278 | U27: 2456936.923 | V27: 142.54 | W27: 6.307187676 | X27: 2.511411491 | Y27: 142.54 | Z27: 6.24 | AA27: 2456936.931 | AB27: 4.2 | AC27: 3.110383451 | AD27: 1.763627923 | AE27: 4.2
A28: 2456936.895 | B28: 5.04 | C28: 6.825591624 | D28: 2.612583324 | E28: 5.04 | H28: 2456936.903 | I28: 5.17 | J28: 6.825591624 | K28: 2.612583324 | L28: 5.17 | O28: 2456936.912 | P28: 0 | Q28: 6.480029225 | U28: 2456936.923 | V28: 142.58 | W28: 6.825591624 | X28: 2.612583324 | Y28: 142.58 | Z28: 6.28 | AA28: 2456936.931 | AB28: 4.39 | AC28: 3.628787398 | AD28: 1.904937636 | AE28: 4.39
A29: 2456936.895 | B29: 5.2 | C29: 7.343995571 | D29: 2.709980733 | E29: 5.2 | H29: 2456936.903 | I29: 5.22 | J29: 7.430416346 | K29: 2.725879004 | L29: 5.22 | O29: 2456936.912 | P29: 0 | Q29: 6.99839294 | U29: 2456936.923 | V29: 142.82 | W29: 7.343995571 | X29: 2.709980733 | Y29: 142.82 | Z29: 6.52 | AA29: 2456936.931 | AB29: 4.39 | AC29: 4.147191346 | AD29: 2.036465405 | AE29: 4.39
A30: 2456936.895 | B30: 5.35 | C30: 7.94878006 | D30: 2.819358094 | E30: 5.35 | H30: 2456936.903 | I30: 5.32 | J30: 7.94878006 | K30: 2.819358094 | L30: 5.32 | O30: 2456936.912 | P30: 0 | Q30: 7.516796887 | U30: 2456936.923 | V30: 142.88 | W30: 7.862399518 | X30: 2.803997061 | Y30: 142.88 | Z30: 6.58 | AA30: 2456936.931 | AB30: 4.54 | AC30: 4.751975834 | AD30: 2.179902712 | AE30: 4.54
A31: 2456936.895 | B31: 5.42 | C31: 8.553564548 | D31: 2.924647765 | E31: 5.42 | H31: 2456936.903 | I31: 5.42 | J31: 8.553604782 | K31: 2.924654643 | L31: 5.42 | O31: 2456936.912 | P31: 0 | Q31: 8.035200834 | U31: 2456936.923 | V31: 143.01 | W31: 8.380803466 | X31: 2.894961738 | Y31: 143.01 | Z31: 6.71 | AA31: 2456936.931 | AB31: 4.73 | AC31: 5.270379782 | AD31: 2.295730773 | AE31: 4.73
A32: 2456936.895 | B32: 5.53 | C32: 9.071968496 | D32: 3.011970866 | E32: 5.53 | H32: 2456936.903 | I32: 5.49 | J32: 9.15838927 | K32: 3.026283078 | L32: 5.49 | O32: 2456936.912 | P32: 0 | Q32: 8.553604782 | U32: 2456936.923 | V32: 143.14 | W32: 8.899207413 | X32: 2.983153937 | Y32: 143.14 | Z32: 6.84 | AA32: 2456936.931 | AB32: 4.94 | AC32: 5.788783729 | AD32: 2.405989137 | AE32: 4.94
A33: 2456936.895 | B33: 5.62 | C33: 9.676793218 | D33: 3.110754445 | E33: 5.62 | H33: 2456936.903 | I33: 5.64 | J33: 9.676793218 | K33: 3.110754445 | L33: 5.64 | O33: 2456936.912 | P33: 0 | Q33: 9.072008729 | U33: 2456936.923 | V33: 143.23 | W33: 9.417611361 | X33: 3.068812696 | Y33: 143.23 | Z33: 6.93 | AA33: 2456936.931 | AB33: 5.1 | AC33: 6.307187676 | AD33: 2.511411491 | AE33: 5.1
A34: 2456936.895 | B34: 5.66 | C34: 10.19519717 | D34: 3.192991883 | E34: 5.66 | H34: 2456936.903 | I34: 5.68 | J34: 10.28161794 | K34: 3.206496209 | L34: 5.68 | O34: 2456936.912 | P34: 0 | Q34: 9.590412676 | U34: 2456936.923 | V34: 143.3 | W34: 9.936015308 | X34: 3.152144557 | Y34: 143.3 | Z34: 7 | AA34: 2456936.931 | AB34: 5.24 | AC34: 6.825591624 | AD34: 2.612583324 | AE34: 5.24
A35: 2456936.895 | B35: 5.7 | C35: 10.79998165 | D35: 3.286332554 | E35: 5.7 | H35: 2456936.903 | I35: 5.73 | J35: 10.79998165 | K35: 3.286332554 | L35: 5.73 | O35: 2456936.912 | P35: -0.45 | Q35: =0 -> 0 | R35: =SQRT(Q35) -> 0 | S35: =P35 -> -0.45 | U35: 2456936.923 | V35: 143.38 | W35: 10.45441926 | X35: 3.233329438 | Y35: 143.38 | Z35: 7.08 | AA35: 2456936.931 | AB35: 5.32 | AC35: 7.343995571 | AD35: 2.709980733 | AE35: 5.32
A36: 2456936.895 | B36: 5.79 | C36: 11.3183856 | D36: 3.364280845 | E36: 5.79 | H36: 2456936.903 | I36: 5.81 | J36: 11.40480638 | K36: 3.377100291 | L36: 5.81 | O36: 2456936.912 | P36: 0.56 | Q36: =(O36-$O$35)*24*60*60 -> 0.5184039474 | R36: 0.7200027412 | S36: 0.56 | U36: 2456936.923 | V36: 143.45 | W36: 11.05920374 | X36: 3.325538113 | Y36: 143.45 | Z36: 7.15 | AA36: 2456936.931 | AB36: 5.41 | AC36: 7.862399518 | AD36: 2.803997061 | AE36: 5.41
A37: 2456936.895 | B37: 5.84 | C37: 11.92317009 | D37: 3.452994366 | E37: 5.84 | H37: 2456936.903 | I37: 5.88 | J37: 11.92321032 | K37: 3.453000192 | L37: 5.88 | O37: 2456936.912 | P37: 1.47 | Q37: =(O37-$O$35)*24*60*60 -> 1.123188436 | R37: 1.059805848 | S37: 1.47 | U37: 2456936.923 | V37: 143.5 | W37: 11.57760769 | X37: 3.402588381 | Y37: 143.5 | Z37: 7.2 | AA37: 2456936.931 | AB37: 5.48 | AC37: 8.380803466 | AD37: 2.894961738 | AE37: 5.48
A38: 2456936.895 | B38: 5.9 | C38: 12.52799481 | D38: 3.539490756 | E38: 5.9 | H38: 2456936.903 | I38: 5.92 | J38: 12.52799481 | K38: 3.539490756 | L38: 5.92 | O38: 2456936.912 | P38: 2.2 | Q38: 1.641592383 | R38: 1.281246418 | S38: 2.2 | U38: 2456936.923 | V38: 143.57 | W38: 12.09601164 | X38: 3.477932092 | Y38: 143.57 | Z38: 7.27 | AA38: 2456936.931 | AB38: 5.55 | AC38: 8.89916718 | AD38: 2.983147194 | AE38: 5.55
A39: 2456936.895 | B39: 5.94 | C39: 13.04639876 | D39: 3.611979895 | E39: 5.94 | H39: 2456936.903 | I39: 6.04 | J39: 13.13281953 | K39: 3.623923224 | L39: 6.04 | O39: 2456936.912 | P39: 2.58 | Q39: 2.159996331 | R39: 1.469692597 | S39: 2.58 | U39: 2456936.923 | V39: 143.64 | W39: 12.61441559 | X39: 3.551677855 | Y39: 143.64 | Z39: 7.34 | AA39: 2456936.931 | AB39: 5.56 | AC39: 9.417571127 | AD39: 3.06880614 | AE39: 5.56
A40: 2456936.895 | B40: 5.97 | C40: 13.65118325 | D40: 3.694750769 | E40: 5.97 | H40: 2456936.903 | I40: 6.07 | J40: 13.65118325 | K40: 3.694750769 | L40: 6.07 | O40: 2456936.912 | P40: 3.01 | Q40: 2.764780819 | R40: 1.662763008 | S40: 3.01 | U40: 2456936.923 | V40: 143.66 | W40: 13.13281953 | X40: 3.623923224 | Y40: 143.66 | Z40: 7.36 | AA40: 2456936.931 | AB40: 5.45 | AC40: 9.935975075 | AD40: 3.152138175 | AE40: 5.45
A41: 2456936.895 | B41: 6.01 | C41: 14.16958719 | D41: 3.764251213 | E41: 6.01 | H41: 2456936.903 | I41: 6.1 | J41: 14.25600797 | K41: 3.775712909 | L41: 6.1 | O41: 2456936.912 | P41: 3.3 | Q41: 3.283184767 | R41: 1.811956061 | S41: 3.3 | U41: 2456936.923 | V41: 143.68 | W41: 13.65118325 | X41: 3.694750769 | Y41: 143.68 | Z41: 7.38 | AA41: 2456936.931 | AB41: 5.52 | AC41: 10.45437902 | AD41: 3.233323216 | AE41: 5.52
A42: 2456936.895 | B42: 6.03 | C42: 14.77437168 | D42: 3.843744487 | E42: 6.03 | H42: 2456936.903 | I42: 6.16 | J42: 14.77441192 | K42: 3.843749721 | L42: 6.16 | O42: 2456936.912 | P42: 3.45 | Q42: 3.801588714 | R42: 1.949766323 | S42: 3.45 | U42: 2456936.923 | V42: 143.72 | W42: 14.16958719 | X42: 3.764251213 | Y42: 143.72 | Z42: 7.42 | AA42: 2456936.931 | AB42: 5.69 | AC42: 10.97278297 | AD42: 3.312519127 | AE42: 5.69
A43: 2456936.895 | B43: 6.05 | C43: 15.29277563 | D43: 3.910597861 | E43: 6.05 | H43: 2456936.903 | I43: 6.24 | J43: 15.37919641 | K43: 3.921631855 | L43: 6.24 | O43: 2456936.912 | P43: 3.65 | Q43: 4.319992661 | R43: 2.078459204 | S43: 3.65 | U43: 2456936.923 | V43: 143.78 | W43: 14.77441192 | X43: 3.843749721 | Y43: 143.78 | Z43: 7.48 | AA43: 2456936.931 | AB43: 5.8 | AC43: 11.49118692 | AD43: 3.389865324 | AE43: 5.8
A44: 2456936.895 | B44: 6.11 | C44: 15.89760035 | D44: 3.987179498 | E44: 6.11 | H44: 2456936.903 | I44: 6.27 | J44: 15.89760035 | K44: 3.987179498 | L44: 6.27 | O44: 2456936.912 | P44: 3.95 | Q44: 4.838396609 | R44: 2.199635563 | S44: 3.95 | U44: 2456936.923 | V44: 143.8 | W44: 15.29281586 | X44: 3.910603005 | Y44: 143.8 | Z44: 7.5 | AA44: 2456936.931 | AB44: 5.93 | AC44: 12.00959086 | AD44: 3.465485661 | AE44: 5.93
A45: 2456936.895 | B45: 6.13 | C45: 16.50238484 | D45: 4.062312745 | E45: 6.13 | H45: 2456936.903 | I45: 6.32 | J45: 16.50238484 | K45: 4.062312745 | L45: 6.32 | O45: 2456936.912 | P45: 4.04 | Q45: 5.356800556 | R45: 2.314476303 | S45: 4.04 | U45: 2456936.923 | V45: 143.83 | W45: 15.81121981 | X45: 3.976332457 | Y45: 143.83 | Z45: 7.53 | AA45: 2456936.931 | AB45: 5.99 | AC45: 12.61437535 | AD45: 3.551672191 | AE45: 5.99
A46: 2456936.895 | B46: 6.16 | C46: 17.02078879 | D46: 4.125625866 | E46: 6.16 | H46: 2456936.903 | I46: 6.37 | J46: 17.10720956 | K46: 4.136086262 | L46: 6.37 | O46: 2456936.912 | P46: 4.14 | Q46: 5.875204504 | R46: 2.423882114 | S46: 4.14 | U46: 2456936.923 | V46: 143.87 | W46: 16.32958353 | X46: 4.040987939 | Y46: 143.87 | Z46: 7.57 | AA46: 2456936.931 | AB46: 6.02 | AC46: 13.1327793 | AD46: 3.623917673 | AE46: 6.02
A47: 2456936.895 | B47: 6.19 | C47: 17.62557328 | D47: 4.198282182 | E47: 6.19 | H47: 2456936.903 | I47: 6.4 | J47: 17.62561351 | K47: 4.198286973 | L47: 6.4 | O47: 2456936.912 | P47: 4.29 | Q47: 6.479988992 | R47: 2.54558225 | S47: 4.29 | U47: 2456936.923 | V47: 143.91 | W47: 16.84798747 | X47: 4.104630004 | Y47: 143.91 | Z47: 7.61 | AA47: 2456936.931 | AB47: 5.81 | AC47: 13.65118325 | AD47: 3.694750769 | AE47: 5.81
A48: 2456936.895 | B48: 6.23 | C48: 18.14397722 | D48: 4.25957477 | E48: 6.23 | H48: 2456936.903 | I48: 6.42 | J48: 18.230398 | K48: 4.269707016 | L48: 6.42 | O48: 2456936.912 | P48: 4.36 | Q48: 6.99839294 | R48: 2.645447588 | S48: 4.36 | U48: 2456936.923 | V48: 143.95 | W48: 17.36639142 | X48: 4.167300256 | Y48: 143.95 | Z48: 7.65 | AA48: 2456936.931 | AB48: 5.85 | AC48: 14.16958719 | AD48: 3.764251213 | AE48: 5.85
A49: 2456936.895 | B49: 6.27 | C49: 18.74880195 | D49: 4.329988677 | E49: 6.27 | H49: 2456936.903 | I49: 6.48 | J49: 18.74880195 | K49: 4.329988677 | L49: 6.48 | O49: 2456936.912 | P49: 4.51 | Q49: 7.603177428 | R49: 2.757385977 | S49: 4.51 | U49: 2456936.923 | V49: 143.96 | W49: 17.88479537 | X49: 4.229041897 | Y49: 143.96 | Z49: 7.66 | AA49: 2456936.931 | AB49: 6.12 | AC49: 14.68799114 | AD49: 3.832491506 | AE49: 6.12
A50: 2456936.895 | B50: 6.29 | C50: 19.26716566 | D50: 4.389437966 | E50: 6.29 | H50: 2456936.903 | I50: 6.53 | J50: 19.35358644 | K50: 4.399271125 | L50: 6.53 | O50: 2456936.912 | P50: 4.56 | Q50: 8.121581376 | R50: 2.849838833 | S50: 4.56 | U50: 2456936.923 | V50: 143.99 | W50: 18.40319932 | X50: 4.289895024 | Y50: 143.99 | Z50: 7.69 | AA50: 2456936.931 | AB50: 6.18 | AC50: 15.20639509 | AD50: 3.899537805 | AE50: 6.18
A51: 2456936.895 | B51: 6.3 | C51: 19.87199038 | D51: 4.45780107 | E51: 6.3 | H51: 2456936.903 | I51: 6.56 | J51: 19.87199038 | K51: 4.45780107 | L51: 6.56 | O51: 2456936.912 | P51: 4.65 | Q51: 8.726406097 | R51: 2.954049102 | S51: 4.65 | U51: 2456936.923 | V51: 144 | W51: 18.92160326 | X51: 4.349896925 | Y51: 144 | Z51: 7.7 | AA51: 2456936.931 | AB51: 6.3 | AC51: 15.72479904 | AD51: 3.965450673 | AE51: 6.3
A52: 2456936.895 | B52: 6.32 | C52: 20.47677487 | D52: 4.525127056 | E52: 6.32 | H52: 2456936.903 | I52: 6.58 | J52: 20.4768151 | K52: 4.525131501 | L52: 6.58 | O52: 2456936.912 | P52: 4.72 | Q52: 9.244810045 | R52: 3.040527922 | S52: 4.72 | U52: 2456936.923 | V52: 144.05 | W52: 19.44000721 | X52: 4.409082355 | Y52: 144.05 | Z52: 7.75 | AA52: 2456936.931 | AB52: 6.44 | AC52: 16.24320298 | AD52: 4.03028572 | AE52: 6.44
A53: 2456936.895 | B53: 6.34 | C53: 20.99517882 | D53: 4.582049631 | E53: 6.34 | H53: 2456936.903 | I53: 6.62 | J53: 21.08159959 | K53: 4.591470308 | L53: 6.62 | O53: 2456936.912 | P53: 4.76 | Q53: 9.763173759 | R53: 3.124607777 | S53: 4.76 | U53: 2456936.923 | V53: 144.07 | W53: 19.95841116 | X53: 4.467483761 | Y53: 144.07 | Z53: 7.77 | AA53: 2456936.931 | AB53: 6.5 | AC53: 16.76160693 | AD53: 4.094094153 | AE53: 6.5
A54: 2456936.895 | B54: 6.39 | C54: 21.59996331 | D54: 4.647576068 | E54: 6.39 | H54: 2456936.903 | I54: 6.65 | J54: 21.60000354 | K54: 4.647580396 | L54: 6.65 | O54: 2456936.912 | P54: 4.82 | Q54: 10.36799848 | R54: 3.219937652 | S54: 4.82 | U54: 2456936.923 | V54: 144.09 | W54: 20.4768151 | X54: 4.525131501 | Y54: 144.09 | Z54: 7.79 | AA54: 2456936.931 | AB54: 6.59 | AC54: 17.27997065 | AD54: 4.156918407 | AE54: 6.59
A55: 2456936.895 | B55: 6.4 | C55: 22.11836725 | D55: 4.703016825 | E55: 6.4 | H55: 2456936.903 | I55: 6.67 | J55: 22.20478803 | K55: 4.71219567 | L55: 6.67 | O55: 2456936.912 | P55: 4.91 | Q55: 10.88640243 | R55: 3.299454868 | S55: 4.91 | U55: 2456936.923 | V55: 144.1 | W55: 20.99521905 | X55: 4.582054021 | Y55: 144.1 | Z55: 7.8 | AA55: 2456936.931 | AB55: 6.61 | AC55: 17.79837459 | AD55: 4.218811988 | AE55: 6.61
A56: 2456936.895 | B56: 6.41 | C56: 22.72319198 | D56: 4.766884934 | E56: 6.41 | H56: 2456936.903 | I56: 6.69 | J56: 22.72319198 | K56: 4.766884934 | L56: 6.69 | O56: 2456936.912 | P56: 4.95 | Q56: 11.40480638 | R56: 3.377100291 | S56: 4.95 | U56: 2456936.923 | V56: 144.13 | W56: 21.51358277 | X56: 4.638273684 | Y56: 144.13 | Z56: 7.83 | AA56: 2456936.931 | AB56: 6.63 | AC56: 18.31677854 | AD56: 4.279810573 | AE56: 6.63
A57: 2456936.895 | B57: 6.43 | C57: 23.24159592 | D57: 4.82095384 | E57: 6.43 | H57: 2456936.903 | I57: 6.72 | J57: 23.3280167 | K57: 4.82990856 | L57: 6.72 | O57: 2456936.912 | P57: 5 | Q57: 11.92321032 | R57: 3.453000192 | S57: 5 | U57: 2456936.923 | V57: 144.17 | W57: 22.03198671 | X57: 4.693824316 | Y57: 144.17 | Z57: 7.87 | AA57: 2456936.931 | AB57: 6.68 | AC57: 18.83518249 | AD57: 4.339951899 | AE57: 6.68
A58: 2456936.895 | B58: 6.46 | C58: 23.84638041 | D58: 4.883275582 | E58: 6.46 | H58: 2456936.903 | I58: 6.74 | J58: 23.84638041 | K58: 4.883275582 | L58: 6.74 | O58: 2456936.912 | P58: 5.06 | Q58: 12.44157404 | R58: 3.527261549 | S58: 5.06 | U58: 2456936.923 | V58: 144.18 | W58: 22.63681144 | X58: 4.757815826 | Y58: 144.18 | Z58: 7.88 | AA58: 2456936.931 | AB58: 6.72 | AC58: 19.35358644 | AD58: 4.399271125 | AE58: 6.72
A59: 2456936.895 | B59: 6.48 | C59: 24.4511649 | D59: 4.944811918 | E59: 6.48 | H59: 2456936.903 | I59: 6.78 | J59: 24.45120513 | K59: 4.944815986 | L59: 6.78 | O59: 2456936.912 | P59: 5.11 | Q59: 12.95997798 | R59: 3.599996942 | S59: 5.11 | U59: 2456936.923 | V59: 144.2 | W59: 23.15521538 | X59: 4.811986636 | Y59: 144.2 | Z59: 7.9 | AA59: 2456936.931 | AB59: 6.77 | AC59: 19.87199038 | AD59: 4.45780107 | AE59: 6.77
A60: 2456936.895 | B60: 6.5 | C60: 24.96956885 | D60: 4.996955958 | E60: 6.5 | H60: 2456936.903 | I60: 6.8 | J60: 25.05598962 | K60: 5.005595831 | L60: 6.8 | O60: 2456936.912 | P60: 5.15 | Q60: 13.47838193 | R60: 3.671291589 | S60: 5.15 | U60: 2456936.923 | V60: 144.22 | W60: 23.67361933 | X60: 4.86555437 | Y60: 144.22 | Z60: 7.92 | AA60: 2456936.931 | AB60: 6.78 | AC60: 20.47677487 | AD60: 4.525127056 | AE60: 6.78
A61: 2456936.896 | B61: 6.52 | C61: 25.57439357 | D61: 5.057113166 | E61: 6.52 | H61: 2456936.903 | I61: 6.81 | J61: 25.57439357 | K61: 5.057113166 | L61: 6.81 | O61: 2456936.912 | P61: 5.23 | Q61: 13.99678588 | R61: 3.741227857 | S61: 5.23 | U61: 2456936.923 | V61: 144.25 | W61: 24.19198304 | X61: 4.918534644 | Y61: 144.25 | Z61: 7.95 | AA61: 2456936.931 | AB61: 6.8 | AC61: 20.99517882 | AD61: 4.582049631 | AE61: 6.8
A62: 2456936.896 | B62: 6.54 | C62: 26.09279752 | D62: 5.108110954 | E62: 6.54 | H62: 2456936.903 | I62: 6.83 | J62: 26.17921829 | K62: 5.116563133 | L62: 6.83 | O62: 2456936.912 | P62: 5.27 | Q62: 14.51518983 | R62: 3.809880553 | S62: 5.27 | U62: 2456936.923 | V62: 144.26 | W62: 24.71038699 | X62: 4.970954334 | Y62: 144.26 | Z62: 7.96 | AA62: 2456936.931 | AB62: 6.83 | AC62: 21.51358277 | AD62: 4.638273684 | AE62: 6.83
A63: 2456936.896 | B63: 6.57 | C63: 26.69758201 | D63: 5.166970293 | E63: 6.57 | H63: 2456936.903 | I63: 6.85 | J63: 26.69758201 | K63: 5.166970293 | L63: 6.85 | O63: 2456936.912 | P63: 5.3 | Q63: 15.03359377 | R63: 3.877317858 | S63: 5.3 | U63: 2456936.923 | V63: 144.29 | W63: 25.22879094 | X63: 5.022826987 | Y63: 144.29 | Z63: 7.99 | AA63: 2456936.931 | AB63: 6.88 | AC63: 22.03198671 | AD63: 4.693824316 | AE63: 6.88
A64: 2456936.896 | B64: 6.59 | C64: 27.21598595 | D64: 5.216894282 | E64: 6.59 | H64: 2456936.903 | I64: 6.88 | J64: 27.21598595 | K64: 5.216894282 | L64: 6.88 | O64: 2456936.912 | P64: 5.34 | Q64: 15.55199772 | R64: 3.943602125 | S64: 5.34 | U64: 2456936.923 | V64: 144.3 | W64: 25.74719489 | X64: 5.074169379 | Y64: 144.3 | Z64: 8 | AA64: 2456936.931 | AB64: 6.9 | AC64: 22.55039066 | AD64: 4.748725162 | AE64: 6.9
A65: 2456936.896 | B65: 6.6 | C65: 27.82077044 | D65: 5.274539832 | E65: 6.6 | H65: 2456936.903 | I65: 6.89 | J65: 27.82081068 | K65: 5.274543646 | L65: 6.89 | O65: 2456936.912 | P65: 5.39 | Q65: 16.15678221 | R65: 4.019550001 | S65: 5.39 | U65: 2456936.923 | V65: 144.31 | W65: 26.35201961 | X65: 5.133421823 | Y65: 144.31 | Z65: 8.01 | AA65: 2456936.931 | AB65: 6.92 | AC65: 23.06879461 | AD65: 4.802998502 | AE65: 6.92
A66: 2456936.896 | B66: 6.62 | C66: 28.42559516 | D66: 5.33156592 | E66: 6.62 | H66: 2456936.903 | I66: 6.91 | J66: 28.42559516 | K66: 5.33156592 | L66: 6.91 | O66: 2456936.912 | P66: 5.43 | Q66: 16.67518616 | R66: 4.083526192 | S66: 5.43 | U66: 2456936.923 | V66: 144.32 | W66: 26.87038332 | X66: 5.183665047 | Y66: 144.32 | Z66: 8.02 | AA66: 2456936.931 | AB66: 6.93 | AC66: 23.58719856 | AD66: 4.856665374 | AE66: 6.93
A67: 2456936.896 | B67: 6.63 | C67: 28.94399911 | D67: 5.379962743 | E67: 6.63 | H67: 2456936.903 | I67: 6.92 | J67: 28.94399911 | K67: 5.379962743 | L67: 6.92 | O67: 2456936.912 | P67: 5.46 | Q67: 17.1935901 | R67: 4.146515417 | S67: 5.46 | U67: 2456936.923 | V67: 144.37 | W67: 27.38878727 | X67: 5.233429781 | Y67: 144.37 | Z67: 8.07 | AA67: 2456936.931 | AB67: 6.96 | AC67: 24.1056025 | AD67: 4.909745666 | AE67: 6.96
A68: 2456936.896 | B68: 6.65 | C68: 29.5487836 | D68: 5.435879285 | E68: 6.65 | H68: 2456936.903 | I68: 6.95 | J68: 29.5487836 | K68: 5.435879285 | L68: 6.95 | O68: 2456936.912 | P68: 5.49 | Q68: 17.71199405 | R68: 4.208561993 | S68: 5.49 | U68: 2456936.923 | V68: 144.4 | W68: 27.90719122 | X68: 5.282725737 | Y68: 144.4 | Z68: 8.1 | AA68: 2456936.931 | AB68: 6.99 | AC68: 24.62400645 | AD68: 4.962258201 | AE68: 6.99
A69: 2456936.896 | B69: 6.67 | C69: 30.06718755 | D69: 5.483355501 | E69: 6.67 | H69: 2456936.903 | I69: 6.97 | J69: 30.06718755 | K69: 5.483355501 | L69: 6.97 | O69: 2456936.912 | P69: 5.55 | Q69: 18.230398 | R69: 4.269707016 | S69: 5.55 | U69: 2456936.923 | V69: 144.41 | W69: 28.42559516 | X69: 5.33156592 | Y69: 144.41 | Z69: 8.11 | AA69: 2456936.931 | AB69: 7.03 | AC69: 25.14237016 | AD69: 5.014216805 | AE69: 7.03
A70: 2456936.896 | B70: 6.67 | C70: 30.67197204 | D70: 5.53822824 | E70: 6.67 | H70: 2456936.903 | I70: 6.98 | J70: 30.67201227 | K70: 5.538231872 | L70: 6.98 | O70: 2456936.912 | P70: 5.58 | Q70: 18.74880195 | R70: 4.329988677 | S70: 5.58 | U70: 2456936.923 | V70: 144.42 | W70: 28.94399911 | X70: 5.379962743 | Y70: 144.42 | Z70: 8.12 | AA70: 2456936.931 | AB70: 7.04 | AC70: 25.66077411 | AD70: 5.065646465 | AE70: 7.04
A71: 2456936.896 | B71: 6.7 | C71: 31.19037598 | D71: 5.584834463 | E71: 6.7 | H71: 2456936.903 | I71: 7 | J71: 31.19041622 | K71: 5.584838065 | L71: 7 | O71: 2456936.912 | P71: 5.6 | Q71: 19.35358644 | R71: 4.399271125 | S71: 5.6 | U71: 2456936.923 | V71: 144.43 | W71: 29.46240306 | X71: 5.427928063 | Y71: 144.43 | Z71: 8.13 | AA71: 2456936.931 | AB71: 7.06 | AC71: 26.17917806 | AD71: 5.116559201 | AE71: 7.06
A72: 2456936.896 | B72: 6.71 | C72: 31.79520071 | D72: 5.638723322 | E72: 6.71 | H72: 2456936.903 | I72: 7.01 | J72: 31.79520071 | K72: 5.638723322 | L72: 7.01 | O72: 2456936.912 | P72: 5.62 | Q72: 19.87199038 | R72: 4.45780107 | S72: 5.62 | U72: 2456936.923 | V72: 144.45 | W72: 29.98080701 | X72: 5.475473222 | Y72: 144.45 | Z72: 8.15 | AA72: 2456936.931 | AB72: 7.09 | AC72: 26.69758201 | AD72: 5.166970293 | AE72: 7.09
A73: 2456936.896 | B73: 6.72 | C73: 32.39998519 | D73: 5.692098488 | E73: 6.72 | H73: 2456936.903 | I73: 7.02 | J73: 32.39998519 | K73: 5.692098488 | L73: 7.02 | O73: 2456936.912 | P73: 5.68 | Q73: 20.39039433 | R73: 4.515572426 | S73: 5.68 | U73: 2456936.923 | V73: 144.46 | W73: 30.49921095 | X73: 5.522609071 | Y73: 144.46 | Z73: 8.16 | AA73: 2456936.931 | AB73: 7.14 | AC73: 27.21598595 | AD73: 5.216894282 | AE73: 7.14
A74: 2456936.896 | B74: 6.73 | C74: 32.91838914 | D74: 5.737454936 | E74: 6.73 | H74: 2456936.903 | I74: 7.03 | J74: 32.91838914 | K74: 5.737454936 | L74: 7.03 | O74: 2456936.912 | P74: 5.7 | Q74: 20.90879828 | R74: 4.572613944 | S74: 5.7 | U74: 2456936.923 | V74: 144.48 | W74: 31.0176149 | X74: 5.569346003 | Y74: 144.48 | Z74: 8.18 | AA74: 2456936.931 | AB74: 7.14 | AC74: 27.82077044 | AD74: 5.274539832 | AE74: 7.14
A75: 2456936.896 | B75: 6.74 | C75: 33.52317363 | D75: 5.789920002 | E75: 6.74 | H75: 2456936.903 | I75: 7.04 | J75: 33.52321386 | K75: 5.789923476 | L75: 7.04 | O75: 2456936.913 | P75: 5.72 | Q75: 21.51358277 | R75: 4.638273684 | S75: 5.72 | U75: 2456936.923 | V75: 144.51 | W75: 31.53601885 | X75: 5.615693977 | Y75: 144.51 | Z75: 8.21 | AA75: 2456936.931 | AB75: 7.15 | AC75: 28.33917439 | AD75: 5.323455118 | AE75: 7.15
A76: 2456936.896 | B76: 6.78 | C76: 34.04157758 | D76: 5.834516053 | E76: 6.78 | H76: 2456936.903 | I76: 7.08 | J76: 34.04161781 | K76: 5.834519501 | L76: 7.08 | O76: 2456936.913 | P76: 5.75 | Q76: 22.03198671 | R76: 4.693824316 | S76: 5.75 | U76: 2456936.923 | V76: 144.52 | W76: 32.05438256 | X76: 5.661658994 | Y76: 144.52 | Z76: 8.22 | AA76: 2456936.931 | AB76: 7.15 | AC76: 28.85757834 | AD76: 5.371925012 | AE76: 7.15
A77: 2456936.896 | B77: 6.79 | C77: 34.6464023 | D77: 5.88611946 | E77: 6.79 | H77: 2456936.903 | I77: 7.09 | J77: 34.6464023 | K77: 5.88611946 | L77: 7.09 | O77: 2456936.913 | P77: 5.79 | Q77: 22.55039066 | R77: 4.748725162 | S77: 5.79 | U77: 2456936.923 | V77: 144.53 | W77: 32.57278651 | X77: =SQRT(W77) -> 5.707257354 | Y77: =V77 -> 144.53 | Z77: 8.23 | AA77: 2456936.931 | AB77: 7.15 | AC77: 29.37598228 | AD77: 5.419961465 | AE77: 7.15
A78: 2456936.896 | B78: 6.8 | C78: 35.25118679 | D78: 5.937270988 | E78: 6.8 | H78: 2456936.903 | I78: 7.1 | J78: 35.16480625 | K78: 5.929992095 | L78: 7.1 | O78: 2456936.913 | P78: 5.83 | Q78: 23.06879461 | R78: 4.802998502 | S78: 5.83 | U78: 2456936.923 | V78: 144.54 | W78: 33.09119046 | X78: 5.752494281 | Y78: 144.54 | Z78: 8.24 | AA78: 2456936.931 | AB78: 7.18 | AC78: 29.89438623 | AD78: 5.467575901 | AE78: 7.18
A79: 2456936.896 | B79: 6.81 | C79: 35.76959074 | D79: 5.980768407 | E79: 6.81 | H79: 2456936.903 | I79: 7.11 | J79: 35.76959074 | K79: 5.980768407 | L79: 7.11 | O79: 2456936.913 | P79: 5.85 | Q79: 23.58719856 | R79: 4.856665374 | S79: 5.85 | U79: 2456936.923 | V79: 144.56 | W79: 33.6095944 | X79: 5.797378235 | Y79: 144.56 | Z79: 8.26 | AA79: 2456936.931 | AB79: 7.21 | AC79: 30.41279018 | AD79: 5.51477925 | AE79: 7.21
A80: 2456936.896 | B80: 6.82 | C80: 36.37437522 | D80: 6.031117245 | E80: 6.82 | H80: 2456936.903 | I80: 7.12 | J80: 36.37441546 | K80: 6.031120581 | L80: 7.12 | O80: 2456936.913 | P80: 5.87 | Q80: 24.1056025 | R80: 4.909745666 | S80: 5.87 | U80: 2456936.923 | V80: 144.59 | W80: 34.21441913 | X80: 5.849309286 | Y80: 144.59 | Z80: =Y80-136.3 -> 8.29 | AA80: 2456936.931 | AB80: 7.22 | AC80: 30.93119413 | AD80: 5.561581981 | AE80: 7.22
A81: 2456936.896 | B81: 6.84 | C81: 36.89277917 | D81: 6.073942638 | E81: 6.84 | H81: 2456936.903 | I81: 7.12 | J81: 36.8928194 | K81: 6.07394595 | L81: 7.12 | O81: 2456936.913 | P81: 5.89 | Q81: 24.62400645 | R81: 4.962258201 | S81: 5.89 | U81: 2456936.923 | V81: 144.61 | W81: =(U81-$U$15)*24*60*60 -> 34.73278284 | X81: 5.89345254 | Y81: 144.61 | Z81: 8.31 | AA81: 2456936.931 | AB81: 7.24 | AC81: 31.44959807 | AD81: 5.607994122 | AE81: 7.24
A82: 2456936.896 | B82: 6.87 | C82: =(A82-$A$16)*24*60*60 -> 37.49756366 | D82: =SQRT(C82) -> 6.123525427 | E82: =B82 -> 6.87 | H82: 2456936.903 | I82: 7.14 | J82: =(H82-$H$16)*24*60*60 -> 37.49760389 | K82: =SQRT(J82) -> 6.123528713 | L82: =I82 -> 7.14 | O82: 2456936.913 | P82: 5.94 | Q82: 25.1424104 | R82: =SQRT(Q82) -> 5.014220817 | S82: =P82 -> 5.94 | U82: 2456936.923 | V82: 144.62 | W82: 35.25118679 | X82: 5.937270988 | Y82: 144.62 | Z82: 8.32 | AA82: 2456936.931 | AB82: 7.25 | AC82: 31.96800202 | AD82: 5.654025294 | AE82: 7.25
A83: 2456936.896 | B83: 6.88 | C83: 38.01596761 | D83: 6.165709011 | E83: 6.88 | H83: 2456936.903 | I83: 7.16 | J83: 38.01600784 | K83: 6.165712274 | L83: 7.16 | O83: 2456936.913 | P83: 5.95 | Q83: 25.74719489 | R83: 5.074169379 | S83: 5.95 | U83: 2456936.923 | V83: 144.62 | W83: 35.76959074 | X83: 5.980768407 | Y83: 144.62 | Z83: 8.32 | AA83: 2456936.931 | AB83: 7.26 | AC83: 32.48640597 | AD83: 5.699684725 | AE83: 7.26
A84: 2456936.896 | B84: 6.9 | C84: 38.62079233 | D84: 6.214562923 | E84: 6.9 | H84: 2456936.903 | I84: 7.17 | J84: 38.62079233 | K84: 6.214562923 | L84: 7.17 | O84: 2456936.913 | P84: 5.96 | Q84: 26.26559883 | R84: 5.124997447 | S84: 5.96 | U84: 2456936.923 | V84: 144.63 | W84: 36.28799468 | X84: 6.02395175 | Y84: 144.63 | Z84: 8.33 | AA84: 2456936.931 | AB84: 7.27 | AC84: 33.00476968 | AD84: 5.744977779 | AE84: 7.27
A85: 2456936.896 | B85: 6.9 | C85: 39.22557682 | D85: 6.263032558 | E85: 6.9 | H85: 2456936.903 | I85: 7.19 | J85: 39.22561705 | K85: 6.26303577 | L85: 7.19 | O85: 2456936.913 | P85: 5.98 | Q85: 26.78400278 | R85: 5.175326345 | S85: 5.98 | U85: 2456936.923 | V85: 144.65 | W85: 36.80639863 | X85: 6.066827724 | Y85: 144.65 | Z85: 8.35 | AA85: 2456936.931 | AB85: 7.28 | AC85: 33.52317363 | AD85: 5.789920002 | AE85: 7.28
A86: 2456936.896 | B86: 6.9 | C86: 39.83040154 | D86: 6.311133142 | E86: 6.9 | H86: 2456936.903 | I86: 7.19 | J86: 39.74398077 | K86: 6.304282732 | L86: 7.19 | O86: 2456936.913 | P86: 6 | Q86: 27.30240673 | R86: 5.225170498 | S86: 6 | U86: 2456936.923 | V86: 144.67 | W86: 37.32480258 | X86: 6.1094028 | Y86: 144.67 | Z86: 8.37 | AA86: 2456936.931 | AB86: 7.29 | AC86: 34.04157758 | AD86: 5.834516053 | AE86: 7.29
A87: 2456936.896 | B87: 6.91 | C87: 40.34876525 | D87: 6.352067794 | E87: 6.91 | H87: 2456936.903 | I87: 7.2 | J87: 40.34880549 | K87: 6.35207096 | L87: 7.2 | O87: 2456936.913 | P87: 6.01 | Q87: 27.82081068 | R87: 5.274543646 | S87: 6.01 | U87: 2456936.923 | V87: 144.68 | W87: 37.84320652 | X87: 6.151683227 | Y87: 144.68 | Z87: 8.38 | AA87: 2456936.931 | AB87: 7.3 | AC87: =(AA87-$AA$21)*24*60*60 -> 34.55998152 | AD87: =SQRT(AC87) -> 5.878773811 | AE87: =AB87 -> 7.3
A88: 2456936.896 | B88: 6.91 | C88: 40.95358998 | D88: 6.399499197 | E88: 6.91 | H88: 2456936.903 | I88: 7.21 | J88: 40.86720943 | K88: 6.392746627 | L88: 7.21 | O88: 2456936.913 | P88: 6.04 | Q88: 28.33917439 | R88: 5.323455118 | S88: 6.04 | U88: 2456936.923 | V88: 144.69 | W88: 38.36161047 | X88: 6.193675038 | Y88: 144.69 | Z88: 8.39 | AA88: 2456936.931 | AB88: 7.32 | AC88: 35.07838547 | AD88: 5.92270086 | AE88: 7.32
A89: 2456936.896 | B89: 6.91 | C89: 41.47199392 | D89: 6.439875303 | E89: 6.91 | H89: 2456936.903 | I89: 7.22 | J89: 41.47199392 | K89: 6.439875303 | L89: 7.22 | O89: 2456936.913 | P89: 6.06 | Q89: 28.85757834 | R89: 5.371925012 | S89: 6.06 | U89: 2456936.923 | V89: 144.71 | W89: 38.88001442 | X89: 6.235384064 | Y89: 144.71 | Z89: 8.41 | AA89: 2456936.931 | AB89: 7.33 | AC89: 35.68316996 | AD89: 5.973539149 | AE89: 7.33
A90: 2456936.896 | B90: 6.92 | C90: 42.07677841 | D90: 6.486661577 | E90: 6.92 | H90: 2456936.903 | I90: 7.23 | J90: 41.99039787 | K90: 6.479999836 | L90: 7.23 | O90: 2456936.913 | P90: 6.06 | Q90: 29.37598228 | R90: 5.419961465 | S90: 6.06 | U90: 2456936.923 | V90: 144.72 | W90: 39.39841837 | X90: 6.276815942 | Y90: 144.72 | Z90: 8.42 | AA90: 2456936.931 | AB90: 7.34 | AC90: 36.20157391 | AD90: 6.016774377 | AE90: 7.34
A91: 2456936.896 | B91: 6.92 | C91: 42.59518236 | D91: 6.526498476 | E91: 6.92 | H91: 2456936.903 | I91: 7.24 | J91: 42.59518236 | K91: 6.526498476 | L91: 7.24 | O91: 2456936.913 | P91: 6.08 | Q91: 29.89438623 | R91: 5.467575901 | S91: 6.08 | U91: 2456936.923 | V91: 144.73 | W91: 39.91682231 | X91: 6.317976125 | Y91: 144.73 | Z91: 8.43 | AA91: 2456936.931 | AB91: 7.35 | AC91: 36.71997786 | AD91: 6.059701136 | AE91: 7.35
A92: 2456936.896 | B92: 6.92 | C92: 43.19996685 | D92: 6.572668168 | E92: 6.92 | H92: 2456936.903 | I92: 7.25 | J92: 43.11358631 | K92: 6.566093687 | L92: 7.25 | O92: 2456936.913 | P92: 6.05 | Q92: 30.41279018 | R92: 5.51477925 | S92: 6.05 | U92: 2456936.923 | V92: 144.74 | W92: 40.43518603 | X92: 6.358866725 | Y92: 144.74 | Z92: 8.44 | AA92: 2456936.931 | AB92: 7.36 | AC92: 37.2383818 | AD92: 6.102325934 | AE92: 7.36
A93: 2456936.896 | B93: 6.95 | C93: 43.80479157 | D93: 6.618518835 | E93: 6.95 | H93: 2456936.903 | I93: 7.27 | J93: 43.71841103 | K93: 6.611989945 | L93: 7.27 | O93: 2456936.913 | P93: 6.04 | Q93: 30.93119413 | R93: 5.561581981 | S93: 6.04 | U93: 2456936.923 | V93: 144.75 | W93: 40.95358998 | X93: 6.399499197 | Y93: 144.75 | Z93: 8.45 | AA93: 2456936.931 | AB93: 7.36 | AC93: 37.75678575 | AD93: 6.144655055 | AE93: 7.36
A94: 2456936.896 | B94: 6.98 | C94: 44.32319552 | D94: 6.657566787 | E94: 6.98 | H94: 2456936.903 | I94: 7.27 | J94: 44.32319552 | K94: 6.657566787 | L94: 7.27 | O94: 2456936.913 | P94: 6.11 | Q94: 31.44959807 | R94: 5.607994122 | S94: 6.11 | U94: 2456936.923 | V94: 144.79 | W94: 41.47199392 | X94: 6.439875303 | Y94: 144.79 | Z94: 8.49 | AA94: 2456936.931 | AB94: 7.37 | AC94: 38.2751897 | AD94: 6.18669457 | AE94: 7.37
A95: 2456936.896 | B95: 6.99 | C95: 44.92798001 | D95: 6.70283373 | E95: 6.99 | H95: 2456936.903 | I95: 7.28 | J95: 44.84159946 | K95: 6.696387046 | L95: 7.28 | O95: 2456936.913 | P95: 6.17 | Q95: 31.96800202 | R95: 5.654025294 | S95: 6.17 | U95: 2456936.923 | V95: 144.8 | W95: 42.07681865 | X95: 6.486664678 | Y95: 144.8 | Z95: 8.5 | AA95: 2456936.931 | AB95: 7.37 | AC95: 38.79359365 | AD95: 6.228450341 | AE95: 7.37
A96: 2456936.896 | B96: 7 | C96: 45.44638395 | D96: 6.741393324 | E96: 7 | H96: 2456936.903 | I96: 7.28 | J96: 45.44638395 | K96: 6.741393324 | L96: 7.28 | O96: 2456936.913 | P96: 6.2 | Q96: 32.48640597 | R96: 5.699684725 | S96: 6.2 | U96: 2456936.923 | V96: 144.81 | W96: 42.59518236 | X96: 6.526498476 | Y96: 144.81 | Z96: 8.51 | AA96: 2456936.931 | AB96: 7.39 | AC96: 39.31199759 | AD96: 6.269928037 | AE96: 7.39
A97: 2456936.896 | B97: 7.02 | C97: 46.05116844 | D97: 6.786101122 | E97: 7.02 | H97: 2456936.903 | I97: 7.28 | J97: 45.9647879 | K97: 6.779733616 | L97: 7.28 | O97: 2456936.913 | P97: 6.22 | Q97: 33.09119046 | R97: 5.752494281 | S97: 6.22 | U97: 2456936.923 | V97: 144.82 | W97: 43.11358631 | X97: 6.566093687 | Y97: 144.82 | Z97: 8.52 | AA97: 2456936.931 | AB97: 7.41 | AC97: 39.83040154 | AD97: 6.311133142 | AE97: 7.41
A98: 2456936.896 | B98: 7.03 | C98: 46.65599316 | D98: 6.830519246 | E98: 7.03 | H98: 2456936.903 | I98: 7.29 | J98: 46.56961262 | K98: 6.824193185 | L98: 7.29 | O98: 2456936.913 | P98: 6.23 | Q98: 33.6095944 | R98: 5.797378235 | S98: 6.23 | U98: 2456936.923 | V98: 144.83 | W98: 43.63199025 | X98: 6.605451556 | Y98: 144.83 | Z98: 8.53 | AA98: 2456936.931 | AB98: 7.43 | AC98: 40.34880549 | AD98: 6.35207096 | AE98: 7.43
A99: 2456936.896 | B99: 7.04 | C99: 47.17439711 | D99: 6.86836204 | E99: 7.04 | H99: 2456936.903 | I99: 7.3 | J99: 47.08801657 | K99: 6.862070866 | L99: 7.3 | O99: 2456936.913 | P99: 6.24 | Q99: 34.12799835 | R99: 5.841917352 | S99: 6.24 | U99: 2456936.923 | V99: 144.84 | W99: 44.1503942 | X99: 6.6445763 | Y99: 144.84 | Z99: 8.54 | AA99: 2456936.931 | AB99: 7.44 | AC99: 40.8671692 | AD99: 6.39274348 | AE99: 7.44
A100: 2456936.896 | B100: 7.06 | C100: 47.7791816 | D100: 6.912248664 | E100: 7.06 | H100: 2456936.903 | I100: 7.31 | J100: 47.69280106 | K100: 6.90599747 | L100: 7.31 | O100: 2456936.913 | P100: 6.27 | Q100: 34.73278284 | R100: 5.89345254 | S100: 6.27 | U100: 2456936.923 | V100: 144.86 | W100: 44.66879815 | X100: 6.683472013 | Y100: 144.86 | Z100: 8.56 | AA100: 2456936.931 | AB100: 7.44 | AC100: 41.38557315 | AD100: 6.433161987 | AE100: 7.44
A101: 2456936.896 | B101: 7.07 | C101: 48.29758555 | D101: 6.949646433 | E101: 7.07 | H101: 2456936.903 | I101: 7.33 | J101: 48.29758555 | K101: 6.949646433 | L101: 7.33 | O101: 2456936.913 | P101: 6.29 | Q101: =(O101-$O$35)*24*60*60 -> 35.25118679 | R101: 5.937270988 | S101: 6.29 | U101: 2456936.923 | V101: 144.87 | W101: 45.1872021 | X101: 6.722142671 | Y101: 144.87 | Z101: 8.57 | AA101: 2456936.931 | AB101: 7.45 | AC101: 41.9039771 | AD101: 6.473328131 | AE101: 7.45
A102: 2456936.896 | B102: 7.1 | C102: 48.90237004 | D102: 6.993022954 | E102: 7.1 | H102: 2456936.903 | I102: 7.33 | J102: 48.81598949 | K102: 6.98684403 | L102: 7.33 | O102: 2456936.913 | P102: 6.32 | Q102: 35.76959074 | R102: 5.980768407 | S102: 6.32 | U102: 2456936.923 | V102: 144.88 | W102: 45.70560604 | X102: 6.760592137 | Y102: 144.88 | Z102: 8.58 | AA102: 2456936.931 | AB102: 7.46 | AC102: 42.42238104 | AD102: 6.513246582 | AE102: 7.46
A103: 2456936.896 | B103: 7.1 | C103: 49.42077398 | D103: 7.029991037 | E103: 7.1 | H103: 2456936.903 | I103: 7.35 | J103: 49.42081422 | K103: 7.029993899 | L103: 7.35 | O103: 2456936.913 | P103: 6.33 | Q103: 36.28799468 | R103: 6.02395175 | S103: 6.33 | U103: 2456936.923 | V103: 144.9 | W103: 46.22400999 | X103: 6.798824162 | Y103: 144.9 | Z103: 8.6 | AA103: 2456936.931 | AB103: 7.46 | AC103: 42.94078499 | AD103: 6.552921867 | AE103: 7.46
A104: 2456936.896 | B104: 7.11 | C104: 50.0255987 | D104: 7.072877682 | E104: 7.11 | H104: 2456936.903 | I104: 7.36 | J104: 49.93921816 | K104: 7.06676858 | L104: 7.36 | O104: 2456936.913 | P104: 6.34 | Q104: 36.80639863 | R104: 6.066827724 | S104: 6.34 | U104: 2456936.923 | V104: 144.92 | W104: 46.74241394 | X104: 6.836842395 | Y104: 144.92 | Z104: 8.62 | AA104: 2456936.931 | AB104: 7.46 | AC104: 43.54556948 | AD104: 6.598906688 | AE104: 7.46
A105: 2456936.896 | B105: 7.12 | C105: 50.63038319 | D105: 7.115503018 | E105: 7.12 | H105: 2456936.903 | I105: 7.36 | J105: 50.54400265 | K105: 7.109430543 | L105: 7.36 | O105: 2456936.913 | P105: 6.35 | Q105: 37.32480258 | R105: 6.1094028 | S105: 6.35 | U105: 2456936.923 | V105: 144.92 | W105: 47.26081789 | X105: 6.874650383 | Y105: 144.92 | Z105: 8.62 | AA105: 2456936.931 | AB105: 7.46 | AC105: 44.06397343 | AD105: 6.638070008 | AE105: 7.46
A106: 2456936.896 | B106: 7.13 | C106: 51.14878714 | D106: 7.151838025 | E106: 7.13 | H106: 2456936.903 | I106: 7.37 | J106: 51.14878714 | K106: 7.151838025 | L106: 7.37 | O106: 2456936.913 | P106: 6.36 | Q106: 37.84320652 | R106: 6.151683227 | S106: 6.36 | U106: 2456936.923 | V106: 144.93 | W106: 47.77922183 | X106: 6.912251575 | Y106: 144.93 | Z106: 8.63 | AA106: 2456936.931 | AB106: 7.48 | AC106: 44.58237737 | AD106: 6.677003622 | AE106: 7.48
A107: 2456936.896 | B107: 7.14 | C107: 51.75357163 | D107: 7.193995526 | E107: 7.14 | H107: 2456936.903 | I107: 7.38 | J107: 51.66719109 | K107: 7.187989363 | L107: 7.38 | O107: 2456936.913 | P107: 6.37 | Q107: 38.36161047 | R107: 6.193675038 | S107: 6.37 | U107: 2456936.923 | V107: 144.94 | W107: 48.29758555 | X107: 6.949646433 | Y107: 144.94 | Z107: 8.64 | AA107: 2456936.931 | AB107: 7.49 | AC107: 45.10078132 | AD107: 6.715711528 | AE107: 7.49
A108: 2456936.896 | B108: 7.17 | C108: 52.27197558 | D108: 7.22993607 | E108: 7.17 | H108: 2456936.903 | I108: 7.38 | J108: 52.27201581 | K108: 7.229938852 | L108: 7.38 | O108: 2456936.913 | P108: 6.4 | Q108: 38.87997419 | R108: 6.235380837 | S108: 6.4 | U108: 2456936.923 | V108: 144.95 | W108: 48.81598949 | X108: 6.98684403 | Y108: 144.95 | Z108: 8.65 | AA108: 2456936.932 | AB108: 7.49 | AC108: 45.61918527 | AD108: 6.754197604 | AE108: 7.49
A109: 2456936.896 | B109: 7.18 | C109: 52.8768003 | D109: 7.271643576 | E109: 7.18 | H109: 2456936.903 | I109: 7.39 | J109: 52.79037952 | K109: 7.265698832 | L109: 7.39 | O109: 2456936.913 | P109: 6.41 | Q109: 39.39837813 | R109: 6.276812737 | S109: 6.41 | U109: 2456936.923 | V109: 144.96 | W109: 49.42081422 | X109: 7.029993899 | Y109: 144.96 | Z109: 8.66 | AA109: 2456936.932 | AB109: 7.5 | AC109: 46.13758922 | AD109: 6.792465621 | AE109: 7.5
A110: 2456936.896 | B110: 7.19 | C110: 53.39516401 | D110: 7.307199464 | E110: 7.19 | H110: 2456936.903 | I110: 7.4 | J110: 53.39520425 | K110: 7.307202217 | L110: 7.4 | O110: 2456936.913 | P110: 6.42 | Q110: 39.91678208 | R110: 6.317972941 | S110: 6.42 | U110: 2456936.923 | V110: 144.97 | W110: 49.93921816 | X110: 7.06676858 | Y110: 144.97 | Z110: 8.67 | AA110: 2456936.932 | AB110: 7.51 | AC110: 46.65599316 | AD110: 6.830519246 | AE110: 7.51
A111: 2456936.896 | B111: 7.2 | C111: 53.99998873 | D111: 7.348468462 | E111: 7.2 | H111: 2456936.903 | I111: 7.41 | J111: 53.91360819 | K111: 7.342588658 | L111: 7.41 | O111: 2456936.913 | P111: 6.42 | Q111: 40.5216068 | R111: 6.365658395 | S111: 6.42 | U111: 2456936.923 | V111: 144.99 | W111: 50.45762211 | X111: 7.103352878 | Y111: 144.99 | Z111: 8.69 | AA111: 2456936.932 | AB111: 7.51 | AC111: 47.17439711 | AD111: 6.86836204 | AE111: 7.51
A112: 2456936.896 | B112: 7.2 | C112: 54.60477322 | D112: 7.389504261 | E112: 7.2 | H112: 2456936.903 | I112: 7.41 | J112: 54.51839268 | K112: 7.383657135 | L112: 7.41 | O112: 2456936.913 | P112: 6.43 | Q112: 41.04001075 | R112: 6.40624779 | S112: 6.43 | U112: 2456936.923 | V112: 145 | W112: 50.97598583 | X112: 7.139746902 | Y112: 145 | Z112: 8.7 | AA112: 2456936.932 | AB112: 7.52 | AC112: 47.69280106 | AD112: 6.90599747 | AE112: 7.52
A113: 2456936.896 | B113: 7.2 | C113: 55.12317717 | D113: 7.424498446 | E113: 7.2 | H113: 2456936.903 | I113: 7.44 | J113: 55.1232174 | K113: 7.424501155 | L113: 7.44 | O113: 2456936.913 | P113: 6.44 | Q113: 41.55837446 | R113: 6.446578508 | S113: 6.44 | U113: 2456936.923 | V113: 145.01 | W113: 51.49438977 | X113: 7.175959153 | Y113: 145.01 | Z113: 8.71 | AA113: 2456936.932 | AB113: 7.53 | AC113: 48.21120501 | AD113: 6.943428908 | AE113: 7.53
A114: 2456936.896 | B114: 7.23 | C114: 55.72800189 | D114: 7.465119014 | E114: 7.23 | H114: 2456936.903 | I114: 7.44 | J114: 55.64158112 | K114: 7.459328463 | L114: 7.44 | O114: 2456936.913 | P114: 6.45 | Q114: 42.07677841 | R114: 6.486661577 | S114: 6.45 | U114: 2456936.923 | V114: 145.02 | W114: 52.01279372 | X114: 7.211989581 | Y114: 145.02 | Z114: 8.72 | AA114: 2456936.932 | AB114: 7.53 | AC114: 48.72956872 | AD114: 6.980656754 | AE114: 7.53
A115: 2456936.896 | B115: 7.29 | C115: 56.24636561 | D115: 7.499757703 | E115: 7.29 | H115: 2456936.903 | I115: 7.45 | J115: 56.24640584 | K115: 7.499760386 | L115: 7.45 | O115: 2456936.913 | P115: 6.46 | Q115: 42.59518236 | R115: 6.526498476 | S115: 6.46 | U115: 2456936.923 | V115: 145.03 | W115: 52.53119767 | X115: 7.247840897 | Y115: 145.03 | Z115: 8.73 | AA115: 2456936.932 | AB115: 7.55 | AC115: 49.24797267 | AD115: 7.017689981 | AE115: 7.55
A116: 2456936.896 | B116: 7.28 | C116: 56.85119033 | D116: 7.539972833 | E116: 7.28 | H116: 2456936.903 | I116: 7.46 | J116: 56.76480979 | K116: 7.534242483 | L116: 7.46 | O116: 2456936.913 | P116: 6.48 | Q116: 43.11358631 | R116: 6.566093687 | S116: 6.48 | U116: 2456936.923 | V116: 145.04 | W116: 53.04960161 | X116: 7.283515745 | Y116: 145.04 | Z116: 8.74 | AA116: 2456936.932 | AB116: 7.56 | AC116: 49.76637661 | AD116: 7.054528802 | AE116: 7.56
A117: 2456936.896 | B117: 7.28 | C117: 57.36959428 | D117: 7.574271864 | E117: 7.28 | H117: 2456936.903 | I117: 7.46 | J117: 57.36959428 | K117: 7.574271864 | L117: 7.46 | O117: 2456936.913 | P117: 6.48 | Q117: 43.63199025 | R117: 6.605451556 | S117: 6.48 | U117: 2456936.923 | V117: 145.05 | W117: 53.6543861 | X117: 7.324915433 | Y117: 145.05 | Z117: 8.75 | AA117: 2456936.932 | AB117: 7.57 | AC117: 50.28478056 | AD117: 7.091176247 | AE117: 7.57
A118: 2456936.896 | B118: 7.28 | C118: 57.97437876 | D118: 7.614090804 | E118: 7.28 | H118: 2456936.903 | I118: 7.47 | J118: 57.88799822 | K118: 7.608416276 | L118: 7.47 | O118: 2456936.913 | P118: 6.5 | Q118: 44.23677474 | R118: 6.651073202 | S118: 6.5 | U118: 2456936.923 | V118: 145.07 | W118: 54.17279005 | X118: 7.360216712 | Y118: 145.07 | Z118: 8.77 | AA118: 2456936.932 | AB118: 7.58 | AC118: 50.88960528 | AD118: 7.133695065 | AE118: 7.58
A119: 2456936.896 | B119: 7.28 | C119: 58.57916325 | D119: 7.653702585 | E119: 7.28 | H119: 2456936.904 | I119: 7.47 | J119: 58.49278271 | K119: 7.648057447 | L119: 7.47 | O119: 2456936.913 | P119: 6.5 | Q119: 44.75517869 | R119: 6.689931142 | S119: 6.5 | U119: 2456936.923 | V119: 145.07 | W119: 54.691194 | X119: 7.395349484 | Y119: 145.07 | Z119: 8.77 | AA119: 2456936.932 | AB119: 7.59 | AC119: 51.407969 | AD119: 7.169935076 | AE119: 7.59
A120: 2456936.896 | B120: 7.28 | C120: 59.0975672 | D120: 7.687494208 | E120: 7.28 | H120: 2456936.904 | I120: 7.49 | J120: 59.09760743 | K120: 7.687496825 | L120: 7.49 | O120: 2456936.913 | P120: 6.5 | Q120: 45.27358264 | R120: 6.728564679 | S120: 6.5 | U120: 2456936.923 | V120: 145.09 | W120: 55.20959795 | X120: 7.43031614 | Y120: 145.09 | Z120: 8.79 | AA120: 2456936.932 | AB120: 7.6 | AC120: 51.92637295 | AD120: 7.205995625 | AE120: 7.6
A121: 2456936.896 | B121: 7.28 | C121: 59.70239192 | D121: 7.726732293 | E121: 7.28 | H121: 2456936.904 | I121: 7.49 | J121: 59.61601138 | K121: 7.721140549 | L121: 7.49 | O121: 2456936.913 | P121: 6.5 | Q121: 45.79198658 | R121: 6.766977655 | S121: 6.5 | U121: 2456936.923 | V121: 145.1 | W121: 55.72800189 | X121: 7.465119014 | Y121: 145.1 | Z121: 8.8 | AA121: 2456936.932 | AB121: 7.6 | AC121: 52.44477689 | AD121: 7.241876614 | AE121: 7.6
A122: 2456936.896 | B122: 7.28 | C122: 60.22079587 | D122: 7.760205917 | E122: 7.28 | H122: 2456936.904 | I122: 7.5 | J122: 60.22079587 | K122: 7.760205917 | L122: 7.5 | O122: 2456936.913 | P122: 6.51 | Q122: 46.31039053 | R122: 6.805173806 | S122: 6.51 | U122: 2456936.923 | V122: 145.11 | W122: 56.24640584 | X122: 7.499760386 | Y122: 145.11 | Z122: 8.81 | AA122: 2456936.932 | AB122: 7.61 | AC122: 52.96318084 | AD122: 7.2775807 | AE122: 7.61
A123: 2456936.896 | B123: 7.3 | C123: 60.82558036 | D123: 7.799075609 | E123: 7.3 | H123: 2456936.904 | I123: 7.52 | J123: 60.73919982 | K123: 7.793535771 | L123: 7.52 | O123: 2456936.913 | P123: 6.52 | Q123: 46.82879448 | R123: 6.843156763 | S123: 6.52 | U123: 2456936.923 | V123: 145.12 | W123: 56.76480979 | X123: 7.534242483 | Y123: 145.12 | Z123: 8.82 | AA123: 2456936.932 | AB123: 7.61 | AC123: 53.48158479 | AD123: 7.313110473 | AE123: 7.61
A124: 2456936.896 | B124: 7.31 | C124: 61.34398431 | D124: 7.832240057 | E124: 7.31 | H124: 2456936.904 | I124: 7.53 | J124: 61.34398431 | K124: 7.832240057 | L124: 7.53 | O124: 2456936.913 | P124: 6.53 | Q124: 47.34719843 | R124: 6.880930055 | S124: 6.53 | U124: 2456936.923 | V124: 145.13 | W124: 57.28321373 | X124: 7.568567482 | Y124: 145.13 | Z124: 8.83 | AA124: 2456936.932 | AB124: 7.61 | AC124: 53.99998873 | AD124: 7.348468462 | AE124: 7.61
A125: 2456936.896 | B125: 7.32 | C125: 61.94876879 | D125: 7.870754017 | E125: 7.32 | H125: 2456936.904 | I125: 7.54 | J125: 61.86238825 | K125: 7.865264665 | L125: 7.54 | O125: 2456936.913 | P125: 6.54 | Q125: 47.86560237 | R125: 6.918497118 | S125: 6.54 | U125: 2456936.923 | V125: 145.13 | W125: 57.80161768 | X125: 7.602737512 | Y125: 145.13 | Z125: 8.83 | AA125: 2456936.932 | AB125: 7.61 | AC125: 54.51839268 | AD125: 7.383657135 | AE125: 7.61
A126: 2456936.896 | B126: 7.33 | C126: 62.55359352 | D126: 7.909082976 | E126: 7.33 | H126: 2456936.904 | I126: 7.55 | J126: 62.46721298 | K126: 7.903620245 | L126: 7.55 | O126: 2456936.913 | P126: 6.56 | Q126: 48.47038686 | R126: 6.962067715 | S126: 6.56 | U126: 2456936.923 | V126: 145.14 | W126: 58.32002163 | X126: 7.636754653 | Y126: 145.14 | Z126: 8.84 | AA126: 2456936.932 | AB126: 7.62 | AC126: 55.12317717 | AD126: 7.424498446 | AE126: 7.62
A127: 2456936.896 | B127: 7.33 | C127: 63.07199746 | D127: 7.941788052 | E127: 7.33 | H127: 2456936.904 | I127: 7.55 | J127: 63.07199746 | K127: 7.941788052 | L127: 7.55 | O127: 2456936.913 | P127: 6.5 | Q127: 48.98879081 | R127: 6.999199298 | S127: 6.5 | U127: 2456936.923 | V127: 145.16 | W127: 58.83838534 | X127: 7.670618316 | Y127: 145.16 | Z127: 8.86 | AA127: 2456936.932 | AB127: 7.62 | AC127: 55.64158112 | AD127: 7.459328463 | AE127: 7.62
A128: 2456936.896 | B128: 7.34 | C128: 63.67678195 | D128: 7.979773302 | E128: 7.34 | H128: 2456936.904 | I128: 7.56 | J128: 63.59040141 | K128: 7.974358997 | L128: 7.56 | O128: 2456936.913 | P128: 6.51 | Q128: 49.50719476 | R128: 7.03613493 | S128: 6.51 | U128: 2456936.923 | V128: 145.18 | W128: 59.35678929 | X128: 7.704335746 | Y128: 145.18 | Z128: 8.88 | AA128: 2456936.932 | AB128: 7.64 | AC128: 56.15998507 | AD128: 7.493996602 | AE128: 7.64
A129: 2456936.896 | B129: 7.34 | C129: 64.1951859 | D129: 8.012189832 | E129: 7.34 | H129: 2456936.904 | I129: 7.56 | J129: 64.1951859 | K129: 8.012189832 | L129: 7.56 | O129: 2456936.913 | P129: 6.5 | Q129: 50.11197925 | R129: 7.078981512 | S129: 6.5 | U129: 2456936.923 | V129: 145.19 | W129: 59.87519324 | X129: 7.737906257 | Y129: 145.19 | Z129: 8.89 | AA129: 2456936.932 | AB129: 7.65 | AC129: 56.67838901 | AD129: 7.528505098 | AE129: 7.65
A130: 2456936.896 | B130: 7.37 | C130: 64.79997039 | D130: 8.04984288 | E130: 7.37 | H130: 2456936.904 | I130: 7.57 | J130: 64.71358985 | K130: 8.044475735 | L130: 7.57 | O130: 2456936.913 | P130: 6.51 | Q130: 50.63038319 | R130: 7.115503018 | S130: 6.51 | U130: 2456936.923 | V130: 145.2 | W130: 60.39359719 | X130: 7.771331751 | Y130: 145.2 | Z130: 8.9 | AA130: 2456936.932 | AB130: 7.65 | AC130: 57.19679296 | AD130: 7.562856138 | AE130: 7.65
A131: 2456936.896 | B131: 7.37 | C131: 65.31837434 | D131: 8.081978368 | E131: 7.37 | H131: 2456936.904 | I131: 7.57 | J131: 65.31841457 | K131: 8.081980857 | L131: 7.57 | O131: 2456936.913 | P131: 6.51 | Q131: 51.14878714 | R131: 7.151838025 | S131: 6.51 | U131: 2456936.923 | V131: 145.2 | W131: 60.99842191 | X131: 7.810148648 | Y131: 145.2 | Z131: 8.9 | AA131: 2456936.932 | AB131: 7.66 | AC131: 57.71519691 | AD131: 7.597051856 | AE131: 7.66
A132: 2456936.896 | B132: 7.37 | C132: 65.92319906 | D132: 8.119310258 | E132: 7.37 | H132: 2456936.904 | I132: 7.58 | J132: 65.83681852 | K132: 8.113989063 | L132: 7.58 | O132: 2456936.913 | P132: 6.53 | Q132: 51.75361186 | R132: 7.193998322 | S132: 6.53 | U132: 2456936.924 | V132: 145.21 | W132: 61.51678562 | X132: 7.84326371 | Y132: 145.21 | Z132: 8.91 | AA132: 2456936.932 | AB132: 7.67 | AC132: 58.23360085 | AD132: 7.631094342 | AE132: 7.67
A133: 2456936.896 | B133: 7.37 | C133: 66.52798355 | D133: 8.156468816 | E133: 7.37 | H133: 2456936.904 | I133: 7.59 | J133: 66.441603 | K133: 8.151171879 | L133: 7.59 | O133: 2456936.913 | P133: 6.53 | Q133: 52.27197558 | R133: 7.22993607 | S133: 6.53 | U133: 2456936.924 | V133: 145.22 | W133: 62.03518957 | X133: 7.876242097 | Y133: 145.22 | Z133: 8.92 | AA133: 2456936.932 | AB133: 7.67 | AC133: 58.7520048 | AD133: 7.664985636 | AE133: 7.67
A134: 2456936.896 | B134: 7.38 | C134: 67.04638749 | D134: 8.188185849 | E134: 7.38 | H134: 2456936.904 | I134: 7.61 | J134: 67.04638749 | K134: 8.188185849 | L134: 7.61 | O134: 2456936.913 | P134: 6.61 | Q134: 52.8768003 | R134: 7.271643576 | S134: 6.61 | U134: 2456936.924 | V134: 145.24 | W134: 62.55359352 | X134: 7.909082976 | Y134: 145.24 | Z134: 8.94 | AA134: 2456936.932 | AB134: 7.68 | AC134: 59.27036852 | AD134: 7.698725123 | AE134: 7.68
A135: 2456936.896 | B135: 7.39 | C135: 67.65117198 | D135: 8.225033251 | E135: 7.39 | H135: 2456936.904 | I135: 7.61 | J135: 67.56479144 | K135: 8.219780498 | L135: 7.61 | O135: 2456936.913 | P135: 6.62 | Q135: 53.39520425 | R135: 7.307202217 | S135: 6.62 | U135: 2456936.924 | V135: 145.25 | W135: 63.07199746 | X135: 7.941788052 | Y135: 145.25 | Z135: 8.95 | AA135: 2456936.932 | AB135: 7.68 | AC135: 59.87519324 | AD135: 7.737906257 | AE135: 7.68
A136: 2456936.896 | B136: 7.41 | C136: 68.16957593 | D136: 8.2564869 | E136: 7.41 | H136: 2456936.904 | I136: 7.61 | J136: 68.16961616 | K136: 8.256489336 | L136: 7.61 | O136: 2456936.913 | P136: 6.63 | Q136: 53.91360819 | R136: 7.342588658 | S136: 6.63 | U136: 2456936.924 | V136: 145.26 | W136: 63.59040141 | X136: 7.974358997 | Y136: 145.26 | Z136: 8.96 | AA136: 2456936.932 | AB136: 7.69 | AC136: 60.39359719 | AD136: 7.771331751 | AE136: 7.69
A137: 2456936.896 | B137: 7.43 | C137: 68.77440065 | D137: 8.29303326 | E137: 7.43 | H137: 2456936.904 | I137: 7.61 | J137: 68.68797988 | K137: 8.287821178 | L137: 7.61 | O137: 2456936.913 | P137: 6.65 | Q137: 54.43201214 | R137: 7.377805374 | S137: 6.65 | U137: 2456936.924 | V137: 145.27 | W137: 64.10880536 | X137: 8.006797447 | Y137: 145.27 | Z137: 8.97 | AA137: 2456936.932 | AB137: 7.69 | AC137: 60.91200113 | AD137: 7.804614093 | AE137: 7.69
A138: 2456936.896 | B138: 7.44 | C138: 69.29276437 | D138: 8.324227554 | E138: 7.44 | H138: 2456936.904 | I138: 7.62 | J138: 69.2928046 | K138: 8.32422997 | L138: 7.62 | O138: 2456936.913 | P138: 6.67 | Q138: 54.95037585 | R138: 7.412852073 | S138: 6.67 | U138: 2456936.924 | V138: 145.28 | W138: 64.62720931 | X138: 8.039105007 | Y138: 145.28 | Z138: 8.98 | AA138: 2456936.932 | AB138: 7.7 | AC138: 61.43040508 | AD138: 7.837755105 | AE138: 7.7
A139: 2456936.896 | B139: 7.45 | C139: 69.89758909 | D139: 8.360477803 | E139: 7.45 | H139: 2456936.904 | I139: 7.62 | J139: 69.81120855 | K139: 8.3553102 | L139: 7.62 | O139: 2456936.913 | P139: 6.67 | Q139: 55.4687798 | R139: 7.447736556 | S139: 6.67 | U139: 2456936.924 | V139: 145.29 | W139: 65.14561325 | X139: 8.071283247 | Y139: 145.29 | Z139: 8.99 | AA139: 2456936.932 | AB139: 7.71 | AC139: 61.94876879 | AD139: 7.870754017 | AE139: 7.71
A140: 2456936.896 | B140: 7.46 | C140: 70.50237358 | D140: 8.396569155 | E140: 7.46 | H140: 2456936.904 | I140: 7.62 | J140: 70.41599303 | K140: 8.391423779 | L140: 7.62 | O140: 2456936.913 | P140: 6.67 | Q140: 55.98718375 | R140: 7.482458403 | S140: 6.67 | U140: 2456936.924 | V140: 145.3 | W140: 65.6640172 | X140: 8.103333709 | Y140: 145.3 | Z140: 9 | AA140: 2456936.932 | AB140: 7.72 | AC140: 62.46717274 | AD140: 7.9036177 | AE140: 7.72
A141: 2456936.896 | B141: 7.46 | C141: 71.02077752 | D141: 8.427382602 | E141: 7.46 | H141: 2456936.904 | I141: 7.63 | J141: 71.02081776 | K141: 8.427384989 | L141: 7.63 | O141: 2456936.913 | P141: 6.69 | Q141: 56.5055877 | R141: 7.517019868 | S141: 6.69 | U141: 2456936.924 | V141: 145.31 | W141: 66.18242115 | X141: =SQRT(W141) -> 8.135257903 | Y141: =V141 -> 145.31 | Z141: 9.01 | AA141: 2456936.932 | AB141: 7.73 | AC141: 62.98557669 | AD141: 7.936345298 | AE141: 7.73
A142: 2456936.896 | B142: 7.46 | C142: 71.62560225 | D142: 8.46319102 | E142: 7.46 | H142: 2456936.904 | I142: 7.65 | J142: 71.53918147 | K142: 8.458083794 | L142: 7.65 | O142: 2456936.913 | P142: 6.69 | Q142: 57.02399164 | R142: 7.551423154 | S142: 6.69 | U142: 2456936.924 | V142: 145.32 | W142: 66.70078486 | X142: 8.167054846 | Y142: 145.32 | Z142: 9.02 | AA142: 2456936.932 | AB142: 7.73 | AC142: 63.50398064 | AD142: 7.968938489 | AE142: 7.73
A143: 2456936.896 | B143: 7.47 | C143: 72.14396596 | D143: 8.493760413 | E143: 7.47 | H143: 2456936.904 | I143: 7.68 | J143: 72.14400619 | K143: 8.493762782 | L143: 7.68 | O143: 2456936.913 | P143: 6.7 | Q143: 57.62877613 | R143: 7.591361942 | S143: 6.7 | U143: 2456936.924 | V143: 145.33 | W143: 67.21918881 | X143: 8.198730927 | Y143: 145.33 | Z143: 9.03 | AA143: 2456936.932 | AB143: 7.75 | AC143: 64.02238458 | AD143: 8.001398914 | AE143: 7.75
A144: 2456936.896 | B144: 7.48 | C144: 72.74879068 | D144: 8.529290163 | E144: 7.48 | H144: 2456936.904 | I144: 7.68 | J144: 72.66241014 | K144: 8.5242249 | L144: 7.68 | O144: 2456936.913 | P144: 6.7 | Q144: 58.14718008 | R144: 7.625429829 | S144: 6.7 | U144: 2456936.924 | V144: 145.34 | W144: 67.73759276 | X144: 8.230285096 | Y144: 145.34 | Z144: =Y144-136.3 -> 9.04 | AA144: 2456936.932 | AB144: 7.76 | AC144: 64.54078853 | AD144: 8.033728184 | AE144: 7.76
A145: 2456936.896 | B145: 7.4 | C145: 73.26719463 | D145: 8.559625846 | E145: 7.4 | H145: 2456936.904 | I145: 7.68 | J145: 73.26719463 | K145: 8.559625846 | L145: 7.68 | O145: 2456936.913 | P145: 6.71 | Q145: 58.66558403 | R145: 7.659346188 | S145: 6.71 | U145: 2456936.924 | V145: 145.37 | W145: =(U145-$U$15)*24*60*60 -> 68.2559967 | X145: 8.26171875 | Y145: 145.37 | Z145: 9.07 | AA145: 2456936.932 | AB145: 7.76 | AC145: 65.05919248 | AD145: 8.065927875 | AE145: 7.76
A146: 2456936.896 | B146: 7.33 | C146: =(A146-$A$16)*24*60*60 -> 73.87197912 | D146: =SQRT(C146) -> 8.594880983 | E146: =B146 -> 7.33 | H146: 2456936.904 | I146: 7.68 | J146: =(H146-$H$16)*24*60*60 -> 73.78559858 | K146: =SQRT(J146) -> 8.589854398 | L146: =I146 -> 7.68 | O146: 2456936.913 | P146: 6.71 | Q146: 59.27040875 | R146: =SQRT(Q146) -> 7.698727736 | S146: =P146 -> 6.71 | U146: 2456936.924 | V146: 145.37 | W146: 68.86082143 | X146: 8.298242068 | Y146: 145.37 | Z146: 9.07 | AA146: 2456936.932 | AB146: 7.77 | AC146: 65.57759643 | AD146: 8.097999532 | AE146: 7.77
A147: 2456936.896 | B147: 7.3 | C147: 74.47676361 | D147: 8.629992098 | E147: 7.3 | H147: 2456936.904 | I147: 7.68 | J147: 74.39038306 | K147: 8.624985975 | L147: 7.68 | O147: 2456936.913 | P147: 6.71 | Q147: 59.7888127 | R147: 7.732322594 | S147: 6.71 | U147: 2456936.924 | V147: 145.38 | W147: 69.37918514 | X147: 8.329416855 | Y147: 145.38 | Z147: 9.08 | AA147: 2456936.932 | AB147: 7.77 | AC147: 66.18238091 | AD147: 8.13525543 | AE147: 7.77
A148: 2456936.896 | B148: 7.31 | C148: 74.99516755 | D148: 8.659975032 | E148: 7.31 | H148: 2456936.904 | I148: 7.67 | J148: 74.99520779 | K148: 8.659977355 | L148: 7.67 | O148: 2456936.913 | P148: 6.72 | Q148: 60.30717641 | R148: 7.765769531 | S148: 6.72 | U148: 2456936.924 | V148: 145.39 | W148: 69.89758909 | X148: 8.360477803 | Y148: 145.39 | Z148: 9.09 | AA148: 2456936.932 | AB148: 7.78 | AC148: 66.70078486 | AD148: 8.167054846 | AE148: 7.78
A149: 2456936.896 | B149: 7.4 | C149: 75.59999228 | D149: 8.694825603 | E149: 7.4 | H149: 2456936.904 | I149: 7.66 | J149: 75.51361173 | K149: 8.68985683 | L149: 7.66 | O149: 2456936.913 | P149: 6.73 | Q149: 60.82558036 | R149: 7.799075609 | S149: 6.73 | U149: 2456936.924 | V149: 145.39 | W149: 70.41599303 | X149: 8.391423779 | Y149: 145.39 | Z149: 9.09 | AA149: 2456936.932 | AB149: 7.78 | AC149: 67.21918881 | AD149: 8.198730927 | AE149: 7.78
A150: 2456936.896 | B150: 7.5 | C150: 76.11839622 | D150: 8.724585734 | E150: 7.5 | H150: 2456936.904 | I150: 7.65 | J150: 76.03201568 | K150: 8.719633919 | L150: 7.65 | O150: 2456936.913 | P150: 6.74 | Q150: 61.34398431 | R150: 7.832240057 | S150: 6.74 | U150: 2456936.924 | V150: 145.4 | W150: 70.93439698 | X150: 8.422256051 | Y150: 145.4 | Z150: 9.1 | AA150: 2456936.932 | AB150: 7.79 | AC150: 67.73759276 | AD150: 8.230285096 | AE150: 7.79
A151: 2456936.896 | B151: 7.54 | C151: 76.72318071 | D151: 8.759176943 | E151: 7.54 | H151: 2456936.904 | I151: 7.66 | J151: 76.63680017 | K151: 8.754244694 | L151: 7.66 | O151: 2456936.913 | P151: 6.76 | Q151: 61.86238825 | R151: 7.865264665 | S151: 6.76 | U151: 2456936.924 | V151: 145.4 | W151: 71.45280093 | X151: 8.452975862 | Y151: 145.4 | Z151: 9.1 | AA151: 2456936.932 | AB151: 7.79 | AC151: =(AA151-$AA$21)*24*60*60 -> 68.2559967 | AD151: =SQRT(AC151) -> 8.26171875 | AE151: =AB151 -> 7.79
A152: 2456936.896 | B152: 7.54 | C152: 77.24158466 | D152: 8.788719171 | E152: 7.54 | H152: 2456936.904 | I152: 7.68 | J152: 77.15520412 | K152: 8.783803511 | L152: 7.68 | O152: 2456936.913 | P152: 6.77 | Q152: 62.46721298 | R152: 7.903620245 | S152: 6.77 | U152: 2456936.924 | V152: 145.41 | W152: 71.97120488 | X152: 8.483584436 | Y152: 145.41 | Z152: 9.11 | AA152: 2456936.932 | AB152: 7.8 | AC152: 68.77440065 | AD152: 8.29303326 | AE152: 7.8
A153: 2456936.896 | B153: 7.54 | C153: 77.84636915 | D153: 8.823058945 | E153: 7.54 | H153: 2456936.904 | I153: 7.69 | J153: 77.75998861 | K153: 8.818162428 | L153: 7.69 | O153: 2456936.913 | P153: 6.77 | Q153: 63.07199746 | R153: 7.941788052 | S153: 6.77 | U153: 2456936.924 | V153: 145.43 | W153: 72.48960882 | X153: 8.51408297 | Y153: 145.43 | Z153: 9.13 | AA153: 2456936.932 | AB153: 7.81 | AC153: 69.2928046 | AD153: 8.32422997 | AE153: 7.81
A154: 2456936.896 | B154: 7.54 | C154: 78.45119387 | D154: 8.857267856 | E154: 7.54 | H154: 2456936.904 | I154: 7.7 | J154: 78.36481333 | K154: 8.852390261 | L154: 7.7 | O154: 2456936.913 | P154: 6.8 | Q154: 63.59040141 | R154: 7.974358997 | S154: 6.8 | U154: 2456936.924 | V154: 145.43 | W154: 73.00801277 | X154: 8.544472644 | Y154: 145.43 | Z154: 9.13 | AA154: 2456936.932 | AB154: 7.81 | AC154: 69.81116831 | AD154: 8.355307793 | AE154: 7.81
A155: 2456936.896 | B155: 7.54 | C155: 78.96959782 | D155: 8.886483996 | E155: 7.54 | H155: 2456936.904 | I155: 7.71 | J155: 78.88321728 | K155: 8.881622446 | L155: 7.71 | O155: 2456936.913 | P155: 6.8 | Q155: 64.10880536 | R155: 8.006797447 | S155: 6.8 | U155: 2456936.924 | V155: 145.45 | W155: 73.52641672 | X155: 8.574754616 | Y155: 145.45 | Z155: 9.15 | AA155: 2456936.932 | AB155: 7.82 | AC155: 70.32957226 | AD155: 8.386272847 | AE155: 7.82
A156: 2456936.896 | B156: 7.54 | C156: 79.57438231 | D156: 8.920447427 | E156: 7.54 | H156: 2456936.904 | I156: 7.72 | J156: 79.48800176 | K156: 8.915604397 | L156: 7.72 | O156: 2456936.913 | P156: 6.81 | Q156: 64.62720931 | R156: 8.039105007 | S156: 6.81 | U156: 2456936.924 | V156: 145.46 | W156: 74.04482067 | X156: 8.604930021 | Y156: 145.46 | Z156: 9.16 | AA156: 2456936.932 | AB156: 7.82 | AC156: 70.84797621 | AD156: 8.417123987 | AE156: 7.82
A157: 2456936.896 | B157: 7.6 | C157: 80.09278625 | D157: 8.949457316 | E157: 7.6 | H157: 2456936.904 | I157: 7.72 | J157: 80.00640571 | K157: 8.944629993 | L157: 7.72 | O157: 2456936.913 | P157: 6.81 | Q157: 65.14557302 | R157: 8.071280755 | S157: 6.81 | U157: 2456936.924 | V157: 145.46 | W157: 74.56318438 | X157: 8.634997648 | Y157: 145.46 | Z157: 9.16 | AA157: 2456936.932 | AB157: 7.83 | AC157: 71.36638016 | AD157: 8.447862461 | AE157: 7.83
A158: 2456936.896 | B158: 7.61 | C158: 80.69757074 | D158: 8.983182662 | E158: 7.61 | H158: 2456936.904 | I158: 7.72 | J158: 80.6111902 | K158: 8.978373472 | L158: 7.72 | O158: 2456936.913 | P158: 6.82 | Q158: 65.66397697 | R158: 8.103331227 | S158: 6.82 | U158: 2456936.924 | V158: 145.47 | W158: 75.08158833 | X158: 8.664963262 | Y158: 145.47 | Z158: 9.17 | AA158: 2456936.932 | AB158: 7.83 | AC158: 71.8847841 | AD158: 8.478489494 | AE158: 7.83
A159: 2456936.896 | B159: 7.62 | C159: 81.30239546 | D159: 9.016784098 | E159: 7.62 | H159: 2456936.904 | I159: 7.72 | J159: 81.12959415 | K159: 9.007196797 | L159: 7.72 | O159: 2456936.913 | P159: 6.82 | Q159: 66.18238091 | R159: 8.13525543 | S159: 6.82 | U159: 2456936.924 | V159: 145.48 | W159: 75.59999228 | X159: 8.694825603 | Y159: 145.48 | Z159: 9.18 | AA159: 2456936.932 | AB159: 7.83 | AC159: 72.40318805 | AD159: 8.50900629 | AE159: 7.83
A160: 2456936.896 | B160: 7.62 | C160: 81.82079941 | D160: 9.045485029 | E160: 7.62 | H160: 2456936.904 | I160: 7.73 | J160: 81.73441887 | K160: 9.04070898 | L160: 7.73 | O160: 2456936.913 | P160: 6.83 | Q160: 66.70078486 | R160: 8.167054846 | S160: 6.83 | U160: 2456936.924 | V160: 145.48 | W160: 76.11839622 | X160: 8.724585734 | Y160: 145.48 | Z160: 9.18 | AA160: 2456936.932 | AB160: 7.84 | AC160: 72.921592 | AD160: 8.539414031 | AE160: 7.84
A161: 2456936.896 | B161: 7.62 | C161: 82.4255839 | D161: 9.078853667 | E161: 7.62 | H161: 2456936.904 | I161: 7.74 | J161: 82.33920336 | K161: 9.074095181 | L161: 7.74 | O161: 2456936.913 | P161: 6.83 | Q161: 67.21918881 | R161: 8.198730927 | S161: 6.83 | U161: 2456936.924 | V161: 145.49 | W161: 76.72322094 | X161: 8.759179239 | Y161: 145.49 | Z161: 9.19 | AA161: 2456936.932 | AB161: 7.84 | AC161: 73.43999594 | AD161: 8.569713878 | AE161: 7.84
A162: 2456936.896 | B162: 7.62 | C162: 82.94398785 | D162: 9.107358994 | E162: 7.62 | H162: 2456936.904 | I162: 7.77 | J162: 82.85760731 | K162: 9.10261541 | L162: 7.77 | O162: 2456936.913 | P162: 6.84 | Q162: 67.73759276 | R162: 8.230285096 | S162: 6.84 | U162: 2456936.924 | V162: 145.5 | W162: 77.24158466 | X162: 8.788719171 | Y162: 145.5 | Z162: 9.2 | AA162: 2456936.932 | AB162: 7.84 | AC162: 74.04478043 | AD162: 8.604927683 | AE162: 7.84
A163: 2456936.896 | B163: 7.63 | C163: 83.54877234 | D163: 9.140501755 | E163: 7.63 | H163: 2456936.904 | I163: 7.77 | J163: 83.46239179 | K163: 9.13577538 | L163: 7.77 | O163: 2456936.913 | P163: 6.84 | Q163: 68.2559967 | R163: 8.26171875 | S163: 6.84 | U163: 2456936.924 | V163: 145.51 | W163: 77.75998861 | X163: 8.818162428 | Y163: 145.51 | Z163: 9.21 | AA163: 2456936.932 | AB163: 7.84 | AC163: 74.56318438 | AD163: 8.634997648 | AE163: 7.84
A164: 2456936.896 | B164: 7.64 | C164: 84.06717628 | D164: 9.168815424 | E164: 7.64 | H164: 2456936.904 | I164: 7.78 | J164: 83.98079574 | K164: 9.164103652 | L164: 7.78 | O164: 2456936.913 | P164: 6.85 | Q164: 68.77440065 | R164: 8.29303326 | S164: 6.85 | U164: 2456936.924 | V164: 145.54 | W164: 78.27839255 | X164: 8.847507703 | Y164: 145.54 | Z164: 9.24 | AA164: 2456936.932 | AB164: 7.85 | AC164: 75.08158833 | AD164: 8.664963262 | AE164: 7.85
A165: 2456936.896 | B165: 7.66 | C165: 84.672001 | D165: 9.201739021 | E165: 7.66 | H165: 2456936.904 | I165: 7.78 | J165: 84.58558023 | K165: 9.197041928 | L165: 7.78 | O165: 2456936.913 | P165: 6.85 | Q165: =(O165-$O$35)*24*60*60 -> 69.2928046 | R165: 8.32422997 | S165: 6.85 | U165: 2456936.924 | V165: 145.54 | W165: 78.7967965 | X165: 8.876755967 | Y165: 145.54 | Z165: 9.24 | AA165: 2456936.932 | AB165: 7.85 | AC165: 75.59999228 | AD165: 8.694825603 | AE165: 7.85
A166: 2456936.896 | B166: 7.67 | C166: 85.19036472 | D166: 9.22986266 | E166: 7.67 | H166: 2456936.904 | I166: 7.79 | J166: 85.10398418 | K166: 9.225182067 | L166: 7.79 | O166: 2456936.913 | P166: 6.86 | Q166: 69.81120855 | R166: 8.3553102 | S166: 6.86 | U166: 2456936.924 | V166: 145.55 | W166: 79.31520045 | X166: 8.905908176 | Y166: 145.55 | Z166: 9.25 | AA166: 2456936.932 | AB166: 7.86 | AC166: 76.11839622 | AD166: 8.724585734 | AE166: 7.86
A167: 2456936.896 | B167: 7.68 | C167: 85.79518944 | D167: 9.262569268 | E167: 7.68 | H167: 2456936.904 | I167: 7.79 | J167: 85.7088089 | K167: 9.257905211 | L167: 7.79 | O167: 2456936.913 | P167: 6.86 | Q167: 70.41599303 | R167: 8.391423779 | S167: 6.86 | U167: 2456936.924 | V167: 145.55 | W167: 79.8336044 | X167: 8.934965271 | Y167: 145.55 | Z167: 9.25 | AA167: 2456936.932 | AB167: 7.87 | AC167: 76.63680017 | AD167: 8.754244694 | AE167: 7.87
A168: 2456936.896 | B168: 7.69 | C168: 86.39997393 | D168: 9.295158628 | E168: 7.69 | H168: 2456936.904 | I168: 7.78 | J168: 86.31359339 | K168: 9.290510933 | L168: 7.78 | O168: 2456936.913 | P168: 6.86 | Q168: 70.93439698 | R168: 8.422256051 | S168: 6.86 | U168: 2456936.924 | V168: 145.55 | W168: 80.35200834 | X168: 8.963928176 | Y168: 145.55 | Z168: 9.25 | AA168: 2456936.932 | AB168: 7.87 | AC168: 77.15520412 | AD168: 8.783803511 | AE168: 7.87
A169: 2456936.896 | B169: 7.69 | C169: 86.91837788 | D169: 9.323002621 | E169: 7.69 | H169: 2456936.904 | I169: 7.78 | J169: 86.83199733 | K169: 9.318368813 | L169: 7.78 | O169: 2456936.913 | P169: 6.86 | Q169: 71.45280093 | R169: 8.452975862 | S169: 6.86 | U169: 2456936.924 | V169: 145.56 | W169: 80.87041229 | X169: 8.992797801 | Y169: 145.56 | Z169: 9.26 | AA169: 2456936.932 | AB169: 7.88 | AC169: 77.67356783 | AD169: 8.813260908 | AE169: 7.88
A170: 2456936.896 | B170: 7.7 | C170: 87.52316236 | D170: 9.355381465 | E170: 7.7 | H170: 2456936.904 | I170: 7.78 | J170: 87.43678182 | K170: 9.350763703 | L170: 7.78 | O170: 2456936.913 | P170: 6.86 | Q170: 71.97120488 | R170: 8.483584436 | S170: 6.86 | U170: 2456936.924 | V170: 145.56 | W170: 81.38881624 | X170: 9.021575042 | Y170: 145.56 | Z170: 9.26 | AA170: 2456936.932 | AB170: 7.88 | AC170: 78.19197178 | AD170: 8.842622449 | AE170: 7.88
A171: 2456936.896 | B171: 7.71 | C171: 88.04156631 | D171: 9.38304675 | E171: 7.71 | H171: 2456936.904 | I171: 7.78 | J171: 87.95518577 | K171: 9.378442609 | L171: 7.78 | O171: 2456936.913 | P171: 6.67 | Q171: 72.48960882 | R171: 8.51408297 | S171: 6.67 | U171: 2456936.924 | V171: 145.57 | W171: 81.90722018 | X171: 9.05026078 | Y171: 145.57 | Z171: 9.27 | AA171: 2456936.932 | AB171: 7.89 | AC171: 78.71037573 | AD171: 8.871886819 | AE171: 7.89
A172: 2456936.896 | B172: 7.71 | C172: 88.64639103 | D172: 9.415221242 | E172: 7.71 | H172: 2456936.904 | I172: 7.78 | J172: 88.56001049 | K172: 9.410632842 | L172: 7.78 | O172: 2456936.913 | P172: 6.72 | Q172: 73.00801277 | R172: 8.544472644 | S172: 6.72 | U172: 2456936.924 | V172: 145.58 | W172: 82.4255839 | X172: 9.078853667 | Y172: 145.58 | Z172: 9.28 | AA172: 2456936.932 | AB172: 7.9 | AC172: 79.22877967 | AD172: 8.901054975 | AE172: 7.9
A173: 2456936.896 | B173: 7.71 | C173: 89.25117552 | D173: 9.447284029 | E173: 7.71 | H173: 2456936.904 | I173: 7.84 | J173: 89.07841444 | K173: 9.438136174 | L173: 7.84 | O173: 2456936.913 | P173: 6.77 | Q173: 73.52637649 | R173: 8.57475227 | S173: 6.77 | U173: 2456936.924 | V173: 145.59 | W173: 82.94398785 | X173: 9.107358994 | Y173: 145.59 | Z173: 9.29 | AA173: 2456936.932 | AB173: 7.9 | AC173: 79.74718362 | AD173: 8.930127861 | AE173: 7.9
A174: 2456936.896 | B174: 7.73 | C174: 89.76957947 | D174: 9.474680969 | E174: 7.73 | H174: 2456936.904 | I174: 7.85 | J174: 89.68319893 | K174: 9.470121379 | L174: 7.85 | O174: 2456936.913 | P174: 6.77 | Q174: 74.13120121 | R174: 8.609947805 | S174: 6.77 | U174: 2456936.924 | V174: 145.6 | W174: 83.46239179 | X174: 9.13577538 | Y174: 145.6 | Z174: 9.3 | AA174: 2456936.932 | AB174: 7.9 | AC174: 80.26558757 | AD174: 8.959106405 | AE174: 7.9
A175: 2456936.896 | B175: 7.74 | C175: 90.37436396 | D175: 9.506543218 | E175: 7.74 | H175: 2456936.904 | I175: 7.88 | J175: 90.28798342 | K175: 9.501998917 | L175: 7.88 | O175: 2456936.913 | P175: 6.77 | Q175: 74.64960515 | R175: 8.640000298 | S175: 6.77 | U175: 2456936.924 | V175: 145.6 | W175: 83.98079574 | X175: 9.164103652 | Y175: 145.6 | Z175: 9.3 | AA175: 2456936.932 | AB175: 7.91 | AC175: 80.78399152 | AD175: 8.987991517 | AE175: 7.91
A176: 2456936.896 | B176: 7.74 | C176: 90.89276791 | D176: 9.533769869 | E176: 7.74 | H176: 2456936.904 | I176: 7.88 | J176: 90.80638736 | K176: 9.529238551 | L176: 7.88 | O176: 2456936.913 | P176: 6.77 | Q176: 75.1680091 | R176: 8.669948622 | S176: 6.77 | U176: 2456936.924 | V176: 145.62 | W176: 84.58562046 | X176: 9.197044116 | Y176: 145.62 | Z176: 9.32 | AA176: 2456936.932 | AB176: 7.91 | AC176: 81.30239546 | AD176: 9.016784098 | AE176: 7.91
A177: 2456936.896 | B177: 7.74 | C177: 91.49759263 | D177: 9.565437399 | E177: 7.74 | H177: 2456936.904 | I177: 7.88 | J177: 91.41121209 | K177: 9.56092109 | L177: 7.88 | O177: 2456936.913 | P177: 6.85 | Q177: 75.68637282 | R177: 8.699791539 | S177: 6.85 | U177: 2456936.924 | V177: 145.63 | W177: 85.10398418 | X177: 9.225182067 | Y177: 145.63 | Z177: 9.33 | AA177: 2456936.932 | AB177: 7.92 | AC177: 81.90717995 | AD177: 9.050258557 | AE177: 7.92
A178: 2456936.896 | B178: 7.75 | C178: 92.01599658 | D178: 9.59249689 | E178: 7.75 | H178: 2456936.904 | I178: 7.89 | J178: 91.92961603 | K178: 9.587993327 | L178: 7.89 | O178: 2456936.913 | P178: 6.86 | Q178: 76.20477676 | R178: 8.729534739 | S178: 6.86 | U178: 2456936.924 | V178: 145.64 | W178: 85.62238812 | X178: 9.25323663 | Y178: 145.64 | Z178: 9.34 | AA178: 2456936.932 | AB178: 7.92 | AC178: 82.4255839 | AD178: 9.078853667 | AE178: 7.92
A179: 2456936.896 | B179: 7.77 | C179: 92.62078106 | D179: 9.623969091 | E179: 7.77 | H179: 2456936.904 | I179: 7.89 | J179: 92.53440052 | K179: 9.619480263 | L179: 7.89 | O179: 2456936.913 | P179: 6.87 | Q179: 76.80960149 | R179: 8.76410871 | S179: 6.87 | U179: 2456936.924 | V179: 145.64 | W179: 86.14079207 | X179: 9.281206391 | Y179: 145.64 | Z179: 9.34 | AA179: 2456936.932 | AB179: 7.93 | AC179: 82.94398785 | AD179: 9.107358994 | AE179: 7.93
A180: 2456936.896 | B180: 7.78 | C180: 93.22556555 | D180: 9.655338707 | E180: 7.78 | H180: 2456936.904 | I180: 7.89 | J180: 93.05280447 | K180: 9.646388157 | L180: 7.89 | O180: 2456936.913 | P180: 6.89 | Q180: 77.32800543 | R180: 8.79363437 | S180: 6.89 | U180: 2456936.924 | V180: 145.65 | W180: 86.65919602 | X180: 9.309092116 | Y180: 145.65 | Z180: 9.35 | AA180: 2456936.932 | AB180: 7.93 | AC180: 83.46239179 | AD180: 9.13577538 | AE180: 7.93
A181: 2456936.896 | B181: 7.79 | C181: 93.7439695 | D181: 9.682146947 | E181: 7.79 | H181: 2456936.904 | I181: 7.9 | J181: 93.65758896 | K181: 9.677685103 | L181: 7.9 | O181: 2456936.913 | P181: 6.91 | Q181: 77.93278992 | R181: 8.827955025 | S181: 6.91 | U181: 2456936.924 | V181: 145.66 | W181: 87.17759997 | X181: 9.336894557 | Y181: 145.66 | Z181: 9.36 | AA181: 2456936.932 | AB181: 7.93 | AC181: 83.98079574 | AD181: 9.164103652 | AE181: 7.93
A182: 2456936.896 | B182: 7.79 | C182: 94.34879422 | D182: 9.713330748 | E182: 7.79 | H182: 2456936.904 | I182: 7.92 | J182: 94.26241368 | K182: 9.708883235 | L182: 7.92 | O182: 2456936.913 | P182: 6.91 | Q182: 78.45119387 | R182: 8.857267856 | S182: 6.91 | U182: 2456936.924 | V182: 145.66 | W182: 87.69600391 | X182: 9.364614456 | Y182: 145.66 | Z182: 9.36 | AA182: 2456936.932 | AB182: 7.93 | AC182: 84.49919969 | AD182: 9.192344624 | AE182: 7.93
A183: 2456936.896 | B183: 7.8 | C183: 94.86719817 | D183: 9.739979372 | E183: 7.8 | H183: 2456936.904 | I183: 7.93 | J183: 94.78081763 | K183: 9.735544033 | L183: 7.93 | O183: 2456936.913 | P183: 6.94 | Q183: 78.96959782 | R183: 8.886483996 | S183: 6.94 | U183: 2456936.924 | V183: 145.67 | W183: 88.21440786 | X183: 9.392252545 | Y183: 145.67 | Z183: 9.37 | AA183: 2456936.932 | AB183: 7.94 | AC183: 85.01760364 | AD183: 9.220499099 | AE183: 7.94
A184: 2456936.896 | B184: 7.81 | C184: 95.47198266 | D184: 9.770976546 | E184: 7.81 | H184: 2456936.904 | I184: 7.93 | J184: 95.38560212 | K184: 9.766555284 | L184: 7.93 | O184: 2456936.913 | P184: 6.94 | Q184: 79.48800176 | R184: 8.915604397 | S184: 6.94 | U184: 2456936.924 | V184: 145.68 | W184: 88.73281181 | X184: 9.419809542 | Y184: 145.68 | Z184: 9.38 | AA184: 2456936.932 | AB184: 7.94 | AC184: 85.53596735 | AD184: 9.248565692 | AE184: 7.94
A185: 2456936.896 | B185: 7.81 | C185: 95.99038661 | D185: 9.797468377 | E185: 7.81 | H185: 2456936.904 | I185: 7.94 | J185: 95.90400606 | K185: 9.793059076 | L185: 7.94 | O185: 2456936.913 | P185: 6.95 | Q185: 80.09278625 | R185: 8.949457316 | S185: 6.95 | U185: 2456936.924 | V185: 145.69 | W185: 89.25121576 | X185: 9.447286158 | Y185: 145.69 | Z185: 9.39 | AA185: 2456936.932 | AB185: 7.94 | AC185: 86.0543713 | AD185: 9.276549536 | AE185: 7.94
A186: 2456936.896 | B186: 7.82 | C186: 96.59517109 | D186: 9.82828424 | E186: 7.82 | H186: 2456936.904 | I186: 7.95 | J186: 96.42241001 | K186: 9.819491332 | L186: 7.95 | O186: 2456936.913 | P186: 6.96 | Q186: 80.6111902 | R186: 8.978373472 | S186: 6.96 | U186: 2456936.924 | V186: 145.7 | W186: 89.7696197 | X186: 9.474683092 | Y186: 145.7 | Z186: 9.4 | AA186: 2456936.932 | AB186: 7.94 | AC186: 86.57277524 | AD186: 9.304449218 | AE186: 7.94
A187: 2456936.896 | B187: 7.84 | C187: 97.19999582 | D187: 9.859005823 | E187: 7.84 | H187: 2456936.904 | I187: 7.95 | J187: 97.0271945 | K187: 9.850238297 | L187: 7.95 | O187: 2456936.913 | P187: 6.97 | Q187: 81.12959415 | R187: 9.007196797 | S187: 6.97 | U187: 2456936.924 | V187: 145.71 | W187: 90.28798342 | X187: 9.501998917 | Y187: 145.71 | Z187: 9.41 | AA187: 2456936.932 | AB187: 7.95 | AC187: 87.09117919 | AD187: 9.332265491 | AE187: 7.95
A188: 2456936.896 | B188: 7.84 | C188: 97.71839976 | D188: 9.885261745 | E188: 7.84 | H188: 2456936.904 | I188: 7.95 | J188: 97.63201922 | K188: 9.880891621 | L188: 7.95 | O188: 2456936.913 | P188: 6.97 | Q188: 81.64799809 | R188: 9.035928181 | S188: 6.97 | U188: 2456936.924 | V188: 145.72 | W188: 90.80638736 | X188: 9.529238551 | Y188: 145.72 | Z188: 9.42 | AA188: 2456936.932 | AB188: 7.95 | AC188: 87.60958314 | AD188: 9.359999099 | AE188: 7.95
A189: 2456936.896 | B189: 7.86 | C189: 98.32318425 | D189: 9.915804771 | E189: 7.86 | H189: 2456936.904 | I189: 7.96 | J189: 98.15038294 | K189: 9.90708751 | L189: 7.96 | O189: 2456936.913 | P189: 6.98 | Q189: 82.16640204 | R189: 9.064568497 | S189: 6.98 | U189: 2456936.924 | V189: 145.72 | W189: 91.32479131 | X189: 9.556400542 | Y189: 145.72 | Z189: 9.42 | AA189: 2456936.932 | AB189: 7.96 | AC189: 88.12798709 | AD189: 9.387650776 | AE189: 7.96
A190: 2456936.896 | B190: 7.86 | C190: 98.8415882 | D190: 9.941910692 | E190: 7.86 | H190: 2456936.904 | I190: 7.96 | J190: 98.75520766 | K190: 9.937565479 | L190: 7.96 | O190: 2456936.913 | P190: 6.99 | Q190: 82.68480599 | R190: 9.093118606 | S190: 6.99 | U190: 2456936.924 | V190: 145.73 | W190: 91.92961603 | X190: 9.587993327 | Y190: 145.73 | Z190: 9.43 | AA190: 2456936.932 | AB190: 7.97 | AC190: 88.64639103 | AD190: 9.415221242 | AE190: 7.97
A191: 2456936.896 | B191: 7.87 | C191: 99.44637269 | D191: 9.972280215 | E191: 7.87 | H191: 2456936.904 | I191: 7.97 | J191: 99.27361161 | K191: 9.963614385 | L191: 7.97 | O191: 2456936.913 | P191: 7 | Q191: 83.20320994 | R191: 9.121579355 | S191: 7 | U191: 2456936.924 | V191: 145.74 | W191: 92.44801998 | X191: 9.614989339 | Y191: 145.74 | Z191: 9.44 | AA191: 2456936.932 | AB191: 7.98 | AC191: 89.16479498 | AD191: 9.442711209 | AE191: 7.98
A192: 2456936.896 | B192: 7.88 | C192: 99.96477664 | D192: 9.998238677 | E192: 7.88 | H192: 2456936.904 | I192: 7.97 | J192: 99.87839609 | K192: 9.993917955 | L192: 7.97 | O192: 2456936.913 | P192: 7.01 | Q192: 83.72157365 | R192: 9.14994938 | S192: 7.01 | U192: 2456936.924 | V192: 145.74 | W192: 92.9663837 | X192: 9.641907679 | Y192: 145.74 | Z192: 9.44 | AA192: 2456936.932 | AB192: 7.99 | AC192: 89.76957947 | AD192: 9.474680969 | AE192: 7.99
A193: 2456936.896 | B193: 7.88 | C193: 100.5696014 | D193: 10.02843963 | E193: 7.88 | H193: 2456936.904 | I193: 7.97 | J193: 100.3968 | K193: 10.01982036 | L193: 7.97 | O193: 2456936.913 | P193: 7.01 | Q193: 84.2399776 | R193: 9.178233904 | S193: 7.01 | U193: 2456936.924 | V193: 145.74 | W193: 93.48478764 | X193: 9.668753159 | Y193: 145.74 | Z193: 9.44 | AA193: 2456936.932 | AB193: 7.99 | AC193: 90.28798342 | AD193: 9.501998917 | AE193: 7.99
A194: 2456936.896 | B194: 7.89 | C194: 101.1743858 | D194: 10.0585479 | E194: 7.89 | H194: 2456936.904 | I194: 7.98 | J194: 100.915204 | K194: 10.04565598 | L194: 7.98 | O194: 2456936.913 | P194: 7.03 | Q194: 84.75838155 | R194: 9.206431532 | S194: 7.03 | U194: 2456936.924 | V194: 145.75 | W194: 94.00319159 | X194: 9.695524307 | Y194: 145.75 | Z194: 9.45 | AA194: 2456936.932 | AB194: 7.99 | AC194: 90.80638736 | AD194: 9.529238551 | AE194: 7.99
A195: 2456936.896 | B195: 7.89 | C195: 101.6927898 | D195: 10.0842843 | E195: 7.89 | H195: 2456936.904 | I195: 7.98 | J195: 101.5199885 | K195: 10.0757128 | L195: 7.98 | O195: 2456936.913 | P195: 7.04 | Q195: 85.36320627 | R195: 9.239221086 | S195: 7.04 | U195: 2456936.924 | V195: 145.75 | W195: 94.52159554 | X195: 9.722221739 | Y195: 145.75 | Z195: 9.45 | AA195: 2456936.932 | AB195: 8 | AC195: 91.32479131 | AD195: 9.556400542 | AE195: 8
A196: 2456936.896 | B196: 7.9 | C196: 102.2975743 | D196: 10.11422633 | E196: 7.9 | H196: 2456936.904 | I196: 8 | J196: 102.1248132 | K196: 10.10568222 | L196: 8 | O196: 2456936.913 | P196: 7.04 | Q196: 85.88161021 | R196: 9.267233148 | S196: 7.04 | U196: 2456936.924 | V196: 145.77 | W196: 95.03999949 | X196: 9.748846059 | Y196: 145.77 | Z196: 9.47 | AA196: 2456936.932 | AB196: 8 | AC196: 91.84319526 | AD196: 9.583485549 | AE196: 8
A197: 2456936.896 | B197: 7.91 | C197: 102.8159782 | D197: 10.13982141 | E197: 7.91 | H197: 2456936.904 | I197: 8.01 | J197: 102.6432171 | K197: 10.13129889 | L197: 8.01 | O197: 2456936.913 | P197: 7.04 | Q197: 86.39997393 | R197: 9.295158628 | S197: 7.04 | U197: 2456936.924 | V197: 145.77 | W197: 95.55840343 | X197: 9.775397866 | Y197: 145.77 | Z197: 9.47 | AA197: 2456936.932 | AB197: 8 | AC197: 92.36159921 | AD197: 9.610494223 | AE197: 8
A198: 2456936.896 | B198: 7.91 | C198: 103.4207627 | D198: 10.16959993 | E198: 7.91 | H198: 2456936.904 | I198: 8.02 | J198: 103.2480016 | K198: 10.16110238 | L198: 8.02 | O198: 2456936.913 | P198: 7.05 | Q198: 86.91837788 | R198: 9.323002621 | S198: 7.05 | U198: 2456936.924 | V198: 145.78 | W198: 96.07680738 | X198: 9.801877748 | Y198: 145.78 | Z198: 9.48 | AA198: 2456936.932 | AB198: 8.01 | AC198: 92.88000315 | AD198: 9.637427206 | AE198: 8.01
A199: 2456936.896 | B199: 7.92 | C199: 103.9391667 | D199: 10.19505599 | E199: 7.92 | H199: 2456936.904 | I199: 8.02 | J199: 103.7664056 | K199: 10.18657968 | L199: 8.02 | O199: 2456936.913 | P199: 7.05 | Q199: 87.43678182 | R199: 9.350763703 | S199: 7.05 | U199: 2456936.924 | V199: 145.79 | W199: 96.59521133 | X199: 9.828286286 | Y199: 145.79 | Z199: 9.49 | AA199: 2456936.932 | AB199: 8.01 | AC199: 93.3984071 | AD199: 9.664285131 | AE199: 8.01
A200: 2456936.896 | B200: 7.93 | C200: 104.5439914 | D200: 10.22467561 | E200: 7.93 | H200: 2456936.904 | I200: 8.02 | J200: 104.3711901 | K200: 10.21622191 | L200: 8.02 | O200: 2456936.913 | P200: 7.06 | Q200: 87.95518577 | R200: 9.378442609 | S200: 7.06 | U200: 2456936.924 | V200: 145.81 | W200: 97.11361527 | X200: 9.854624055 | Y200: 145.81 | Z200: 9.51 | AA200: 2456936.932 | AB200: 8.02 | AC200: 93.91677082 | AD200: 9.691066547 | AE200: 8.02
... 2050 more rows

Sheet 1% 10 cm rough
A1: Run | B1: Early | C1: Late
A2: 1 | B2: 1.93 | C2: 0.52
A3: 2 | B3: 3.58 | C3: 0.41
A4: 3 | B4: 2.9 | C4: 0.36
A5: 4 | B5: 2.46 | C5: 0.52
A6: 5 | B6: 2.78 | C6: 0.38
A7: 2015-02-08
A8: 10 cm
A9: roughened 20-30 accusand
A10: 1% MC | G10: Run 2
G11: Time | H11: Mass | I11: Time (corr) | J11: SQRT time | K11: Mass | M11: Time | N11: Mass | O11: Time (corr) | P11: SQRT time | Q11: Mass | S11: Time | T11: Mass | U11: Time (corr) | V11: SQRT time | W11: Mass
A12: Run 1 | G12: 2457118.824 | H12: 0 | M12: 2457118.829 | N12: 0 | S12: 2457118.835 | T12: 0.01 | Y12: Time | Z12: Mass | AA12: Time (corr) | AB12: SQRT time | AC12: Mass
A13: Time | B13: Mass | C13: Time (corr) | D13: SQRT time | E13: Mass | G13: 2457118.824 | H13: 0 | M13: 2457118.829 | N13: 0 | S13: 2457118.835 | T13: 0.01 | Y13: 2457118.843 | Z13: 0
A14: 2457061.202 | B14: 0 | G14: 2457118.824 | H14: 0 | M14: 2457118.829 | N14: 0 | S14: 2457118.835 | T14: 0.02 | Y14: 2457118.843 | Z14: 0
A15: 2457061.202 | B15: 0.01 | G15: 2457118.824 | H15: 0 | M15: 2457118.829 | N15: 0 | S15: 2457118.835 | T15: 0.02 | Y15: 2457118.843 | Z15: 0
A16: 2457061.202 | B16: 0.02 | G16: 2457118.824 | H16: 0 | M16: 2457118.829 | N16: 0 | S16: 2457118.835 | T16: 0.02 | Y16: 2457118.843 | Z16: 0
A17: 2457061.202 | B17: 0.03 | G17: 2457118.824 | H17: 0 | M17: 2457118.829 | N17: 0 | S17: 2457118.835 | T17: 0.02 | Y17: 2457118.843 | Z17: 0
A18: 2457061.202 | B18: 0.03 | G18: 2457118.824 | H18: 0 | M18: 2457118.829 | N18: 0 | S18: 2457118.835 | T18: 0.04 | Y18: 2457118.843 | Z18: 0
A19: 2457061.202 | B19: 0.04 | G19: 2457118.824 | H19: 0 | M19: 2457118.829 | N19: 0 | S19: 2457118.835 | T19: 0 | Y19: 2457118.843 | Z19: 0
A20: 2457061.203 | B20: 0.06 | G20: 2457118.824 | H20: 0 | M20: 2457118.829 | N20: 0.03 | S20: 2457118.835 | T20: 0 | Y20: 2457118.843 | Z20: 0
A21: 2457061.203 | B21: 0.06 | G21: 2457118.824 | H21: 0 | M21: 2457118.829 | N21: 0.03 | S21: 2457118.835 | T21: 0 | Y21: 2457118.843 | Z21: 0
A22: 2457061.203 | B22: 0 | G22: 2457118.824 | H22: 0 | I22: =0 -> 0 | J22: =SQRT(I22) -> 0 | K22: =H22 -> 0 | M22: 2457118.829 | N22: 0.01 | O22: =0 -> 0 | P22: =SQRT(O22) -> 0 | Q22: =N22 -> 0.01 | S22: 2457118.835 | T22: -0.05 | Y22: 2457118.843 | Z22: 0
A23: 2457061.203 | B23: 0 | G23: 2457118.824 | H23: 0.7 | I23: =(G23-$G$22)*24*60*60 -> 0.5184039474 | J23: =SQRT(I23) -> 0.7200027412 | K23: =H23 -> 0.7 | M23: 2457118.829 | N23: 0.96 | O23: =(M23-$M$22)*24*60*60 -> 0.5184039474 | P23: =SQRT(O23) -> 0.7200027412 | Q23: =N23 -> 0.96 | S23: 2457118.835 | T23: -0.04 | Y23: 2457118.843 | Z23: 0
A24: 2457061.203 | B24: -0.01 | G24: 2457118.824 | H24: 2.1 | I24: =(G24-$G$22)*24*60*60 -> 1.036807895 | J24: =SQRT(I24) -> 1.018237642 | K24: =H24 -> 2.1 | M24: 2457118.829 | N24: 3.09 | O24: =(M24-$M$22)*24*60*60 -> 1.036807895 | P24: =SQRT(O24) -> 1.018237642 | Q24: =N24 -> 3.09 | S24: 2457118.835 | T24: -0.01 | Y24: 2457118.843 | Z24: 0
A25: 2457061.203 | B25: -0.03 | G25: 2457118.824 | H25: 2.91 | I25: 1.555211842 | J25: 1.247081329 | K25: 2.91 | M25: 2457118.829 | N25: 3.89 | O25: 1.555211842 | P25: 1.247081329 | Q25: 3.89 | S25: 2457118.835 | T25: 0 | Y25: 2457118.843 | Z25: 0 | AA25: =0 -> 0 | AB25: =SQRT(AA25) -> 0 | AC25: =Z25 -> 0
A26: 2457061.203 | B26: -0.02 | G26: 2457118.824 | H26: 3.48 | I26: 2.073615789 | J26: 1.440005482 | K26: 3.48 | M26: 2457118.829 | N26: 4.5 | O26: 2.073615789 | P26: 1.440005482 | Q26: 4.5 | S26: 2457118.835 | T26: 0 | Y26: 2457118.843 | Z26: 0.13 | AA26: =(Y26-$Y$25)*24*60*60 -> 0.6047844887 | AB26: =SQRT(AA26) -> 0.777678911 | AC26: =Z26 -> 0.13
A27: 2457061.203 | B27: -0.01 | G27: 2457118.824 | H27: 3.9 | I27: 2.592019737 | J27: 1.609975073 | K27: 3.9 | M27: 2457118.829 | N27: 4.96 | O27: 2.592019737 | P27: 1.609975073 | Q27: 4.96 | S27: 2457118.835 | T27: 0 | Y27: 2457118.843 | Z27: 2.51 | AA27: =(Y27-$Y$25)*24*60*60 -> 1.209568977 | AB27: =SQRT(AA27) -> 1.099804063 | AC27: =Z27 -> 2.51
A28: 2457061.203 | B28: -0.05 | G28: 2457118.824 | H28: 4.14 | I28: 3.110423684 | J28: 1.763639329 | K28: 4.14 | M28: 2457118.829 | N28: 5.3 | O28: 3.110383451 | P28: 1.763627923 | Q28: 5.3 | S28: 2457118.835 | T28: 0 | Y28: 2457118.843 | Z28: 3.43 | AA28: 1.727972925 | AB28: 1.31452384 | AC28: 3.43
A29: 2457061.203 | B29: -0.05 | C29: =0 -> 0 | D29: =SQRT(C29) -> 0 | E29: =B29 -> -0.05 | G29: 2457118.824 | H29: 4.42 | I29: 3.628827631 | J29: 1.904948197 | K29: 4.42 | M29: 2457118.829 | N29: 5.7 | O29: 3.628787398 | P29: 1.904937636 | Q29: 5.7 | S29: 2457118.835 | T29: 0 | Y29: 2457118.843 | Z29: 3.89 | AA29: 2.332797647 | AB29: 1.527349877 | AC29: 3.89
A30: 2457061.203 | B30: 1.62 | C30: =(A30-$A$29)*24*60*60 -> 0.7775858045 | D30: =SQRT(C30) -> 0.8818082583 | E30: =B30 -> 1.62 | G30: 2457118.824 | H30: 4.67 | I30: 4.147231579 | J30: 2.036475283 | K30: 4.67 | M30: 2457118.829 | N30: 5.82 | O30: 4.147191346 | P30: 2.036465405 | Q30: 5.82 | S30: 2457118.835 | T30: 0 | Y30: 2457118.843 | Z30: 4.34 | AA30: 2.851161361 | AB30: 1.688538232 | AC30: 4.34
A31: 2457061.203 | B31: 2.45 | C31: =(A31-$A$29)*24*60*60 -> 1.641592383 | D31: =SQRT(C31) -> 1.281246418 | E31: =B31 -> 2.45 | G31: 2457118.824 | H31: 4.96 | I31: 4.665635526 | J31: 2.160008224 | K31: 4.96 | M31: 2457118.829 | N31: 5.99 | O31: 4.752016068 | P31: 2.17991194 | Q31: 5.99 | S31: 2457118.835 | T31: 0 | Y31: 2457118.843 | Z31: 4.67 | AA31: 3.455986083 | AB31: 1.859028263 | AC31: 4.67
A32: 2457061.203 | B32: 2.94 | C32: 2.419178188 | D32: 1.555370756 | E32: 2.94 | G32: 2457118.824 | H32: 5.06 | I32: 5.18399924 | J32: 2.276839749 | K32: 5.06 | M32: 2457118.829 | N32: 6.11 | O32: 5.270420015 | P32: 2.295739536 | Q32: 6.11 | S32: 2457118.835 | T32: 0 | Y32: 2457118.843 | Z32: 4.92 | AA32: 3.97439003 | AB32: 1.993587227 | AC32: 4.92
A33: 2457061.203 | B33: 3.26 | C33: 3.196804225 | D33: 1.787960913 | E33: 3.26 | G33: 2457118.824 | H33: 5.18 | I33: 5.702403188 | J33: 2.387970517 | K33: 5.18 | M33: 2457118.829 | N33: 6.19 | O33: 5.788783729 | P33: 2.405989137 | Q33: 6.19 | S33: 2457118.835 | T33: 0 | Y33: 2457118.843 | Z33: 5.1 | AA33: 4.579174519 | AB33: 2.139900586 | AC33: 5.1
A34: 2457061.203 | B34: 3.4 | C34: 3.97439003 | D34: 1.993587227 | E34: 3.4 | G34: 2457118.824 | H34: 5.31 | I34: 6.30722791 | J34: 2.511419501 | K34: 5.31 | M34: 2457118.829 | N34: 6.3 | O34: 6.307187676 | P34: 2.511411491 | Q34: 6.3 | S34: 2457118.835 | T34: 0 | Y34: 2457118.843 | Z34: 5.37 | AA34: 5.18399924 | AB34: 2.276839749 | AC34: 5.37
A35: 2457061.203 | B35: 3.51 | C35: 4.751975834 | D35: 2.179902712 | E35: 3.51 | G35: 2457118.824 | H35: 5.38 | I35: 6.825631857 | J35: 2.612591024 | K35: 5.38 | M35: 2457118.829 | N35: 6.34 | O35: 6.825591624 | P35: 2.612583324 | Q35: 6.34 | S35: 2457118.835 | T35: 0 | U35: =0 -> 0 | V35: =SQRT(U35) -> 0 | W35: =T35 -> 0 | Y35: 2457118.843 | Z35: 5.51 | AA35: 5.702362955 | AB35: 2.387962092 | AC35: 5.51
A36: 2457061.203 | B36: 3.59 | C36: 5.529601872 | D36: 2.351510551 | E36: 3.59 | G36: 2457118.824 | H36: 5.49 | I36: 7.344035804 | J36: 2.709988156 | K36: 5.49 | M36: 2457118.829 | N36: 6.39 | O36: 7.343995571 | P36: 2.709980733 | Q36: 6.39 | S36: 2457118.835 | T36: 0.55 | U36: =(S36-$S$35)*24*60*60 -> 0.5184039474 | V36: =SQRT(U36) -> 0.7200027412 | W36: =T36 -> 0.55 | Y36: 2457118.843 | Z36: 5.67 | AA36: 6.307187676 | AB36: 2.511411491 | AC36: 5.67
A37: 2457061.203 | B37: 3.7 | C37: 6.307187676 | D37: 2.511411491 | E37: 3.7 | G37: 2457118.824 | H37: 5.54 | I37: 7.862399518 | J37: 2.803997061 | K37: 5.54 | M37: 2457118.829 | N37: 6.44 | O37: 7.862399518 | P37: 2.803997061 | Q37: 6.44 | S37: 2457118.835 | T37: 1.82 | U37: =(S37-$S$35)*24*60*60 -> 1.036767662 | V37: =SQRT(U37) -> 1.018217885 | W37: =T37 -> 1.82 | Y37: 2457118.843 | Z37: 5.76 | AA37: 6.825591624 | AB37: 2.612583324 | AC37: 5.76
A38: 2457061.203 | B38: 3.75 | C38: 7.084813714 | D38: 2.661731338 | E38: 3.75 | G38: 2457118.824 | H38: 5.59 | I38: 8.380803466 | J38: 2.894961738 | K38: 5.59 | M38: 2457118.829 | N38: 6.46 | O38: 8.380803466 | P38: 2.894961738 | Q38: 6.46 | S38: 2457118.835 | T38: 2.63 | U38: 1.555171609 | V38: 1.247065198 | W38: 2.63 | Y38: 2457118.843 | Z38: 5.9 | AA38: 7.430376112 | AB38: 2.725871624 | AC38: 5.9
A39: 2457061.203 | B39: 3.83 | C39: 7.862399518 | D39: 2.803997061 | E39: 3.83 | G39: 2457118.824 | H39: 5.64 | I39: 8.899207413 | J39: 2.983153937 | K39: 5.64 | M39: 2457118.829 | N39: 6.5 | O39: 8.899207413 | P39: 2.983153937 | Q39: 6.5 | S39: 2457118.835 | T39: 3.16 | U39: 2.159996331 | V39: 1.469692597 | W39: 3.16 | Y39: 2457118.843 | Z39: 5.98 | AA39: 7.94878006 | AB39: 2.819358094 | AC39: 5.98
A40: 2457061.203 | B40: 3.88 | C40: 8.639985323 | D40: 2.939385195 | E40: 3.88 | G40: 2457118.824 | H40: 5.69 | I40: 9.417611361 | J40: 3.068812696 | K40: 5.69 | M40: 2457118.829 | N40: 6.52 | O40: 9.417611361 | P40: 3.068812696 | Q40: 6.52 | S40: 2457118.835 | T40: 3.51 | U40: 2.678400278 | V40: 1.636581889 | W40: 3.51 | Y40: 2457118.843 | Z40: 6.14 | AA40: 8.553564548 | AB40: 2.924647765 | AC40: 6.14
A41: 2457061.203 | B41: 4 | C41: 9.503991902 | D41: 3.082854505 | E41: 4 | G41: 2457118.824 | H41: 5.73 | I41: 9.936015308 | J41: 3.152144557 | K41: 5.73 | M41: 2457118.829 | N41: 6.53 | O41: 9.936015308 | P41: 3.152144557 | Q41: 6.53 | S41: 2457118.835 | T41: 3.82 | U41: 3.196804225 | V41: 1.787960913 | W41: 3.82 | Y41: 2457118.843 | Z41: 6.23 | AA41: 9.15838927 | AB41: 3.026283078 | AC41: 6.23
A42: 2457061.203 | B42: 4.08 | C42: 10.28157771 | D42: 3.206489935 | E42: 4.08 | G42: 2457118.824 | H42: 5.75 | I42: 10.45441926 | J42: 3.233329438 | K42: 5.75 | M42: 2457118.829 | N42: 6.55 | O42: 10.45441926 | P42: 3.233329438 | Q42: 6.55 | S42: 2457118.835 | T42: 4.12 | U42: 3.71516794 | V42: 1.927477092 | W42: 4.12 | Y42: 2457118.843 | Z42: 6.35 | AA42: 9.676793218 | AB42: 3.110754445 | AC42: 6.35
A43: 2457061.203 | B43: 4.17 | C43: 11.05920374 | D43: 3.325538113 | E43: 4.17 | G43: 2457118.824 | H43: 5.78 | I43: 11.05920374 | J43: 3.325538113 | K43: 5.78 | M43: 2457118.829 | N43: 6.6 | O43: 10.97278297 | P43: 3.312519127 | Q43: 6.6 | S43: 2457118.835 | T43: 4.37 | U43: 4.233571887 | V43: 2.057564552 | W43: 4.37 | Y43: 2457118.843 | Z43: 6.41 | AA43: 10.28157771 | AB43: 3.206489935 | AC43: 6.41
A44: 2457061.203 | B44: 4.18 | C44: 11.83678955 | D44: 3.440463566 | E44: 4.18 | G44: 2457118.824 | H44: 5.8 | I44: 11.57760769 | J44: 3.402588381 | K44: 5.8 | M44: 2457118.829 | N44: 6.62 | O44: 11.49118692 | P44: 3.389865324 | Q44: 6.62 | S44: 2457118.835 | T44: 4.58 | U44: 4.751975834 | V44: 2.179902712 | W44: 4.58 | Y44: 2457118.843 | Z44: 6.48 | AA44: 10.79998165 | AB44: 3.286332554 | AC44: 6.48
A45: 2457061.203 | B45: 4.21 | C45: 12.61437535 | D45: 3.551672191 | E45: 4.21 | G45: 2457118.824 | H45: 5.83 | I45: 12.09601164 | J45: 3.477932092 | K45: 5.83 | M45: 2457118.829 | N45: 6.63 | O45: 12.09601164 | P45: 3.477932092 | Q45: 6.63 | S45: 2457118.835 | T45: 4.78 | U45: 5.270379782 | V45: 2.295730773 | W45: 4.78 | Y45: 2457118.843 | Z45: 6.56 | AA45: 11.40476614 | AB45: 3.377094334 | AC45: 6.56
A46: 2457061.203 | B46: 4.29 | C46: 13.39200139 | D46: 3.659508354 | E46: 4.29 | G46: 2457118.824 | H46: 5.84 | I46: 12.61441559 | J46: 3.551677855 | K46: 5.84 | M46: 2457118.829 | N46: 6.64 | O46: 12.61441559 | P46: 3.551677855 | Q46: 6.64 | S46: 2457118.835 | T46: 4.92 | U46: 5.788783729 | V46: 2.405989137 | W46: 4.92 | Y46: 2457118.843 | Z46: 6.62 | AA46: 11.92317009 | AB46: 3.452994366 | AC46: 6.62
A47: 2457061.203 | B47: 4.34 | C47: 14.16958719 | D47: 3.764251213 | E47: 4.34 | G47: 2457118.824 | H47: 5.85 | I47: 13.13281953 | J47: 3.623923224 | K47: 5.85 | M47: 2457118.829 | N47: 6.65 | O47: 13.13281953 | P47: 3.623923224 | Q47: 6.65 | S47: 2457118.835 | T47: 5.06 | U47: 6.307187676 | V47: 2.511411491 | W47: 5.06 | Y47: 2457118.843 | Z47: 6.65 | AA47: 12.52799481 | AB47: 3.539490756 | AC47: 6.65
A48: 2457061.203 | B48: 4.4 | C48: 14.94721323 | D48: 3.866162598 | E48: 4.4 | G48: 2457118.824 | H48: 5.86 | I48: 13.65122348 | J48: 3.694756214 | K48: 5.86 | M48: 2457118.829 | N48: 6.68 | O48: 13.65118325 | P48: 3.694750769 | Q48: 6.68 | S48: 2457118.836 | T48: 5.15 | U48: 6.825591624 | V48: 2.612583324 | W48: 5.15 | Y48: 2457118.843 | Z48: 6.75 | AA48: 13.1327793 | AB48: 3.623917673 | AC48: 6.75
A49: 2457061.203 | B49: 4.45 | C49: 15.72479904 | D49: 3.965450673 | E49: 4.45 | G49: 2457118.824 | H49: 5.86 | I49: 14.16962743 | J49: 3.764256557 | K49: 5.86 | M49: 2457118.829 | N49: 6.7 | O49: 14.16958719 | P49: 3.764251213 | Q49: 6.7 | S49: 2457118.836 | T49: 5.32 | U49: 7.343995571 | V49: 2.709980733 | W49: 5.32 | Y49: 2457118.843 | Z49: 6.79 | AA49: 13.65118325 | AB49: 3.694750769 | AC49: 6.79
A50: 2457061.203 | B50: 4.46 | C50: 16.50238484 | D50: 4.062312745 | E50: 4.46 | G50: 2457118.824 | H50: 5.87 | I50: 14.68803138 | J50: 3.832496755 | K50: 5.87 | M50: 2457118.829 | N50: 6.71 | O50: 14.68799114 | P50: 3.832491506 | Q50: 6.71 | S50: 2457118.836 | T50: 5.39 | U50: 7.862399518 | V50: 2.803997061 | W50: 5.39 | Y50: 2457118.843 | Z50: 6.83 | AA50: 14.25596774 | AB50: 3.775707581 | AC50: 6.83
A51: 2457061.203 | B51: 4.48 | C51: 17.36639142 | D51: 4.167300256 | E51: 4.48 | G51: 2457118.824 | H51: 5.88 | I51: 15.20643532 | J51: 3.899542963 | K51: 5.88 | M51: 2457118.829 | N51: 6.73 | O51: 15.20639509 | P51: 3.899537805 | Q51: 6.73 | S51: 2457118.836 | T51: 5.52 | U51: 8.380803466 | V51: 2.894961738 | W51: 5.52 | Y51: 2457118.843 | Z51: 6.87 | AA51: 14.77437168 | AB51: 3.843744487 | AC51: 6.87
A52: 2457061.203 | B52: 4.51 | C52: 18.14397722 | D52: 4.25957477 | E52: 4.51 | G52: 2457118.824 | H52: 5.89 | I52: 15.72479904 | J52: 3.965450673 | K52: 5.89 | M52: 2457118.829 | N52: 6.74 | O52: 15.72479904 | P52: 3.965450673 | Q52: 6.74 | S52: 2457118.836 | T52: 5.61 | U52: 8.89916718 | V52: 2.983147194 | W52: 5.61 | Y52: 2457118.843 | Z52: 6.92 | AA52: 15.37919641 | AB52: 3.921631855 | AC52: 6.92
A53: 2457061.203 | B53: 4.56 | C53: 18.92160326 | D53: 4.349896925 | E53: 4.56 | G53: 2457118.824 | H53: 5.91 | I53: 16.24320298 | J53: 4.03028572 | K53: 5.91 | M53: 2457118.829 | N53: 6.75 | O53: 16.24320298 | P53: 4.03028572 | Q53: 6.75 | S53: 2457118.836 | T53: 5.68 | U53: 9.503991902 | V53: 3.082854505 | W53: 5.68 | Y53: 2457118.843 | Z53: 6.97 | AA53: 15.89756012 | AB53: 3.987174453 | AC53: 6.97
A54: 2457061.203 | B54: 4.6 | C54: 19.69918907 | D54: 4.43837685 | E54: 4.6 | G54: 2457118.824 | H54: 5.92 | I54: 16.76160693 | J54: 4.094094153 | K54: 5.92 | M54: 2457118.829 | N54: 6.77 | O54: 16.76160693 | P54: 4.094094153 | Q54: 6.77 | S54: 2457118.836 | T54: 5.8 | U54: 10.02239585 | V54: 3.165816774 | W54: 5.8 | Y54: 2457118.843 | Z54: 7.01 | AA54: 16.50238484 | AB54: 4.062312745 | AC54: 7.01
A55: 2457061.203 | B55: 4.66 | C55: 20.47677487 | D55: 4.525127056 | E55: 4.66 | G55: 2457118.824 | H55: 5.94 | I55: 17.28001088 | J55: 4.156923247 | K55: 5.94 | M55: 2457118.829 | N55: 6.81 | O55: 17.28001088 | P55: 4.156923247 | Q55: 6.81 | S55: 2457118.836 | T55: 5.86 | U55: 10.5407998 | V55: 3.246659791 | W55: 5.86 | Y55: 2457118.843 | Z55: 7.08 | AA55: 17.10716933 | AB55: 4.136081398 | AC55: 7.08
A56: 2457061.203 | B56: 4.69 | C56: 21.25440091 | D56: 4.61024955 | E56: 4.69 | G56: 2457118.824 | H56: 5.95 | I56: 17.79841483 | J56: 4.218816757 | K56: 5.95 | M56: 2457118.829 | N56: 6.83 | O56: 17.79841483 | P56: 4.218816757 | Q56: 6.83 | S56: 2457118.836 | T56: 5.93 | U56: 11.05920374 | V56: 3.325538113 | W56: 5.93 | Y56: 2457118.843 | Z56: 7.1 | AA56: 17.62557328 | AB56: 4.198282182 | AC56: 7.1
A57: 2457061.203 | B57: 4.72 | C57: 22.03198671 | D57: 4.693824316 | E57: 4.72 | G57: 2457118.824 | H57: 5.96 | I57: 18.31681877 | J57: 4.279815273 | K57: 5.96 | M57: 2457118.829 | N57: 6.85 | O57: 18.31681877 | P57: 4.279815273 | Q57: 6.85 | S57: 2457118.836 | T57: 5.99 | U57: 11.57756746 | V57: 3.402582469 | W57: 5.99 | Y57: 2457118.843 | Z57: 7.12 | AA57: 18.230398 | AB57: 4.269707016 | AC57: 7.12
A58: 2457061.203 | B58: 4.75 | C58: 22.80961275 | D58: 4.775941033 | E58: 4.75 | G58: 2457118.824 | H58: 5.96 | I58: 18.92160326 | J58: 4.349896925 | K58: 5.96 | M58: 2457118.829 | N58: 6.86 | O58: 18.83518249 | P58: 4.339951899 | Q58: 6.86 | S58: 2457118.836 | T58: 6.06 | U58: 12.09597141 | V58: 3.477926308 | W58: 6.06 | Y58: 2457118.843 | Z58: 7.16 | AA58: 18.74876171 | AB58: 4.329984032 | AC58: 7.16
A59: 2457061.203 | B59: 4.79 | C59: 23.58719856 | D59: 4.856665374 | E59: 4.79 | G59: 2457118.824 | H59: 5.97 | I59: 19.44000721 | J59: 4.409082355 | K59: 5.97 | M59: 2457118.829 | N59: 6.88 | O59: 19.35358644 | P59: 4.399271125 | Q59: 6.88 | S59: 2457118.836 | T59: 6.09 | U59: 12.61437535 | V59: 3.551672191 | W59: 6.09 | Y59: 2457118.843 | Z59: 7.2 | AA59: 19.35358644 | AB59: 4.399271125 | AC59: 7.2
A60: 2457061.203 | B60: 4.81 | C60: 24.36478436 | D60: 4.936069728 | E60: 4.81 | G60: 2457118.824 | H60: 6.02 | I60: 19.95841116 | J60: 4.467483761 | K60: 6.02 | M60: 2457118.829 | N60: 6.9 | O60: 19.95841116 | P60: 4.467483761 | Q60: 6.9 | S60: 2457118.836 | T60: 6.13 | U60: 13.1327793 | V60: 3.623917673 | W60: 6.13 | Y60: 2457118.843 | Z60: 7.24 | AA60: 19.87199038 | AB60: 4.45780107 | AC60: 7.24
A61: 2457061.203 | B61: 4.81 | C61: 25.22879094 | D61: 5.022826987 | E61: 4.81 | G61: 2457118.824 | H61: 6.03 | I61: 20.4768151 | J61: 4.525131501 | K61: 6.03 | M61: 2457118.829 | N61: 6.92 | O61: 20.4768151 | P61: 4.525131501 | Q61: 6.92 | S61: 2457118.836 | T61: 6.21 | U61: 13.65118325 | V61: 3.694750769 | W61: 6.21 | Y61: 2457118.843 | Z61: 7.26 | AA61: 20.47677487 | AB61: 4.525127056 | AC61: 7.26
A62: 2457061.203 | B62: 4.82 | C62: 26.00637674 | D62: 5.099644766 | E62: 4.82 | G62: 2457118.824 | H62: 6.04 | I62: 20.99521905 | J62: 4.582054021 | K62: 6.04 | M62: 2457118.829 | N62: 6.93 | O62: 20.99521905 | P62: 4.582054021 | Q62: 6.93 | S62: 2457118.836 | T62: 6.23 | U62: 14.16958719 | V62: 3.764251213 | W62: 6.23 | Y62: 2457118.843 | Z62: 7.28 | AA62: 21.08159959 | AB62: 4.591470308 | AC62: 7.28
A63: 2457061.203 | B63: 4.84 | C63: 26.78400278 | D63: 5.175326345 | E63: 4.84 | G63: 2457118.824 | H63: 6.06 | I63: 21.513623 | J63: 4.638278021 | K63: 6.06 | M63: 2457118.829 | N63: 6.96 | O63: 21.51358277 | P63: 4.638273684 | Q63: 6.96 | S63: 2457118.836 | T63: 6.25 | U63: 14.68799114 | V63: 3.832491506 | W63: 6.25 | Y63: 2457118.843 | Z63: 7.29 | AA63: 21.59996331 | AB63: 4.647576068 | AC63: 7.29
A64: 2457061.203 | B64: 4.9 | C64: 27.56158859 | D64: 5.249913198 | E64: 4.9 | G64: 2457118.824 | H64: 6.07 | I64: 22.03202695 | J64: 4.693828602 | K64: 6.07 | M64: 2457118.829 | N64: 6.97 | O64: 22.03198671 | P64: 4.693824316 | Q64: 6.97 | S64: 2457118.836 | T64: 6.3 | U64: 15.20639509 | V64: 3.899537805 | W64: 6.3 | Y64: 2457118.843 | Z64: 7.35 | AA64: 22.20478803 | AB64: 4.71219567 | AC64: 7.35
A65: 2457061.203 | B65: 4.92 | C65: 28.33917439 | D65: 5.323455118 | E65: 4.92 | G65: 2457118.824 | H65: 6.08 | I65: 22.55043089 | J65: 4.748729398 | K65: 6.08 | M65: 2457118.829 | N65: 6.99 | O65: 22.55039066 | P65: 4.748725162 | Q65: 6.99 | S65: 2457118.836 | T65: 6.33 | U65: 15.72479904 | V65: 3.965450673 | W65: 6.33 | Y65: 2457118.843 | Z65: 7.37 | AA65: 22.72319198 | AB65: 4.766884934 | AC65: 7.37
A66: 2457061.203 | B66: 4.95 | C66: 29.11680043 | D66: 5.395998557 | E66: 4.95 | G66: 2457118.824 | H66: 6.11 | I66: 23.15521538 | J66: 4.811986636 | K66: 6.11 | M66: 2457118.829 | N66: 7.01 | O66: 23.06879461 | P66: 4.802998502 | Q66: 7.01 | S66: 2457118.836 | T66: 6.38 | U66: 16.24320298 | V66: 4.03028572 | W66: 6.38 | Y66: 2457118.843 | Z66: 7.38 | AA66: 23.32797647 | AB66: 4.829904395 | AC66: 7.38
A67: 2457061.203 | B67: 4.97 | C67: 29.89438623 | D67: 5.467575901 | E67: 4.97 | G67: 2457118.824 | H67: 6.12 | I67: 23.67361933 | J67: 4.86555437 | K67: 6.12 | M67: 2457118.829 | N67: 7.05 | O67: 23.58719856 | P67: 4.856665374 | Q67: 7.05 | S67: 2457118.836 | T67: 6.4 | U67: 16.7615667 | V67: 4.094089239 | W67: 6.4 | Y67: 2457118.843 | Z67: 7.4 | AA67: 23.84638041 | AB67: 4.883275582 | AC67: 7.4
A68: 2457061.203 | B68: 4.99 | C68: 30.67201227 | D68: 5.538231872 | E68: 4.99 | G68: 2457118.824 | H68: 6.15 | I68: 24.19202328 | J68: 4.918538734 | K68: 6.15 | M68: 2457118.829 | N68: 7.06 | O68: 24.1056025 | P68: 4.909745666 | Q68: 7.06 | S68: 2457118.836 | T68: 6.42 | U68: 17.36639142 | V68: 4.167300256 | W68: 6.42 | Y68: 2457118.843 | Z68: 7.42 | AA68: 24.4511649 | AB68: 4.944811918 | AC68: 7.42
A69: 2457061.203 | B69: 5.01 | C69: 31.44959807 | D69: 5.607994122 | E69: 5.01 | G69: 2457118.824 | H69: 6.17 | I69: 24.71042722 | J69: 4.970958381 | K69: 6.17 | M69: 2457118.829 | N69: 7.08 | O69: 24.62400645 | P69: 4.962258201 | Q69: 7.08 | S69: 2457118.836 | T69: 6.49 | U69: 17.88479537 | V69: 4.229041897 | W69: 6.49 | Y69: 2457118.843 | Z69: 7.44 | AA69: 25.05598962 | AB69: 5.005595831 | AC69: 7.44
A70: 2457061.203 | B70: 5.03 | C70: 32.22718388 | D70: 5.676899143 | E70: 5.03 | G70: 2457118.824 | H70: 6.18 | I70: 25.22883117 | J70: 5.022830992 | K70: 6.18 | M70: 2457118.829 | N70: 7.09 | O70: 25.1424104 | P70: 5.014220817 | Q70: 7.09 | S70: 2457118.836 | T70: 6.51 | U70: 18.40319932 | V70: 4.289895024 | W70: 6.51 | Y70: 2457118.843 | Z70: 7.47 | AA70: 25.57439357 | AB70: 5.057113166 | AC70: 7.47
A71: 2457061.203 | B71: 5.04 | C71: 33.09119046 | D71: 5.752494281 | E71: 5.04 | G71: 2457118.824 | H71: 6.2 | I71: 25.74723512 | J71: 5.074173343 | K71: 6.2 | M71: 2457118.829 | N71: 7.11 | O71: 25.66081434 | P71: 5.065650437 | Q71: 7.11 | S71: 2457118.836 | T71: 6.52 | U71: 18.92160326 | V71: 4.349896925 | W71: 6.52 | Y71: 2457118.843 | Z71: 7.49 | AA71: 26.17917806 | AB71: 5.116559201 | AC71: 7.49
A72: 2457061.203 | B72: 5.06 | C72: 33.86877626 | D72: 5.819688674 | E72: 5.06 | G72: 2457118.824 | H72: 6.24 | I72: 26.26559883 | J72: 5.124997447 | K72: 6.24 | M72: 2457118.829 | N72: 7.13 | O72: 26.17921829 | P72: 5.116563133 | Q72: 7.13 | S72: 2457118.836 | T72: 6.53 | U72: 19.43996698 | V72: 4.409077792 | W72: 6.53 | Y72: 2457118.843 | Z72: 7.51 | AA72: 26.78396255 | AB72: 5.175322458 | AC72: 7.51
A73: 2457061.203 | B73: 5.07 | C73: 34.6464023 | D73: 5.88611946 | E73: 5.07 | G73: 2457118.824 | H73: 6.25 | I73: 26.87042356 | J73: 5.183668928 | K73: 6.25 | M73: 2457118.829 | N73: 7.15 | O73: 26.69762224 | P73: 5.166974186 | Q73: 7.15 | S73: 2457118.836 | T73: 6.54 | U73: 19.95837092 | V73: 4.467479258 | W73: 6.54 | Y73: 2457118.843 | Z73: 7.53 | AA73: 27.3023665 | AB73: 5.225166648 | AC73: 7.53
A74: 2457061.203 | B74: 5.1 | C74: 35.4239881 | D74: 5.951805449 | E74: 5.1 | G74: 2457118.824 | H74: 6.26 | I74: 27.3888275 | J74: 5.233433625 | K74: 6.26 | M74: 2457118.829 | N74: 7.18 | O74: 27.21598595 | P74: 5.216894282 | Q74: 7.18 | S74: 2457118.836 | T74: 6.57 | U74: 20.47677487 | V74: 4.525127056 | W74: 6.57 | Y74: 2457118.843 | Z74: 7.56 | AA74: 27.90719122 | AB74: 5.282725737 | AC74: 7.56
A75: 2457061.203 | B75: 5.13 | C75: 36.20161414 | D75: 6.016777721 | E75: 5.13 | G75: 2457118.824 | H75: 6.27 | I75: 27.90723145 | J75: 5.282729545 | K75: 6.27 | M75: 2457118.829 | N75: 7.19 | O75: 27.82081068 | P75: 5.274543646 | Q75: 7.19 | S75: 2457118.836 | T75: 6.59 | U75: 20.99517882 | V75: 4.582049631 | W75: 6.59 | Y75: 2457118.843 | Z75: 7.57 | AA75: 28.51197571 | AB75: 5.339660636 | AC75: 7.57
A76: 2457061.203 | B76: 5.16 | C76: 36.97919995 | D76: 6.081052536 | E76: 5.16 | G76: 2457118.824 | H76: 6.28 | I76: 28.4256354 | J76: 5.331569694 | K76: 6.28 | M76: 2457118.829 | N76: 7.2 | O76: 28.33921462 | P76: 5.323458897 | Q76: 7.2 | S76: 2457118.836 | T76: 6.6 | U76: 21.51358277 | V76: 4.638273684 | W76: 6.6 | Y76: 2457118.843 | Z76: 7.59 | AA76: 29.03037965 | AB76: 5.387984749 | AC76: 7.59
A77: 2457061.203 | B77: 5.18 | C77: 37.75678575 | D77: 6.144655055 | E77: 5.18 | G77: 2457118.824 | H77: 6.31 | I77: 28.94399911 | J77: 5.379962743 | K77: 6.31 | M77: 2457118.829 | N77: 7.21 | O77: 28.85761857 | P77: 5.371928757 | Q77: 7.21 | S77: 2457118.836 | T77: 6.63 | U77: 22.03198671 | V77: 4.693824316 | W77: 6.63 | Y77: 2457118.843 | Z77: 7.61 | AA77: 29.63516414 | AB77: 5.443818893 | AC77: 7.61
A78: 2457061.203 | B78: 5.22 | C78: 38.53441179 | D78: 6.207609185 | E78: 5.22 | G78: 2457118.824 | H78: 6.33 | I78: 29.46240306 | J78: 5.427928063 | K78: 6.33 | M78: 2457118.829 | N78: 7.23 | O78: 29.37598228 | P78: 5.419961465 | Q78: 7.23 | S78: 2457118.836 | T78: 6.64 | U78: 22.55039066 | V78: 4.748725162 | W78: 6.64 | Y78: 2457118.843 | Z78: 7.62 | AA78: 30.23998886 | AB78: 5.499089821 | AC78: 7.62
A79: 2457061.203 | B79: 5.26 | C79: 39.31199759 | D79: 6.269928037 | E79: 5.26 | G79: 2457118.824 | H79: 6.35 | I79: 29.98080701 | J79: 5.475473222 | K79: 6.35 | M79: 2457118.829 | N79: 7.28 | O79: 29.89438623 | P79: 5.467575901 | Q79: 7.28 | S79: 2457118.836 | T79: 6.66 | U79: 23.06879461 | V79: 4.802998502 | W79: 6.66 | Y79: 2457118.843 | Z79: 7.64 | AA79: 30.75839281 | AB79: 5.546024956 | AC79: 7.64
A80: 2457061.203 | B80: 5.26 | C80: 40.0895834 | D80: 6.331633549 | E80: 5.26 | G80: 2457118.824 | H80: 6.36 | I80: 30.49921095 | J80: 5.522609071 | K80: 6.36 | M80: 2457118.829 | N80: 7.29 | O80: 30.41279018 | P80: 5.51477925 | Q80: 7.29 | S80: 2457118.836 | T80: 6.67 | U80: 23.58719856 | V80: 4.856665374 | W80: 6.67 | Y80: 2457118.843 | Z80: 7.65 | AA80: 31.3631773 | AB80: 5.60028368 | AC80: 7.65
A81: 2457061.203 | B81: 5.26 | C81: 40.95358998 | D81: 6.399499197 | E81: 5.26 | G81: 2457118.824 | H81: 6.37 | I81: 31.0176149 | J81: 5.569346003 | K81: 6.37 | M81: 2457118.829 | N81: 7.3 | O81: 30.93119413 | P81: 5.561581981 | Q81: 7.3 | S81: 2457118.836 | T81: 6.71 | U81: 24.1056025 | V81: 4.909745666 | W81: 6.71 | Y81: 2457118.843 | Z81: 7.66 | AA81: 31.96796179 | AB81: 5.654021736 | AC81: 7.66
A82: 2457061.203 | B82: 5.26 | C82: 41.73117578 | D82: 6.459967166 | E82: 5.26 | G82: 2457118.824 | H82: 6.38 | I82: 31.53601885 | J82: 5.615693977 | K82: 6.38 | M82: 2457118.829 | N82: 7.3 | O82: 31.44959807 | P82: 5.607994122 | Q82: 7.3 | S82: 2457118.836 | T82: 6.72 | U82: 24.71038699 | V82: 4.970954334 | W82: 6.72 | Y82: 2457118.843 | Z82: 7.68 | AA82: 32.48636574 | AB82: 5.699681196 | AC82: 7.68
A83: 2457061.203 | B83: 5.26 | C83: 42.50880182 | D83: 6.519877439 | E83: 5.26 | G83: 2457118.824 | H83: 6.39 | I83: 32.0544228 | J83: 5.661662547 | K83: 6.39 | M83: 2457118.829 | N83: 7.31 | O83: 31.96800202 | P83: 5.654025294 | Q83: 7.31 | S83: 2457118.836 | T83: 6.72 | U83: 25.22879094 | V83: 5.022826987 | W83: 6.72 | Y83: 2457118.843 | Z83: 7.69 | AA83: 33.09119046 | AB83: 5.752494281 | AC83: 7.69
A84: 2457061.203 | B84: 5.31 | C84: 43.28638762 | D84: 6.579239137 | E84: 5.31 | G84: 2457118.824 | H84: 6.41 | I84: 32.57282674 | J84: 5.707260879 | K84: 6.41 | M84: 2457118.829 | N84: 7.34 | O84: 32.48640597 | P84: 5.699684725 | Q84: 7.34 | S84: 2457118.836 | T84: 6.73 | U84: 25.74719489 | V84: 5.074169379 | W84: 6.73 | Y84: 2457118.843 | Z84: 7.71 | AA84: 33.6095944 | AB84: 5.797378235 | AC84: 7.71
A85: 2457061.203 | B85: 5.35 | C85: 44.06401366 | D85: 6.638073038 | E85: 5.35 | G85: 2457118.824 | H85: 6.45 | I85: 33.09123069 | J85: 5.752497778 | K85: 6.45 | M85: 2457118.829 | N85: 7.36 | O85: 33.00480992 | P85: 5.744981281 | Q85: 7.36 | S85: 2457118.836 | T85: 6.74 | U85: 26.26559883 | V85: 5.124997447 | W85: 6.74 | Y85: 2457118.843 | Z85: 7.72 | AA85: 34.21437889 | AB85: 5.849305847 | AC85: 7.72
A86: 2457061.203 | B86: 5.37 | C86: 44.84159946 | D86: 6.696387046 | E86: 5.37 | G86: 2457118.824 | H86: 6.46 | I86: 33.60963464 | J86: 5.797381705 | K86: 6.46 | M86: 2457118.829 | N86: 7.38 | O86: 33.52321386 | P86: 5.789923476 | Q86: 7.38 | S86: 2457118.836 | T86: 6.75 | U86: 26.78400278 | V86: 5.175326345 | W86: 6.75 | Y86: 2457118.843 | Z86: 7.73 | AA86: 34.81916338 | AB86: 5.900776507 | AC86: 7.73
A87: 2457061.203 | B87: 5.39 | C87: 45.61918527 | D87: 6.754197604 | E87: 5.39 | G87: 2457118.824 | H87: 6.47 | I87: 34.12799835 | J87: 5.841917352 | K87: 6.47 | M87: 2457118.829 | N87: 7.39 | O87: 34.04161781 | P87: 5.834519501 | Q87: 7.39 | S87: 2457118.836 | T87: 6.76 | U87: 27.3023665 | V87: 5.225166648 | W87: 6.76 | Y87: 2457118.843 | Z87: 7.77 | AA87: 35.33756733 | AB87: 5.944540969 | AC87: 7.77
A88: 2457061.203 | B88: 5.43 | C88: 46.39681131 | D88: 6.811520484 | E88: 5.43 | G88: 2457118.824 | H88: 6.47 | I88: =(G88-$G$22)*24*60*60 -> 34.73282307 | J88: =SQRT(I88) -> 5.893455953 | K88: =H88 -> 6.47 | M88: 2457118.829 | N88: 7.4 | O88: =(M88-$M$22)*24*60*60 -> 34.56002176 | P88: =SQRT(O88) -> 5.878777233 | Q88: =N88 -> 7.4 | S88: 2457118.836 | T88: 6.77 | U88: 27.82077044 | V88: 5.274539832 | W88: 6.77 | Y88: 2457118.843 | Z88: 7.78 | AA88: 35.94239205 | AB88: 5.995197416 | AC88: 7.78
A89: 2457061.203 | B89: 5.44 | C89: 47.17439711 | D89: 6.86836204 | E89: 5.44 | G89: 2457118.824 | H89: 6.48 | I89: 35.25122702 | J89: 5.937274376 | K89: 6.48 | M89: 2457118.829 | N89: 7.41 | O89: 35.16480625 | P89: 5.929992095 | Q89: 7.41 | S89: 2457118.836 | T89: 6.79 | U89: 28.33917439 | V89: 5.323455118 | W89: 6.79 | Y89: 2457118.843 | Z89: 7.79 | AA89: 36.54717654 | AB89: 6.045426084 | AC89: 7.79
A90: 2457061.203 | B90: 5.48 | C90: 48.03840369 | D90: 6.930974224 | E90: 5.48 | G90: 2457118.824 | H90: 6.49 | I90: 35.76963097 | J90: 5.98077177 | K90: 6.49 | M90: 2457118.829 | N90: 7.41 | O90: 35.68321019 | P90: 5.973542516 | Q90: 7.41 | S90: 2457118.836 | T90: 6.8 | U90: 28.94399911 | V90: 5.379962743 | W90: 6.8 | Y90: 2457118.843 | Z90: 7.8 | AA90: 37.06558049 | AB90: 6.088150827 | AC90: 7.8
A91: 2457061.203 | B91: 5.5 | C91: 48.81598949 | D91: 6.98684403 | E91: 5.5 | G91: 2457118.824 | H91: 6.51 | I91: 36.28803492 | J91: 6.023955089 | K91: 6.51 | M91: 2457118.829 | N91: 7.42 | O91: 36.20161414 | P91: 6.016777721 | Q91: 7.42 | S91: 2457118.836 | T91: 6.81 | U91: 29.46240306 | V91: 5.427928063 | W91: 6.81 | Y91: 2457118.843 | Z91: 7.82 | AA91: =(Y91-$Y$25)*24*60*60 -> 37.67036498 | AB91: =SQRT(AA91) -> 6.137618836 | AC91: =Z91 -> 7.82
A92: 2457061.203 | B92: 5.53 | C92: 49.5935753 | D92: 7.042270607 | E92: 5.53 | G92: 2457118.824 | H92: 6.53 | I92: 36.80639863 | J92: 6.066827724 | K92: 6.53 | M92: 2457118.829 | N92: 7.43 | O92: 36.72001809 | P92: 6.059704456 | Q92: 7.43 | S92: 2457118.836 | T92: 6.82 | U92: 29.98076677 | V92: 5.475469548 | W92: 6.82 | Y92: 2457118.843 | Z92: 7.84 | AA92: 38.18876892 | AB92: 6.179706217 | AC92: 7.84
A93: 2457061.203 | B93: 5.54 | C93: 50.37120134 | D93: 7.097267174 | E93: 5.54 | G93: 2457118.824 | H93: 6.54 | I93: 37.32480258 | J93: 6.1094028 | K93: 6.54 | M93: 2457118.829 | N93: 7.44 | O93: 37.23842204 | P93: 6.10232923 | Q93: 7.44 | S93: 2457118.836 | T93: 6.83 | U93: 30.49917072 | V93: 5.522605429 | W93: 6.83 | Y93: 2457118.843 | Z93: 7.86 | AA93: 38.79359365 | AB93: 6.228450341 | AC93: 7.86
A94: 2457061.203 | B94: 5.54 | C94: 51.14878714 | D94: 7.151838025 | E94: 5.54 | G94: 2457118.824 | H94: 6.55 | I94: 37.84320652 | J94: 6.151683227 | K94: 6.55 | M94: 2457118.829 | N94: 7.45 | O94: 37.75678575 | P94: 6.144655055 | Q94: 7.45 | S94: 2457118.836 | T94: 6.84 | U94: 31.01757467 | V94: 5.569342391 | W94: 6.84 | Y94: 2457118.843 | Z94: 7.89 | AA94: 39.31199759 | AB94: 6.269928037 | AC94: 7.89
A95: 2457061.203 | B95: 5.54 | C95: =(A95-$A$29)*24*60*60 -> 51.92641318 | D95: =SQRT(C95) -> 7.205998416 | E95: =B95 -> 5.54 | G95: 2457118.824 | H95: 6.56 | I95: 38.36161047 | J95: 6.193675038 | K95: 6.56 | M95: 2457118.829 | N95: 7.47 | O95: 38.2751897 | P95: 6.18669457 | Q95: 7.47 | S95: 2457118.836 | T95: 6.84 | U95: 31.53597862 | V95: 5.615690395 | W95: 6.84 | Y95: 2457118.843 | Z95: 7.9 | AA95: 39.91678208 | AB95: 6.317972941 | AC95: 7.9
A96: 2457061.203 | B96: 5.57 | C96: 52.70399898 | D96: 7.259751992 | E96: 5.57 | G96: 2457118.824 | H96: 6.57 | I96: 38.88001442 | J96: 6.235384064 | K96: 6.57 | M96: 2457118.829 | N96: 7.49 | O96: 38.79359365 | P96: 6.228450341 | Q96: 7.49 | S96: 2457118.836 | T96: 6.86 | U96: 32.05438256 | V96: 5.661658994 | W96: 6.86 | Y96: 2457118.843 | Z96: 7.91 | AA96: 40.52156657 | AB96: 6.365655235 | AC96: 7.91
A97: 2457061.203 | B97: 5.59 | C97: 53.48158479 | D97: 7.313110473 | E97: 5.59 | G97: 2457118.824 | H97: 6.58 | I97: 39.39841837 | J97: 6.276815942 | K97: 6.58 | M97: 2457118.829 | N97: 7.5 | O97: 39.31199759 | P97: 6.269928037 | Q97: 7.5 | S97: 2457118.836 | T97: 6.87 | U97: 32.65916705 | V97: 5.714819949 | W97: 6.87 | Y97: 2457118.843 | Z97: 7.92 | AA97: 41.03997052 | AB97: 6.40624465 | AC97: 7.92
A98: 2457061.203 | B98: 5.6 | C98: 54.25921082 | D98: 7.366085176 | E98: 5.6 | G98: 2457118.824 | H98: 6.59 | I98: 39.91682231 | J98: 6.317976125 | K98: 6.59 | M98: 2457118.829 | N98: 7.51 | O98: 39.83040154 | P98: 6.311133142 | Q98: 7.51 | S98: 2457118.836 | T98: 6.9 | U98: 33.177571 | V98: 5.759997483 | W98: 6.9 | Y98: 2457118.843 | Z98: 7.93 | AA98: 41.64479524 | AB98: 6.453277868 | AC98: 7.93
A99: 2457061.203 | B99: 5.62 | C99: 55.03679663 | D99: 7.418678901 | E99: 5.62 | G99: 2457118.824 | H99: 6.61 | I99: 40.43522626 | J99: 6.358869889 | K99: 6.61 | M99: 2457118.829 | N99: 7.51 | O99: 40.34880549 | P99: 6.35207096 | Q99: 7.51 | S99: 2457118.836 | T99: 6.91 | U99: 33.69597495 | V99: 5.804823421 | W99: 6.91 | Y99: 2457118.843 | Z99: 7.97 | AA99: 42.16319919 | AB99: 6.493319581 | AC99: 7.97
A100: 2457061.203 | B100: 5.63 | C100: 55.90080321 | D100: 7.476683971 | E100: 5.63 | G100: 2457118.824 | H100: 6.64 | I100: 40.95363021 | J100: 6.399502341 | K100: 6.64 | M100: 2457118.829 | N100: 7.51 | O100: 40.86720943 | P100: 6.392746627 | Q100: 7.51 | S100: 2457118.836 | T100: 6.92 | U100: 34.21437889 | V100: 5.849305847 | W100: 6.92 | Y100: 2457118.843 | Z100: 7.99 | AA100: 42.76798368 | AB100: 6.539723517 | AC100: 7.99
A101: 2457061.203 | B101: 5.65 | C101: 56.67838901 | D101: 7.528505098 | E101: 5.65 | G101: 2457118.824 | H101: 6.65 | I101: 41.47203416 | J101: 6.439878427 | K101: 6.65 | M101: 2457118.829 | N101: 7.51 | O101: 41.38561338 | P101: 6.433165114 | Q101: 7.51 | S101: 2457118.836 | T101: 6.93 | U101: =(S101-$S$35)*24*60*60 -> 34.73278284 | V101: =SQRT(U101) -> 5.89345254 | W101: =T101 -> 6.93 | Y101: 2457118.843 | Z101: 8 | AA101: 43.28638762 | AB101: 6.579239137 | AC101: 8
A102: 2457061.203 | B102: 5.68 | C102: 57.45597482 | D102: 7.579971954 | E102: 5.68 | G102: 2457118.824 | H102: 6.66 | I102: 42.07681865 | J102: 6.486664678 | K102: 6.66 | M102: 2457118.829 | N102: 7.52 | O102: 41.90401733 | P102: 6.473331239 | Q102: 7.52 | S102: 2457118.836 | T102: 6.94 | U102: 35.25118679 | V102: 5.937270988 | W102: 6.94 | Y102: 2457118.843 | Z102: 8.01 | AA102: 43.89117211 | AB102: 6.625041291 | AC102: 8.01
A103: 2457061.203 | B103: 5.69 | C103: 58.23360085 | D103: 7.631094342 | E103: 5.69 | G103: 2457118.824 | H103: 6.66 | I103: 42.59522259 | J103: 6.526501558 | K103: 6.66 | M103: 2457118.829 | N103: 7.53 | O103: 42.42242128 | P103: 6.513249671 | Q103: 7.53 | S103: 2457118.836 | T103: 6.94 | U103: 35.76959074 | V103: 5.980768407 | W103: 6.94 | Y103: 2457118.843 | Z103: 8.02 | AA103: 44.49599683 | AB103: 6.670531975 | AC103: 8.02
A104: 2457061.203 | B104: 5.71 | C104: 59.01118666 | D104: 7.681873903 | E104: 5.71 | G104: 2457118.824 | H104: 6.67 | I104: 43.11362654 | J104: 6.566096751 | K104: 6.67 | M104: 2457118.829 | N104: 7.54 | O104: 43.02720577 | P104: 6.559512616 | Q104: 7.54 | S104: 2457118.836 | T104: 6.95 | U104: 36.28799468 | V104: 6.02395175 | W104: 6.95 | Y104: 2457118.843 | Z104: 8.03 | AA104: 45.01436055 | AB104: 6.709274219 | AC104: 8.03
A105: 2457061.203 | B105: 5.71 | C105: 59.7888127 | D105: 7.732322594 | E105: 5.71 | G105: 2457118.824 | H105: 6.68 | I105: 43.63203049 | J105: 6.605454601 | K105: 6.68 | M105: 2457118.829 | N105: 7.55 | O105: 43.54560971 | P105: 6.598909737 | Q105: 7.55 | S105: 2457118.836 | T105: 6.95 | U105: 36.80639863 | V105: 6.066827724 | W105: 6.95 | Y105: 2457118.843 | Z105: 8.03 | AA105: 45.61918527 | AB105: 6.754197604 | AC105: 8.03
A106: 2457061.203 | B106: 5.71 | C106: 60.5663985 | D106: 7.78244168 | E106: 5.71 | G106: 2457118.824 | H106: 6.7 | I106: 44.15043443 | J106: 6.644579327 | K106: 6.7 | M106: 2457118.829 | N106: 7.57 | O106: 44.06401366 | P106: 6.638073038 | Q106: 7.57 | S106: 2457118.836 | T106: 6.96 | U106: 37.32480258 | V106: 6.1094028 | W106: 6.96 | Y106: 2457118.843 | Z106: 8.05 | AA106: 46.13758922 | AB106: 6.792465621 | AC106: 8.05
A107: 2457061.203 | B107: 5.71 | C107: 61.34398431 | D107: 7.832240057 | E107: 5.71 | G107: 2457118.824 | H107: 6.7 | I107: 44.66879815 | J107: 6.683472013 | K107: 6.7 | M107: 2457118.829 | N107: 7.58 | O107: 44.58241761 | P107: 6.677006635 | Q107: 7.58 | S107: 2457118.836 | T107: 6.97 | U107: 37.84316629 | V107: 6.151679957 | W107: 6.97 | Y107: 2457118.843 | Z107: 8.06 | AA107: 46.7423737 | AB107: 6.836839453 | AC107: 8.06
A108: 2457061.203 | B108: 5.74 | C108: 62.12161034 | D108: 7.881726356 | E108: 5.74 | G108: 2457118.824 | H108: 6.71 | I108: 45.1872021 | J108: 6.722142671 | K108: 6.71 | M108: 2457118.829 | N108: 7.58 | O108: 45.10082155 | P108: 6.715714523 | Q108: 7.58 | S108: 2457118.836 | T108: 6.98 | U108: 38.36157024 | V108: 6.19367179 | W108: 6.98 | Y108: 2457118.843 | Z108: 8.07 | AA108: 47.34719843 | AB108: 6.880930055 | AC108: 8.07
A109: 2457061.203 | B109: 5.74 | C109: 62.89919615 | D109: 7.930901345 | E109: 5.74 | G109: 2457118.824 | H109: 6.71 | I109: 45.79202682 | J109: 6.766980628 | K109: 6.71 | M109: 2457118.829 | N109: 7.59 | O109: 45.61918527 | P109: 6.754197604 | Q109: 7.59 | S109: 2457118.836 | T109: 6.99 | U109: 38.87997419 | V109: 6.235380837 | W109: 6.99 | Y109: 2457118.843 | Z109: 8.09 | AA109: 47.86556214 | AB109: 6.918494211 | AC109: 8.09
A110: 2457061.203 | B110: 5.78 | C110: 63.76320273 | D110: 7.985186455 | E110: 5.78 | G110: 2457118.824 | H110: 6.71 | I110: 46.31043077 | J110: 6.805176762 | K110: 6.71 | M110: 2457118.829 | N110: 7.6 | O110: 46.13758922 | P110: 6.792465621 | Q110: 7.6 | S110: 2457118.836 | T110: 7 | U110: 39.39837813 | V110: 6.276812737 | W110: 7 | Y110: 2457118.843 | Z110: 8.1 | AA110: 48.47038686 | AB110: 6.962067715 | AC110: 8.1
A111: 2457061.203 | B111: 5.78 | C111: 64.54078853 | D111: 8.033728184 | E111: 5.78 | G111: 2457118.824 | H111: 6.72 | I111: 46.82883471 | J111: 6.843159702 | K111: 6.72 | M111: 2457118.829 | N111: 7.6 | O111: 46.65599316 | P111: 6.830519246 | Q111: 7.6 | S111: 2457118.836 | T111: 7.01 | U111: 39.91678208 | V111: 6.317972941 | W111: 7.01 | Y111: 2457118.843 | Z111: 8.11 | AA111: 48.98879081 | AB111: 6.999199298 | AC111: 8.11
A112: 2457061.203 | B112: 5.78 | C112: 65.31841457 | D112: 8.081980857 | E112: 5.78 | G112: 2457118.824 | H112: 6.72 | I112: 47.34719843 | J112: 6.880930055 | K112: 6.72 | M112: 2457118.829 | N112: 7.61 | O112: 47.17439711 | P112: 6.86836204 | Q112: 7.61 | S112: 2457118.836 | T112: 7.02 | U112: 40.52156657 | V112: 6.365655235 | W112: 7.02 | Y112: 2457118.843 | Z112: 8.12 | AA112: 49.5935753 | AB112: 7.042270607 | AC112: 8.12
A113: 2457061.203 | B113: 5.78 | C113: 66.09600037 | D113: 8.129944672 | E113: 5.78 | G113: 2457118.824 | H113: 6.73 | I113: 47.86560237 | J113: 6.918497118 | K113: 6.73 | M113: 2457118.829 | N113: 7.62 | O113: 47.69280106 | P113: 6.90599747 | Q113: 7.62 | S113: 2457118.836 | T113: 7.02 | U113: 41.03997052 | V113: 6.40624465 | W113: 7.02 | Y113: 2457118.844 | Z113: 8.12 | AA113: 50.11197925 | AB113: 7.078981512 | AC113: 8.12
A114: 2457061.203 | B114: 5.79 | C114: 66.87358618 | D114: 8.177627173 | E114: 5.79 | G114: 2457118.824 | H114: 6.74 | I114: 48.38400632 | J114: 6.955861293 | K114: 6.74 | M114: 2457118.829 | N114: 7.64 | O114: 48.21120501 | P114: 6.943428908 | Q114: 7.64 | S114: 2457118.836 | T114: 7.03 | U114: 41.55837446 | V114: 6.446578508 | W114: 7.03 | Y114: 2457118.844 | Z114: 8.13 | AA114: 50.71676373 | AB114: 7.121570314 | AC114: 8.13
A115: 2457061.203 | B115: 5.83 | C115: 67.65121222 | D115: 8.225035697 | E115: 5.83 | G115: 2457118.824 | H115: 6.74 | I115: 48.90241027 | J115: 6.993025831 | K115: 6.74 | M115: 2457118.829 | N115: 7.66 | O115: 48.72960895 | P115: 6.980659636 | Q115: 7.66 | S115: 2457118.836 | T115: 7.03 | U115: 42.07677841 | V115: 6.486661577 | W115: 7.03 | Y115: 2457118.844 | Z115: 8.15 | AA115: 51.32158846 | AB115: 7.163908742 | AC115: 8.15
A116: 2457061.203 | B116: 5.85 | C116: 68.42879802 | D116: 8.272170091 | E116: 5.85 | G116: 2457118.824 | H116: 6.74 | I116: 49.42081422 | J116: 7.029993899 | K116: 6.74 | M116: 2457118.829 | N116: 7.66 | O116: 49.2480129 | P116: 7.017692847 | Q116: 7.66 | S116: 2457118.836 | T116: 7.04 | U116: 42.59518236 | V116: 6.526498476 | W116: 7.04 | Y116: 2457118.844 | Z116: 8.17 | AA116: 51.8399924 | AB116: 7.199999472 | AC116: 8.17
A117: 2457061.203 | B117: 5.87 | C117: 69.20638382 | D117: 8.319037434 | E117: 5.87 | G117: 2457118.824 | H117: 6.75 | I117: 49.93921816 | J117: 7.06676858 | K117: 6.75 | M117: 2457118.829 | N117: 7.67 | O117: 49.76641685 | P117: 7.054531653 | Q117: 7.67 | S117: 2457118.836 | T117: 7.05 | U117: 43.11358631 | V117: 6.566093687 | W117: 7.05 | Y117: 2457118.844 | Z117: 8.18 | AA117: 52.44477689 | AB117: 7.241876614 | AC117: 8.18
A118: 2457061.203 | B118: 5.87 | C118: 69.98400986 | D118: 8.365644617 | E118: 5.87 | G118: 2457118.824 | H118: 6.77 | I118: 50.45762211 | J118: 7.103352878 | K118: 6.77 | M118: 2457118.829 | N118: 7.68 | O118: 50.2848208 | P118: 7.091179084 | Q118: 7.68 | S118: 2457118.836 | T118: 7.06 | U118: 43.63199025 | V118: 6.605451556 | W118: 7.06 | Y118: 2457118.844 | Z118: 8.18 | AA118: 52.96318084 | AB118: 7.2775807 | AC118: 8.18
A119: 2457061.203 | B119: 5.88 | C119: 70.84797621 | D119: 8.417123987 | E119: 5.88 | G119: 2457118.824 | H119: 6.77 | I119: 50.97602606 | J119: 7.13974972 | K119: 6.77 | M119: 2457118.829 | N119: 7.68 | O119: 50.88960528 | P119: 7.133695065 | Q119: 7.68 | S119: 2457118.836 | T119: 7.06 | U119: 44.1503942 | V119: 6.6445763 | W119: 7.06 | Y119: 2457118.844 | Z119: 8.19 | AA119: 53.56796533 | AB119: 7.319013959 | AC119: 8.19
A120: 2457061.203 | B120: 5.88 | C120: 71.62560225 | D120: 8.46319102 | E120: 5.88 | G120: 2457118.824 | H120: 6.78 | I120: 51.49443001 | J120: 7.175961957 | K120: 6.78 | M120: 2457118.829 | N120: 7.69 | O120: 51.40800923 | P120: 7.169937882 | Q120: 7.69 | S120: 2457118.836 | T120: 7.06 | U120: 44.75517869 | V120: 6.689931142 | W120: 7.06 | Y120: 2457118.844 | Z120: 8.2 | AA120: 54.08636928 | AB120: 7.354343565 | AC120: 8.2
A121: 2457061.203 | B121: 5.88 | C121: 72.40318805 | D121: 8.50900629 | E121: 5.88 | G121: 2457118.824 | H121: 6.78 | I121: 52.01283395 | J121: 7.211992371 | K121: 6.78 | M121: 2457118.829 | N121: 7.7 | O121: 51.92641318 | P121: 7.205998416 | Q121: 7.7 | S121: 2457118.836 | T121: 7.07 | U121: 45.27358264 | V121: 6.728564679 | W121: 7.07 | Y121: 2457118.844 | Z121: 8.21 | AA121: 54.691194 | AB121: 7.395349484 | AC121: 8.21
A122: 2457061.203 | B122: 5.88 | C122: 73.18081409 | D122: 8.554578545 | E122: 5.88 | G122: 2457118.824 | H122: 6.78 | I122: 52.53119767 | J122: 7.247840897 | K122: 6.78 | M122: 2457118.829 | N122: 7.71 | O122: 52.44481713 | P122: 7.241879392 | Q122: 7.71 | S122: 2457118.836 | T122: 7.08 | U122: 45.79198658 | V122: 6.766977655 | W122: 7.08 | Y122: 2457118.844 | Z122: 8.24 | AA122: 55.29597849 | AB122: 7.436126578 | AC122: 8.24
A123: 2457061.203 | B123: 5.88 | C123: 73.95839989 | D123: 8.59990697 | E123: 5.88 | G123: 2457118.824 | H123: 6.79 | I123: 53.04960161 | J123: 7.283515745 | K123: 6.79 | M123: 2457118.829 | N123: 7.73 | O123: 52.96322107 | P123: 7.277583464 | Q123: 7.73 | S123: 2457118.836 | T123: 7.08 | U123: 46.31039053 | V123: 6.805173806 | W123: 7.08 | Y123: 2457118.844 | Z123: 8.25 | AA123: 55.81438243 | AB123: 7.470902384 | AC123: 8.25
A124: 2457061.203 | B124: 5.94 | C124: 74.7359857 | D124: 8.644997727 | E124: 5.94 | G124: 2457118.824 | H124: 6.79 | I124: 53.65442634 | J124: 7.324918179 | K124: 6.79 | M124: 2457118.83 | N124: 7.73 | O124: 53.48158479 | P124: 7.313110473 | Q124: 7.73 | S124: 2457118.836 | T124: 7.09 | U124: 46.82879448 | V124: 6.843156763 | W124: 7.09 | Y124: 2457118.844 | Z124: 8.25 | AA124: 56.41916692 | AB124: 7.511269328 | AC124: 8.25
A125: 2457061.203 | B125: 5.95 | C125: 75.51361173 | D125: 8.68985683 | E125: 5.95 | G125: 2457118.824 | H125: 6.8 | I125: 54.17283028 | J125: 7.360219445 | K125: 6.8 | M125: 2457118.83 | N125: 7.75 | O125: 53.99998873 | P125: 7.348468462 | Q125: 7.75 | S125: 2457118.836 | T125: 7.09 | U125: 47.43357897 | V125: 6.887204002 | W125: 7.09 | Y125: 2457118.844 | Z125: 8.27 | AA125: 56.93757087 | AB125: 7.545698832 | AC125: 8.27
A126: 2457061.203 | B126: 5.98 | C126: 76.29119754 | D126: 8.734483244 | E126: 5.98 | G126: 2457118.824 | H126: 6.81 | I126: 54.69123423 | J126: 7.395352205 | K126: 6.81 | M126: 2457118.83 | N126: 7.76 | O126: 54.51839268 | P126: 7.383657135 | Q126: 7.76 | S126: 2457118.836 | T126: 7.1 | U126: 47.95198292 | V126: 6.924737029 | W126: 7.1 | Y126: 2457118.844 | Z126: 8.28 | AA126: 57.54239559 | AB126: 7.585670411 | AC126: 8.28
A127: 2457061.203 | B127: 6.01 | C127: 77.06878334 | D127: 8.778882807 | E127: 6.01 | G127: 2457118.824 | H127: 6.82 | I127: 55.20959795 | J127: 7.43031614 | K127: 6.82 | M127: 2457118.83 | N127: 7.77 | O127: 55.03679663 | P127: 7.418678901 | Q127: 7.77 | S127: 2457118.836 | T127: 7.1 | U127: 48.47038686 | V127: 6.962067715 | W127: 7.1 | Y127: 2457118.844 | Z127: 8.3 | AA127: 58.06079954 | AB127: 7.619763746 | AC127: 8.3
A128: 2457061.203 | B128: 6.02 | C128: 77.84640938 | D128: 8.823061225 | E128: 6.02 | G128: 2457118.824 | H128: 6.83 | I128: 55.72800189 | J128: 7.465119014 | K128: 6.83 | M128: 2457118.83 | N128: 7.78 | O128: 55.55520058 | P128: 7.453536112 | Q128: 7.78 | S128: 2457118.836 | T128: 7.11 | U128: 48.98879081 | V128: 6.999199298 | W128: 7.11 | Y128: 2457118.844 | Z128: 8.3 | AA128: 58.66558403 | AB128: 7.659346188 | AC128: 8.3
A129: 2457061.203 | B129: 6.02 | C129: 78.71037573 | D129: 8.871886819 | E129: 6.02 | G129: 2457118.824 | H129: 6.83 | I129: 56.24640584 | J129: 7.499760386 | K129: 6.83 | M129: 2457118.83 | N129: 7.78 | O129: 56.07360452 | P129: 7.488231068 | Q129: 7.78 | S129: 2457118.836 | T129: 7.12 | U129: 49.50719476 | V129: 7.03613493 | W129: 7.12 | Y129: 2457118.844 | Z129: 8.31 | AA129: 59.27036852 | AB129: 7.698725123 | AC129: 8.31
A130: 2457061.204 | B130: 6 | C130: 79.48800176 | D130: 8.915604397 | E130: 6 | G130: 2457118.824 | H130: 6.85 | I130: 56.76480979 | J130: 7.534242483 | K130: 6.85 | M130: 2457118.83 | N130: 7.79 | O130: 56.59200847 | P130: 7.522766012 | Q130: 7.79 | S130: 2457118.836 | T130: 7.12 | U130: 50.0255987 | V130: 7.072877682 | W130: 7.12 | Y130: 2457118.844 | Z130: 8.32 | AA130: 59.78877246 | AB130: 7.732319992 | AC130: 8.32
A131: 2457061.204 | B131: 5.99 | C131: 80.26558757 | D131: 8.959106405 | E131: 5.99 | G131: 2457118.824 | H131: 6.87 | I131: 57.28321373 | J131: 7.568567482 | K131: 6.87 | M131: 2457118.83 | N131: 7.8 | O131: 57.11041242 | P131: 7.557143139 | Q131: 7.8 | S131: 2457118.836 | T131: 7.12 | U131: 50.54400265 | V131: 7.109430543 | W131: 7.12 | Y131: 2457118.844 | Z131: 8.32 | AA131: 60.39359719 | AB131: 7.771331751 | AC131: 8.32
A132: 2457061.204 | B132: 6.05 | C132: 81.04321361 | D132: 9.002400436 | E132: 6.05 | G132: 2457118.824 | H132: 6.87 | I132: 57.80161768 | J132: 7.602737512 | K132: 6.87 | M132: 2457118.83 | N132: 7.81 | O132: 57.62881637 | P132: 7.591364592 | Q132: 7.81 | S132: 2457118.836 | T132: 7.13 | U132: 51.06236637 | V132: 7.145793613 | W132: 7.13 | Y132: 2457118.844 | Z132: 8.33 | AA132: 60.9119609 | AB132: 7.804611515 | AC132: 8.33
A133: 2457061.204 | B133: 6.05 | C133: 81.82079941 | D133: 9.045485029 | E133: 6.05 | G133: 2457118.824 | H133: 6.88 | I133: 58.32002163 | J133: 7.636754653 | K133: 6.88 | M133: 2457118.83 | N133: 7.84 | O133: 58.14722031 | P133: 7.625432467 | Q133: 7.84 | S133: 2457118.836 | T133: 7.13 | U133: 51.66719109 | V133: 7.187989363 | W133: 7.13 | Y133: 2457118.844 | Z133: 8.35 | AA133: 61.51678562 | AB133: 7.84326371 | AC133: 8.35
A134: 2457061.204 | B134: 6.06 | C134: 82.59838521 | D134: 9.088365376 | E134: 6.06 | G134: 2457118.824 | H134: 6.88 | I134: 58.92480612 | J134: 7.676249483 | K134: 6.88 | M134: 2457118.83 | N134: 7.85 | O134: 58.7520048 | P134: 7.664985636 | Q134: 7.85 | S134: 2457118.836 | T134: 7.13 | U134: 52.27197558 | V134: 7.22993607 | W134: 7.13 | Y134: 2457118.844 | Z134: 8.36 | AA134: 62.03518957 | AB134: 7.876242097 | AC134: 8.36
A135: 2457061.204 | B135: 6.08 | C135: 83.37601125 | D135: 9.131046558 | E135: 6.08 | G135: 2457118.824 | H135: 6.88 | I135: 59.44321007 | J135: 7.709942287 | K135: 6.88 | M135: 2457118.83 | N135: 7.85 | O135: 59.27040875 | P135: 7.698727736 | Q135: 7.85 | S135: 2457118.836 | T135: 7.14 | U135: 52.79037952 | V135: 7.265698832 | W135: 7.14 | Y135: 2457118.844 | Z135: 8.37 | AA135: 62.63997406 | AB135: 7.914541936 | AC135: 8.37
A136: 2457061.204 | B136: 6.09 | C136: 84.15359706 | D136: 9.173526969 | E136: 6.09 | G136: 2457118.824 | H136: 6.88 | I136: 59.96161401 | J136: 7.743488491 | K136: 6.88 | M136: 2457118.83 | N136: 7.86 | O136: 59.7888127 | P136: 7.732322594 | Q136: 7.86 | S136: 2457118.836 | T136: 7.14 | U136: 53.30878347 | V136: 7.301286426 | W136: 7.14 | Y136: 2457118.844 | Z136: 8.37 | AA136: 63.24479878 | AB136: 7.952659856 | AC136: 8.37
A137: 2457061.204 | B137: 6.09 | C137: 84.93118286 | D137: 9.215811568 | E137: 6.09 | G137: 2457118.824 | H137: 6.88 | I137: 60.48001796 | J137: 7.776889993 | K137: 6.88 | M137: 2457118.83 | N137: 7.86 | O137: 60.30721664 | P137: 7.765772122 | Q137: 7.86 | S137: 2457118.836 | T137: 7.14 | U137: 53.82718742 | V137: 7.336701399 | W137: 7.14 | Y137: 2457118.844 | Z137: 8.37 | AA137: 63.76316249 | AB137: 7.985183936 | AC137: 8.37
A138: 2457061.204 | B138: 6.15 | C138: 85.7088089 | D138: 9.257905211 | E138: 6.15 | G138: 2457118.824 | H138: 6.89 | I138: 60.99842191 | J138: 7.810148648 | K138: 6.89 | M138: 2457118.83 | N138: 7.86 | O138: 60.82562059 | P138: 7.799078189 | Q138: 7.86 | S138: 2457118.836 | T138: 7.15 | U138: 54.34559137 | V138: 7.37194624 | W138: 7.15 | Y138: 2457118.844 | Z138: 8.38 | AA138: 64.36798722 | AB138: 8.022966235 | AC138: 8.38
A139: 2457061.204 | B139: 6.16 | C139: 86.57277524 | D139: 9.304449218 | E139: 6.16 | G139: 2457118.824 | H139: 6.89 | I139: 61.51682585 | J139: 7.843266275 | K139: 6.89 | M139: 2457118.83 | N139: 7.87 | O139: 61.34398431 | P139: 7.832240057 | Q139: 7.87 | S139: 2457118.836 | T139: 7.15 | U139: 54.86399531 | V139: 7.407023377 | W139: 7.15 | Y139: 2457118.844 | Z139: 8.38 | AA139: 64.88639116 | AB139: 8.055208946 | AC139: 8.38
A140: 2457061.204 | B140: 6.17 | C140: 87.35040128 | D140: 9.346143658 | E140: 6.17 | G140: 2457118.824 | H140: 6.89 | I140: 62.0352298 | J140: 7.876244651 | K140: 6.89 | M140: 2457118.83 | N140: 7.88 | O140: 61.86238825 | P140: 7.865264665 | Q140: 7.88 | S140: 2457118.836 | T140: 7.16 | U140: 55.38239926 | V140: 7.441935183 | W140: 7.16 | Y140: 2457118.844 | Z140: 8.39 | AA140: 65.49117565 | AB140: 8.09266184 | AC140: 8.39
A141: 2457061.204 | B141: 6.19 | C141: 88.12798709 | D141: 9.387650776 | E141: 6.19 | G141: 2457118.824 | H141: 6.89 | I141: 62.55363375 | J141: 7.909085519 | K141: 6.89 | M141: 2457118.83 | N141: 7.89 | O141: 62.46721298 | P141: 7.903620245 | Q141: 7.89 | S141: 2457118.836 | T141: 7.17 | U141: 55.90080321 | V141: 7.476683971 | W141: 7.17 | Y141: 2457118.844 | Z141: 8.39 | AA141: 66.0095796 | AB141: 8.124627967 | AC141: 8.39
A142: 2457061.204 | B142: 6.19 | C142: 88.90561312 | D142: 9.428977311 | E142: 6.19 | G142: 2457118.824 | H142: 6.91 | I142: 63.07199746 | J142: 7.941788052 | K142: 6.91 | M142: 2457118.83 | N142: 7.89 | O142: 62.98561692 | P142: 7.936347833 | Q142: 7.89 | S142: 2457118.836 | T142: 7.17 | U142: 56.5055877 | V142: 7.517019868 | W142: 7.17 | Y142: 2457118.844 | Z142: 8.4 | AA142: 66.61436409 | AB142: 8.161762315 | AC142: 8.4
A143: 2457061.204 | B143: 6.19 | C143: 89.68319893 | D143: 9.470121379 | E143: 6.19 | G143: 2457118.824 | H143: 6.92 | I143: 63.59040141 | J143: 7.974358997 | K143: 6.92 | M143: 2457118.83 | N143: 7.9 | O143: 63.50402087 | P143: 7.968941013 | Q143: 7.9 | S143: 2457118.836 | T143: 7.17 | U143: 57.02399164 | V143: 7.551423154 | W143: 7.17 | Y143: 2457118.844 | Z143: 8.41 | AA143: 67.21918881 | AB143: 8.198730927 | AC143: 8.41
A144: 2457061.204 | B144: 6.19 | C144: 90.46078473 | D144: 9.511087463 | E144: 6.19 | G144: 2457118.824 | H144: 6.93 | I144: 64.10880536 | J144: 8.006797447 | K144: 6.93 | M144: 2457118.83 | N144: 7.91 | O144: 64.02238458 | P144: 8.001398914 | Q144: 7.91 | S144: 2457118.836 | T144: 7.17 | U144: 57.54239559 | V144: 7.585670411 | W144: 7.17 | Y144: 2457118.844 | Z144: 8.41 | AA144: 67.73759276 | AB144: 8.230285096 | AC144: 8.41
A145: 2457061.204 | B145: 6.22 | C145: 91.23841077 | D145: 9.55187996 | E145: 6.22 | G145: 2457118.824 | H145: 6.93 | I145: 64.62720931 | J145: 8.039105007 | K145: 6.93 | M145: 2457118.83 | N145: 7.92 | O145: 64.54078853 | P145: 8.033728184 | Q145: 7.92 | S145: 2457118.836 | T145: 7.17 | U145: 58.06079954 | V145: 7.619763746 | W145: 7.17 | Y145: 2457118.844 | Z145: 8.43 | AA145: 68.34237725 | AB145: 8.266944856 | AC145: 8.43
A146: 2457061.204 | B146: 6.23 | C146: 92.01599658 | D146: 9.59249689 | E146: 6.23 | G146: 2457118.824 | H146: 6.93 | I146: 65.23203403 | J146: 8.076635068 | K146: 6.93 | M146: 2457118.83 | N146: 7.93 | O146: 65.05919248 | P146: 8.065927875 | Q146: 7.93 | S146: 2457118.836 | T146: 7.17 | U146: 58.57920349 | V146: 7.653705213 | W146: 7.17 | Y146: 2457118.844 | Z146: 8.44 | AA146: 68.86078119 | AB146: 8.298239644 | AC146: 8.44
A147: 2457061.204 | B147: 6.24 | C147: 92.79358238 | D147: 9.632942561 | E147: 6.24 | G147: 2457118.824 | H147: 6.93 | I147: 65.75039774 | J147: 8.108661896 | K147: 6.93 | M147: 2457118.83 | N147: 7.94 | O147: 65.57759643 | P147: 8.097999532 | Q147: 7.94 | S147: 2457118.836 | T147: 7.17 | U147: 59.0975672 | V147: 7.687494208 | W147: 7.17 | Y147: 2457118.844 | Z147: 8.45 | AA147: 69.46556568 | AB147: 8.334600511 | AC147: 8.45
A148: 2457061.204 | B148: 6.25 | C148: 93.57120842 | D148: 9.673221202 | E148: 6.25 | G148: 2457118.824 | H148: 6.94 | I148: 66.26880169 | J148: 8.140565195 | K148: 6.94 | M148: 2457118.83 | N148: 7.94 | O148: 66.09600037 | P148: 8.129944672 | Q148: 7.94 | S148: 2457118.836 | T148: 7.17 | U148: 59.61597115 | V148: 7.721137944 | W148: 7.17 | Y148: 2457118.844 | Z148: 8.45 | AA148: 69.98396963 | AB148: 8.365642213 | AC148: 8.45
A149: 2457061.204 | B149: 6.25 | C149: 94.43517476 | D149: 9.717776225 | E149: 6.25 | G149: 2457118.824 | H149: 6.94 | I149: 66.78720564 | J149: 8.17234395 | K149: 6.94 | M149: 2457118.83 | N149: 7.95 | O149: 66.61440432 | P149: 8.16176478 | Q149: 7.95 | S149: 2457118.836 | T149: 7.18 | U149: 60.1343751 | V149: 7.754635716 | W149: 7.18 | Y149: 2457118.844 | Z149: 8.46 | AA149: 70.58879435 | AB149: 8.401713775 | AC149: 8.46
A150: 2457061.204 | B150: 6.26 | C150: 95.2128008 | D150: 9.757704689 | E150: 6.26 | G150: 2457118.824 | H150: 6.94 | I150: 67.30560958 | J150: 8.203999609 | K150: 6.94 | M150: 2457118.83 | N150: 7.96 | O150: 67.13280827 | P150: 8.193461312 | Q150: 7.96 | S150: 2457118.836 | T150: 7.2 | U150: 60.65277904 | V150: 7.78798941 | W150: 7.2 | Y150: 2457118.844 | Z150: 8.46 | AA150: 71.19357884 | AB150: 8.437628745 | AC150: 8.46
A151: 2457061.204 | B151: 6.26 | C151: 95.99038661 | D151: 9.797468377 | E151: 6.26 | G151: 2457118.824 | H151: 6.94 | I151: 67.82401353 | J151: 8.235533591 | K151: 6.94 | M151: 2457118.83 | N151: 7.97 | O151: 67.65121222 | P151: 8.225035697 | Q151: 7.97 | S151: 2457118.836 | T151: 7.2 | U151: 61.17118299 | V151: 7.821200866 | W151: 7.2 | Y151: 2457118.844 | Z151: 8.47 | AA151: 71.71198279 | AB151: 8.468292791 | AC151: 8.47
A152: 2457061.204 | B152: 6.28 | C152: 96.76801264 | D152: 9.837073378 | E152: 6.28 | G152: 2457118.824 | H152: 6.94 | I152: =(G152-$G$22)*24*60*60 -> 68.34241748 | J152: =SQRT(I152) -> 8.266947289 | K152: =H152 -> 6.94 | M152: 2457118.83 | N152: 7.99 | O152: =(M152-$M$22)*24*60*60 -> 68.16961616 | P152: =SQRT(O152) -> 8.256489336 | Q152: =N152 -> 7.99 | S152: 2457118.836 | T152: 7.2 | U152: 61.77596748 | V152: 7.85976892 | W152: 7.2 | Y152: 2457118.844 | Z152: 8.48 | AA152: 72.31676728 | AB152: 8.50392658 | AC152: 8.48
A153: 2457061.204 | B153: 6.28 | C153: 97.54559845 | D153: 9.876517526 | E153: 6.28 | G153: 2457118.824 | H153: 6.95 | I153: 68.86082143 | J153: 8.298242068 | K153: 6.95 | M153: 2457118.83 | N153: 8.01 | O153: 68.68802011 | P153: 8.287823605 | Q153: 8.01 | S153: 2457118.836 | T153: 7.2 | U153: 62.29437143 | V153: 7.892678343 | W153: 7.2 | Y153: 2457118.844 | Z153: 8.5 | AA153: 72.83517122 | AB153: 8.53435242 | AC153: 8.5
A154: 2457061.204 | B154: 6.29 | C154: 98.32318425 | D154: 9.915804771 | E154: 6.29 | G154: 2457118.824 | H154: 6.95 | I154: 69.37922537 | J154: 8.32941927 | K154: 6.95 | M154: 2457118.83 | N154: 8.01 | O154: 69.20638382 | P154: 8.319037434 | Q154: 8.01 | S154: 2457118.836 | T154: 7.2 | U154: 62.81277537 | V154: 7.925451115 | W154: 7.2 | Y154: 2457118.844 | Z154: 8.52 | AA154: 73.43999594 | AB154: 8.569713878 | AC154: 8.52
A155: 2457061.204 | B155: 6.29 | C155: 99.10081029 | D155: 9.95493899 | E155: 6.29 | G155: 2457118.824 | H155: 6.97 | I155: 69.89762932 | J155: 8.360480209 | K155: 6.97 | M155: 2457118.83 | N155: 8.02 | O155: 69.72478777 | P155: 8.350136991 | Q155: 8.02 | S155: 2457118.836 | T155: 7.2 | U155: 63.33117932 | V155: 7.958088924 | W155: 7.2 | Y155: 2457118.844 | Z155: 8.53 | AA155: =(Y155-$Y$25)*24*60*60 -> 73.95839989 | AB155: =SQRT(AA155) -> 8.59990697 | AC155: =Z155 -> 8.53
A156: 2457061.204 | B156: 6.3 | C156: 99.87839609 | D156: 9.993917955 | E156: 6.3 | G156: 2457118.824 | H156: 6.98 | I156: 70.41603327 | J156: 8.391426176 | K156: 6.98 | M156: 2457118.83 | N156: 8.02 | O156: 70.32961249 | P156: 8.386275246 | Q156: 8.02 | S156: 2457118.836 | T156: 7.22 | U156: 63.84958327 | V156: 7.990593424 | W156: 7.22 | Y156: 2457118.844 | Z156: 8.54 | AA156: 74.56318438 | AB156: 8.634997648 | AC156: 8.54
A157: 2457061.204 | B157: 6.31 | C157: 100.6559819 | D157: 10.03274548 | E157: 6.31 | G157: 2457118.824 | H157: 6.98 | I157: 70.93439698 | J157: 8.422256051 | K157: 6.98 | M157: 2457118.83 | N157: 8.03 | O157: 70.84801644 | P157: 8.417126377 | Q157: 8.03 | S157: 2457118.836 | T157: 7.22 | U157: 64.36798722 | V157: 8.022966235 | W157: 7.22 | Y157: 2457118.844 | Z157: 8.54 | AA157: 75.16796887 | AB157: 8.669946301 | AC157: 8.54
A158: 2457061.204 | B158: 6.31 | C158: 101.4336079 | D158: 10.07142532 | E158: 6.31 | G158: 2457118.824 | H158: 6.98 | I158: 71.45280093 | J158: 8.452975862 | K158: 6.98 | M158: 2457118.83 | N158: 8.04 | O158: 71.36642039 | P158: 8.447864842 | Q158: 8.04 | S158: 2457118.836 | T158: 7.23 | U158: 64.88639116 | V158: 8.055208946 | W158: 7.23 | Y158: 2457118.844 | Z158: 8.55 | AA158: 75.68637282 | AB158: 8.699791539 | AC158: 8.55
A159: 2457061.204 | B159: 6.33 | C159: =(A159-$A$29)*24*60*60 -> 102.2976145 | D159: =SQRT(C159) -> 10.11422832 | E159: =B159 -> 6.33 | G159: 2457118.824 | H159: 6.99 | I159: 71.97120488 | J159: 8.483584436 | K159: 6.99 | M159: 2457118.83 | N159: 8.06 | O159: 71.8847841 | P159: 8.478489494 | Q159: 8.06 | S159: 2457118.836 | T159: 7.23 | U159: 65.40479511 | V159: 8.087323112 | W159: 7.23 | Y159: 2457118.844 | Z159: 8.55 | AA159: 76.29119754 | AB159: 8.734483244 | AC159: 8.55
A160: 2457061.204 | B160: 6.34 | C160: 103.0752003 | D160: 10.15259574 | E160: 6.34 | G160: 2457118.824 | H160: 6.99 | I160: 72.48960882 | J160: 8.51408297 | K160: 6.99 | M160: 2457118.83 | N160: 8.08 | O160: 72.40318805 | P160: 8.50900629 | Q160: 8.08 | S160: 2457118.836 | T160: 7.23 | U160: 65.92319906 | V160: 8.119310258 | W160: 7.23 | Y160: 2457118.844 | Z160: 8.56 | AA160: 76.80956125 | AB160: 8.764106415 | AC160: 8.56
A161: 2457061.204 | B161: 6.35 | C161: 103.8527861 | D161: 10.19081872 | E161: 6.35 | G161: 2457118.824 | H161: 7 | I161: 73.09443355 | J161: 8.549528265 | K161: 7 | M161: 2457118.83 | N161: 8.08 | O161: 72.921592 | P161: 8.539414031 | Q161: 8.08 | S161: 2457118.836 | T161: 7.23 | U161: 66.441603 | V161: 8.151171879 | W161: 7.23 | Y161: 2457118.844 | Z161: 8.56 | AA161: 77.41438597 | AB161: 8.798544537 | AC161: 8.56
A162: 2457061.204 | B162: 6.38 | C162: 104.6304122 | D162: 10.22890083 | E162: 6.38 | G162: 2457118.824 | H162: 7 | I162: 73.61279726 | J162: 8.579790048 | K162: 7 | M162: 2457118.83 | N162: 8.09 | O162: 73.43999594 | P162: 8.569713878 | Q162: 8.09 | S162: 2457118.836 | T162: 7.23 | U162: 66.95996672 | V162: 8.182906985 | W162: 7.23 | Y162: 2457118.844 | Z162: 8.58 | AA162: 77.93278992 | AB162: 8.827955025 | AC162: 8.58
A163: 2457061.204 | B163: 6.4 | C163: 105.407998 | D163: 10.26683973 | E163: 6.4 | G163: 2457118.824 | H163: 7.02 | I163: 74.13120121 | J163: 8.609947805 | K163: 7.02 | M163: 2457118.83 | N163: 8.09 | O163: 73.95839989 | P163: 8.59990697 | Q163: 8.09 | S163: 2457118.836 | T163: 7.23 | U163: 67.56479144 | V163: 8.219780498 | W163: 7.23 | Y163: 2457118.844 | Z163: 8.59 | AA163: 78.53757441 | AB163: 8.862142766 | AC163: 8.59
